Workbook

Sheet Overview
A2: CDCM Annual Review Pack | G2: Colour coding
G3: Data input
A4: Company: | B4: ='CDCM Forecast Data'!F3 -> WPD Mid West | G4: Void cell in input data table
A5: Date of Issue: | B5: ='CDCM Forecast Data'!F4 -> 2012-12-21 | G5: Calculation
G6: Copy data
A7: ="Although every effort has been made to ensure the accuracy of the information provided in this annual review pack, " & 'CDCM Forecast Data'!F3 & " does not accept any liability for the accuracy of the information contained herein and, in particular, " & 'CDCM Forecast Data'!F3 & " or any of its employees, shall not be held liable for any misstatement or opinion on which the recipient of this statement relies or seeks to rely." -> Although every effort has been made to ensure the accuracy of the information provided in this annual review pack, WPD Mid West does not accept any liability for the accuracy of the information contained herein and, in particular, WPD Mid West or any of its employees, shall not be held liable for any misstatement or opinion on which the recipient of this statement relies or seeks to rely. | G7: Void cell in calculation table
G8: Space for user notes
A12: Contents:
A14: Sheet Name | B14: Detail
A15: Commentary | B15: This sheet contains the DNO's commentary on the forecast input CDCM data for the forecast over the 5 year period.
A16: CDCM Forecast Data | B16: This sheet contains historical and forecast data for all CDCM inputs except for volume data (table 1053) and matrix of applicability data (table 1025 - 1028). The RPI forecast is seperated out and listed as a standalone assumption. Any forecasts that relate to RPI will be linked to this row. Comments are provided alongside each forecast explaining any assumptions made by the DNO.
A17: Mat of App | B17: This sheet contains the forecast CDCM matrix of applicability data (table 1025 - 1028). The default value is that the same matrix will be used for each of the five years.
A18: CDCM Volume Forecasts | B18: This sheet contains forecast CDCM volume data (table 1053). The matrix at the top can be used to apply different growth rates to groups of customers.
A19: CDCM Timebands | B19: Contains the time bands that the DNO plans to use for the coming year and advance warning of any changes.
A20: CDCM Input Sheet (Y) | B20: This sheet contains the CDCM input sheet for base year 0 (Y) in a format that can be copy and pasted (paste-value) into the CDCM spreadsheet model.
A21: CDCM Input Sheet (Y + 1) | B21: This sheet contains the CDCM input sheet for base year +1 (Y+1) in a format that can be copy and pasted (paste-value) into the CDCM spreadsheet model.
A22: CDCM Input Sheet (Y + 2) | B22: This sheet contains the CDCM input sheet for base year +2 (Y+2) in a format that can be copy and pasted (paste-value) into the CDCM spreadsheet model.
A23: CDCM Input Sheet (Y + 3) | B23: This sheet contains the CDCM input sheet for base year +3 (Y+3) in a format that can be copy and pasted (paste-value) into the CDCM spreadsheet model.
A24: CDCM Input Sheet (Y + 4) | B24: This sheet contains the CDCM input sheet for base year +4 (Y+4) in a format that can be copy and pasted (paste-value) into the CDCM spreadsheet model.
A25: Tariffs | B25: This sheet contains the CDCM tariffs that are produced from the CDCM input data, after the Macro on this sheet has been run. It contains the tariffs for each of the 5 years.
A26: DNO Checklist | B26: This sheet contains a checklist for the DNOs to ensure all items have been updated when producing the Annual review Pack.

Sheet ARP Versions (hidden)
B3: CDCM Annual Review Pack AdatVersions
B5: ARP Version Ref | D5: ARP Adatptation Number | G5: Description
B7: 100 | D7: 100 | G7: Initial Model for 2011 to 2012
B8: 100 | D8: 100 | G8: Model Used for 2012 to 2013
B9: 101 | D9: 101 | G9: Model Used for 2013 to 2014
B10: 101 | D10: 102 | G10: Adapted to comply with DCP130 and DCP132

Sheet Commentary
B3: ='CDCM Forecast Data'!F3 -> WPD Mid West

Sheet CDCM Forecast Data
E3: Company: | F3: WPD Mid West
E4: Date of Issue: | F4: 2012-12-21
E5: Status | F5: April 2013'
D9: Historical CDCM Input Data (Actuals) | F9: ="CDCM Values - "&F5 -> CDCM Values - April 2013' | G9: Forecast CDCM Values
C10: Year Ref -> | D10: Y-2 | E10: Y-1 | F10: Y | G10: Y+1 | H10: Y+2 | I10: Y+3 | J10: Y+4
C11: Charging Year -> | D11: 2011/12 | E11: 2012/13 | F11: 2013/14 | G11: 2014/15 | H11: 2015/16 | I11: 2016/17 | J11: 2017/18
C12: DPCR -> | D12: DPCR5 | E12: DPCR5 | F12: DPCR5 | G12: DPCR5 | H12: RIIO - ED1 | I12: RIIO - ED1 | J12: RIIO - ED1 | K12: Assumptions
C13: RPI Forecast: | G13: 0.0217 | H13: 0.02 | I13: 0.02 | J13: 0.02
B14: 1 | C14: 1000 Company name, charging year and model version
B15: =+B14+1 -> 2 | C15: Company | D15: WPD Mid West | E15: WPD Mid West | F15: WPD Mid West | G15: WPD Mid West | H15: WPD Mid West | I15: WPD Mid West | J15: WPD Mid West
B16: =+B15+1 -> 3 | C16: Year | D16: ="April " & LEFT(D11,4) -> April 2011 | E16: April 2012 | F16: April 2013 | G16: April 2014 | H16: April 2015 | I16: April 2016 | J16: April 2017
B17: 4 | C17: Version
B18: 5 | C18: 1010 Financial and general assumptions
B19: 6 | C19: Rate of return | F19: 0.056 | G19: 0.056 | H19: 0.056 | I19: 0.056 | J19: 0.056
B20: 7 | C20: Annualisation period (years) | F20: 40 | G20: 40 | H20: 40 | I20: 40 | J20: 40
B21: 8 | C21: Power factor | F21: 0.95 | G21: 0.95 | H21: 0.95 | I21: 0.95 | J21: 0.95
B22: 9 | C22: Days in the charging period | F22: 365 | G22: 365 | H22: 366 | I22: 365 | J22: 365
B23: 10 | C23: 1017 Diversity allowance between top and bottom of network level
B24: 11 | C24: GSPs | F24: 0.05649040832 | G24: =F24 -> 0.05649040832 | H24: =G24 -> 0.05649040832 | I24: 0.05649040832 | J24: 0.05649040832
B25: 12 | C25: 132kV | F25: 0.0255686825 | G25: =F25 -> 0.0255686825 | H25: 0.0255686825 | I25: 0.0255686825 | J25: 0.0255686825
B26: 13 | C26: EHV | F26: 0.02663159667 | G26: 0.02663159667 | H26: 0.02663159667 | I26: 0.02663159667 | J26: 0.02663159667
B27: 14 | C27: HV | F27: 0.34 | G27: 0.34 | H27: 0.34 | I27: 0.34 | J27: 0.34
B28: 15 | C28: 1018 Proportion of relevant load going through 132kV/HV direct transformation | F28: 0.6925656292 | G28: 0.6925656292 | H28: 0.6925656292 | I28: 0.6925656292 | J28: 0.6925656292
B29: 16 | C29: 1019 Network model GSP demand (MW) | F29: 500 | G29: 500 | H29: 500 | I29: 500 | J29: 500
B30: 17 | C30: 1020 Gross asset cost by network level (£)
B31: 18 | C31: 132kV | F31: 99354441.13 | G31: 69289826 | H31: =G31*(1+H$13) -> 70675622.52 | I31: =H31*(1+I$13) -> 72089134.97 | J31: =I31*(1+J$13) -> 73530917.67
B32: 19 | C32: 132kV/EHV | F32: 12895932.21 | G32: 10805721 | H32: =G32*(1+H$13) -> 11021835.42 | I32: 11242272.13 | J32: 11467117.57
B33: 20 | C33: EHV | F33: 10494134.81 | G33: 12445869 | H33: 12694786.38 | I33: 12948682.11 | J33: 13207655.75
B34: 21 | C34: EHV/HV | F34: 23710501.15 | G34: 21265349 | H34: 21690655.98 | I34: 22124469.1 | J34: 22566958.48
B35: 22 | C35: 132kV/HV | F35: 26797550.1 | G35: 19659026 | H35: 20052206.52 | I35: 20453250.65 | J35: 20862315.66
B36: 23 | C36: HV | F36: 117191231 | G36: 108538973 | H36: 110709752.5 | I36: 112923947.5 | J36: 115182426.5
B37: 24 | C37: HV/LV | F37: 81325177.96 | G37: 68061984 | H37: 69423223.68 | I37: 70811688.15 | J37: 72227921.92
B38: 25 | C38: LV circuits | F38: 103958997.4 | G38: 94672478 | H38: 96565927.56 | I38: 98497246.11 | J38: 100467191
B39: 26 | C39: 1022 LV service model asset cost (£)
B40: 27 | C40: LV service model 1 | F40: 9660.066903 | G40: 4689.776689 | H40: =IF(OR($F40 = 0,$F40="")=FALSE,G40*(1+H$13),"-") -> 4783.572223 | I40: 4879.243667 | J40: 4976.828541
B41: 28 | C41: LV service model 2 | F41: 715.2994506 | G41: 578.9437507 | H41: 590.5226258 | I41: 602.3330783 | J41: 614.3797398
B42: 29 | C42: LV service model 3 | F42: 1687.308348 | G42: 683.874895 | H42: 697.5523929 | I42: 711.5034408 | J42: 725.7335096
B43: 30 | C43: LV service model 4 | F43: 1687.308348 | G43: 509.4741107 | H43: 519.6635929 | I43: 530.0568647 | J43: 540.658002
B44: 31 | C44: LV service model 5 | F44: 1687.308348 | G44: 1169.036632 | H44: 1192.417365 | I44: 1216.265712 | J44: 1240.591027
B45: 32 | C45: LV service model 6 | F45: 186.5632948 | G45: 858.6034748 | H45: 875.7755442 | I45: 893.2910551 | J45: 911.1568762
B46: 33 | C46: LV service model 7 | F46: 0 | G46: 0 | H46: =IF(OR($F46 = 0,$F46="")=FALSE,G46*(1+H$13),"-") -> - | I46: =IF(OR($F46 = 0,$F46="")=FALSE,H46*(1+I$13),"-") -> - | J46: -
B47: 34 | C47: LV service model 8 | F47: 0 | G47: 450.314275 | H47: =G47*(1+H13) -> 459.3205605 | I47: =H47*(1+I13) -> 468.5069717 | J47: 477.8771111
B48: 35 | C48: 1023 HV service model asset cost (£)
B49: 36 | C49: HV service model 1 | F49: 16967.54924 | G49: 8748.377769 | H49: 8562.57 | I49: =IF(OR($F49 = 0,$F49="")=FALSE,H49*(1+I$13),"-") -> 8733.8214 | J49: 8908.497828
B50: 37 | C50: HV service model 2 | F50: 16967.54924 | G50: 4299.3136 | H50: 4208 | I50: 4292.16 | J50: 4378.0032
B51: 38 | C51: HV service model 3 | F51: 2913.049839 | G51: 0 | H51: 0 | I51: 0 | J51: 0
B52: 39 | C52: HV service model 4 | F52: 0 | G52: - | H52: - | I52: - | J52: -
B53: 40 | C53: HV service model 5 | F53: 0 | G53: - | H53: - | I53: - | J53: -
B54: 41 | C54: 1025 Matrix of applicability of LV service models to tariffs with fixed charges
B55: 42 | C55: 1026 Matrix of applicability of LV service models to unmetered tariffs
B56: 43 | C56: 1028 Matrix of applicability of HV service models to tariffs with fixed charges
B57: 44 | C57: 1032 Loss adjustment factors to transmission
B58: 45 | C58: 132kV | F58: 1.002 | G58: =F58 -> 1.002 | H58: =G58 -> 1.002 | I58: 1.002 | J58: 1.002
B59: 46 | C59: 132kV/EHV | F59: 1.003 | G59: =F59 -> 1.003 | H59: 1.003 | I59: 1.003 | J59: 1.003
B60: 47 | C60: EHV | F60: 1.006 | G60: 1.006 | H60: 1.006 | I60: 1.006 | J60: 1.006
B61: 48 | C61: EHV/HV | F61: 1.027 | G61: 1.027 | H61: 1.027 | I61: 1.027 | J61: 1.027
B62: 49 | C62: HV | F62: 1.044 | G62: 1.044 | H62: 1.044 | I62: 1.044 | J62: 1.044
B63: 50 | C63: HV/LV | F63: 1.051 | G63: 1.051 | H63: 1.051 | I63: 1.051 | J63: 1.051
B64: 51 | C64: LV circuits | F64: 1.077 | G64: 1.077 | H64: 1.077 | I64: 1.077 | J64: 1.077
B65: 52 | C65: 1037 Embedded network (LDNO) discounts
B66: 53 | C66: LDNO LV: LV user | F66: 0.3088318356 | G66: =F66 -> 0.3088318356 | H66: =G66 -> 0.3088318356 | I66: 0.3088318356 | J66: 0.3088318356
B67: 54 | C67: LDNO HV: LV user | F67: 0.500779158 | G67: =F67 -> 0.500779158 | H67: 0.500779158 | I67: 0.500779158 | J67: 0.500779158
B68: 55 | C68: LDNO HV: LV sub user | F68: 0.2542804506 | G68: 0.2542804506 | H68: 0.2542804506 | I68: 0.2542804506 | J68: 0.2542804506
B69: 56 | C69: LDNO HV: HV user | F69: 0.1522859741 | G69: 0.1522859741 | H69: 0.1522859741 | I69: 0.1522859741 | J69: 0.1522859741
B70: 57 | C70: 1041 Load profile data for demand users: coincidence factor
B71: 58 | C71: Domestic Unrestricted | F71: ='Smoothed Input Details'!E15 -> 0.9172510752 | G71: =F71 -> 0.9172510752 | H71: =G71 -> 0.9172510752 | I71: =H71 -> 0.9172510752 | J71: 0.9172510752
B72: 59 | C72: Domestic Two Rate | F72: ='Smoothed Input Details'!E16 -> 0.4008018177 | G72: =F72 -> 0.4008018177 | H72: =G72 -> 0.4008018177 | I72: =H72 -> 0.4008018177 | J72: 0.4008018177
B73: 60 | C73: Domestic Off Peak (related MPAN)
B74: 61 | C74: Small Non Domestic Unrestricted | F74: ='Smoothed Input Details'!E18 -> 0.6200806889 | G74: =F74 -> 0.6200806889 | H74: =G74 -> 0.6200806889 | I74: =H74 -> 0.6200806889 | J74: 0.6200806889
B75: 62 | C75: Small Non Domestic Two Rate | F75: ='Smoothed Input Details'!E19 -> 0.6187554381 | G75: =F75 -> 0.6187554381 | H75: =G75 -> 0.6187554381 | I75: =H75 -> 0.6187554381 | J75: 0.6187554381
B76: 63 | C76: Small Non Domestic Off Peak (related MPAN)
B77: 64 | C77: LV Medium Non-Domestic | F77: ='Smoothed Input Details'!E21 -> 0.8048027574 | G77: =F77 -> 0.8048027574 | H77: =G77 -> 0.8048027574 | I77: 0.8048027574 | J77: 0.8048027574
B78: 65 | C78: LV Sub Medium Non-Domestic | F78: ='Smoothed Input Details'!E22 -> 0.8048027574 | G78: =F78 -> 0.8048027574 | H78: 0.8048027574 | I78: 0.8048027574 | J78: 0.8048027574
B79: 66 | C79: HV Medium Non-Domestic | F79: ='Smoothed Input Details'!E23 -> 0.6108164218 | G79: 0.6108164218 | H79: 0.6108164218 | I79: 0.6108164218 | J79: 0.6108164218
B80: =+B79+1 -> 67 | C80: LV HH Metered | F80: ='Smoothed Input Details'!E24 -> 0.7619514042 | G80: 0.7619514042 | H80: 0.7619514042 | I80: 0.7619514042 | J80: 0.7619514042
B81: 68 | C81: LV Sub HH Metered | F81: ='Smoothed Input Details'!E25 -> 0.7619514042 | G81: 0.7619514042 | H81: 0.7619514042 | I81: 0.7619514042 | J81: 0.7619514042
B82: 69 | C82: HV HH Metered | F82: ='Smoothed Input Details'!E26 -> 0.7725944525 | G82: 0.7725944525 | H82: 0.7725944525 | I82: 0.7725944525 | J82: 0.7725944525
B83: 70 | C83: HV Sub HH Metered | F83: ='Smoothed Input Details'!E27 -> 0.7725944525 | G83: 0.7725944525 | H83: 0.7725944525 | I83: 0.7725944525 | J83: 0.7725944525
B84: 71 | C84: NHH UMS category A | F84: 1 | G84: 1 | H84: 1 | I84: 1 | J84: 1
B85: 72 | C85: NHH UMS category B | F85: 1 | G85: 1 | H85: 1 | I85: 1 | J85: 1
B86: 73 | C86: NHH UMS category C | F86: 1 | G86: 1 | H86: 1 | I86: 1 | J86: 1
B87: 74 | C87: NHH UMS category D | F87: 0.06413333333 | G87: 0.06413333333 | H87: 0.06413333333 | I87: 0.06413333333 | J87: 0.06413333333
B88: 75 | C88: LV UMS (Pseudo HH Metered) | F88: ='Smoothed Input Details'!E29 -> 0.9938755871 | G88: 0.9938755871 | H88: 0.9938755871 | I88: 0.9938755871 | J88: 0.9938755871
B89: 76 | C89: 1041 Load profile data for demand users: load factor
B90: 77 | C90: Domestic Unrestricted | F90: ='Smoothed Input Details'!E38 -> 0.4114348134 | G90: =F90 -> 0.4114348134 | H90: =G90 -> 0.4114348134 | I90: 0.4114348134 | J90: 0.4114348134
B91: 78 | C91: Domestic Two Rate | F91: ='Smoothed Input Details'!E39 -> 0.2556052059 | G91: =F91 -> 0.2556052059 | H91: 0.2556052059 | I91: 0.2556052059 | J91: 0.2556052059
B92: 79 | C92: Domestic Off Peak (related MPAN) | F92: ='Smoothed Input Details'!E40 -> 0.1559078077 | G92: 0.1559078077 | H92: 0.1559078077 | I92: 0.1559078077 | J92: 0.1559078077
B93: 80 | C93: Small Non Domestic Unrestricted | F93: ='Smoothed Input Details'!E41 -> 0.3524542035 | G93: 0.3524542035 | H93: 0.3524542035 | I93: 0.3524542035 | J93: 0.3524542035
B94: 81 | C94: Small Non Domestic Two Rate | F94: ='Smoothed Input Details'!E42 -> 0.4306838132 | G94: 0.4306838132 | H94: 0.4306838132 | I94: 0.4306838132 | J94: 0.4306838132
B95: 82 | C95: Small Non Domestic Off Peak (related MPAN) | F95: ='Smoothed Input Details'!E43 -> 0.1868684712 | G95: 0.1868684712 | H95: 0.1868684712 | I95: 0.1868684712 | J95: 0.1868684712
B96: 83 | C96: LV Medium Non-Domestic | F96: ='Smoothed Input Details'!E44 -> 0.4920997994 | G96: 0.4920997994 | H96: 0.4920997994 | I96: 0.4920997994 | J96: 0.4920997994
B97: 84 | C97: LV Sub Medium Non-Domestic | F97: ='Smoothed Input Details'!E45 -> 0.4920997994 | G97: 0.4920997994 | H97: 0.4920997994 | I97: 0.4920997994 | J97: 0.4920997994
B98: 85 | C98: HV Medium Non-Domestic | F98: ='Smoothed Input Details'!E46 -> 0.4220141332 | G98: =F98 -> 0.4220141332 | H98: 0.4220141332 | I98: 0.4220141332 | J98: 0.4220141332
B99: 86 | C99: LV HH Metered | F99: ='Smoothed Input Details'!E47 -> 0.5192642925 | G99: 0.5192642925 | H99: 0.5192642925 | I99: 0.5192642925 | J99: 0.5192642925
B100: 87 | C100: LV Sub HH Metered | F100: ='Smoothed Input Details'!E48 -> 0.5192642925 | G100: 0.5192642925 | H100: 0.5192642925 | I100: 0.5192642925 | J100: 0.5192642925
B101: 88 | C101: HV HH Metered | F101: ='Smoothed Input Details'!E49 -> 0.6437861665 | G101: 0.6437861665 | H101: 0.6437861665 | I101: 0.6437861665 | J101: 0.6437861665
B102: 89 | C102: HV Sub HH Metered | F102: ='Smoothed Input Details'!E50 -> 0.6437861665 | G102: 0.6437861665 | H102: 0.6437861665 | I102: 0.6437861665 | J102: 0.6437861665
B103: 90 | C103: NHH UMS category A | F103: 1 | G103: 1 | H103: 1 | I103: 1 | J103: 1
B104: 91 | C104: NHH UMS category B | F104: 0.4736829452 | G104: 0.4736829452 | H104: 0.4736829452 | I104: 0.4736829452 | J104: 0.4736829452
B105: 92 | C105: NHH UMS category C | F105: 0.258 | G105: 0.258 | H105: 0.258 | I105: 0.258 | J105: 0.258
B106: 93 | C106: NHH UMS category D | F106: 0.553 | G106: 0.553 | H106: 0.553 | I106: 0.553 | J106: 0.553
B107: 94 | C107: LV UMS (Pseudo HH Metered) | F107: ='Smoothed Input Details'!E52 -> 0.4877395704 | G107: 0.4877395704 | H107: 0.4877395704 | I107: 0.4877395704 | J107: 0.4877395704
B108: 95 | C108: 1053. Volume forecasts for the charging year
B109: 96 | C109: 1055 Transmission exit charges (£/year) | F109: 13164424.79 | G109: =F109*(1+G$13) -> 13450092.81 | H109: =G109*(1+H$13) -> 13719094.66 | I109: 13993476.55 | J109: 14273346.09
B110: 97 | C110: 1059 Other Expenditure (£/year)
B111: 98 | C111: Direct cost (£/year) | F111: 32225296.63 | G111: =F111*(1+G$13) -> 32924585.57 | H111: =G111*(1+H$13) -> 33583077.28 | I111: 34254738.82 | J111: 34939833.6
B112: 99 | C112: Indirect cost (£/year) | F112: 132800970.5 | G112: =F112*(1+G$13) -> 135682751.6 | H112: =G112*(1+H$13) -> 138396406.6 | I112: 141164334.7 | J112: 143987621.4
B113: 100 | C113: Indirect cost proportion | F113: 0.6 | G113: 0.6 | H113: 0.6 | I113: 0.6 | J113: 0.6
B114: 101 | C114: Network rates (£/year) | F114: 26392016 | G114: =F114*(1+G$13) -> 26964722.75 | H114: =G114*(1+H$13) -> 27504017.2 | I114: 28054097.55 | J114: 28615179.5
B115: 102 | C115: 1060 Customer contributions under current connection charging policy
B116: 103 | C116: LV network
B117: 104 | C117: Assets 132kV | F117: 0 | G117: =F117 -> 0 | H117: =G117 -> 0 | I117: 0 | J117: 0
B118: 105 | C118: Assets 132kV/EHV | F118: 0 | G118: =F118 -> 0 | H118: 0 | I118: 0 | J118: 0
B119: 106 | C119: Assets EHV | F119: 0 | G119: 0 | H119: 0 | I119: 0 | J119: 0
B120: 107 | C120: Assets EHV/HV | F120: 0 | G120: 0 | H120: 0 | I120: 0 | J120: 0
B121: 108 | C121: Assets 132kV/HV | F121: 0 | G121: 0 | H121: 0 | I121: 0 | J121: 0
B122: 109 | C122: Assets HV | F122: 0.386849697 | G122: 0.386849697 | H122: 0.386849697 | I122: 0.386849697 | J122: 0.386849697
B123: 110 | C123: Assets HV/LV | F123: 0.6412482557 | G123: 0.6412482557 | H123: 0.6412482557 | I123: 0.6412482557 | J123: 0.6412482557
B124: 111 | C124: Assets LV circuits | F124: 0.8956468145 | G124: 0.8956468145 | H124: 0.8956468145 | I124: 0.8956468145 | J124: 0.8956468145
B125: 112 | C125: LV substation
B126: 113 | C126: Assets 132kV | F126: 0 | G126: =F126 -> 0 | H126: =G126 -> 0 | I126: 0 | J126: 0
B127: 114 | C127: Assets 132kV/EHV | F127: 0 | G127: =F127 -> 0 | H127: 0 | I127: 0 | J127: 0
B128: 115 | C128: Assets EHV | F128: 0 | G128: 0 | H128: 0 | I128: 0 | J128: 0
B129: 116 | C129: Assets EHV/HV | F129: 0 | G129: 0 | H129: 0 | I129: 0 | J129: 0
B130: 117 | C130: Assets 132kV/HV | F130: 0 | G130: 0 | H130: 0 | I130: 0 | J130: 0
B131: 118 | C131: Assets HV | F131: 0.386849697 | G131: 0.386849697 | H131: 0.386849697 | I131: 0.386849697 | J131: 0.386849697
B132: 119 | C132: Assets HV/LV | F132: 0.6412482557 | G132: 0.6412482557 | H132: 0.6412482557 | I132: 0.6412482557 | J132: 0.6412482557
B133: 120 | C133: HV network
B134: 121 | C134: Assets 132kV | F134: 0 | G134: =F134 -> 0 | H134: =G134 -> 0 | I134: 0 | J134: 0
B135: 122 | C135: Assets 132kV/EHV | F135: 0 | G135: =F135 -> 0 | H135: 0 | I135: 0 | J135: 0
B136: 123 | C136: Assets EHV | F136: 0 | G136: 0 | H136: 0 | I136: 0 | J136: 0
B137: 124 | C137: Assets EHV/HV | F137: 0.2576410695 | G137: 0.2576410695 | H137: 0.2576410695 | I137: 0.2576410695 | J137: 0.2576410695
B138: 125 | C138: Assets 132kV/HV | F138: 0.2576410695 | G138: 0.2576410695 | H138: 0.2576410695 | I138: 0.2576410695 | J138: 0.2576410695
B139: 126 | C139: Assets HV | F139: 0.515282139 | G139: 0.515282139 | H139: 0.515282139 | I139: 0.515282139 | J139: 0.515282139
B140: 127 | C140: HV substation
B141: 128 | C141: Assets 132kV | F141: 0 | G141: 0 | H141: 0 | I141: 0 | J141: 0
B142: 129 | C142: Assets 132kV/EHV | F142: 0 | G142: 0 | H142: 0 | I142: 0 | J142: 0
B143: 130 | C143: Assets EHV | F143: 0 | G143: 0 | H143: 0 | I143: 0 | J143: 0
B144: =+B143+1 -> 131 | C144: Assets EHV/HV | F144: 0.2576410695 | G144: 0.2576410695 | H144: 0.2576410695 | I144: 0.2576410695 | J144: 0.2576410695
B145: 132 | C145: Assets 132kV/HV | G145: 0 | H145: 0 | I145: 0 | J145: 0
B146: 133 | C146: 1061 Average split of rate 1 units by distribution time band
B147: 134 | C147: RED
B148: 135 | C148: Domestic Two Rate | F148: ='Smoothed Input Details'!K62 -> 0.1489027843 | G148: =F148 -> 0.1489027843 | H148: =G148 -> 0.1489027843 | I148: 0.1489027843 | J148: 0.1489027843
B149: 136 | C149: Domestic Off Peak (related MPAN) | F149: ='Smoothed Input Details'!K63 -> 0.002296688017 | G149: =F149 -> 0.002296688017 | H149: 0.002296688017 | I149: 0.002296688017 | J149: 0.002296688017
B150: 137 | C150: Small Non Domestic Two Rate | F150: ='Smoothed Input Details'!K64 -> 0.1332628263 | G150: 0.1332628263 | H150: 0.1332628263 | I150: 0.1332628263 | J150: 0.1332628263
B151: 138 | C151: Small Non Domestic Off Peak (related MPAN) | F151: ='Smoothed Input Details'!K65 -> 0.01839410778 | G151: 0.01839410778 | H151: 0.01839410778 | I151: 0.01839410778 | J151: 0.01839410778
B152: 139 | C152: LV Medium Non-Domestic | F152: ='Smoothed Input Details'!K66 -> 0.1392207146 | G152: 0.1392207146 | H152: 0.1392207146 | I152: 0.1392207146 | J152: 0.1392207146
B153: 140 | C153: LV Sub Medium Non-Domestic | F153: ='Smoothed Input Details'!K67 -> 0.1392207146 | G153: 0.1392207146 | H153: 0.1392207146 | I153: 0.1392207146 | J153: 0.1392207146
B154: 141 | C154: HV Medium Non-Domestic | F154: ='Smoothed Input Details'!K68 -> 0.1327379631 | G154: 0.1327379631 | H154: 0.1327379631 | I154: 0.1327379631 | J154: 0.1327379631
B155: 142 | C155: AMBER
B156: 143 | C156: Domestic Two Rate | F156: ='Smoothed Input Details'!L62 -> 0.4111852604 | G156: =F156 -> 0.4111852604 | H156: =G156 -> 0.4111852604 | I156: 0.4111852604 | J156: 0.4111852604
B157: 144 | C157: Domestic Off Peak (related MPAN) | F157: ='Smoothed Input Details'!L63 -> 0.2056778897 | G157: =F157 -> 0.2056778897 | H157: 0.2056778897 | I157: 0.2056778897 | J157: 0.2056778897
B158: 145 | C158: Small Non Domestic Two Rate | F158: ='Smoothed Input Details'!L64 -> 0.5352346159 | G158: =F158 -> 0.5352346159 | H158: 0.5352346159 | I158: 0.5352346159 | J158: 0.5352346159
B159: 146 | C159: Small Non Domestic Off Peak (related MPAN) | F159: ='Smoothed Input Details'!L65 -> 0.170982363 | G159: =F159 -> 0.170982363 | H159: 0.170982363 | I159: 0.170982363 | J159: 0.170982363
B160: 147 | C160: LV Medium Non-Domestic | F160: ='Smoothed Input Details'!L66 -> 0.5327844451 | G160: =F160 -> 0.5327844451 | H160: 0.5327844451 | I160: 0.5327844451 | J160: 0.5327844451
B161: 148 | C161: LV Sub Medium Non-Domestic | F161: ='Smoothed Input Details'!L67 -> 0.5327844451 | G161: =F161 -> 0.5327844451 | H161: 0.5327844451 | I161: 0.5327844451 | J161: 0.5327844451
B162: 149 | C162: HV Medium Non-Domestic | F162: ='Smoothed Input Details'!L68 -> 0.5666421616 | G162: =F162 -> 0.5666421616 | H162: 0.5666421616 | I162: 0.5666421616 | J162: 0.5666421616
B163: 150 | C163: GREEN
B164: 151 | C164: Domestic Two Rate | F164: ='Smoothed Input Details'!M62 -> 0.4399119553 | G164: =F164 -> 0.4399119553 | H164: =G164 -> 0.4399119553 | I164: 0.4399119553 | J164: 0.4399119553
B165: 152 | C165: Domestic Off Peak (related MPAN) | F165: ='Smoothed Input Details'!M63 -> 0.7920254223 | G165: =F165 -> 0.7920254223 | H165: 0.7920254223 | I165: 0.7920254223 | J165: 0.7920254223
B166: 153 | C166: Small Non Domestic Two Rate | F166: ='Smoothed Input Details'!M64 -> 0.3315025579 | G166: =F166 -> 0.3315025579 | H166: 0.3315025579 | I166: 0.3315025579 | J166: 0.3315025579
B167: 154 | C167: Small Non Domestic Off Peak (related MPAN) | F167: ='Smoothed Input Details'!M65 -> 0.8106235292 | G167: =F167 -> 0.8106235292 | H167: 0.8106235292 | I167: 0.8106235292 | J167: 0.8106235292
B168: 155 | C168: LV Medium Non-Domestic | F168: ='Smoothed Input Details'!M66 -> 0.3279948403 | G168: =F168 -> 0.3279948403 | H168: 0.3279948403 | I168: 0.3279948403 | J168: 0.3279948403
B169: 156 | C169: LV Sub Medium Non-Domestic | F169: ='Smoothed Input Details'!M67 -> 0.3279948403 | G169: =F169 -> 0.3279948403 | H169: 0.3279948403 | I169: 0.3279948403 | J169: 0.3279948403
B170: 157 | C170: HV Medium Non-Domestic | F170: ='Smoothed Input Details'!M68 -> 0.3006198753 | G170: =F170 -> 0.3006198753 | H170: 0.3006198753 | I170: 0.3006198753 | J170: 0.3006198753
B171: 158 | C171: 1062 Average split of rate 2 units by distribution time band
B172: 159 | C172: RED
B173: 160 | C173: Domestic Two Rate | G173: =F173 -> 0 | H173: =G173 -> 0 | I173: 0 | J173: 0
B174: 161 | C174: Small Non Domestic Two Rate | G174: =F174 -> 0 | H174: 0 | I174: 0 | J174: 0
B175: 162 | C175: LV Medium Non-Domestic | G175: 0 | H175: 0 | I175: 0 | J175: 0
B176: 163 | C176: LV Sub Medium Non-Domestic | G176: 0 | H176: 0 | I176: 0 | J176: 0
B177: 164 | C177: HV Medium Non-Domestic | G177: 0 | H177: 0 | I177: 0 | J177: 0
B178: 165 | C178: AMBER
B179: 166 | C179: Domestic Two Rate | G179: =F179 -> 0 | H179: =G179 -> 0 | I179: 0 | J179: 0
B180: 167 | C180: Small Non Domestic Two Rate | G180: =F180 -> 0 | H180: 0 | I180: 0 | J180: 0
B181: 168 | C181: LV Medium Non-Domestic | G181: =F181 -> 0 | H181: 0 | I181: 0 | J181: 0
B182: 169 | C182: LV Sub Medium Non-Domestic | G182: =F182 -> 0 | H182: 0 | I182: 0 | J182: 0
B183: 170 | C183: HV Medium Non-Domestic | G183: =F183 -> 0 | H183: 0 | I183: 0 | J183: 0
B184: 171 | C184: GREEN
B185: 172 | C185: Domestic Two Rate | F185: ='Smoothed Input Details'!M78 -> 1 | G185: =F185 -> 1 | H185: =G185 -> 1 | I185: 1 | J185: 1
B186: 173 | C186: Small Non Domestic Two Rate | F186: ='Smoothed Input Details'!M79 -> 1 | G186: =F186 -> 1 | H186: 1 | I186: 1 | J186: 1
B187: 174 | C187: LV Medium Non-Domestic | F187: ='Smoothed Input Details'!M80 -> 1 | G187: =F187 -> 1 | H187: 1 | I187: 1 | J187: 1
B188: 175 | C188: LV Sub Medium Non-Domestic | F188: ='Smoothed Input Details'!M81 -> 1 | G188: =F188 -> 1 | H188: 1 | I188: 1 | J188: 1
B189: 176 | C189: HV Medium Non-Domestic | F189: ='Smoothed Input Details'!M82 -> 1 | G189: =F189 -> 1 | H189: 1 | I189: 1 | J189: 1
B190: 177 | C190: 1064. Average split of rate 1 units by special distribution time band
B191: 178 | C191: BLACK
B192: 179 | C192: NHH UMS category A | F192: 0.0296803653 | G192: =F192 -> 0.0296803653 | H192: =G192 -> 0.0296803653 | I192: 0.0296803653 | J192: 0.0296803653
B193: 180 | C193: NHH UMS category B | F193: 0.04924753345 | G193: =F193 -> 0.04924753345 | H193: 0.04924753345 | I193: 0.04924753345 | J193: 0.04924753345
B194: 181 | C194: NHH UMS category C | F194: 0.09605682761 | G194: 0.09605682761 | H194: 0.09605682761 | I194: 0.09605682761 | J194: 0.09605682761
B195: 182 | C195: NHH UMS category D | F195: 0.01697178397 | G195: 0.01697178397 | H195: 0.01697178397 | I195: 0.01697178397 | J195: 0.01697178397
B196: 183 | C196: YELLOW
B197: 184 | C197: NHH UMS category A | F197: 0.3725456621 | G197: =F197 -> 0.3725456621 | H197: =G197 -> 0.3725456621 | I197: 0.3725456621 | J197: 0.3725456621
B198: 185 | C198: NHH UMS category B | F198: 0.08827843204 | G198: =F198 -> 0.08827843204 | H198: 0.08827843204 | I198: 0.08827843204 | J198: 0.08827843204
B199: 186 | C199: NHH UMS category C | F199: 0.1769629651 | G199: =F199 -> 0.1769629651 | H199: 0.1769629651 | I199: 0.1769629651 | J199: 0.1769629651
B200: 187 | C200: NHH UMS category D | F200: 0.6082817884 | G200: =F200 -> 0.6082817884 | H200: 0.6082817884 | I200: 0.6082817884 | J200: 0.6082817884
B201: 188 | C201: GREEN
B202: 189 | C202: NHH UMS category A | F202: 0.5977739726 | G202: =F202 -> 0.5977739726 | H202: =G202 -> 0.5977739726 | I202: 0.5977739726 | J202: 0.5977739726
B203: 190 | C203: NHH UMS category B | F203: 0.8624740345 | G203: =F203 -> 0.8624740345 | H203: 0.8624740345 | I203: 0.8624740345 | J203: 0.8624740345
B204: 191 | C204: NHH UMS category C | F204: 0.7269802073 | G204: =F204 -> 0.7269802073 | H204: 0.7269802073 | I204: 0.7269802073 | J204: 0.7269802073
B205: 192 | C205: NHH UMS category D | F205: 0.3747464276 | G205: =F205 -> 0.3747464276 | H205: 0.3747464276 | I205: 0.3747464276 | J205: 0.3747464276
... 65 more rows

Sheet Smoothed Input Details
A1: DNO | B1: =+'CDCM Forecast Data'!F3:G3 -> 
A2: Charges for (year Y) | B2: =+'CDCM Forecast Data'!F11 -> 2013/14
A4: Year charges are set (year Y-1) | B4: =+'CDCM Forecast Data'!E11 -> 2012/13
A6: Year to which input data relates
A7: Year Y-2 | B7: 2011/12
A8: Year Y - 3 | B8: 2010/11
A9: Year Y - 4 | B9: 2009/10
A11: 1041 - load profile for demand users - coincidence factors
A12: 2012/13 charges are set in 2011/12 using historical dats for the previous three years
B14: Y - 4 | C14: Y - 3 | D14: Y - 2 | E14: Information to be used calculating tariffs in year t
A15: Domestic Unrestricted | B15: 0.8882595231 | C15: 0.9048795048 | D15: 0.9586141978 | E15: =AVERAGE(B15:D15) -> 0.9172510752
A16: Domestic Two Rate | B16: 0.3919781138 | C16: 0.4212936153 | D16: 0.3891337238 | E16: =AVERAGE(B16:D16) -> 0.4008018177
A17: Domestic Off Peak (related MPAN)
A18: Small Non Domestic Unrestricted | B18: 0.6760791351 | C18: 0.6271248034 | D18: 0.5570381281 | E18: 0.6200806889
A19: Small Non Domestic Two Rate | B19: 0.6142059841 | C19: 0.6302137016 | D19: 0.6118466285 | E19: 0.6187554381
A20: Small Non Domestic Off Peak (related MPAN)
A21: LV Medium Non-Domestic | B21: 0.7890968426 | C21: 0.8055861663 | D21: 0.8197252633 | E21: 0.8048027574
A22: LV Sub Medium Non-Domestic | B22: =B21 -> 0.7890968426 | C22: =C21 -> 0.8055861663 | D22: =D21 -> 0.8197252633 | E22: 0.8048027574
A23: HV Medium Non-Domestic | B23: 0.5826926444 | C23: 0.6319735445 | D23: 0.6177830766 | E23: 0.6108164218
A24: LV HH Metered | B24: 0.7412683656 | C24: 0.7945065061 | D24: 0.7500793409 | E24: 0.7619514042
A25: LV Sub HH Metered | B25: =B24 -> 0.7412683656 | C25: =C24 -> 0.7945065061 | D25: 0.7500793409 | E25: 0.7619514042
A26: HV HH Metered | B26: 0.7541655276 | C26: 0.7974803484 | D26: 0.7661374816 | E26: 0.7725944525
A27: HV Sub HH Metered | B27: =B26 -> 0.7541655276 | C27: =C26 -> 0.7974803484 | D27: =D26 -> 0.7661374816 | E27: 0.7725944525
A28: NHH UMS | B28: =B29 -> 0.9994506232 | C28: =C29 -> 0.9963655934 | D28: =D29 -> 0.9858105446 | E28: 0.9938755871
A29: LV UMS (Pseudo HH Metered) | B29: 0.9994506232 | C29: 0.9963655934 | D29: 0.9858105446 | E29: 0.9938755871
A33: 1041 - load profile for demand users - load factors
A34: 2012/13 charges are set in 2011/12 using historical data for the previous three years
B37: Y - 4 | C37: Y - 3 | D37: Y - 2 | E37: Information to be used calculating tariffs in year t
A38: Domestic Unrestricted | B38: 0.4140189919 | C38: 0.4032995037 | D38: 0.4169859447 | E38: =AVERAGE(B38:D38) -> 0.4114348134
A39: Domestic Two Rate | B39: 0.2604002061 | C39: 0.2545503876 | D39: 0.2518650241 | E39: =AVERAGE(B39:D39) -> 0.2556052059
A40: Domestic Off Peak (related MPAN) | B40: 0.1571820709 | C40: 0.1587274887 | D40: 0.1518138636 | E40: 0.1559078077
A41: Small Non Domestic Unrestricted | B41: 0.3650267887 | C41: 0.322152714 | D41: 0.3701831077 | E41: 0.3524542035
A42: Small Non Domestic Two Rate | B42: 0.4210595918 | C42: 0.4117089661 | D42: 0.4592828816 | E42: 0.4306838132
A43: Small Non Domestic Off Peak (related MPAN) | B43: 0.1906110377 | C43: 0.1869746453 | D43: 0.1830197306 | E43: 0.1868684712
A44: LV Medium Non-Domestic | B44: 0.5034636121 | C44: 0.4695164646 | D44: 0.5033193215 | E44: 0.4920997994
A45: LV Sub Medium Non-Domestic | B45: =B44 -> 0.5034636121 | C45: =C44 -> 0.4695164646 | D45: =D44 -> 0.5033193215 | E45: 0.4920997994
A46: HV Medium Non-Domestic | B46: 0.4173013013 | C46: 0.3964423499 | D46: 0.4522987485 | E46: 0.4220141332
A47: LV HH Metered | B47: 0.5256294308 | C47: 0.5154070128 | D47: 0.5167564338 | E47: 0.5192642925
A48: LV Sub HH Metered | B48: =B47 -> 0.5256294308 | C48: =C47 -> 0.5154070128 | D48: =D47 -> 0.5167564338 | E48: 0.5192642925
A49: HV HH Metered | B49: 0.6341318387 | C49: 0.6499560831 | D49: 0.6472705776 | E49: 0.6437861665
A50: HV Sub HH Metered | B50: =B49 -> 0.6341318387 | C50: =C49 -> 0.6499560831 | D50: =D49 -> 0.6472705776 | E50: 0.6437861665
A51: NHH UMS | B51: =B52 -> 0.4902261271 | C51: =C52 -> 0.4859218835 | D51: =D52 -> 0.4870707006 | E51: 0.4877395704
A52: LV UMS (Pseudo HH Metered) | B52: 0.4902261271 | C52: 0.4859218835 | D52: 0.4870707006 | E52: 0.4877395704
A56: 1061 - Average split of rate 1 units by distribution time band
A57: 2012/13 charges are set in 2011/12 using historical data for the previous three years
B60: Y - 4 | E60: Y - 3 | H60: Y - 2 | K60: Information to be used calculating tariffs in year t
B61: Red | C61: Amber | D61: Green | E61: Red | F61: Amber | G61: Green | H61: Red | I61: Amber | J61: Green | K61: Red | L61: Amber | M61: Green
A62: Domestic Two Rate | B62: 0.1516106251 | C62: 0.4089599825 | D62: 0.4394293924 | E62: 0.1485297822 | F62: 0.4122271098 | G62: 0.439243108 | H62: 0.1465679454 | I62: 0.412368689 | J62: 0.4410633656 | K62: =AVERAGE(B62,E62,H62) -> 0.1489027843 | L62: 0.4111852604 | M62: 0.4399119553
A63: Domestic Off Peak (related MPAN) | B63: 0.001986211835 | C63: 0.2026641457 | D63: 0.7953496424 | E63: 0.002317195968 | F63: 0.2050942146 | G63: 0.7925885894 | H63: 0.002586656249 | I63: 0.2092753087 | J63: 0.7881380351 | K63: 0.002296688017 | L63: 0.2056778897 | M63: 0.7920254223
A64: Small Non Domestic Two Rate | B64: 0.13302038 | C64: 0.5396006249 | D64: 0.3273789951 | E64: 0.1340112215 | F64: 0.5361648106 | G64: 0.3298239679 | H64: 0.1327568773 | I64: 0.5299384121 | J64: 0.3373047107 | K64: 0.1332628263 | L64: 0.5352346159 | M64: 0.3315025579
A65: Small Non Domestic Off Peak (related MPAN) | B65: 0.02070230376 | C65: 0.1768233551 | D65: 0.8024743411 | E65: 0.01851201441 | F65: 0.1704913218 | G65: 0.8109966638 | H65: 0.01596800516 | I65: 0.165632412 | J65: 0.8183995828 | K65: 0.01839410778 | L65: 0.170982363 | M65: 0.8106235292
A66: LV Medium Non-Domestic | B66: 0.1383376094 | C66: 0.5414604571 | D66: 0.3202019335 | E66: 0.1398004153 | F66: 0.5326100294 | G66: 0.3275895553 | H66: 0.1395241191 | I66: 0.5242828486 | J66: 0.3361930323 | K66: 0.1392207146 | L66: 0.5327844451 | M66: 0.3279948403
A67: LV Sub Medium Non-Domestic | B67: =B66 -> 0.1383376094 | C67: 0.5414604571 | D67: 0.3202019335 | E67: 0.1398004153 | F67: 0.5326100294 | G67: 0.3275895553 | H67: 0.1395241191 | I67: 0.5242828486 | J67: 0.3361930323 | K67: 0.1392207146 | L67: =AVERAGE(C67,F67,I67) -> 0.5327844451 | M67: =AVERAGE(D67,G67,J67) -> 0.3279948403
A68: HV Medium Non-Domestic | B68: 0.1330702422 | C68: 0.5793812461 | D68: 0.2875485117 | E68: 0.1336430191 | F68: 0.566634718 | G68: 0.2997222629 | H68: 0.1315006278 | I68: 0.5539105208 | J68: 0.3145888514 | K68: 0.1327379631 | L68: =AVERAGE(C68,F68,I68) -> 0.5666421616 | M68: =AVERAGE(D68,G68,J68) -> 0.3006198753
A72: 1062 - Average split of rate 2 units by distribution time band
A73: 2012/13 charges are set in 2011/12 using historical data for the previous three years
B76: Y - 4 | E76: Y - 3 | H76: Y - 2 | K76: Information to be used calculating tariffs in year t
B77: Red | C77: Amber | D77: Green | E77: Red | F77: Amber | G77: Green | H77: Red | I77: Amber | J77: Green | K77: Red | L77: Amber | M77: Green
A78: Domestic Two Rate | D78: 1 | G78: 1 | J78: 1 | K78: =AVERAGE(B78,E78,H78) ->  | L78: =AVERAGE(C78,F78,I78) ->  | M78: 1
A79: Small Non Domestic Two Rate | D79: 1 | G79: 1 | J79: 1 | K79: =AVERAGE(B79,E79,H79) ->  | M79: 1
A80: LV Medium Non-Domestic | D80: 1 | G80: 1 | J80: 1 | K80: =AVERAGE(B80,E80,H80) ->  | M80: 1
A81: LV Sub Medium Non-Domestic | D81: 1 | G81: 1 | J81: 1 | K81: =AVERAGE(B81,E81,H81) ->  | M81: 1
A82: HV Medium Non-Domestic | D82: 1 | G82: 1 | J82: 1 | K82: =AVERAGE(B82,E82,H82) ->  | M82: 1
A86: 1069 - Peaking probabilities by network level
A87: 2012/13 charges are set in 2011/12 using historical data for the previous three years
B90: Y - 4 | E90: Y - 3 | H90: Y - 2 | K90: Information to be used calculating tariffs in year t
B91: Red | C91: Amber | D91: Green | E91: Red | F91: Amber | G91: Green | H91: Red | I91: Amber | J91: Green | K91: Red | L91: Amber | M91: Green
A92: GSPs | B92: 0.8769102923 | C92: 0.1230897077 | D92: 0 | E92: 0.9487209767 | F92: 0.03051469937 | G92: 0.02076432394 | H92: 0.8957734527 | I92: 0.1042265473 | J92: 0 | K92: =AVERAGE(B92,E92,H92) -> 0.9071349072 | L92: =AVERAGE(C92,F92,I92) -> 0.08594365147 | M92: =AVERAGE(D92,G92,J92) -> 0.006921441313
A93: 132kV | B93: 0.6786218294 | C93: 0.2832845119 | D93: 0.03809365873 | E93: 0.7642277198 | F93: 0.2205509623 | G93: 0.01522131789 | H93: 0.7102813873 | I93: 0.2566251751 | J93: 0.0330934376 | K93: =AVERAGE(B93,E93,H93) -> 0.7177103122 | L93: 0.2534868831 | M93: 0.02880280474
A94: 132kV/EHV | B94: 0.6786218294 | C94: 0.2832845119 | D94: 0.03809365873 | E94: 0.7642277198 | F94: 0.2205509623 | G94: 0.01522131789 | H94: 0.7102813873 | I94: 0.2566251751 | J94: 0.0330934376 | K94: 0.7177103122 | L94: 0.2534868831 | M94: 0.02880280474
A95: EHV | B95: 0.5785151848 | C95: 0.3407878181 | D95: 0.0806969971 | E95: 0.7028118029 | F95: 0.2063054704 | G95: 0.09088272674 | H95: 0.6996676076 | I95: 0.2473939385 | J95: 0.05293845387 | K95: 0.6603315317 | L95: 0.2648290757 | M95: 0.07483939257
A96: EHV/HV | B96: 0.5785151848 | C96: 0.3407878181 | D96: 0.0806969971 | E96: 0.7028118029 | F96: 0.2063054704 | G96: 0.09088272674 | H96: 0.6996676076 | I96: 0.2473939385 | J96: 0.05293845387 | K96: 0.6603315317 | L96: 0.2648290757 | M96: 0.07483939257
A97: 132kV/HV | B97: 0.6786218294 | C97: 0.2832845119 | D97: 0.03809365873 | E97: 0.7642277198 | F97: 0.2205509623 | G97: 0.01522131789 | H97: 0.7102813873 | I97: 0.2566251751 | J97: 0.0330934376 | K97: 0.7177103122 | L97: 0.2534868831 | M97: 0.02880280474
A98: HV | B98: 0.5785151848 | C98: 0.3407878181 | D98: 0.0806969971 | E98: 0.7028118029 | F98: 0.2063054704 | G98: 0.09088272674 | H98: 0.6996676076 | I98: 0.2473939385 | J98: 0.05293845387 | K98: 0.6603315317 | L98: 0.2648290757 | M98: 0.07483939257
A99: HV/LV | B99: 0.5785151848 | C99: 0.3407878181 | D99: 0.0806969971 | E99: 0.7028118029 | F99: 0.2063054704 | G99: 0.09088272674 | H99: 0.6996676076 | I99: 0.2473939385 | J99: 0.05293845387 | K99: 0.6603315317 | L99: 0.2648290757 | M99: 0.07483939257
A100: LV circuits | B100: 0.5785151848 | C100: 0.3407878181 | D100: 0.0806969971 | E100: 0.7028118029 | F100: 0.2063054704 | G100: 0.09088272674 | H100: 0.6996676076 | I100: 0.2473939385 | J100: 0.05293845387 | K100: 0.6603315317 | L100: 0.2648290757 | M100: 0.07483939257

Sheet Mat of App
B3: 1025. Matrix of applicability of LV service models to tariffs with fixed charges
C5: ='CDCM Forecast Data'!$F$11 -> 2013/14 | K5: ='CDCM Forecast Data'!$G$11 -> 2014/15 | S5: ='CDCM Forecast Data'!$H$11 -> 2015/16 | AA5: ='CDCM Forecast Data'!$I$11 -> 2016/17 | AI5: ='CDCM Forecast Data'!$J$11 -> 2017/18
C6: LV service model 1 | D6: LV service model 2 | E6: LV service model 3 | F6: LV service model 4 | G6: LV service model 5 | H6: LV service model 6 | I6: LV service model 7 | J6: LV service model 8 | K6: LV service model 1 | L6: LV service model 2 | M6: LV service model 3 | N6: LV service model 4 | O6: LV service model 5 | P6: LV service model 6 | Q6: LV service model 7 | R6: LV service model 8 | S6: LV service model 1 | T6: LV service model 2 | U6: LV service model 3 | V6: LV service model 4 | W6: LV service model 5 | X6: LV service model 6 | Y6: LV service model 7 | Z6: LV service model 8 | AA6: LV service model 1 | AB6: LV service model 2 | AC6: LV service model 3 | AD6: LV service model 4 | AE6: LV service model 5 | AF6: LV service model 6 | AG6: LV service model 7 | AH6: LV service model 8 | AI6: LV service model 1 | AJ6: LV service model 2 | AK6: LV service model 3 | AL6: LV service model 4 | AM6: LV service model 5 | AN6: LV service model 6 | AO6: LV service model 7 | AP6: LV service model 8
B7: Domestic Unrestricted | C7: 0.05 | D7: 0 | E7: 0 | F7: 0 | G7: 0 | H7: 0 | I7: 0 | J7: 0 | K7: 0.05 | L7: 0 | M7: 0 | N7: 0 | O7: 0 | P7: 0 | Q7: 0 | R7: 0 | S7: =K7 -> 0.05 | T7: 0 | U7: 0 | V7: 0 | W7: 0 | X7: 0 | Y7: 0 | Z7: 0 | AA7: 0.05 | AB7: =T7 -> 0 | AC7: 0 | AD7: 0 | AE7: 0 | AF7: 0 | AG7: 0 | AH7: 0 | AI7: 0.05 | AJ7: 0 | AK7: 0 | AL7: 0 | AM7: 0 | AN7: 0 | AO7: 0 | AP7: 0
B8: Domestic Two Rate | C8: 0.05 | D8: 0 | E8: 0 | F8: 0 | G8: 0 | H8: 0 | I8: 0 | J8: 0 | K8: 0.05 | L8: 0 | M8: 0 | N8: 0 | O8: 0 | P8: 0 | Q8: 0 | R8: 0 | S8: 0.05 | T8: 0 | U8: 0 | V8: 0 | W8: 0 | X8: 0 | Y8: 0 | Z8: 0 | AA8: 0.05 | AB8: 0 | AC8: 0 | AD8: 0 | AE8: 0 | AF8: 0 | AG8: 0 | AH8: 0 | AI8: 0.05 | AJ8: 0 | AK8: 0 | AL8: 0 | AM8: 0 | AN8: 0 | AO8: 0 | AP8: 0
B9: Small Non Domestic Unrestricted | C9: 0 | D9: 1 | E9: 0 | F9: 0 | G9: 0 | H9: 0 | I9: 0 | J9: 0 | K9: 0 | L9: 1 | M9: 0 | N9: 0 | O9: 0 | P9: 0 | Q9: 0 | R9: 0 | S9: 0 | T9: 1 | U9: 0 | V9: 0 | W9: 0 | X9: 0 | Y9: 0 | Z9: 0 | AA9: 0 | AB9: 1 | AC9: 0 | AD9: 0 | AE9: 0 | AF9: 0 | AG9: 0 | AH9: 0 | AI9: 0 | AJ9: 1 | AK9: 0 | AL9: 0 | AM9: 0 | AN9: 0 | AO9: 0 | AP9: 0
B10: Small Non Domestic Two Rate | C10: 0 | D10: 1 | E10: 0 | F10: 0 | G10: 0 | H10: 0 | I10: 0 | J10: 0 | K10: 0 | L10: 1 | M10: 0 | N10: 0 | O10: 0 | P10: 0 | Q10: 0 | R10: 0 | S10: 0 | T10: 1 | U10: 0 | V10: 0 | W10: 0 | X10: 0 | Y10: 0 | Z10: 0 | AA10: 0 | AB10: 1 | AC10: 0 | AD10: 0 | AE10: 0 | AF10: 0 | AG10: 0 | AH10: 0 | AI10: 0 | AJ10: 1 | AK10: 0 | AL10: 0 | AM10: 0 | AN10: 0 | AO10: 0 | AP10: 0
B11: LV Medium Non-Domestic | C11: 0 | D11: 0 | E11: 1 | F11: 0 | G11: 0 | H11: 0 | I11: 0 | J11: 0 | K11: 0 | L11: 0 | M11: 1 | N11: 0 | O11: 0 | P11: 0 | Q11: 0 | R11: 0 | S11: 0 | T11: 0 | U11: 1 | V11: 0 | W11: 0 | X11: 0 | Y11: 0 | Z11: 0 | AA11: 0 | AB11: 0 | AC11: 1 | AD11: 0 | AE11: 0 | AF11: 0 | AG11: 0 | AH11: 0 | AI11: 0 | AJ11: 0 | AK11: 1 | AL11: 0 | AM11: 0 | AN11: 0 | AO11: 0 | AP11: 0
B12: LV Sub Medium Non-Domestic | C12: 0 | D12: 0 | E12: 0 | F12: 0 | G12: 1 | H12: 0 | I12: 0 | J12: 0 | K12: 0 | L12: 0 | M12: 0 | N12: 1 | O12: 0 | P12: 0 | Q12: 0 | R12: 0 | S12: 0 | T12: 0 | U12: 0 | V12: 1 | W12: 0 | X12: 0 | Y12: 0 | Z12: 0 | AA12: 0 | AB12: 0 | AC12: 0 | AD12: 1 | AE12: 0 | AF12: 0 | AG12: 0 | AH12: 0 | AI12: 0 | AJ12: 0 | AK12: 0 | AL12: 1 | AM12: 0 | AN12: 0 | AO12: 0 | AP12: 0
B13: LV HH Metered | C13: 0 | D13: 0 | E13: 0 | F13: 1 | G13: 0 | H13: 0 | I13: 0 | J13: 0 | K13: 0 | L13: 0 | M13: 0 | N13: 0 | O13: 1 | P13: 0 | Q13: 0 | R13: 0 | S13: 0 | T13: 0 | U13: 0 | V13: 0 | W13: 1 | X13: 0 | Y13: 0 | Z13: 0 | AA13: 0 | AB13: 0 | AC13: 0 | AD13: 0 | AE13: 1 | AF13: 0 | AG13: 0 | AH13: 0 | AI13: 0 | AJ13: 0 | AK13: 0 | AL13: 0 | AM13: 1 | AN13: 0 | AO13: 0 | AP13: 0
B14: LV Sub HH Metered | C14: 0 | D14: 0 | E14: 0 | F14: 0 | G14: 1 | H14: 0 | I14: 0 | J14: 0 | K14: 0 | L14: 0 | M14: 0 | N14: 0 | O14: 0 | P14: 1 | Q14: 0 | R14: 0 | S14: 0 | T14: 0 | U14: 0 | V14: 0 | W14: 0 | X14: 1 | Y14: 0 | Z14: 0 | AA14: 0 | AB14: 0 | AC14: 0 | AD14: 0 | AE14: 0 | AF14: 1 | AG14: 0 | AH14: 0 | AI14: 0 | AJ14: 0 | AK14: 0 | AL14: 0 | AM14: 0 | AN14: 1 | AO14: 0 | AP14: 0
B15: LV Generation NHH | C15: 0 | D15: 0 | E15: 0 | F15: 0 | G15: 0 | H15: 0 | I15: 0 | J15: 0 | K15: 0 | L15: 0 | M15: 0 | N15: 0 | O15: 0 | P15: 0 | Q15: 1 | R15: 0 | S15: 0 | T15: 0 | U15: 0 | V15: 0 | W15: 0 | X15: 0 | Y15: 1 | Z15: 0 | AA15: 0 | AB15: 0 | AC15: 0 | AD15: 0 | AE15: 0 | AF15: 0 | AG15: 1 | AH15: 0 | AI15: 0 | AJ15: 0 | AK15: 0 | AL15: 0 | AM15: 0 | AN15: 0 | AO15: 1 | AP15: 0
B16: LV Sub Generation NHH | C16: 0 | D16: 0 | E16: 0 | F16: 0 | G16: 0 | H16: 0 | I16: 0 | J16: 0 | K16: 0 | L16: 0 | M16: 0 | N16: 0 | O16: 0 | P16: 0 | Q16: 1 | R16: 0 | S16: 0 | T16: 0 | U16: 0 | V16: 0 | W16: 0 | X16: 0 | Y16: 1 | Z16: 0 | AA16: 0 | AB16: 0 | AC16: 0 | AD16: 0 | AE16: 0 | AF16: 0 | AG16: 1 | AH16: 0 | AI16: 0 | AJ16: 0 | AK16: 0 | AL16: 0 | AM16: 0 | AN16: 0 | AO16: 1 | AP16: 0
B17: LV Generation Intermittent | C17: 0 | D17: 0 | E17: 0 | F17: 0 | G17: 0 | H17: 0 | I17: 0 | J17: 0 | K17: 0 | L17: 0 | M17: 0 | N17: 0 | O17: 0 | P17: 0 | Q17: 1 | R17: 0 | S17: 0 | T17: 0 | U17: 0 | V17: 0 | W17: 0 | X17: 0 | Y17: 1 | Z17: 0 | AA17: 0 | AB17: 0 | AC17: 0 | AD17: 0 | AE17: 0 | AF17: 0 | AG17: 1 | AH17: 0 | AI17: 0 | AJ17: 0 | AK17: 0 | AL17: 0 | AM17: 0 | AN17: 0 | AO17: 1 | AP17: 0
B18: LV Generation Non-Intermittent | C18: 0 | D18: 0 | E18: 0 | F18: 0 | G18: 0 | H18: 0 | I18: 0 | J18: 0 | K18: 0 | L18: 0 | M18: 0 | N18: 0 | O18: 0 | P18: 0 | Q18: 0 | R18: 0 | S18: 0 | T18: 0 | U18: 0 | V18: 0 | W18: 0 | X18: 0 | Y18: 0 | Z18: 0 | AA18: 0 | AB18: 0 | AC18: 0 | AD18: 0 | AE18: 0 | AF18: 0 | AG18: 0 | AH18: 0 | AI18: 0 | AJ18: 0 | AK18: 0 | AL18: 0 | AM18: 0 | AN18: 0 | AO18: 0 | AP18: 0
B19: LV Sub Generation Intermittent | C19: 0 | D19: 0 | E19: 0 | F19: 0 | G19: 0 | H19: 0 | I19: 0 | J19: 0 | K19: 0 | L19: 0 | M19: 0 | N19: 0 | O19: 0 | P19: 0 | Q19: 0 | R19: 0 | S19: 0 | T19: 0 | U19: 0 | V19: 0 | W19: 0 | X19: 0 | Y19: 0 | Z19: 0 | AA19: 0 | AB19: 0 | AC19: 0 | AD19: 0 | AE19: 0 | AF19: 0 | AG19: 0 | AH19: 0 | AI19: 0 | AJ19: 0 | AK19: 0 | AL19: 0 | AM19: 0 | AN19: 0 | AO19: 0 | AP19: 0
B20: LV Sub Generation Non-Intermittent | C20: 0 | D20: 0 | E20: 0 | F20: 0 | G20: 0 | H20: 0 | I20: 0 | J20: 0 | K20: 0 | L20: 0 | M20: 0 | N20: 0 | O20: 0 | P20: 0 | Q20: 0 | R20: 0 | S20: 0 | T20: 0 | U20: 0 | V20: 0 | W20: 0 | X20: 0 | Y20: 0 | Z20: 0 | AA20: 0 | AB20: 0 | AC20: 0 | AD20: 0 | AE20: 0 | AF20: 0 | AG20: 0 | AH20: 0 | AI20: 0 | AJ20: 0 | AK20: 0 | AL20: 0 | AM20: 0 | AN20: 0 | AO20: 0 | AP20: 0
B22: 1026. Matrix of applicability of LV service models to unmetered tariffs
B24: Source: service models
B25: Proportion of service model involved in connecting load of 1 MWh/year | C25: ='CDCM Forecast Data'!$F$11 -> 2013/14 | K25: ='CDCM Forecast Data'!$G$11 -> 2014/15 | S25: ='CDCM Forecast Data'!$H$11 -> 2015/16 | AA25: ='CDCM Forecast Data'!$I$11 -> 2016/17 | AI25: ='CDCM Forecast Data'!$J$11 -> 2017/18
C26: LV service model 1 | D26: LV service model 2 | E26: LV service model 3 | F26: LV service model 4 | G26: LV service model 5 | H26: LV service model 6 | I26: LV service model 7 | J26: LV service model 8 | K26: LV service model 1 | L26: LV service model 2 | M26: LV service model 3 | N26: LV service model 4 | O26: LV service model 5 | P26: LV service model 6 | Q26: LV service model 7 | R26: LV service model 8 | S26: LV service model 1 | T26: LV service model 2 | U26: LV service model 3 | V26: LV service model 4 | W26: LV service model 5 | X26: LV service model 6 | Y26: LV service model 7 | Z26: LV service model 8 | AA26: LV service model 1 | AB26: LV service model 2 | AC26: LV service model 3 | AD26: LV service model 4 | AE26: LV service model 5 | AF26: LV service model 6 | AG26: LV service model 7 | AH26: LV service model 8 | AI26: LV service model 1 | AJ26: LV service model 2 | AK26: LV service model 3 | AL26: LV service model 4 | AM26: LV service model 5 | AN26: LV service model 6 | AO26: LV service model 7 | AP26: LV service model 8
B27: All LV unmetered tariffs | C27: 0 | D27: 0 | E27: 0 | F27: 0 | G27: 0 | H27: 1.522070015 | I27: 0 | J27: 0 | K27: 0 | L27: 0 | M27: 0 | N27: 0 | O27: 0 | P27: 0 | Q27: 0 | R27: 0.488 | S27: =K27 -> 0 | T27: =L27 -> 0 | U27: =M27 -> 0 | V27: =N27 -> 0 | W27: =O27 -> 0 | X27: =P27 -> 0 | Y27: =Q27 -> 0 | Z27: =R27 -> 0.488 | AA27: =S27 -> 0 | AB27: =T27 -> 0 | AC27: =U27 -> 0 | AD27: =V27 -> 0 | AE27: =W27 -> 0 | AF27: =X27 -> 0 | AG27: =Y27 -> 0 | AH27: =Z27 -> 0.488 | AI27: =AA27 -> 0 | AJ27: =AB27 -> 0 | AK27: =AC27 -> 0 | AL27: =AD27 -> 0 | AM27: =AE27 -> 0 | AN27: =AF27 -> 0 | AO27: =AG27 -> 0 | AP27: =AH27 -> 0.488
B29: 1028. Matrix of applicability of HV service models to tariffs with fixed charges
C30: ='CDCM Forecast Data'!$F$11 -> 2013/14 | H30: =+'CDCM Forecast Data'!G11 -> 2014/15 | M30: =+'CDCM Forecast Data'!H11 -> 2015/16 | R30: =+'CDCM Forecast Data'!I11 -> 2016/17 | W30: =+'CDCM Forecast Data'!J11 -> 2017/18
C31: HV service model 1 | D31: HV service model 2 | E31: HV service model 3 | F31: HV service model 4 | G31: HV service model 5 | H31: HV service model 1 | I31: HV service model 2 | J31: HV service model 3 | K31: HV service model 4 | L31: HV service model 5 | M31: HV service model 1 | N31: HV service model 2 | O31: HV service model 3 | P31: HV service model 4 | Q31: HV service model 5 | R31: HV service model 1 | S31: HV service model 2 | T31: HV service model 3 | U31: HV service model 4 | V31: HV service model 5 | W31: HV service model 1 | X31: HV service model 2 | Y31: HV service model 3 | Z31: HV service model 4 | AA31: HV service model 5
B32: HV Medium Non-Domestic | C32: 1 | D32: 0 | E32: 0 | F32: 0 | G32: 0 | H32: 1 | I32: 0 | J32: 0 | K32: 0 | L32: 0 | M32: =H32 -> 1 | N32: 0 | O32: 0 | P32: 0 | Q32: 0 | R32: 1 | S32: 0 | T32: 0 | U32: 0 | V32: 0 | W32: 1 | X32: =S32 -> 0 | Y32: 0 | Z32: 0 | AA32: 0
B33: HV HH Metered | C33: 1 | D33: 0 | E33: 0 | F33: 0 | G33: 0 | H33: 1 | I33: 0 | J33: 0 | K33: 0 | L33: 0 | M33: 1 | N33: 0 | O33: 0 | P33: 0 | Q33: 0 | R33: 1 | S33: 0 | T33: 0 | U33: 0 | V33: 0 | W33: 1 | X33: 0 | Y33: 0 | Z33: 0 | AA33: 0
B34: HV Sub HH Metered | C34: 0 | D34: 1 | E34: 0 | F34: 0 | G34: 0 | H34: 1 | I34: 0 | J34: 0 | K34: 0 | L34: 0 | M34: 1 | N34: 0 | O34: 0 | P34: 0 | Q34: 0 | R34: 1 | S34: 0 | T34: 0 | U34: 0 | V34: 0 | W34: 1 | X34: 0 | Y34: 0 | Z34: 0 | AA34: 0
B35: HV Generation Intermittent | C35: 0 | D35: 0 | E35: 1 | F35: 0 | G35: 0 | H35: 0 | I35: 1 | J35: 0 | K35: 0 | L35: 0 | M35: 0 | N35: 1 | O35: 0 | P35: 0 | Q35: 0 | R35: 0 | S35: 1 | T35: 0 | U35: 0 | V35: 0 | W35: 0 | X35: 1 | Y35: 0 | Z35: 0 | AA35: 0
B36: HV Generation Non-Intermittent | C36: 0 | D36: 0 | E36: 1 | F36: 0 | G36: 0 | H36: 0 | I36: 1 | J36: 0 | K36: 0 | L36: 0 | M36: 0 | N36: 1 | O36: 0 | P36: 0 | Q36: 0 | R36: 0 | S36: 1 | T36: 0 | U36: 0 | V36: 0 | W36: 0 | X36: 1 | Y36: 0 | Z36: 0 | AA36: 0
B37: HV Sub Generation Non-Intermittent | C37: 0 | D37: 0 | E37: 1 | F37: 0 | G37: 0 | H37: 0 | I37: 1 | J37: 0 | K37: 0 | L37: 0 | M37: 0 | N37: 1 | O37: 0 | P37: 0 | Q37: 0 | R37: 0 | S37: 1 | T37: 0 | U37: 0 | V37: 0 | W37: 0 | X37: 1 | Y37: 0 | Z37: 0 | AA37: 0
B38: HV Sub Generation Intermittent | C38: 0 | D38: 0 | E38: 1 | F38: 0 | G38: 0 | H38: 0 | I38: 1 | J38: 0 | K38: 0 | L38: 0 | M38: 0 | N38: 1 | O38: 0 | P38: 0 | Q38: 0 | R38: 0 | S38: 1 | T38: 0 | U38: 0 | V38: 0 | W38: 0 | X38: 1 | Y38: 0 | Z38: 0 | AA38: 0

Sheet CDCM Volume Forecasts
G3: Growth Rates (%)
G4: VOLUME - RED BAND | L4: VOLUME - AMBER BAND | P4: VOLUME - GREEN BAND | T4: CUSTOMER NUMBERS | X4: IMPORT CAPACITY | AB4: REACTIVE POWER
G5: Y | H5: Y + 1 | I5: Y + 2 | J5: Y + 3 | K5: Y + 4 | L5: Y + 1 | M5: Y + 2 | N5: Y + 3 | O5: Y + 4 | P5: Y + 1 | Q5: Y + 2 | R5: Y + 3 | S5: Y + 4 | T5: Y + 1 | U5: Y + 2 | V5: Y + 3 | W5: Y + 4 | X5: Y + 1 | Y5: Y + 2 | Z5: Y + 3 | AA5: Y + 4 | AB5: Y + 1 | AC5: Y + 2 | AD5: Y + 3 | AE5: Y + 4
E6: Customer Category | F6: Description | G6: =+'CDCM Forecast Data'!F11 -> 2013/14 | H6: =+'CDCM Forecast Data'!G11 -> 2014/15 | I6: =+'CDCM Forecast Data'!H11 -> 2015/16 | J6: =+'CDCM Forecast Data'!I11 -> 2016/17 | K6: =+'CDCM Forecast Data'!J11 -> 2017/18 | L6: =+H6 -> 2014/15 | M6: 2015/16 | N6: 2016/17 | O6: 2017/18 | P6: 2014/15 | Q6: 2015/16 | R6: 2016/17 | S6: 2017/18 | T6: 2014/15 | U6: 2015/16 | V6: 2016/17 | W6: 2017/18 | X6: 2014/15 | Y6: 2015/16 | Z6: 2016/17 | AA6: 2017/18 | AB6: 2014/15 | AC6: 2015/16 | AD6: 2016/17 | AE6: 2017/18 | AF6: Assumptions
E7: 1 | F7: NHH Dem | H7: -0.01 | I7: -0.01 | J7: -0.01 | K7: -0.01 | L7: -0.01 | M7: -0.01 | N7: -0.01 | O7: -0.01 | P7: -0.01 | Q7: -0.01 | R7: -0.01 | S7: -0.01 | T7: 0.01 | U7: 0.01 | V7: 0.01 | W7: 0.01 | X7: 0 | Y7: 0 | Z7: 0 | AA7: 0 | AB7: 0 | AC7: 0 | AD7: 0 | AE7: 0
E8: 2 | F8: HH Dem | H8: -0.01 | I8: -0.01 | J8: -0.01 | K8: -0.01 | L8: -0.01 | M8: -0.01 | N8: -0.01 | O8: -0.01 | P8: -0.01 | Q8: -0.01 | R8: -0.01 | S8: -0.01 | T8: 0.01 | U8: 0.01 | V8: 0.01 | W8: 0.01 | X8: 0 | Y8: 0 | Z8: 0 | AA8: 0 | AB8: 0 | AC8: 0 | AD8: 0 | AE8: 0
E9: 3 | F9: NHH Gen | H9: -0.01 | I9: -0.01 | J9: -0.01 | K9: -0.01 | L9: -0.01 | M9: -0.01 | N9: -0.01 | O9: -0.01 | P9: -0.01 | Q9: -0.01 | R9: -0.01 | S9: -0.01 | T9: 0.01 | U9: 0.01 | V9: 0.01 | W9: 0.01 | X9: 0 | Y9: 0 | Z9: 0 | AA9: 0 | AB9: 0 | AC9: 0 | AD9: 0 | AE9: 0
E10: 4 | F10: HH Gen | H10: -0.01 | I10: -0.01 | J10: -0.01 | K10: -0.01 | L10: -0.01 | M10: -0.01 | N10: -0.01 | O10: -0.01 | P10: -0.01 | Q10: -0.01 | R10: -0.01 | S10: -0.01 | T10: 0.01 | U10: 0.01 | V10: 0.01 | W10: 0.01 | X10: 0 | Y10: 0 | Z10: 0 | AA10: 0 | AB10: 0 | AC10: 0 | AD10: 0 | AE10: 0
E11: 5 | F11: DUMMY
E12: 6 | F12: DUMMY
E13: 7 | F13: DUMMY
E14: 8 | F14: DUMMY
E15: 9 | F15: DUMMY
E16: 10 | F16: DUMMY
E18: Summary Data | F18: Year | G18: =G6 -> 2013/14 | H18: =H6 -> 2014/15 | I18: =I6 -> 2015/16 | J18: =J6 -> 2016/17 | K18: =K6 -> 2017/18
F19: Total Volume | G19: =SUM(D28:F121) -> 23850026.41 | H19: =SUM(J28:L121) -> 23611526.15 | I19: =SUM(P28:R121) -> 23375410.89 | J19: =SUM(V28:X121) -> 23141656.78 | K19: =SUM(AB28:AD121) -> 22910240.21
F20: No. of MPANs | G20: =SUM(G28:G121) -> 2445782 | H20: =SUM(M28:M121) -> 2470239.82 | I20: =SUM(S28:S121) -> 2494942.218 | J20: =SUM(Y28:Y121) -> 2519891.64 | K20: =SUM(AE28:AE121) -> 2545090.557
F21: Total Import Capacity | G21: =SUM(H28:H121) -> 3898000 | H21: =SUM(N28:N121) -> 3898000 | I21: =SUM(T28:T121) -> 3898000 | J21: =SUM(Z28:Z121) -> 3898000 | K21: =SUM(AF28:AF121) -> 3898000
F22: Total Reactive | G22: =SUM(I28:I121) -> 1206683.679 | H22: =SUM(O28:O121) -> 1206683.679 | I22: =SUM(U28:U121) -> 1206683.679 | J22: =SUM(AA28:AA121) -> 1206683.679 | K22: =SUM(AG28:AG121) -> 1206683.679
C25: 1053. Volume forecasts for the charging year: | D25: =G6& " - ("&G5&")" -> 2013/14 - (Y) | J25: =H6& " - ("&H5&")" -> 2014/15 - (Y + 1) | P25: =I6& " - ("&I5&")" -> 2015/16 - (Y + 2) | V25: =J6& " - ("&J5&")" -> 2016/17 - (Y + 3) | AB25: =K6& " - ("&K5&")" -> 2017/18 - (Y + 4)
B26: Customer Category | C26: Tariff | D26: Rate 1 units (MWh) | E26: Rate 2 units (MWh) | F26: Rate 3 units (MWh) | G26: MPANs | H26: Import capacity (kVA) | I26: Reactive power units (MVArh) | J26: Rate 1 units (MWh) | K26: Rate 2 units (MWh) | L26: Rate 3 units (MWh) | M26: MPANs | N26: Import capacity (kVA) | O26: Reactive power units (MVArh) | P26: Rate 1 units (MWh) | Q26: Rate 2 units (MWh) | R26: Rate 3 units (MWh) | S26: MPANs | T26: Import capacity (kVA) | U26: Reactive power units (MVArh) | V26: Rate 1 units (MWh) | W26: Rate 2 units (MWh) | X26: Rate 3 units (MWh) | Y26: MPANs | Z26: Import capacity (kVA) | AA26: Reactive power units (MVArh) | AB26: Rate 1 units (MWh) | AC26: Rate 2 units (MWh) | AD26: Rate 3 units (MWh) | AE26: MPANs | AF26: Import capacity (kVA) | AG26: Reactive power units (MVArh)
A27: 1 | C27: > Domestic Unrestricted
A28: =+A27+1 -> 2 | B28: 1 | C28: Domestic Unrestricted | D28: 7188253.084 | G28: 1922702 | J28: =IF(D28,((VLOOKUP($B28,$E$7:$AE$16,4)+1)*D28),) -> 7116370.553 | K28: =IF(E28,((VLOOKUP($B28,$E$7:$AE$16,8)+1)*E28),) -> 0 | L28: =IF(F28,((VLOOKUP($B28,$E$7:$AE$16,12)+1)*F28),) -> 0 | M28: =IF(G28,((VLOOKUP($B28,$E$7:$AE$16,16)+1)*G28),) -> 1941929.02 | N28: =IF(H28,((VLOOKUP($B28,$E$7:$AE$16,20)+1)*H28),) -> 0 | O28: =IF(I28,((VLOOKUP($B28,$E$7:$AE$16,24)+1)*I28),) -> 0 | P28: =IF(D28,((VLOOKUP($B28,$E$7:$AE$16,5)+1)*J28),) -> 7045206.847 | Q28: =IF(E28,((VLOOKUP($B28,$E$7:$AE$16,5+4)+1)*K28),) -> 0 | R28: =IF(F28,((VLOOKUP($B28,$E$7:$AE$16,5+8)+1)*L28),) -> 0 | S28: =IF(G28,((VLOOKUP($B28,$E$7:$AE$16,5+12)+1)*M28),) -> 1961348.31 | T28: =IF(H28,((VLOOKUP($B28,$E$7:$AE$16,5+16)+1)*N28),) -> 0 | U28: =IF(I28,((VLOOKUP($B28,$E$7:$AE$16,5+20)+1)*O28),) -> 0 | V28: =IF(D28,((VLOOKUP($B28,$E$7:$AE$16,6)+1)*P28),) -> 6974754.779 | W28: =IF(E28,((VLOOKUP($B28,$E$7:$AE$16,6+4)+1)*Q28),) -> 0 | X28: =IF(F28,((VLOOKUP($B28,$E$7:$AE$16,6+8)+1)*R28),) -> 0 | Y28: =IF(G28,((VLOOKUP($B28,$E$7:$AE$16,6+12)+1)*S28),) -> 1980961.793 | Z28: =IF(H28,((VLOOKUP($B28,$E$7:$AE$16,6+16)+1)*T28),) -> 0 | AA28: =IF(I28,((VLOOKUP($B28,$E$7:$AE$16,6+20)+1)*U28),) -> 0 | AB28: =IF(D28,((VLOOKUP($B28,$E$7:$AE$16,7)+1)*V28),) -> 6905007.231 | AC28: =IF(E28,((VLOOKUP($B28,$E$7:$AE$16,7+4)+1)*W28),) -> 0 | AD28: =IF(F28,((VLOOKUP($B28,$E$7:$AE$16,7+8)+1)*X28),) -> 0 | AE28: =IF(G28,((VLOOKUP($B28,$E$7:$AE$16,7+12)+1)*Y28),) -> 2000771.411 | AF28: =IF(H28,((VLOOKUP($B28,$E$7:$AE$16,7+16)+1)*Z28),) -> 0 | AG28: =IF(I28,((VLOOKUP($B28,$E$7:$AE$16,7+20)+1)*AA28),) -> 0
A29: =+A28+1 -> 3 | B29: 1 | C29: LDNO LV: Domestic Unrestricted | D29: 6885.108 | G29: 4255 | J29: =IF(D29,((VLOOKUP($B29,$E$7:$AE$16,4)+1)*D29),) -> 6816.25692 | K29: 0 | L29: 0 | M29: 4297.55 | N29: 0 | O29: 0 | P29: =IF(D29,((VLOOKUP($B29,$E$7:$AE$16,5)+1)*J29),) -> 6748.094351 | Q29: 0 | R29: 0 | S29: 4340.5255 | T29: 0 | U29: 0 | V29: 6680.613407 | W29: 0 | X29: 0 | Y29: 4383.930755 | Z29: 0 | AA29: 0 | AB29: 6613.807273 | AC29: 0 | AD29: 0 | AE29: 4427.770063 | AF29: 0 | AG29: 0
A30: 4 | B30: 1 | C30: LDNO HV: Domestic Unrestricted | D30: 21472.725 | G30: 9925 | J30: 21257.99775 | K30: 0 | L30: 0 | M30: 10024.25 | N30: 0 | O30: 0 | P30: 21045.41777 | Q30: 0 | R30: 0 | S30: 10124.4925 | T30: 0 | U30: 0 | V30: 20834.96359 | W30: 0 | X30: 0 | Y30: 10225.73743 | Z30: 0 | AA30: 0 | AB30: 20626.61396 | AC30: 0 | AD30: 0 | AE30: 10327.9948 | AF30: 0 | AG30: 0
A31: 5 | C31: > Domestic Two Rate
A32: 6 | B32: 1 | C32: Domestic Two Rate | D32: 1030801.34 | E32: 770885.2424 | G32: 314618 | J32: =IF(D32,((VLOOKUP($B32,$E$7:$AE$16,4)+1)*D32),) -> 1020493.327 | K32: 763176.39 | L32: 0 | M32: 317764.18 | N32: 0 | O32: 0 | P32: 1010288.393 | Q32: 755544.6261 | R32: 0 | S32: 320941.8218 | T32: 0 | U32: 0 | V32: 1000185.51 | W32: 747989.1798 | X32: 0 | Y32: 324151.24 | Z32: 0 | AA32: 0 | AB32: 990183.6544 | AC32: 740509.288 | AD32: 0 | AE32: 327392.7524 | AF32: 0 | AG32: 0
A33: 7 | B33: 1 | C33: LDNO LV: Domestic Two Rate | D33: 268.075 | E33: 156.922 | G33: 167 | J33: 265.39425 | K33: 155.35278 | L33: 0 | M33: 168.67 | N33: 0 | O33: 0 | P33: 262.7403075 | Q33: 153.7992522 | R33: 0 | S33: 170.3567 | T33: 0 | U33: 0 | V33: 260.1129044 | W33: 152.2612597 | X33: 0 | Y33: 172.060267 | Z33: 0 | AA33: 0 | AB33: 257.5117754 | AC33: 150.7386471 | AD33: 0 | AE33: 173.7808697 | AF33: 0 | AG33: 0
A34: 8 | B34: 1 | C34: LDNO HV: Domestic Two Rate | D34: 386.871 | E34: 358.447 | G34: 265 | J34: 383.00229 | K34: 354.86253 | L34: 0 | M34: 267.65 | N34: 0 | O34: 0 | P34: 379.1722671 | Q34: 351.3139047 | R34: 0 | S34: 270.3265 | T34: 0 | U34: 0 | V34: 375.3805444 | W34: 347.8007657 | X34: 0 | Y34: 273.029765 | Z34: 0 | AA34: 0 | AB34: 371.626739 | AC34: 344.322758 | AD34: 0 | AE34: 275.7600626 | AF34: 0 | AG34: 0
A35: 9 | C35: > Domestic Off Peak (related MPAN)
A36: 10 | B36: 1 | C36: Domestic Off Peak (related MPAN) | D36: 37781.02603 | J36: 37403.21577 | K36: 0 | L36: 0 | M36: 0 | N36: 0 | O36: 0 | P36: 37029.18362 | Q36: 0 | R36: 0 | S36: 0 | T36: 0 | U36: 0 | V36: 36658.89178 | W36: 0 | X36: 0 | Y36: 0 | Z36: 0 | AA36: 0 | AB36: 36292.30286 | AC36: 0 | AD36: 0 | AE36: 0 | AF36: 0 | AG36: 0
A37: 11 | B37: 1 | C37: LDNO LV: Domestic Off Peak (related MPAN) | J37: 0 | K37: 0 | L37: 0 | M37: 0 | N37: 0 | O37: 0 | P37: 0 | Q37: 0 | R37: 0 | S37: 0 | T37: 0 | U37: 0 | V37: 0 | W37: 0 | X37: 0 | Y37: 0 | Z37: 0 | AA37: 0 | AB37: 0 | AC37: 0 | AD37: 0 | AE37: 0 | AF37: 0 | AG37: 0
A38: 12 | B38: 1 | C38: LDNO HV: Domestic Off Peak (related MPAN) | J38: 0 | K38: 0 | L38: 0 | M38: 0 | N38: 0 | O38: 0 | P38: 0 | Q38: 0 | R38: 0 | S38: 0 | T38: 0 | U38: 0 | V38: 0 | W38: 0 | X38: 0 | Y38: 0 | Z38: 0 | AA38: 0 | AB38: 0 | AC38: 0 | AD38: 0 | AE38: 0 | AF38: 0 | AG38: 0
A39: 13 | C39: > Small Non Domestic Unrestricted
A40: 14 | B40: 1 | C40: Small Non Domestic Unrestricted | D40: 1667665.764 | G40: 132921 | J40: 1650989.107 | K40: 0 | L40: 0 | M40: 134250.21 | N40: 0 | O40: 0 | P40: 1634479.216 | Q40: 0 | R40: 0 | S40: 135592.7121 | T40: 0 | U40: 0 | V40: 1618134.423 | W40: 0 | X40: 0 | Y40: 136948.6392 | Z40: 0 | AA40: 0 | AB40: 1601953.079 | AC40: 0 | AD40: 0 | AE40: 138318.1256 | AF40: 0 | AG40: 0
A41: 15 | B41: 1 | C41: LDNO LV: Small Non Domestic Unrestricted | D41: 657.041 | G41: 104 | J41: 650.47059 | K41: 0 | L41: 0 | M41: 105.04 | N41: 0 | O41: 0 | P41: 643.9658841 | Q41: 0 | R41: 0 | S41: 106.0904 | T41: 0 | U41: 0 | V41: 637.5262253 | W41: 0 | X41: 0 | Y41: 107.151304 | Z41: 0 | AA41: 0 | AB41: 631.150963 | AC41: 0 | AD41: 0 | AE41: 108.222817 | AF41: 0 | AG41: 0
A42: 16 | B42: 1 | C42: LDNO HV: Small Non Domestic Unrestricted | D42: 6413.625 | G42: 385 | J42: 6349.48875 | K42: 0 | L42: 0 | M42: 388.85 | N42: 0 | O42: 0 | P42: 6285.993862 | Q42: 0 | R42: 0 | S42: 392.7385 | T42: 0 | U42: 0 | V42: 6223.133924 | W42: 0 | X42: 0 | Y42: 396.665885 | Z42: 0 | AA42: 0 | AB42: 6160.902585 | AC42: 0 | AD42: 0 | AE42: 400.6325439 | AF42: 0 | AG42: 0
A43: 17 | C43: > Small Non Domestic Two Rate
A44: 18 | B44: 1 | C44: Small Non Domestic Two Rate | D44: 472549.4891 | E44: 214687.7201 | G44: 32175 | J44: 467823.9942 | K44: 212540.8429 | L44: 0 | M44: 32496.75 | N44: 0 | O44: 0 | P44: 463145.7543 | Q44: 210415.4345 | R44: 0 | S44: 32821.7175 | T44: 0 | U44: 0 | V44: 458514.2967 | W44: 208311.2801 | X44: 0 | Y44: 33149.93467 | Z44: 0 | AA44: 0 | AB44: 453929.1538 | AC44: 206228.1673 | AD44: 0 | AE44: 33481.43402 | AF44: 0 | AG44: 0
A45: 19 | B45: 1 | C45: LDNO LV: Small Non Domestic Two Rate | D45: 321.815 | E45: 94.725 | G45: 9 | J45: 318.59685 | K45: 93.77775 | L45: 0 | M45: 9.09 | N45: 0 | O45: 0 | P45: 315.4108815 | Q45: 92.8399725 | R45: 0 | S45: 9.1809 | T45: 0 | U45: 0 | V45: 312.2567727 | W45: 91.91157278 | X45: 0 | Y45: 9.272709 | Z45: 0 | AA45: 0 | AB45: 309.134205 | AC45: 90.99245705 | AD45: 0 | AE45: 9.36543609 | AF45: 0 | AG45: 0
A46: 20 | B46: 1 | C46: LDNO HV: Small Non Domestic Two Rate | D46: 1411.414 | E46: 363.781 | G46: 39 | J46: 1397.29986 | K46: 360.14319 | L46: 0 | M46: 39.39 | N46: 0 | O46: 0 | P46: 1383.326861 | Q46: 356.5417581 | R46: 0 | S46: 39.7839 | T46: 0 | U46: 0 | V46: 1369.493593 | W46: 352.9763405 | X46: 0 | Y46: 40.181739 | Z46: 0 | AA46: 0 | AB46: 1355.798657 | AC46: 349.4465771 | AD46: 0 | AE46: 40.58355639 | AF46: 0 | AG46: 0
A47: 21 | C47: > Small Non Domestic Off Peak (related MPAN) | J47: 0 | K47: 0 | L47: 0 | M47: 0 | N47: 0 | O47: 0 | P47: 0 | Q47: 0 | R47: 0 | S47: 0 | T47: 0 | U47: 0 | V47: 0 | W47: 0 | X47: 0 | Y47: 0 | Z47: 0 | AA47: 0 | AB47: 0 | AC47: 0 | AD47: 0 | AE47: 0 | AF47: 0 | AG47: 0
A48: 22 | B48: 1 | C48: Small Non Domestic Off Peak (related MPAN) | D48: 6401.664819 | J48: 6337.648171 | K48: 0 | L48: 0 | M48: 0 | N48: 0 | O48: 0 | P48: 6274.271689 | Q48: 0 | R48: 0 | S48: 0 | T48: 0 | U48: 0 | V48: 6211.528972 | W48: 0 | X48: 0 | Y48: 0 | Z48: 0 | AA48: 0 | AB48: 6149.413683 | AC48: 0 | AD48: 0 | AE48: 0 | AF48: 0 | AG48: 0
A49: 23 | B49: 1 | C49: LDNO LV: Small Non Domestic Off Peak (related MPAN) | J49: 0 | K49: 0 | L49: 0 | M49: 0 | N49: 0 | O49: 0 | P49: 0 | Q49: 0 | R49: 0 | S49: 0 | T49: 0 | U49: 0 | V49: 0 | W49: 0 | X49: 0 | Y49: 0 | Z49: 0 | AA49: 0 | AB49: 0 | AC49: 0 | AD49: 0 | AE49: 0 | AF49: 0 | AG49: 0
A50: 24 | B50: 1 | C50: LDNO HV: Small Non Domestic Off Peak (related MPAN) | J50: 0 | K50: 0 | L50: 0 | M50: 0 | N50: 0 | O50: 0 | P50: 0 | Q50: 0 | R50: 0 | S50: 0 | T50: 0 | U50: 0 | V50: 0 | W50: 0 | X50: 0 | Y50: 0 | Z50: 0 | AA50: 0 | AB50: 0 | AC50: 0 | AD50: 0 | AE50: 0 | AF50: 0 | AG50: 0
A51: 25 | C51: > LV Medium Non-Domestic | J51: 0 | K51: 0 | L51: 0 | M51: 0 | N51: 0 | O51: 0 | P51: 0 | Q51: 0 | R51: 0 | S51: 0 | T51: 0 | U51: 0 | V51: 0 | W51: 0 | X51: 0 | Y51: 0 | Z51: 0 | AA51: 0 | AB51: 0 | AC51: 0 | AD51: 0 | AE51: 0 | AF51: 0 | AG51: 0
A52: 26 | B52: 1 | C52: LV Medium Non-Domestic | D52: 1307127.232 | E52: 315613.5147 | G52: 17765 | J52: 1294055.96 | K52: 312457.3795 | L52: 0 | M52: 17942.65 | N52: 0 | O52: 0 | P52: 1281115.4 | Q52: 309332.8057 | R52: 0 | S52: 18122.0765 | T52: 0 | U52: 0 | V52: 1268304.246 | W52: 306239.4777 | X52: 0 | Y52: 18303.29727 | Z52: 0 | AA52: 0 | AB52: 1255621.204 | AC52: 303177.0829 | AD52: 0 | AE52: 18486.33024 | AF52: 0 | AG52: 0
A53: 27 | B53: 1 | C53: LDNO LV: LV Medium Non-Domestic | D53: 305.523 | E53: 103.388 | G53: 7 | J53: 302.46777 | K53: 102.35412 | L53: 0 | M53: 7.07 | N53: 0 | O53: 0 | P53: 299.4430923 | Q53: 101.3305788 | R53: 0 | S53: 7.1407 | T53: 0 | U53: 0 | V53: 296.4486614 | W53: 100.317273 | X53: 0 | Y53: 7.212107 | Z53: 0 | AA53: 0 | AB53: 293.4841748 | AC53: 99.31410028 | AD53: 0 | AE53: 7.28422807 | AF53: 0 | AG53: 0
A54: 28 | B54: 1 | C54: LDNO HV: LV Medium Non-Domestic | D54: 6556.33 | E54: 1534.562 | G54: 62 | J54: 6490.7667 | K54: 1519.21638 | L54: 0 | M54: 62.62 | N54: 0 | O54: 0 | P54: 6425.859033 | Q54: 1504.024216 | R54: 0 | S54: 63.2462 | T54: 0 | U54: 0 | V54: 6361.600443 | W54: 1488.983974 | X54: 0 | Y54: 63.878662 | Z54: 0 | AA54: 0 | AB54: 6297.984438 | AC54: 1474.094134 | AD54: 0 | AE54: 64.51744862 | AF54: 0 | AG54: 0
A55: 29 | C55: > LV Sub Medium Non-Domestic | J55: 0 | K55: 0 | L55: 0 | M55: 0 | N55: 0 | O55: 0 | P55: 0 | Q55: 0 | R55: 0 | S55: 0 | T55: 0 | U55: 0 | V55: 0 | W55: 0 | X55: 0 | Y55: 0 | Z55: 0 | AA55: 0 | AB55: 0 | AC55: 0 | AD55: 0 | AE55: 0 | AF55: 0 | AG55: 0
A56: 30 | B56: 1 | C56: LV Sub Medium Non-Domestic | D56: 93.64055976 | E56: 24.59237418 | G56: 3 | J56: 92.70415416 | K56: 24.34645044 | L56: 0 | M56: 3.03 | N56: 0 | O56: 0 | P56: 91.77711262 | Q56: 24.10298593 | R56: 0 | S56: 3.0603 | T56: 0 | U56: 0 | V56: 90.85934149 | W56: 23.86195607 | X56: 0 | Y56: 3.090903 | Z56: 0 | AA56: 0 | AB56: 89.95074808 | AC56: 23.62333651 | AD56: 0 | AE56: 3.12181203 | AF56: 0 | AG56: 0
A57: 31 | C57: > HV Medium Non-Domestic | J57: 0 | K57: 0 | L57: 0 | M57: 0 | N57: 0 | O57: 0 | P57: 0 | Q57: 0 | R57: 0 | S57: 0 | T57: 0 | U57: 0 | V57: 0 | W57: 0 | X57: 0 | Y57: 0 | Z57: 0 | AA57: 0 | AB57: 0 | AC57: 0 | AD57: 0 | AE57: 0 | AF57: 0 | AG57: 0
A58: 32 | B58: 1 | C58: HV Medium Non-Domestic | D58: 37255.55376 | E58: 10222.21943 | G58: 273 | J58: 36882.99822 | K58: 10119.99724 | L58: 0 | M58: 275.73 | N58: 0 | O58: 0 | P58: 36514.16824 | Q58: 10018.79727 | R58: 0 | S58: 278.4873 | T58: 0 | U58: 0 | V58: 36149.02656 | W58: 9918.609293 | X58: 0 | Y58: 281.272173 | Z58: 0 | AA58: 0 | AB58: 35787.53629 | AC58: 9819.4232 | AD58: 0 | AE58: 284.0848947 | AF58: 0 | AG58: 0
A59: 33 | C59: > LV HH Metered | J59: 0 | K59: 0 | L59: 0 | M59: 0 | N59: 0 | O59: 0 | P59: 0 | Q59: 0 | R59: 0 | S59: 0 | T59: 0 | U59: 0 | V59: 0 | W59: 0 | X59: 0 | Y59: 0 | Z59: 0 | AA59: 0 | AB59: 0 | AC59: 0 | AD59: 0 | AE59: 0 | AF59: 0 | AG59: 0
A60: 34 | B60: 2 | C60: LV HH Metered | D60: 209180.978 | E60: 833098.6941 | F60: 858293.1853 | G60: 6018 | H60: 983000 | I60: 164557.5686 | J60: 207089.1682 | K60: 824767.7072 | L60: 849710.2535 | M60: 6078.18 | N60: 983000 | O60: 164557.5686 | P60: 205018.2765 | Q60: 816520.0301 | R60: 841213.1509 | S60: 6138.9618 | T60: 983000 | U60: 164557.5686 | V60: 202968.0938 | W60: 808354.8298 | X60: 832801.0194 | Y60: 6200.351418 | Z60: 983000 | AA60: 164557.5686 | AB60: 200938.4128 | AC60: 800271.2815 | AD60: 824473.0092 | AE60: 6262.354932 | AF60: 983000 | AG60: 164557.5686
A61: 35 | B61: 2 | C61: LDNO LV: LV HH Metered | D61: 7.5132 | E61: 54.5484 | F61: 1.4076 | G61: 1 | H61: 0 | I61: 0.81 | J61: 7.438068 | K61: 54.002916 | L61: 1.393524 | M61: 1.01 | N61: 0 | O61: 0.81 | P61: 7.36368732 | Q61: 53.46288684 | R61: 1.37958876 | S61: 1.0201 | T61: 0 | U61: 0.81 | V61: 7.290050447 | W61: 52.92825797 | X61: 1.365792872 | Y61: 1.030301 | Z61: 0 | AA61: 0.81 | AB61: 7.217149942 | AC61: 52.39897539 | AD61: 1.352134944 | AE61: 1.04060401 | AF61: 0 | AG61: 0.81
A62: 36 | B62: 2 | C62: LDNO HV: LV HH Metered | D62: 4294.6881 | E62: 14589.2458 | F62: 15977.0549 | G62: 79 | H62: 19000 | I62: 1075.1704 | J62: 4251.741219 | K62: 14443.35334 | L62: 15817.28435 | M62: 79.79 | N62: 19000 | O62: 1075.1704 | P62: 4209.223807 | Q62: 14298.91981 | R62: 15659.11151 | S62: 80.5879 | T62: 19000 | U62: 1075.1704 | V62: 4167.131569 | W62: 14155.93061 | X62: 15502.52039 | Y62: 81.393779 | Z62: 19000 | AA62: 1075.1704 | AB62: 4125.460253 | AC62: 14014.3713 | AD62: 15347.49519 | AE62: 82.20771679 | AF62: 19000 | AG62: 1075.1704
A63: 37 | C63: > LV Sub HH Metered | J63: 0 | K63: 0 | L63: 0 | M63: 0 | N63: 0 | O63: 0 | P63: 0 | Q63: 0 | R63: 0 | S63: 0 | T63: 0 | U63: 0 | V63: 0 | W63: 0 | X63: 0 | Y63: 0 | Z63: 0 | AA63: 0 | AB63: 0 | AC63: 0 | AD63: 0 | AE63: 0 | AF63: 0 | AG63: 0
A64: 38 | B64: 2 | C64: LV Sub HH Metered | D64: 2299.10967 | E64: 8498.84904 | F64: 10550.76462 | G64: 32 | H64: 17000 | I64: 603.104 | J64: 2276.118573 | K64: 8413.86055 | L64: 10445.25697 | M64: 32.32 | N64: 17000 | O64: 603.104 | P64: 2253.357388 | Q64: 8329.721944 | R64: 10340.8044 | S64: 32.6432 | T64: 17000 | U64: 603.104 | V64: 2230.823814 | W64: 8246.424725 | X64: 10237.39636 | Y64: 32.969632 | Z64: 17000 | AA64: 603.104 | AB64: 2208.515576 | AC64: 8163.960477 | AD64: 10135.0224 | AE64: 33.29932832 | AF64: 17000 | AG64: 603.104
A65: 39 | B65: 2 | C65: LDNO HV: LV Sub HH Metered | D65: 187.0491 | E65: 641.9997 | F65: 1199.4126 | G65: 1 | H65: 0 | I65: 675.1852 | J65: 185.178609 | K65: 635.579703 | L65: 1187.418474 | M65: 1.01 | N65: 0 | O65: 675.1852 | P65: 183.3268229 | Q65: 629.223906 | R65: 1175.544289 | S65: 1.0201 | T65: 0 | U65: 675.1852 | V65: 181.4935547 | W65: 622.9316669 | X65: 1163.788846 | Y65: 1.030301 | Z65: 0 | AA65: 675.1852 | AB65: 179.6786191 | AC65: 616.7023502 | AD65: 1152.150958 | AE65: 1.04060401 | AF65: 0 | AG65: 675.1852
A66: 40 | C66: > HV HH Metered | J66: 0 | K66: 0 | L66: 0 | M66: 0 | N66: 0 | O66: 0 | P66: 0 | Q66: 0 | R66: 0 | S66: 0 | T66: 0 | U66: 0 | V66: 0 | W66: 0 | X66: 0 | Y66: 0 | Z66: 0 | AA66: 0 | AB66: 0 | AC66: 0 | AD66: 0 | AE66: 0 | AF66: 0 | AG66: 0
A67: 41 | B67: 2 | C67: HV HH Metered | D67: 792514.2414 | E67: 3163549.918 | F67: 4024837.01 | G67: 3709 | H67: 2873000 | I67: 1033930.859 | J67: 784589.099 | K67: 3131914.418 | L67: 3984588.64 | M67: 3746.09 | N67: 2873000 | O67: 1033930.859 | P67: 776743.208 | Q67: 3100595.274 | R67: 3944742.754 | S67: 3783.5509 | T67: 2873000 | U67: 1033930.859 | V67: 768975.7759 | W67: 3069589.322 | X67: 3905295.326 | Y67: 3821.386409 | Z67: 2873000 | AA67: 1033930.859 | AB67: 761286.0181 | AC67: 3038893.428 | AD67: 3866242.373 | AE67: 3859.600273 | AF67: 2873000 | AG67: 1033930.859
A68: 42 | B68: 2 | C68: LDNO HV: HV HH Metered | D68: 1655.0762 | E68: 5248.0467 | F68: 5557.199 | G68: 9 | H68: 6000 | I68: 832.2484 | J68: 1638.525438 | K68: 5195.566233 | L68: 5501.62701 | M68: 9.09 | N68: 6000 | O68: 832.2484 | P68: 1622.140184 | Q68: 5143.610571 | R68: 5446.61074 | S68: 9.1809 | T68: 6000 | U68: 832.2484 | V68: 1605.918782 | W68: 5092.174465 | X68: 5392.144633 | Y68: 9.272709 | Z68: 6000 | AA68: 832.2484 | AB68: 1589.859594 | AC68: 5041.25272 | AD68: 5338.223186 | AE68: 9.36543609 | AF68: 6000 | AG68: 832.2484
A69: 43 | C69: > HV Sub HH Metered | J69: 0 | K69: 0 | L69: 0 | M69: 0 | N69: 0 | O69: 0 | P69: 0 | Q69: 0 | R69: 0 | S69: 0 | T69: 0 | U69: 0 | V69: 0 | W69: 0 | X69: 0 | Y69: 0 | Z69: 0 | AA69: 0 | AB69: 0 | AC69: 0 | AD69: 0 | AE69: 0 | AF69: 0 | AG69: 0
A70: 44 | B70: 2 | C70: HV Sub HH Metered | J70: 0 | K70: 0 | L70: 0 | M70: 0 | N70: 0 | O70: 0 | P70: 0 | Q70: 0 | R70: 0 | S70: 0 | T70: 0 | U70: 0 | V70: 0 | W70: 0 | X70: 0 | Y70: 0 | Z70: 0 | AA70: 0 | AB70: 0 | AC70: 0 | AD70: 0 | AE70: 0 | AF70: 0 | AG70: 0
A71: 45 | C71: > NHH UMS category A | J71: 0 | K71: 0 | L71: 0 | M71: 0 | N71: 0 | O71: 0 | P71: 0 | Q71: 0 | R71: 0 | S71: 0 | T71: 0 | U71: 0 | V71: 0 | W71: 0 | X71: 0 | Y71: 0 | Z71: 0 | AA71: 0 | AB71: 0 | AC71: 0 | AD71: 0 | AE71: 0 | AF71: 0 | AG71: 0
A72: 46 | B72: 1 | C72: NHH UMS category A | D72: 64233.15315 | J72: 63590.82162 | K72: 0 | L72: 0 | M72: 0 | N72: 0 | O72: 0 | P72: 62954.9134 | Q72: 0 | R72: 0 | S72: 0 | T72: 0 | U72: 0 | V72: 62325.36427 | W72: 0 | X72: 0 | Y72: 0 | Z72: 0 | AA72: 0 | AB72: 61702.11063 | AC72: 0 | AD72: 0 | AE72: 0 | AF72: 0 | AG72: 0
A73: 47 | B73: 1 | C73: LDNO LV: NHH UMS category A | D73: 40.82483737 | J73: 40.41658899 | K73: 0 | L73: 0 | M73: 0 | N73: 0 | O73: 0 | P73: 40.0124231 | Q73: 0 | R73: 0 | S73: 0 | T73: 0 | U73: 0 | V73: 39.61229887 | W73: 0 | X73: 0 | Y73: 0 | Z73: 0 | AA73: 0 | AB73: 39.21617588 | AC73: 0 | AD73: 0 | AE73: 0 | AF73: 0 | AG73: 0
A74: 48 | B74: 1 | C74: LDNO HV: NHH UMS category A | D74: 186.6573172 | J74: 184.7907441 | K74: 0 | L74: 0 | M74: 0 | N74: 0 | O74: 0 | P74: 182.9428366 | Q74: 0 | R74: 0 | S74: 0 | T74: 0 | U74: 0 | V74: 181.1134083 | W74: 0 | X74: 0 | Y74: 0 | Z74: 0 | AA74: 0 | AB74: 179.3022742 | AC74: 0 | AD74: 0 | AE74: 0 | AF74: 0 | AG74: 0
A75: 49 | C75: > NHH UMS category B | J75: 0 | K75: 0 | L75: 0 | M75: 0 | N75: 0 | O75: 0 | P75: 0 | Q75: 0 | R75: 0 | S75: 0 | T75: 0 | U75: 0 | V75: 0 | W75: 0 | X75: 0 | Y75: 0 | Z75: 0 | AA75: 0 | AB75: 0 | AC75: 0 | AD75: 0 | AE75: 0 | AF75: 0 | AG75: 0
A76: 50 | B76: 1 | C76: NHH UMS category B | D76: 34027.26636 | J76: 33686.99369 | K76: 0 | L76: 0 | M76: 0 | N76: 0 | O76: 0 | P76: 33350.12376 | Q76: 0 | R76: 0 | S76: 0 | T76: 0 | U76: 0 | V76: 33016.62252 | W76: 0 | X76: 0 | Y76: 0 | Z76: 0 | AA76: 0 | AB76: 32686.4563 | AC76: 0 | AD76: 0 | AE76: 0 | AF76: 0 | AG76: 0
A77: 51 | B77: 1 | C77: LDNO LV: NHH UMS category B | D77: 21.62680091 | J77: 21.4105329 | K77: 0 | L77: 0 | M77: 0 | N77: 0 | O77: 0 | P77: 21.19642757 | Q77: 0 | R77: 0 | S77: 0 | T77: 0 | U77: 0 | V77: 20.9844633 | W77: 0 | X77: 0 | Y77: 0 | Z77: 0 | AA77: 0 | AB77: 20.77461866 | AC77: 0 | AD77: 0 | AE77: 0 | AF77: 0 | AG77: 0
A78: 52 | B78: 1 | C78: LDNO HV: NHH UMS category B | D78: 98.88099743 | J78: 97.89218745 | K78: 0 | L78: 0 | M78: 0 | N78: 0 | O78: 0 | P78: 96.91326558 | Q78: 0 | R78: 0 | S78: 0 | T78: 0 | U78: 0 | V78: 95.94413292 | W78: 0 | X78: 0 | Y78: 0 | Z78: 0 | AA78: 0 | AB78: 94.98469159 | AC78: 0 | AD78: 0 | AE78: 0 | AF78: 0 | AG78: 0
A79: 53 | C79: > NHH UMS category C | J79: 0 | K79: 0 | L79: 0 | M79: 0 | N79: 0 | O79: 0 | P79: 0 | Q79: 0 | R79: 0 | S79: 0 | T79: 0 | U79: 0 | V79: 0 | W79: 0 | X79: 0 | Y79: 0 | Z79: 0 | AA79: 0 | AB79: 0 | AC79: 0 | AD79: 0 | AE79: 0 | AF79: 0 | AG79: 0
A80: 54 | B80: 1 | C80: NHH UMS category C | D80: 775.9048227 | J80: 768.1457745 | K80: 0 | L80: 0 | M80: 0 | N80: 0 | O80: 0 | P80: 760.4643167 | Q80: 0 | R80: 0 | S80: 0 | T80: 0 | U80: 0 | V80: 752.8596736 | W80: 0 | X80: 0 | Y80: 0 | Z80: 0 | AA80: 0 | AB80: 745.3310768 | AC80: 0 | AD80: 0 | AE80: 0 | AF80: 0 | AG80: 0
A81: 55 | B81: 1 | C81: LDNO LV: NHH UMS category C | D81: 0.4931439085 | J81: 0.4882124694 | K81: 0 | L81: 0 | M81: 0 | N81: 0 | O81: 0 | P81: 0.4833303447 | Q81: 0 | R81: 0 | S81: 0 | T81: 0 | U81: 0 | V81: 0.4784970413 | W81: 0 | X81: 0 | Y81: 0 | Z81: 0 | AA81: 0 | AB81: 0.4737120708 | AC81: 0 | AD81: 0 | AE81: 0 | AF81: 0 | AG81: 0
A82: 56 | B82: 1 | C82: LDNO HV: NHH UMS category C | D82: 2.254728369 | J82: 2.232181085 | K82: 0 | L82: 0 | M82: 0 | N82: 0 | O82: 0 | P82: 2.209859275 | Q82: 0 | R82: 0 | S82: 0 | T82: 0 | U82: 0 | V82: 2.187760682 | W82: 0 | X82: 0 | Y82: 0 | Z82: 0 | AA82: 0 | AB82: 2.165883075 | AC82: 0 | AD82: 0 | AE82: 0 | AF82: 0 | AG82: 0
A83: 57 | C83: > NHH UMS category D | J83: =IF(D83,((VLOOKUP($B83,$E$7:$AE$16,4)+1)*D83),) -> 0 | K83: =IF(E83,((VLOOKUP($B83,$E$7:$AE$16,8)+1)*E83),) -> 0 | L83: =IF(F83,((VLOOKUP($B83,$E$7:$AE$16,12)+1)*F83),) -> 0 | M83: =IF(G83,((VLOOKUP($B83,$E$7:$AE$16,16)+1)*G83),) -> 0 | N83: =IF(H83,((VLOOKUP($B83,$E$7:$AE$16,20)+1)*H83),) -> 0 | O83: =IF(I83,((VLOOKUP($B83,$E$7:$AE$16,24)+1)*I83),) -> 0 | P83: =IF(D83,((VLOOKUP($B83,$E$7:$AE$16,5)+1)*J83),) -> 0 | Q83: =IF(E83,((VLOOKUP($B83,$E$7:$AE$16,5+4)+1)*K83),) -> 0 | R83: =IF(F83,((VLOOKUP($B83,$E$7:$AE$16,5+8)+1)*L83),) -> 0 | S83: =IF(G83,((VLOOKUP($B83,$E$7:$AE$16,5+12)+1)*M83),) -> 0 | T83: =IF(H83,((VLOOKUP($B83,$E$7:$AE$16,5+16)+1)*N83),) -> 0 | U83: =IF(I83,((VLOOKUP($B83,$E$7:$AE$16,5+20)+1)*O83),) -> 0 | V83: =IF(D83,((VLOOKUP($B83,$E$7:$AE$16,6)+1)*P83),) -> 0 | W83: =IF(E83,((VLOOKUP($B83,$E$7:$AE$16,6+4)+1)*Q83),) -> 0 | X83: =IF(F83,((VLOOKUP($B83,$E$7:$AE$16,6+8)+1)*R83),) -> 0 | Y83: =IF(G83,((VLOOKUP($B83,$E$7:$AE$16,6+12)+1)*S83),) -> 0 | Z83: =IF(H83,((VLOOKUP($B83,$E$7:$AE$16,6+16)+1)*T83),) -> 0 | AA83: =IF(I83,((VLOOKUP($B83,$E$7:$AE$16,6+20)+1)*U83),) -> 0 | AB83: =IF(D83,((VLOOKUP($B83,$E$7:$AE$16,7)+1)*V83),) -> 0 | AC83: =IF(E83,((VLOOKUP($B83,$E$7:$AE$16,7+4)+1)*W83),) -> 0 | AD83: =IF(F83,((VLOOKUP($B83,$E$7:$AE$16,7+8)+1)*X83),) -> 0 | AE83: =IF(G83,((VLOOKUP($B83,$E$7:$AE$16,7+12)+1)*Y83),) -> 0 | AF83: =IF(H83,((VLOOKUP($B83,$E$7:$AE$16,7+16)+1)*Z83),) -> 0 | AG83: =IF(I83,((VLOOKUP($B83,$E$7:$AE$16,7+20)+1)*AA83),) -> 0
A84: 58 | B84: 1 | C84: NHH UMS category D | D84: 5516.627628 | J84: =IF(D84,((VLOOKUP($B84,$E$7:$AE$16,4)+1)*D84),) -> 5461.461352 | K84: =IF(E84,((VLOOKUP($B84,$E$7:$AE$16,8)+1)*E84),) -> 0 | L84: =IF(F84,((VLOOKUP($B84,$E$7:$AE$16,12)+1)*F84),) -> 0 | M84: =IF(G84,((VLOOKUP($B84,$E$7:$AE$16,16)+1)*G84),) -> 0 | N84: =IF(H84,((VLOOKUP($B84,$E$7:$AE$16,20)+1)*H84),) -> 0 | O84: =IF(I84,((VLOOKUP($B84,$E$7:$AE$16,24)+1)*I84),) -> 0 | P84: =IF(D84,((VLOOKUP($B84,$E$7:$AE$16,5)+1)*J84),) -> 5406.846739 | Q84: =IF(E84,((VLOOKUP($B84,$E$7:$AE$16,5+4)+1)*K84),) -> 0 | R84: =IF(F84,((VLOOKUP($B84,$E$7:$AE$16,5+8)+1)*L84),) -> 0 | S84: =IF(G84,((VLOOKUP($B84,$E$7:$AE$16,5+12)+1)*M84),) -> 0 | T84: =IF(H84,((VLOOKUP($B84,$E$7:$AE$16,5+16)+1)*N84),) -> 0 | U84: =IF(I84,((VLOOKUP($B84,$E$7:$AE$16,5+20)+1)*O84),) -> 0 | V84: =IF(D84,((VLOOKUP($B84,$E$7:$AE$16,6)+1)*P84),) -> 5352.778271 | W84: =IF(E84,((VLOOKUP($B84,$E$7:$AE$16,6+4)+1)*Q84),) -> 0 | X84: =IF(F84,((VLOOKUP($B84,$E$7:$AE$16,6+8)+1)*R84),) -> 0 | Y84: =IF(G84,((VLOOKUP($B84,$E$7:$AE$16,6+12)+1)*S84),) -> 0 | Z84: =IF(H84,((VLOOKUP($B84,$E$7:$AE$16,6+16)+1)*T84),) -> 0 | AA84: =IF(I84,((VLOOKUP($B84,$E$7:$AE$16,6+20)+1)*U84),) -> 0 | AB84: =IF(D84,((VLOOKUP($B84,$E$7:$AE$16,7)+1)*V84),) -> 5299.250489 | AC84: =IF(E84,((VLOOKUP($B84,$E$7:$AE$16,7+4)+1)*W84),) -> 0 | AD84: =IF(F84,((VLOOKUP($B84,$E$7:$AE$16,7+8)+1)*X84),) -> 0 | AE84: =IF(G84,((VLOOKUP($B84,$E$7:$AE$16,7+12)+1)*Y84),) -> 0 | AF84: =IF(H84,((VLOOKUP($B84,$E$7:$AE$16,7+16)+1)*Z84),) -> 0 | AG84: =IF(I84,((VLOOKUP($B84,$E$7:$AE$16,7+20)+1)*AA84),) -> 0
A85: 59 | B85: 1 | C85: LDNO LV: NHH UMS category D | D85: 3.506217813 | J85: =IF(D85,((VLOOKUP($B85,$E$7:$AE$16,4)+1)*D85),) -> 3.471155635 | K85: =IF(E85,((VLOOKUP($B85,$E$7:$AE$16,8)+1)*E85),) -> 0 | L85: =IF(F85,((VLOOKUP($B85,$E$7:$AE$16,12)+1)*F85),) -> 0 | M85: =IF(G85,((VLOOKUP($B85,$E$7:$AE$16,16)+1)*G85),) -> 0 | N85: =IF(H85,((VLOOKUP($B85,$E$7:$AE$16,20)+1)*H85),) -> 0 | O85: =IF(I85,((VLOOKUP($B85,$E$7:$AE$16,24)+1)*I85),) -> 0 | P85: =IF(D85,((VLOOKUP($B85,$E$7:$AE$16,5)+1)*J85),) -> 3.436444078 | Q85: =IF(E85,((VLOOKUP($B85,$E$7:$AE$16,5+4)+1)*K85),) -> 0 | R85: =IF(F85,((VLOOKUP($B85,$E$7:$AE$16,5+8)+1)*L85),) -> 0 | S85: =IF(G85,((VLOOKUP($B85,$E$7:$AE$16,5+12)+1)*M85),) -> 0 | T85: =IF(H85,((VLOOKUP($B85,$E$7:$AE$16,5+16)+1)*N85),) -> 0 | U85: =IF(I85,((VLOOKUP($B85,$E$7:$AE$16,5+20)+1)*O85),) -> 0 | V85: =IF(D85,((VLOOKUP($B85,$E$7:$AE$16,6)+1)*P85),) -> 3.402079637 | W85: =IF(E85,((VLOOKUP($B85,$E$7:$AE$16,6+4)+1)*Q85),) -> 0 | X85: =IF(F85,((VLOOKUP($B85,$E$7:$AE$16,6+8)+1)*R85),) -> 0 | Y85: =IF(G85,((VLOOKUP($B85,$E$7:$AE$16,6+12)+1)*S85),) -> 0 | Z85: =IF(H85,((VLOOKUP($B85,$E$7:$AE$16,6+16)+1)*T85),) -> 0 | AA85: =IF(I85,((VLOOKUP($B85,$E$7:$AE$16,6+20)+1)*U85),) -> 0 | AB85: =IF(D85,((VLOOKUP($B85,$E$7:$AE$16,7)+1)*V85),) -> 3.368058841 | AC85: =IF(E85,((VLOOKUP($B85,$E$7:$AE$16,7+4)+1)*W85),) -> 0 | AD85: =IF(F85,((VLOOKUP($B85,$E$7:$AE$16,7+8)+1)*X85),) -> 0 | AE85: =IF(G85,((VLOOKUP($B85,$E$7:$AE$16,7+12)+1)*Y85),) -> 0 | AF85: =IF(H85,((VLOOKUP($B85,$E$7:$AE$16,7+16)+1)*Z85),) -> 0 | AG85: =IF(I85,((VLOOKUP($B85,$E$7:$AE$16,7+20)+1)*AA85),) -> 0
A86: 60 | B86: 1 | C86: LDNO HV: NHH UMS category D | D86: 16.03095696 | J86: =IF(D86,((VLOOKUP($B86,$E$7:$AE$16,4)+1)*D86),) -> 15.87064739 | K86: =IF(E86,((VLOOKUP($B86,$E$7:$AE$16,8)+1)*E86),) -> 0 | L86: =IF(F86,((VLOOKUP($B86,$E$7:$AE$16,12)+1)*F86),) -> 0 | M86: =IF(G86,((VLOOKUP($B86,$E$7:$AE$16,16)+1)*G86),) -> 0 | N86: =IF(H86,((VLOOKUP($B86,$E$7:$AE$16,20)+1)*H86),) -> 0 | O86: =IF(I86,((VLOOKUP($B86,$E$7:$AE$16,24)+1)*I86),) -> 0 | P86: =IF(D86,((VLOOKUP($B86,$E$7:$AE$16,5)+1)*J86),) -> 15.71194091 | Q86: =IF(E86,((VLOOKUP($B86,$E$7:$AE$16,5+4)+1)*K86),) -> 0 | R86: =IF(F86,((VLOOKUP($B86,$E$7:$AE$16,5+8)+1)*L86),) -> 0 | S86: =IF(G86,((VLOOKUP($B86,$E$7:$AE$16,5+12)+1)*M86),) -> 0 | T86: =IF(H86,((VLOOKUP($B86,$E$7:$AE$16,5+16)+1)*N86),) -> 0 | U86: =IF(I86,((VLOOKUP($B86,$E$7:$AE$16,5+20)+1)*O86),) -> 0 | V86: =IF(D86,((VLOOKUP($B86,$E$7:$AE$16,6)+1)*P86),) -> 15.5548215 | W86: =IF(E86,((VLOOKUP($B86,$E$7:$AE$16,6+4)+1)*Q86),) -> 0 | X86: =IF(F86,((VLOOKUP($B86,$E$7:$AE$16,6+8)+1)*R86),) -> 0 | Y86: =IF(G86,((VLOOKUP($B86,$E$7:$AE$16,6+12)+1)*S86),) -> 0 | Z86: =IF(H86,((VLOOKUP($B86,$E$7:$AE$16,6+16)+1)*T86),) -> 0 | AA86: =IF(I86,((VLOOKUP($B86,$E$7:$AE$16,6+20)+1)*U86),) -> 0 | AB86: =IF(D86,((VLOOKUP($B86,$E$7:$AE$16,7)+1)*V86),) -> 15.39927329 | AC86: =IF(E86,((VLOOKUP($B86,$E$7:$AE$16,7+4)+1)*W86),) -> 0 | AD86: =IF(F86,((VLOOKUP($B86,$E$7:$AE$16,7+8)+1)*X86),) -> 0 | AE86: =IF(G86,((VLOOKUP($B86,$E$7:$AE$16,7+12)+1)*Y86),) -> 0 | AF86: =IF(H86,((VLOOKUP($B86,$E$7:$AE$16,7+16)+1)*Z86),) -> 0 | AG86: =IF(I86,((VLOOKUP($B86,$E$7:$AE$16,7+20)+1)*AA86),) -> 0
A87: 61 | C87: > LV UMS (Pseudo HH Metered) | J87: 0 | K87: 0 | L87: 0 | M87: 0 | N87: 0 | O87: 0 | P87: 0 | Q87: 0 | R87: 0 | S87: 0 | T87: 0 | U87: 0 | V87: 0 | W87: 0 | X87: 0 | Y87: 0 | Z87: 0 | AA87: 0 | AB87: 0 | AC87: 0 | AD87: 0 | AE87: 0 | AF87: 0 | AG87: 0
A88: 62 | B88: 2 | C88: LV UMS (Pseudo HH Metered) | D88: 11973.63216 | E88: 27603.89906 | F88: 208157.8331 | J88: 11853.89584 | K88: 27327.86007 | L88: 206076.2547 | M88: 0 | N88: 0 | O88: 0 | P88: 11735.35688 | Q88: 27054.58147 | R88: 204015.4922 | S88: 0 | T88: 0 | U88: 0 | V88: 11618.00331 | W88: 26784.03566 | X88: 201975.3373 | Y88: 0 | Z88: 0 | AA88: 0 | AB88: 11501.82327 | AC88: 26516.1953 | AD88: 199955.5839 | AE88: 0 | AF88: 0 | AG88: 0
A89: 63 | B89: 2 | C89: LDNO LV: LV UMS (Pseudo HH Metered) | J89: 0 | K89: 0 | L89: 0 | M89: 0 | N89: 0 | O89: 0 | P89: 0 | Q89: 0 | R89: 0 | S89: 0 | T89: 0 | U89: 0 | V89: 0 | W89: 0 | X89: 0 | Y89: 0 | Z89: 0 | AA89: 0 | AB89: 0 | AC89: 0 | AD89: 0 | AE89: 0 | AF89: 0 | AG89: 0
A90: 64 | B90: 2 | C90: LDNO HV: LV UMS (Pseudo HH Metered) | J90: 0 | K90: 0 | L90: 0 | M90: 0 | N90: 0 | O90: 0 | P90: 0 | Q90: 0 | R90: 0 | S90: 0 | T90: 0 | U90: 0 | V90: 0 | W90: 0 | X90: 0 | Y90: 0 | Z90: 0 | AA90: 0 | AB90: 0 | AC90: 0 | AD90: 0 | AE90: 0 | AF90: 0 | AG90: 0
A91: 65 | C91: > LV Generation NHH | J91: 0 | K91: 0 | L91: 0 | M91: 0 | N91: 0 | O91: 0 | P91: 0 | Q91: 0 | R91: 0 | S91: 0 | T91: 0 | U91: 0 | V91: 0 | W91: 0 | X91: 0 | Y91: 0 | Z91: 0 | AA91: 0 | AB91: 0 | AC91: 0 | AD91: 0 | AE91: 0 | AF91: 0 | AG91: 0
A92: 66 | B92: 4 | C92: LV Generation NHH | D92: 444.639 | G92: 96 | J92: 440.19261 | K92: =IF(E92,((VLOOKUP($B92,$E$7:$AE$16,8)+1)*E92),) -> 0 | L92: =IF(F92,((VLOOKUP($B92,$E$7:$AE$16,12)+1)*F92),) -> 0 | M92: =IF(G92,((VLOOKUP($B92,$E$7:$AE$16,16)+1)*G92),) -> 96.96 | N92: =IF(H92,((VLOOKUP($B92,$E$7:$AE$16,20)+1)*H92),) -> 0 | O92: =IF(I92,((VLOOKUP($B92,$E$7:$AE$16,24)+1)*I92),) -> 0 | P92: 435.7906839 | Q92: =IF(E92,((VLOOKUP($B92,$E$7:$AE$16,5+4)+1)*K92),) -> 0 | R92: =IF(F92,((VLOOKUP($B92,$E$7:$AE$16,5+8)+1)*L92),) -> 0 | S92: =IF(G92,((VLOOKUP($B92,$E$7:$AE$16,5+12)+1)*M92),) -> 97.9296 | T92: =IF(H92,((VLOOKUP($B92,$E$7:$AE$16,5+16)+1)*N92),) -> 0 | U92: =IF(I92,((VLOOKUP($B92,$E$7:$AE$16,5+20)+1)*O92),) -> 0 | V92: =IF(D92,((VLOOKUP($B92,$E$7:$AE$16,6)+1)*P92),) -> 431.4327771 | W92: =IF(E92,((VLOOKUP($B92,$E$7:$AE$16,6+4)+1)*Q92),) -> 0 | X92: =IF(F92,((VLOOKUP($B92,$E$7:$AE$16,6+8)+1)*R92),) -> 0 | Y92: =IF(G92,((VLOOKUP($B92,$E$7:$AE$16,6+12)+1)*S92),) -> 98.908896 | Z92: =IF(H92,((VLOOKUP($B92,$E$7:$AE$16,6+16)+1)*T92),) -> 0 | AA92: =IF(I92,((VLOOKUP($B92,$E$7:$AE$16,6+20)+1)*U92),) -> 0 | AB92: =IF(D92,((VLOOKUP($B92,$E$7:$AE$16,7)+1)*V92),) -> 427.1184493 | AC92: =IF(E92,((VLOOKUP($B92,$E$7:$AE$16,7+4)+1)*W92),) -> 0 | AD92: =IF(F92,((VLOOKUP($B92,$E$7:$AE$16,7+8)+1)*X92),) -> 0 | AE92: =IF(G92,((VLOOKUP($B92,$E$7:$AE$16,7+12)+1)*Y92),) -> 99.89798496 | AF92: =IF(H92,((VLOOKUP($B92,$E$7:$AE$16,7+16)+1)*Z92),) -> 0 | AG92: =IF(I92,((VLOOKUP($B92,$E$7:$AE$16,7+20)+1)*AA92),) -> 0
A93: =+A92+1 -> 67 | B93: 4 | C93: LDNO LV: LV Generation NHH | G93: 0 | J93: =IF(D93,((VLOOKUP($B93,$E$7:$AE$16,4)+1)*D93),) -> 0 | K93: 0 | L93: 0 | M93: 0 | N93: 0 | O93: 0 | P93: =IF(D93,((VLOOKUP($B93,$E$7:$AE$16,5)+1)*J93),) -> 0 | Q93: 0 | R93: 0 | S93: 0 | T93: 0 | U93: 0 | V93: 0 | W93: 0 | X93: 0 | Y93: 0 | Z93: 0 | AA93: 0 | AB93: 0 | AC93: 0 | AD93: 0 | AE93: 0 | AF93: 0 | AG93: 0
A94: 68 | B94: 4 | C94: LDNO HV: LV Generation NHH | G94: 0 | J94: 0 | K94: 0 | L94: 0 | M94: 0 | N94: 0 | O94: 0 | P94: 0 | Q94: 0 | R94: 0 | S94: 0 | T94: 0 | U94: 0 | V94: 0 | W94: 0 | X94: 0 | Y94: 0 | Z94: 0 | AA94: 0 | AB94: 0 | AC94: 0 | AD94: 0 | AE94: 0 | AF94: 0 | AG94: 0
A95: 69 | C95: > LV Sub Generation NHH | J95: 0 | K95: 0 | L95: 0 | M95: 0 | N95: 0 | O95: 0 | P95: 0 | Q95: 0 | R95: 0 | S95: 0 | T95: 0 | U95: 0 | V95: 0 | W95: 0 | X95: 0 | Y95: 0 | Z95: 0 | AA95: 0 | AB95: 0 | AC95: 0 | AD95: 0 | AE95: 0 | AF95: 0 | AG95: 0
A96: 70 | B96: 4 | C96: LV Sub Generation NHH | G96: 0 | J96: 0 | K96: 0 | L96: 0 | M96: 0 | N96: 0 | O96: 0 | P96: 0 | Q96: 0 | R96: 0 | S96: 0 | T96: 0 | U96: 0 | V96: 0 | W96: 0 | X96: 0 | Y96: 0 | Z96: 0 | AA96: 0 | AB96: 0 | AC96: 0 | AD96: 0 | AE96: 0 | AF96: 0 | AG96: 0
A97: 71 | B97: 4 | C97: LDNO HV: LV Sub Generation NHH | G97: 0 | J97: 0 | K97: 0 | L97: 0 | M97: 0 | N97: 0 | O97: 0 | P97: 0 | Q97: 0 | R97: 0 | S97: 0 | T97: 0 | U97: 0 | V97: 0 | W97: 0 | X97: 0 | Y97: 0 | Z97: 0 | AA97: 0 | AB97: 0 | AC97: 0 | AD97: 0 | AE97: 0 | AF97: 0 | AG97: 0
A98: 72 | C98: > LV Generation Intermittent | J98: 0 | K98: 0 | L98: 0 | M98: 0 | N98: 0 | O98: 0 | P98: 0 | Q98: 0 | R98: 0 | S98: 0 | T98: 0 | U98: 0 | V98: 0 | W98: 0 | X98: 0 | Y98: 0 | Z98: 0 | AA98: 0 | AB98: 0 | AC98: 0 | AD98: 0 | AE98: 0 | AF98: 0 | AG98: 0
A99: 73 | B99: 4 | C99: LV Generation Intermittent | D99: 46.675 | G99: 20 | I99: 16.962 | J99: 46.20825 | K99: 0 | L99: 0 | M99: 20.2 | N99: 0 | O99: 16.962 | P99: 45.7461675 | Q99: 0 | R99: 0 | S99: 20.402 | T99: 0 | U99: 16.962 | V99: 45.28870583 | W99: 0 | X99: 0 | Y99: 20.60602 | Z99: 0 | AA99: 16.962 | AB99: 44.83581877 | AC99: 0 | AD99: 0 | AE99: 20.8120802 | AF99: 0 | AG99: 16.962
A100: 74 | B100: 4 | C100: LDNO LV: LV Generation Intermittent | J100: 0 | K100: 0 | L100: 0 | M100: 0 | N100: 0 | O100: 0 | P100: 0 | Q100: 0 | R100: 0 | S100: 0 | T100: 0 | U100: 0 | V100: 0 | W100: 0 | X100: 0 | Y100: 0 | Z100: 0 | AA100: 0 | AB100: 0 | AC100: 0 | AD100: 0 | AE100: 0 | AF100: 0 | AG100: 0
A101: 75 | B101: 4 | C101: LDNO HV: LV Generation Intermittent | J101: 0 | K101: 0 | L101: 0 | M101: 0 | N101: 0 | O101: 0 | P101: 0 | Q101: 0 | R101: 0 | S101: 0 | T101: 0 | U101: 0 | V101: 0 | W101: 0 | X101: 0 | Y101: 0 | Z101: 0 | AA101: 0 | AB101: 0 | AC101: 0 | AD101: 0 | AE101: 0 | AF101: 0 | AG101: 0
A102: 76 | C102: > LV Generation Non-Intermittent | J102: 0 | K102: 0 | L102: 0 | M102: 0 | N102: 0 | O102: 0 | P102: 0 | Q102: 0 | R102: 0 | S102: 0 | T102: 0 | U102: 0 | V102: 0 | W102: 0 | X102: 0 | Y102: 0 | Z102: 0 | AA102: 0 | AB102: 0 | AC102: 0 | AD102: 0 | AE102: 0 | AF102: 0 | AG102: 0
A103: 77 | B103: 4 | C103: LV Generation Non-Intermittent | D103: 231.313 | E103: 877.749 | F103: 1443.464 | G103: 57 | I103: 85.2694 | J103: 228.99987 | K103: 868.97151 | L103: 1429.02936 | M103: 57.57 | N103: 0 | O103: 85.2694 | P103: 226.7098713 | Q103: 860.2817949 | R103: 1414.739066 | S103: 58.1457 | T103: 0 | U103: 85.2694 | V103: 224.4427726 | W103: 851.678977 | X103: 1400.591676 | Y103: 58.727157 | Z103: 0 | AA103: 85.2694 | AB103: 222.1983449 | AC103: 843.1621872 | AD103: 1386.585759 | AE103: 59.31442857 | AF103: 0 | AG103: 85.2694
A104: 78 | B104: 4 | C104: LDNO LV: LV Generation Non-Intermittent | J104: 0 | K104: 0 | L104: 0 | M104: 0 | N104: 0 | O104: 0 | P104: 0 | Q104: 0 | R104: 0 | S104: 0 | T104: 0 | U104: 0 | V104: 0 | W104: 0 | X104: 0 | Y104: 0 | Z104: 0 | AA104: 0 | AB104: 0 | AC104: 0 | AD104: 0 | AE104: 0 | AF104: 0 | AG104: 0
A105: 79 | B105: 4 | C105: LDNO HV: LV Generation Non-Intermittent | J105: 0 | K105: 0 | L105: 0 | M105: 0 | N105: 0 | O105: 0 | P105: 0 | Q105: 0 | R105: 0 | S105: 0 | T105: 0 | U105: 0 | V105: 0 | W105: 0 | X105: 0 | Y105: 0 | Z105: 0 | AA105: 0 | AB105: 0 | AC105: 0 | AD105: 0 | AE105: 0 | AF105: 0 | AG105: 0
A106: 80 | C106: > LV Sub Generation Intermittent | J106: 0 | K106: 0 | L106: 0 | M106: 0 | N106: 0 | O106: 0 | P106: 0 | Q106: 0 | R106: 0 | S106: 0 | T106: 0 | U106: 0 | V106: 0 | W106: 0 | X106: 0 | Y106: 0 | Z106: 0 | AA106: 0 | AB106: 0 | AC106: 0 | AD106: 0 | AE106: 0 | AF106: 0 | AG106: 0
A107: 81 | B107: 4 | C107: LV Sub Generation Intermittent | D107: 0 | I107: 0 | J107: 0 | K107: 0 | L107: 0 | M107: 0 | N107: 0 | O107: 0 | P107: 0 | Q107: 0 | R107: 0 | S107: 0 | T107: 0 | U107: 0 | V107: 0 | W107: 0 | X107: 0 | Y107: 0 | Z107: 0 | AA107: 0 | AB107: 0 | AC107: 0 | AD107: 0 | AE107: 0 | AF107: 0 | AG107: 0
A108: 82 | B108: 4 | C108: LDNO HV: LV Sub Generation Intermittent | J108: 0 | K108: 0 | L108: 0 | M108: 0 | N108: 0 | O108: 0 | P108: 0 | Q108: 0 | R108: 0 | S108: 0 | T108: 0 | U108: 0 | V108: 0 | W108: 0 | X108: 0 | Y108: 0 | Z108: 0 | AA108: 0 | AB108: 0 | AC108: 0 | AD108: 0 | AE108: 0 | AF108: 0 | AG108: 0
A109: 83 | C109: > LV Sub Generation Non-Intermittent | J109: 0 | K109: 0 | L109: 0 | M109: 0 | N109: 0 | O109: 0 | P109: 0 | Q109: 0 | R109: 0 | S109: 0 | T109: 0 | U109: 0 | V109: 0 | W109: 0 | X109: 0 | Y109: 0 | Z109: 0 | AA109: 0 | AB109: 0 | AC109: 0 | AD109: 0 | AE109: 0 | AF109: 0 | AG109: 0
A110: 84 | B110: 4 | C110: LV Sub Generation Non-Intermittent | D110: 0 | E110: 0 | F110: 0.312 | I110: 3.4596 | J110: 0 | K110: 0 | L110: 0.30888 | M110: 0 | N110: 0 | O110: 3.4596 | P110: 0 | Q110: 0 | R110: 0.3057912 | S110: 0 | T110: 0 | U110: 3.4596 | V110: 0 | W110: 0 | X110: 0.302733288 | Y110: 0 | Z110: 0 | AA110: 3.4596 | AB110: 0 | AC110: 0 | AD110: 0.2997059551 | AE110: 0 | AF110: 0 | AG110: 3.4596
A111: 85 | B111: 4 | C111: LDNO HV: LV Sub Generation Non-Intermittent | J111: 0 | K111: 0 | L111: 0 | M111: 0 | N111: 0 | O111: 0 | P111: 0 | Q111: 0 | R111: 0 | S111: 0 | T111: 0 | U111: 0 | V111: 0 | W111: 0 | X111: 0 | Y111: 0 | Z111: 0 | AA111: 0 | AB111: 0 | AC111: 0 | AD111: 0 | AE111: 0 | AF111: 0 | AG111: 0
A112: 86 | C112: > HV Generation Intermittent | J112: 0 | K112: 0 | L112: 0 | M112: 0 | N112: 0 | O112: 0 | P112: 0 | Q112: 0 | R112: 0 | S112: 0 | T112: 0 | U112: 0 | V112: 0 | W112: 0 | X112: 0 | Y112: 0 | Z112: 0 | AA112: 0 | AB112: 0 | AC112: 0 | AD112: 0 | AE112: 0 | AF112: 0 | AG112: 0
A113: 87 | B113: 4 | C113: HV Generation Intermittent | D113: 987.742 | G113: 4 | I113: 376.0514 | J113: 977.86458 | K113: 0 | L113: 0 | M113: 4.04 | N113: 0 | O113: 376.0514 | P113: 968.0859342 | Q113: 0 | R113: 0 | S113: 4.0804 | T113: 0 | U113: 376.0514 | V113: 958.4050749 | W113: 0 | X113: 0 | Y113: 4.121204 | Z113: 0 | AA113: 376.0514 | AB113: 948.8210241 | AC113: 0 | AD113: 0 | AE113: 4.16241604 | AF113: 0 | AG113: 376.0514
A114: 88 | B114: 4 | C114: LDNO HV: HV Generation Intermittent | J114: 0 | K114: 0 | L114: 0 | M114: 0 | N114: 0 | O114: 0 | P114: 0 | Q114: 0 | R114: 0 | S114: 0 | T114: 0 | U114: 0 | V114: 0 | W114: 0 | X114: 0 | Y114: 0 | Z114: 0 | AA114: 0 | AB114: 0 | AC114: 0 | AD114: 0 | AE114: 0 | AF114: 0 | AG114: 0
A115: 89 | C115: > HV Generation Non-Intermittent | J115: 0 | K115: 0 | L115: 0 | M115: 0 | N115: 0 | O115: 0 | P115: 0 | Q115: 0 | R115: 0 | S115: 0 | T115: 0 | U115: 0 | V115: 0 | W115: 0 | X115: 0 | Y115: 0 | Z115: 0 | AA115: 0 | AB115: 0 | AC115: 0 | AD115: 0 | AE115: 0 | AF115: 0 | AG115: 0
A116: 90 | B116: 4 | C116: HV Generation Non-Intermittent | D116: 39368.899 | E116: 133192.957 | F116: 261885.645 | G116: 81 | I116: 4526.9914 | J116: 38975.21001 | K116: 131861.0274 | L116: 259266.7886 | M116: 81.81 | N116: 0 | O116: 4526.9914 | P116: 38585.45791 | Q116: 130542.4172 | R116: 256674.1207 | S116: 82.6281 | T116: 0 | U116: 4526.9914 | V116: 38199.60333 | W116: 129236.993 | X116: 254107.3795 | Y116: 83.454381 | Z116: 0 | AA116: 4526.9914 | AB116: 37817.6073 | AC116: 127944.6231 | AD116: 251566.3057 | AE116: 84.28892481 | AF116: 0 | AG116: 4526.9914
A117: 91 | B117: 4 | C117: LDNO HV: HV Generation Non-Intermittent | J117: 0 | K117: 0 | L117: 0 | M117: 0 | N117: 0 | O117: 0 | P117: 0 | Q117: 0 | R117: 0 | S117: 0 | T117: 0 | U117: 0 | V117: 0 | W117: 0 | X117: 0 | Y117: 0 | Z117: 0 | AA117: 0 | AB117: 0 | AC117: 0 | AD117: 0 | AE117: 0 | AF117: 0 | AG117: 0
A118: 92 | C118: > HV Sub Generation Non-Intermittent | J118: 0 | K118: 0 | L118: 0 | M118: 0 | N118: 0 | O118: 0 | P118: 0 | Q118: 0 | R118: 0 | S118: 0 | T118: 0 | U118: 0 | V118: 0 | W118: 0 | X118: 0 | Y118: 0 | Z118: 0 | AA118: 0 | AB118: 0 | AC118: 0 | AD118: 0 | AE118: 0 | AF118: 0 | AG118: 0
A119: 93 | B119: 4 | C119: HV Sub Generation Non-Intermittent | J119: 0 | K119: 0 | L119: 0 | M119: 0 | N119: 0 | O119: 0 | P119: 0 | Q119: 0 | R119: 0 | S119: 0 | T119: 0 | U119: 0 | V119: 0 | W119: 0 | X119: 0 | Y119: 0 | Z119: 0 | AA119: 0 | AB119: 0 | AC119: 0 | AD119: 0 | AE119: 0 | AF119: 0 | AG119: 0
A120: 94 | C120: > HV Sub Generation Intermittent | J120: 0 | K120: 0 | L120: 0 | M120: 0 | N120: 0 | O120: 0 | P120: 0 | Q120: 0 | R120: 0 | S120: 0 | T120: 0 | U120: 0 | V120: 0 | W120: 0 | X120: 0 | Y120: 0 | Z120: 0 | AA120: 0 | AB120: 0 | AC120: 0 | AD120: 0 | AE120: 0 | AF120: 0 | AG120: 0
A121: 95 | B121: 4 | C121: HV Sub Generation Intermittent | D121: 0 | G121: 0 | J121: 0 | K121: 0 | L121: 0 | M121: 0 | N121: 0 | O121: 0 | P121: 0 | Q121: 0 | R121: 0 | S121: 0 | T121: 0 | U121: 0 | V121: 0 | W121: 0 | X121: 0 | Y121: 0 | Z121: 0 | AA121: 0 | AB121: 0 | AC121: 0 | AD121: 0 | AE121: 0 | AF121: 0 | AG121: 0

Sheet CDCM Timebands
B2: CDCM Timebands
C4: 2013/14
C5: WD (incl. bank holidays) | D5: WE | E5: 2014/15 | F5: 2015/16 | G5: 2016/17 | H5: 2017/18
B6: Red | C6: 16:00 to 19:00 | E6: No change from 2012/13 | F6: No change from 2012/13 | G6: No change from 2012/13 | H6: No change from 2012/13
B8: Amber | C8: 07:30 to 16:00
C9: 19:00 to 21:00
B11: Green | C11: 00:00 to 07:30 | D11: 00:00 to 24:00
C12: 21:00 to 24:00
C14: 2013/14
C15: WD (incl. bank holidays) Nov to Feb | D15: WD (incl. bank holidays) Mar to Oct | E15: WE | F15: 2014/15 | G15: 2015/16 | H15: 2016/17 | I15: 2017/18
B16: Black | C16: 16:00 to 19:00 | F16: No change from 2012/13 | G16: No change from 2012/13 | H16: No change from 2012/13 | I16: No change from 2012/13
B18: Yellow | C18: 07:30 to 16:00 | D18: 07:30 to 21:00
C19: 19:00 to 21:00
B21: Green | C21: 00:00 to 07:30 | D21: 00:00 to 07:30 | E21: 00:00 to 24:00
C22: 21:00 to 24:00 | D22: 21:00 to 24:00

Sheet Vlookup (hidden)
A1: CDCM model 100: Input data | C1: =B8 -> 2 | E1: =C8 -> 3 | G1: =D8 -> 4
A2: This sheet contains all the input data (except LLFCs which can be entered directly into the Tariff sheet).
A5: 1000. Company, charging year, data version
B7: Company | C7: Year | D7: Version
A8: Company, charging year, data version | B8: 2 | C8: 3 | D8: 4
A10: 1010. Financial and general assumptions
A12: Sources: financial assumptions; calendar; network model.
A13: These financial assumptions determine the annuity rate applied to convert the asset values of the network model into an annual charge.
B14: Rate of return | C14: Annualisation period (years) | D14: Annuity proportion for customer-contributed assets | E14: Power factor | F14: Days in the charging period
A15: Financial and general assumptions | B15: 6 | C15: 7 | E15: 8 | F15: 9
A17: 1017. Diversity allowance between top and bottom of network level
A19: Source: operational data analysis and/or network model.
A20: The diversity figure against GSP is the diversity between GSP Group (the whole system) and individual GSPs.
A21: The diversity figure against 132kV is the diversity between GSPs (the top of the 132kV network) and 132kV/EHV bulk supply points (the bottom of the 132kV network).
A22: The diversity figure against EHV is the diversity between 132kV/EHV bulk supply points (the top of the EHV network) and EHV/HV primary substations (the bottom of the EHV network).
A23: The diversity figure against HV is the diversity between EHV/HV primary substations (the top of the HV network) and HV/LV substations (the bottom of the HV network).
B24: Diversity allowance between top and bottom of network level
A25: GSPs | B25: 11
A26: 132kV | B26: 12
A27: 132kV/EHV
A28: EHV | B28: 13
A29: EHV/HV
A30: HV | B30: 14
A31: HV/LV
A32: LV circuits
A34: 1018. Proportion of relevant load going through 132kV/HV direct transformation
B36: 132kV/HV
A37: EHV/HV | B37: 15
A39: 1019. Network model GSP peak demand (MW)
B41: Network model GSP peak demand (MW)
A42: Network model GSP peak demand (MW) | B42: 16
A44: 1020. Gross asset cost by network level (£)
B46: Gross assets £
A47: 132kV | B47: 18
A48: 132kV/EHV | B48: 19
A49: EHV | B49: 20
A50: EHV/HV | B50: 21
A51: 132kV/HV | B51: 22
A52: HV | B52: 23
A53: HV/LV | B53: 24
A54: LV circuits | B54: 25
A56: 1022. LV service model asset cost (£)
B58: LV service model 1 | C58: LV service model 2 | D58: LV service model 3 | E58: LV service model 4 | F58: LV service model 5 | G58: LV service model 6 | H58: LV service model 7 | I58: LV service model 8
A59: LV service model asset cost (£) | B59: 27 | C59: 28 | D59: 29 | E59: 30 | F59: 31 | G59: 32 | H59: 33 | I59: 34
A61: 1023. HV service model asset cost (£)
B63: HV service model 1 | C63: HV service model 2 | D63: HV service model 3 | E63: HV service model 4 | F63: HV service model 5
A64: HV service model asset cost (£) | B64: 36 | C64: 37 | D64: 38 | E64: 39 | F64: 40
A66: 1025. Matrix of applicability of LV service models to tariffs with fixed charges
B68: LV service model 1 | C68: LV service model 2 | D68: LV service model 3 | E68: LV service model 4 | F68: LV service model 5 | G68: LV service model 6 | H68: LV service model 7 | I68: LV service model 8
A69: Domestic Unrestricted | B69: 0.05 | C69: 0 | D69: 0 | E69: 0 | H69: 0 | I69: 0
A70: Domestic Two Rate | B70: 0.05 | C70: 0 | D70: 0 | E70: 0 | H70: 0 | I70: 0
A71: Small Non Domestic Unrestricted | B71: 0 | C71: 1 | D71: 0 | E71: 0 | H71: 0 | I71: 0
A72: Small Non Domestic Two Rate | B72: 0 | C72: 1 | D72: 0 | E72: 0 | H72: 0 | I72: 0
A73: LV Medium Non-Domestic | B73: 0.1 | C73: 0.9 | E73: 0 | H73: 0 | I73: 0
A74: LV Sub Medium Non-Domestic | B74: 0 | E74: 1 | H74: 0 | I74: 0
A75: LV HH Metered | B75: 0 | D75: 1 | E75: 0 | H75: 0 | I75: 0
A76: LV Sub HH Metered | B76: 0 | E76: 1 | H76: 0 | I76: 0
A77: LV Generation NHH | B77: 0 | C77: 0 | D77: 0 | H77: 0 | I77: 0
A78: LV Sub Generation NHH | B78: 0 | C78: 0 | D78: 0 | H78: 0 | I78: 0
A79: LV Generation Intermittent | B79: 0 | C79: 0 | D79: 0 | H79: 0 | I79: 0
A80: LV Generation Non-Intermittent
A81: LV Sub Generation Intermittent
A82: LV Sub Generation Non-Intermittent | B82: 0 | C82: 0 | D82: 0 | E82: 0 | F82: 0 | G82: 0 | H82: 0 | I82: 0
A84: 1026. Matrix of applicability of LV service models to unmetered tariffs
A86: Source: service models
A87: Proportion of service model involved in connecting load of 1 MWh/year
B88: LV service model 1 | C88: LV service model 2 | D88: LV service model 3 | E88: LV service model 4 | F88: LV service model 5 | G88: LV service model 6 | H88: LV service model 7 | I88: LV service model 8
A89: All LV unmetered tariffs | B89: 0 | C89: 0 | D89: 0 | E89: 0 | F89: 3.914 | G89: 0 | H89: 0 | I89: 0
A91: 1028. Matrix of applicability of HV service models to tariffs with fixed charges
B93: HV service model 1 | C93: HV service model 2 | D93: HV service model 3 | E93: HV service model 4 | F93: HV service model 5
A94: HV Medium Non-Domestic | C94: 1 | D94: 0 | E94: 0 | F94: 0
A95: HV HH Metered | C95: 1 | D95: 0 | E95: 0 | F95: 0
A96: HV Sub HH Metered | B96: 1 | D96: 0 | E96: 0 | F96: 0
A97: HV Generation Intermittent | B97: 0 | C97: 0 | D97: 1 | E97: 0 | F97: 0
A98: HV Generation Non-Intermittent | B98: 0 | C98: 0 | D98: 1 | E98: 0 | F98: 0
A99: HV Sub Generation Non-Intermittent | D99: 1
A100: HV Sub Generation Intermittent | D100: 1
A102: 1032. Loss adjustment factors to transmission
A104: Source: losses model or loss adjustment factors at time of system peak.
B105: 132kV | C105: 132kV/EHV | D105: EHV | E105: EHV/HV | F105: HV | G105: HV/LV | H105: LV circuits
A106: Loss adjustment factor | B106: 45 | C106: 46 | D106: 47 | E106: 48 | F106: 49 | G106: 50 | H106: 51
A108: 1037. Embedded network (LDNO) discounts
A110: Source: separate price control disaggregation model.
B111: No discount | C111: LDNO LV: LV user | D111: LDNO HV: LV user | E111: LDNO HV: LV sub user | F111: LDNO HV: HV user
A112: LDNO discount | C112: 53 | D112: 54 | E112: 55 | F112: 56
A114: 1041. Load profile data for demand users
A116: Source: load data analysis.
B117: Coincidence factor | C117: Load factor
A118: Domestic Unrestricted | B118: ='CDCM Forecast Data'!B71 -> 58 | C118: ='CDCM Forecast Data'!B90 -> 77
A119: Domestic Two Rate | B119: ='CDCM Forecast Data'!B72 -> 59 | C119: ='CDCM Forecast Data'!B91 -> 78
A120: Domestic Off Peak (related MPAN) | B120: ='CDCM Forecast Data'!B73 -> 60 | C120: ='CDCM Forecast Data'!B92 -> 79
A121: Small Non Domestic Unrestricted | B121: ='CDCM Forecast Data'!B74 -> 61 | C121: ='CDCM Forecast Data'!B93 -> 80
A122: Small Non Domestic Two Rate | B122: ='CDCM Forecast Data'!B75 -> 62 | C122: ='CDCM Forecast Data'!B94 -> 81
A123: Small Non Domestic Off Peak (related MPAN) | B123: ='CDCM Forecast Data'!B76 -> 63 | C123: ='CDCM Forecast Data'!B95 -> 82
A124: LV Medium Non-Domestic | B124: ='CDCM Forecast Data'!B77 -> 64 | C124: ='CDCM Forecast Data'!B96 -> 83
A125: LV Sub Medium Non-Domestic | B125: ='CDCM Forecast Data'!B78 -> 65 | C125: ='CDCM Forecast Data'!B97 -> 84
A126: HV Medium Non-Domestic | B126: ='CDCM Forecast Data'!B79 -> 66 | C126: ='CDCM Forecast Data'!B98 -> 85
A127: LV HH Metered | B127: ='CDCM Forecast Data'!B80 -> 67 | C127: ='CDCM Forecast Data'!B99 -> 86
A128: LV Sub HH Metered | B128: ='CDCM Forecast Data'!B81 -> 68 | C128: ='CDCM Forecast Data'!B100 -> 87
A129: HV HH Metered | B129: ='CDCM Forecast Data'!B82 -> 69 | C129: ='CDCM Forecast Data'!B101 -> 88
A130: HV Sub HH Metered | B130: ='CDCM Forecast Data'!B83 -> 70 | C130: ='CDCM Forecast Data'!B102 -> 89
A131: NHH UMS category A | B131: ='CDCM Forecast Data'!B84 -> 71 | C131: ='CDCM Forecast Data'!B103 -> 90
A132: NHH UMS category B | B132: ='CDCM Forecast Data'!B85 -> 72 | C132: ='CDCM Forecast Data'!B104 -> 91
A133: NHH UMS category C | B133: ='CDCM Forecast Data'!B86 -> 73 | C133: ='CDCM Forecast Data'!B105 -> 92
A134: NHH UMS category D | B134: ='CDCM Forecast Data'!B87 -> 74 | C134: ='CDCM Forecast Data'!B106 -> 93
A135: LV UMS (Pseudo HH Metered) | B135: ='CDCM Forecast Data'!B88 -> 75 | C135: ='CDCM Forecast Data'!B107 -> 94
A137: 1053. Volume forecasts for the charging year
A139: Source: forecast.
A140: Please include MPAN counts for tariffs with no fixed charge (e.g. off-peak tariffs),
A141: but exclude MPANs on tariffs with a fixed charge that are not subject to a fixed charge due to a site grouping arrangement.
B142: Rate 1 units (MWh) | C142: Rate 2 units (MWh) | D142: Rate 3 units (MWh) | E142: MPANs | F142: Import capacity (kVA) | G142: Reactive power units (MVArh)
A143: > Domestic Unrestricted
A144: Domestic Unrestricted | B144: 2 | E144: 2
A145: LDNO LV: Domestic Unrestricted | B145: 3 | E145: 3
A146: LDNO HV: Domestic Unrestricted | B146: 4 | E146: 4
A147: > Domestic Two Rate
A148: Domestic Two Rate | B148: 6 | C148: 6 | E148: 6
A149: LDNO LV: Domestic Two Rate | B149: 7 | C149: 7 | E149: 7
A150: LDNO HV: Domestic Two Rate | B150: 8 | C150: 8 | E150: 8
A151: > Domestic Off Peak (related MPAN)
A152: Domestic Off Peak (related MPAN) | B152: 10 | E152: 10
A153: LDNO LV: Domestic Off Peak (related MPAN) | B153: 11 | E153: 11
A154: LDNO HV: Domestic Off Peak (related MPAN) | B154: 12 | E154: 12
A155: > Small Non Domestic Unrestricted
A156: Small Non Domestic Unrestricted | B156: 14 | E156: 14
A157: LDNO LV: Small Non Domestic Unrestricted | B157: 15 | E157: 15
A158: LDNO HV: Small Non Domestic Unrestricted | B158: 16 | E158: 16
A159: > Small Non Domestic Two Rate
A160: Small Non Domestic Two Rate | B160: 18 | C160: 18 | E160: 18
A161: LDNO LV: Small Non Domestic Two Rate | B161: 19 | C161: 19 | E161: 19
A162: LDNO HV: Small Non Domestic Two Rate | B162: 20 | C162: 20 | E162: 20
A163: > Small Non Domestic Off Peak (related MPAN)
A164: Small Non Domestic Off Peak (related MPAN) | B164: 22 | E164: 22
A165: LDNO LV: Small Non Domestic Off Peak (related MPAN) | B165: 23 | E165: 23
A166: LDNO HV: Small Non Domestic Off Peak (related MPAN) | B166: 24 | E166: 24
A167: > LV Medium Non-Domestic
A168: LV Medium Non-Domestic | B168: 26 | C168: 26 | E168: 26
A169: LDNO LV: LV Medium Non-Domestic | B169: 27 | C169: 27 | E169: 27
A170: LDNO HV: LV Medium Non-Domestic | B170: 28 | C170: 28 | E170: 28
A171: > LV Sub Medium Non-Domestic
A172: LV Sub Medium Non-Domestic | B172: 30 | C172: 30 | E172: 30
A173: > HV Medium Non-Domestic
A174: HV Medium Non-Domestic | B174: 32 | C174: 32 | E174: 32
A175: > LV HH Metered
A176: LV HH Metered | B176: 34 | C176: 34 | D176: 34 | E176: 34 | F176: 34 | G176: 34
A177: LDNO LV: LV HH Metered | B177: 35 | C177: 35 | D177: 35 | E177: 35 | F177: 35 | G177: 35
A178: LDNO HV: LV HH Metered | B178: 36 | C178: 36 | D178: 36 | E178: 36 | F178: 36 | G178: 36
A179: > LV Sub HH Metered
A180: LV Sub HH Metered | B180: 38 | C180: 38 | D180: 38 | E180: 38 | F180: 38 | G180: 38
A181: LDNO HV: LV Sub HH Metered | B181: 39 | C181: 39 | D181: 39 | E181: 39 | F181: 39 | G181: 39
A182: > HV HH Metered
A183: HV HH Metered | B183: 41 | C183: 41 | D183: 41 | E183: 41 | F183: 41 | G183: 41
A184: LDNO HV: HV HH Metered | B184: 42 | C184: 42 | D184: 42 | E184: 42 | F184: 42 | G184: 42
A185: > HV Sub HH Metered
A186: HV Sub HH Metered | B186: 44 | C186: 44 | D186: 44 | E186: 44 | F186: 44 | G186: 44
A187: > NHH UMS category A
A188: NHH UMS category A | B188: 46 | E188: 46
A189: LDNO LV: NHH UMS category A | B189: 47 | E189: 47
A190: LDNO HV: NHH UMS category A | B190: 48 | E190: 48
A191: > NHH UMS category B
A192: NHH UMS category B | B192: 50 | E192: 50
A193: LDNO LV: NHH UMS category B | B193: 51 | E193: 51
A194: LDNO HV: NHH UMS category B | B194: 52 | E194: 52
A195: > NHH UMS category C
A196: NHH UMS category C | B196: 54 | E196: 54
A197: LDNO LV: NHH UMS category C | B197: 55 | E197: 55
A198: LDNO HV: NHH UMS category C | B198: 56 | E198: 56
A199: > NHH UMS category D
A200: NHH UMS category D | B200: 58 | E200: 58
A201: LDNO LV: NHH UMS category D | B201: 59 | E201: 59
A202: LDNO HV: NHH UMS category D | B202: 60 | E202: 60
A203: > LV UMS (Pseudo HH Metered)
A204: LV UMS (Pseudo HH Metered) | B204: 62 | C204: 62 | D204: 62 | E204: 62
A205: LDNO LV: LV UMS (Pseudo HH Metered) | B205: 63 | C205: 63 | D205: 63 | E205: 63
A206: LDNO HV: LV UMS (Pseudo HH Metered) | B206: 64 | C206: 64 | D206: 64 | E206: 64
A207: > LV Generation NHH
A208: LV Generation NHH | B208: 66 | E208: 66
A209: LDNO LV: LV Generation NHH | B209: 67 | E209: 67
A210: LDNO HV: LV Generation NHH | B210: 68 | E210: 68
A211: > LV Sub Generation NHH
A212: LV Sub Generation NHH | B212: 70 | E212: 70
A213: LDNO HV: LV Sub Generation NHH | B213: 71 | E213: 71
A214: > LV Generation Intermittent
A215: LV Generation Intermittent | B215: 73 | E215: 73 | G215: 73
A216: LDNO LV: LV Generation Intermittent | B216: 74 | E216: 74 | G216: 74
A217: LDNO HV: LV Generation Intermittent | B217: 75 | E217: 75 | G217: 75
A218: > LV Generation Non-Intermittent
A219: LV Generation Non-Intermittent | B219: 77 | C219: 77 | D219: 77 | E219: 77 | G219: 77
A220: LDNO LV: LV Generation Non-Intermittent | B220: 78 | C220: 78 | D220: 78 | E220: 78 | G220: 78
A221: LDNO HV: LV Generation Non-Intermittent | B221: 79 | C221: 79 | D221: 79 | E221: 79 | G221: 79
A222: > LV Sub Generation Intermittent
A223: LV Sub Generation Intermittent | B223: 81 | E223: 81 | G223: 81
A224: LDNO HV: LV Sub Generation Intermittent | B224: 82 | E224: 82 | G224: 82
A225: > LV Sub Generation Non-Intermittent
A226: LV Sub Generation Non-Intermittent | B226: 84 | C226: 84 | D226: 84 | E226: 84 | G226: 84
A227: LDNO HV: LV Sub Generation Non-Intermittent | B227: 85 | C227: 85 | D227: 85 | E227: 85 | G227: 85
A228: > HV Generation Intermittent
A229: HV Generation Intermittent | B229: 87 | E229: 87 | G229: 87
A230: LDNO HV: HV Generation Intermittent | B230: 88 | E230: 88 | G230: 88
A231: > HV Generation Non-Intermittent
... 103 more rows

Sheet (Y)
A5: 1000. Company, charging year, data version
B7: Company | C7: Year | D7: Version
A8: Company, charging year, data version | B8: =VLOOKUP(Vlookup!B8,Forcast_Data,5,FALSE) -> WPD Mid West | C8: =VLOOKUP(Vlookup!C8,Forcast_Data,5,FALSE) -> April 2013 | D8: =VLOOKUP(Vlookup!D8,Forcast_Data,5,FALSE) -> 0
A10: 1010. Financial and general assumptions
A12: Sources: financial assumptions; calendar; network model.
A13: These financial assumptions determine the annuity rate applied to convert the asset values of the network model into an annual charge.
B14: Rate of return | C14: Annualisation period (years) | D14: Annuity proportion for customer-contributed assets | E14: Power factor | F14: Days in the charging period
A15: Financial and general assumptions | B15: =VLOOKUP(Vlookup!B15,Forcast_Data,5,FALSE) -> 0.056 | C15: =VLOOKUP(Vlookup!C15,Forcast_Data,5,FALSE) -> 40 | E15: =VLOOKUP(Vlookup!E15,Forcast_Data,5,FALSE) -> 0.95 | F15: =VLOOKUP(Vlookup!F15,Forcast_Data,5,FALSE) -> 365
A17: 1017. Diversity allowance between top and bottom of network level
A19: Source: operational data analysis and/or network model.
A20: The diversity figure against GSP is the diversity between GSP Group (the whole system) and individual GSPs.
A21: The diversity figure against 132kV is the diversity between GSPs (the top of the 132kV network) and 132kV/EHV bulk supply points (the bottom of the 132kV network).
A22: The diversity figure against EHV is the diversity between 132kV/EHV bulk supply points (the top of the EHV network) and EHV/HV primary substations (the bottom of the EHV network).
A23: The diversity figure against HV is the diversity between EHV/HV primary substations (the top of the HV network) and HV/LV substations (the bottom of the HV network).
B24: Diversity allowance between top and bottom of network level
A25: GSPs | B25: =VLOOKUP(Vlookup!B25,Forcast_Data,5,FALSE) -> 0.05649040832
A26: 132kV | B26: =VLOOKUP(Vlookup!B26,Forcast_Data,5,FALSE) -> 0.0255686825
A27: 132kV/EHV
A28: EHV | B28: =VLOOKUP(Vlookup!B28,Forcast_Data,5,FALSE) -> 0.02663159667
A29: EHV/HV
A30: HV | B30: =VLOOKUP(Vlookup!B30,Forcast_Data,5,FALSE) -> 0.34
A31: HV/LV
A32: LV circuits
A34: 1018. Proportion of relevant load going through 132kV/HV direct transformation
B36: 132kV/HV
A37: EHV/HV | B37: =VLOOKUP(Vlookup!B37,Forcast_Data,5,FALSE) -> 0.6925656292
A39: 1019. Network model GSP peak demand (MW)
B41: Network model GSP peak demand (MW)
A42: Network model GSP peak demand (MW) | B42: =VLOOKUP(Vlookup!B42,Forcast_Data,5,FALSE) -> 500
A44: 1020. Gross asset cost by network level (£)
B46: Gross assets £
A47: 132kV | B47: =VLOOKUP(Vlookup!B47,Forcast_Data,5,FALSE) -> 99354441.13
A48: 132kV/EHV | B48: =VLOOKUP(Vlookup!B48,Forcast_Data,5,FALSE) -> 12895932.21
A49: EHV | B49: =VLOOKUP(Vlookup!B49,Forcast_Data,5,FALSE) -> 10494134.81
A50: EHV/HV | B50: =VLOOKUP(Vlookup!B50,Forcast_Data,5,FALSE) -> 23710501.15
A51: 132kV/HV | B51: =VLOOKUP(Vlookup!B51,Forcast_Data,5,FALSE) -> 26797550.1
A52: HV | B52: =VLOOKUP(Vlookup!B52,Forcast_Data,5,FALSE) -> 117191231
A53: HV/LV | B53: =VLOOKUP(Vlookup!B53,Forcast_Data,5,FALSE) -> 81325177.96
A54: LV circuits | B54: =VLOOKUP(Vlookup!B54,Forcast_Data,5,FALSE) -> 103958997.4
A56: 1022. LV service model asset cost (£)
B58: LV service model 1 | C58: LV service model 2 | D58: LV service model 3 | E58: LV service model 4 | F58: LV service model 5 | G58: LV service model 6 | H58: LV service model 7 | I58: LV service model 8
A59: LV service model asset cost (£) | B59: =VLOOKUP(Vlookup!B59,Forcast_Data,5,FALSE) -> 9660.066903 | C59: =VLOOKUP(Vlookup!C59,Forcast_Data,5,FALSE) -> 715.2994506 | D59: =VLOOKUP(Vlookup!D59,Forcast_Data,5,FALSE) -> 1687.308348 | E59: =VLOOKUP(Vlookup!E59,Forcast_Data,5,FALSE) -> 1687.308348 | F59: =VLOOKUP(Vlookup!F59,Forcast_Data,5,FALSE) -> 1687.308348 | G59: =VLOOKUP(Vlookup!G59,Forcast_Data,5,FALSE) -> 186.5632948 | H59: =VLOOKUP(Vlookup!H59,Forcast_Data,5,FALSE) -> 0 | I59: =VLOOKUP(Vlookup!I59,Forcast_Data,5,FALSE) -> 0
A61: 1023. HV service model asset cost (£)
B63: HV service model 1 | C63: HV service model 2 | D63: HV service model 3 | E63: HV service model 4 | F63: HV service model 5
A64: HV service model asset cost (£) | B64: =VLOOKUP(Vlookup!B64,Forcast_Data,5,FALSE) -> 16967.54924 | C64: =VLOOKUP(Vlookup!C64,Forcast_Data,5,FALSE) -> 16967.54924 | D64: =VLOOKUP(Vlookup!D64,Forcast_Data,5,FALSE) -> 2913.049839 | E64: =VLOOKUP(Vlookup!E64,Forcast_Data,5,FALSE) -> 0 | F64: =VLOOKUP(Vlookup!F64,Forcast_Data,5,FALSE) -> 0
A66: 1025. Matrix of applicability of LV service models to tariffs with fixed charges
B68: LV service model 1 | C68: LV service model 2 | D68: LV service model 3 | E68: LV service model 4 | F68: LV service model 5 | G68: LV service model 6 | H68: LV service model 7 | I68: LV service model 8
A69: Domestic Unrestricted | B69: ='Mat of App'!C7 -> 0.05 | C69: ='Mat of App'!D7 -> 0 | D69: ='Mat of App'!E7 -> 0 | E69: ='Mat of App'!F7 -> 0 | F69: ='Mat of App'!G7 -> 0 | G69: ='Mat of App'!H7 -> 0 | H69: ='Mat of App'!I7 -> 0 | I69: ='Mat of App'!J7 -> 0
A70: Domestic Two Rate | B70: ='Mat of App'!C8 -> 0.05 | C70: ='Mat of App'!D8 -> 0 | D70: ='Mat of App'!E8 -> 0 | E70: ='Mat of App'!F8 -> 0 | F70: ='Mat of App'!G8 -> 0 | G70: ='Mat of App'!H8 -> 0 | H70: ='Mat of App'!I8 -> 0 | I70: ='Mat of App'!J8 -> 0
A71: Small Non Domestic Unrestricted | B71: ='Mat of App'!C9 -> 0 | C71: ='Mat of App'!D9 -> 1 | D71: ='Mat of App'!E9 -> 0 | E71: ='Mat of App'!F9 -> 0 | F71: ='Mat of App'!G9 -> 0 | G71: ='Mat of App'!H9 -> 0 | H71: ='Mat of App'!I9 -> 0 | I71: ='Mat of App'!J9 -> 0
A72: Small Non Domestic Two Rate | B72: ='Mat of App'!C10 -> 0 | C72: ='Mat of App'!D10 -> 1 | D72: ='Mat of App'!E10 -> 0 | E72: ='Mat of App'!F10 -> 0 | F72: ='Mat of App'!G10 -> 0 | G72: ='Mat of App'!H10 -> 0 | H72: ='Mat of App'!I10 -> 0 | I72: ='Mat of App'!J10 -> 0
A73: LV Medium Non-Domestic | B73: ='Mat of App'!C11 -> 0 | C73: ='Mat of App'!D11 -> 0 | D73: ='Mat of App'!E11 -> 1 | E73: ='Mat of App'!F11 -> 0 | F73: ='Mat of App'!G11 -> 0 | G73: ='Mat of App'!H11 -> 0 | H73: ='Mat of App'!I11 -> 0 | I73: ='Mat of App'!J11 -> 0
A74: LV Sub Medium Non-Domestic | B74: ='Mat of App'!C12 -> 0 | C74: ='Mat of App'!D12 -> 0 | D74: ='Mat of App'!E12 -> 0 | E74: ='Mat of App'!F12 -> 0 | F74: ='Mat of App'!G12 -> 1 | G74: ='Mat of App'!H12 -> 0 | H74: ='Mat of App'!I12 -> 0 | I74: ='Mat of App'!J12 -> 0
A75: LV HH Metered | B75: ='Mat of App'!C13 -> 0 | C75: ='Mat of App'!D13 -> 0 | D75: ='Mat of App'!E13 -> 0 | E75: ='Mat of App'!F13 -> 1 | F75: ='Mat of App'!G13 -> 0 | G75: ='Mat of App'!H13 -> 0 | H75: ='Mat of App'!I13 -> 0 | I75: ='Mat of App'!J13 -> 0
A76: LV Sub HH Metered | B76: ='Mat of App'!C14 -> 0 | C76: ='Mat of App'!D14 -> 0 | D76: ='Mat of App'!E14 -> 0 | E76: ='Mat of App'!F14 -> 0 | F76: ='Mat of App'!G14 -> 1 | G76: ='Mat of App'!H14 -> 0 | H76: ='Mat of App'!I14 -> 0 | I76: ='Mat of App'!J14 -> 0
A77: LV Generation NHH | B77: ='Mat of App'!C15 -> 0 | C77: ='Mat of App'!D15 -> 0 | D77: ='Mat of App'!E15 -> 0 | E77: ='Mat of App'!F15 -> 0 | F77: ='Mat of App'!G15 -> 0 | G77: ='Mat of App'!H15 -> 0 | H77: ='Mat of App'!I15 -> 0 | I77: ='Mat of App'!J15 -> 0
A78: LV Sub Generation NHH | B78: ='Mat of App'!C16 -> 0 | C78: ='Mat of App'!D16 -> 0 | D78: ='Mat of App'!E16 -> 0 | E78: ='Mat of App'!F16 -> 0 | F78: ='Mat of App'!G16 -> 0 | G78: ='Mat of App'!H16 -> 0 | H78: ='Mat of App'!I16 -> 0 | I78: ='Mat of App'!J16 -> 0
A79: LV Generation Intermittent | B79: ='Mat of App'!C17 -> 0 | C79: ='Mat of App'!D17 -> 0 | D79: ='Mat of App'!E17 -> 0 | E79: ='Mat of App'!F17 -> 0 | F79: ='Mat of App'!G17 -> 0 | G79: ='Mat of App'!H17 -> 0 | H79: ='Mat of App'!I17 -> 0 | I79: ='Mat of App'!J17 -> 0
A80: LV Generation Non-Intermittent | B80: ='Mat of App'!C18 -> 0 | C80: ='Mat of App'!D18 -> 0 | D80: ='Mat of App'!E18 -> 0 | E80: ='Mat of App'!F18 -> 0 | F80: ='Mat of App'!G18 -> 0 | G80: ='Mat of App'!H18 -> 0 | H80: ='Mat of App'!I18 -> 0 | I80: ='Mat of App'!J18 -> 0
A81: LV Sub Generation Intermittent | B81: ='Mat of App'!C19 -> 0 | C81: ='Mat of App'!D19 -> 0 | D81: ='Mat of App'!E19 -> 0 | E81: ='Mat of App'!F19 -> 0 | F81: ='Mat of App'!G19 -> 0 | G81: ='Mat of App'!H19 -> 0 | H81: ='Mat of App'!I19 -> 0 | I81: ='Mat of App'!J19 -> 0
A82: LV Sub Generation Non-Intermittent | B82: ='Mat of App'!C20 -> 0 | C82: ='Mat of App'!D20 -> 0 | D82: ='Mat of App'!E20 -> 0 | E82: ='Mat of App'!F20 -> 0 | F82: ='Mat of App'!G20 -> 0 | G82: ='Mat of App'!H20 -> 0 | H82: ='Mat of App'!I20 -> 0 | I82: ='Mat of App'!J20 -> 0
A84: 1026. Matrix of applicability of LV service models to unmetered tariffs
A86: Source: service models
A87: Proportion of service model involved in connecting load of 1 MWh/year
B88: LV service model 1 | C88: LV service model 2 | D88: LV service model 3 | E88: LV service model 4 | F88: LV service model 5 | G88: LV service model 6 | H88: LV service model 7 | I88: LV service model 8
A89: All LV unmetered tariffs | B89: ='Mat of App'!C27 -> 0 | C89: ='Mat of App'!D27 -> 0 | D89: ='Mat of App'!E27 -> 0 | E89: ='Mat of App'!F27 -> 0 | F89: ='Mat of App'!G27 -> 0 | G89: ='Mat of App'!H27 -> 1.522070015 | H89: ='Mat of App'!I27 -> 0 | I89: ='Mat of App'!J27 -> 0
A91: 1028. Matrix of applicability of HV service models to tariffs with fixed charges
B93: HV service model 1 | C93: HV service model 2 | D93: HV service model 3 | E93: HV service model 4 | F93: HV service model 5
A94: HV Medium Non-Domestic | B94: ='Mat of App'!C32 -> 1 | C94: ='Mat of App'!D32 -> 0 | D94: ='Mat of App'!E32 -> 0 | E94: ='Mat of App'!F32 -> 0 | F94: ='Mat of App'!G32 -> 0
A95: HV HH Metered | B95: ='Mat of App'!C33 -> 1 | C95: ='Mat of App'!D33 -> 0 | D95: ='Mat of App'!E33 -> 0 | E95: ='Mat of App'!F33 -> 0 | F95: ='Mat of App'!G33 -> 0
A96: HV Sub HH Metered | B96: ='Mat of App'!C34 -> 0 | C96: ='Mat of App'!D34 -> 1 | D96: ='Mat of App'!E34 -> 0 | E96: ='Mat of App'!F34 -> 0 | F96: ='Mat of App'!G34 -> 0
A97: HV Generation Intermittent | B97: ='Mat of App'!C35 -> 0 | C97: ='Mat of App'!D35 -> 0 | D97: ='Mat of App'!E35 -> 1 | E97: ='Mat of App'!F35 -> 0 | F97: ='Mat of App'!G35 -> 0
A98: HV Generation Non-Intermittent | B98: ='Mat of App'!C36 -> 0 | C98: ='Mat of App'!D36 -> 0 | D98: ='Mat of App'!E36 -> 1 | E98: ='Mat of App'!F36 -> 0 | F98: ='Mat of App'!G36 -> 0
A99: HV Sub Generation Non-Intermittent | B99: ='Mat of App'!C37 -> 0 | C99: ='Mat of App'!D37 -> 0 | D99: ='Mat of App'!E37 -> 1 | E99: ='Mat of App'!F37 -> 0 | F99: ='Mat of App'!G37 -> 0
A100: HV Sub Generation Intermittent | B100: ='Mat of App'!C38 -> 0 | C100: ='Mat of App'!D38 -> 0 | D100: ='Mat of App'!E38 -> 1 | E100: ='Mat of App'!F38 -> 0 | F100: ='Mat of App'!G38 -> 0
A102: 1032. Loss adjustment factors to transmission
A104: Source: losses model or loss adjustment factors at time of system peak.
B105: 132kV | C105: 132kV/EHV | D105: EHV | E105: EHV/HV | F105: HV | G105: HV/LV | H105: LV circuits
A106: Loss adjustment factor | B106: =VLOOKUP(Vlookup!B106,Forcast_Data,5,FALSE) -> 1.002 | C106: =VLOOKUP(Vlookup!C106,Forcast_Data,5,FALSE) -> 1.003 | D106: =VLOOKUP(Vlookup!D106,Forcast_Data,5,FALSE) -> 1.006 | E106: =VLOOKUP(Vlookup!E106,Forcast_Data,5,FALSE) -> 1.027 | F106: =VLOOKUP(Vlookup!F106,Forcast_Data,5,FALSE) -> 1.044 | G106: =VLOOKUP(Vlookup!G106,Forcast_Data,5,FALSE) -> 1.051 | H106: =VLOOKUP(Vlookup!H106,Forcast_Data,5,FALSE) -> 1.077
A108: 1037. Embedded network (LDNO) discounts
A110: Source: separate price control disaggregation model.
B111: No discount | C111: LDNO LV: LV user | D111: LDNO HV: LV user | E111: LDNO HV: LV sub user | F111: LDNO HV: HV user
A112: LDNO discount | C112: =VLOOKUP(Vlookup!C112,Forcast_Data,5,FALSE) -> 0.3088318356 | D112: =VLOOKUP(Vlookup!D112,Forcast_Data,5,FALSE) -> 0.500779158 | E112: =VLOOKUP(Vlookup!E112,Forcast_Data,5,FALSE) -> 0.2542804506 | F112: =VLOOKUP(Vlookup!F112,Forcast_Data,5,FALSE) -> 0.1522859741
A114: 1041. Load profile data for demand users
A116: Source: load data analysis.
B117: Coincidence factor | C117: Load factor
A118: Domestic Unrestricted | B118: =VLOOKUP(Vlookup!B118,Forcast_Data,5,FALSE) -> 0.9172510752 | C118: =VLOOKUP(Vlookup!C118,Forcast_Data,5,FALSE) -> 0.4114348134
A119: Domestic Two Rate | B119: =VLOOKUP(Vlookup!B119,Forcast_Data,5,FALSE) -> 0.4008018177 | C119: =VLOOKUP(Vlookup!C119,Forcast_Data,5,FALSE) -> 0.2556052059
A120: Domestic Off Peak (related MPAN) | C120: =VLOOKUP(Vlookup!C120,Forcast_Data,5,FALSE) -> 0.1559078077
A121: Small Non Domestic Unrestricted | B121: =VLOOKUP(Vlookup!B121,Forcast_Data,5,FALSE) -> 0.6200806889 | C121: =VLOOKUP(Vlookup!C121,Forcast_Data,5,FALSE) -> 0.3524542035
A122: Small Non Domestic Two Rate | B122: =VLOOKUP(Vlookup!B122,Forcast_Data,5,FALSE) -> 0.6187554381 | C122: =VLOOKUP(Vlookup!C122,Forcast_Data,5,FALSE) -> 0.4306838132
A123: Small Non Domestic Off Peak (related MPAN) | C123: =VLOOKUP(Vlookup!C123,Forcast_Data,5,FALSE) -> 0.1868684712
A124: LV Medium Non-Domestic | B124: =VLOOKUP(Vlookup!B124,Forcast_Data,5,FALSE) -> 0.8048027574 | C124: =VLOOKUP(Vlookup!C124,Forcast_Data,5,FALSE) -> 0.4920997994
A125: LV Sub Medium Non-Domestic | B125: =VLOOKUP(Vlookup!B125,Forcast_Data,5,FALSE) -> 0.8048027574 | C125: =VLOOKUP(Vlookup!C125,Forcast_Data,5,FALSE) -> 0.4920997994
A126: HV Medium Non-Domestic | B126: =VLOOKUP(Vlookup!B126,Forcast_Data,5,FALSE) -> 0.6108164218 | C126: =VLOOKUP(Vlookup!C126,Forcast_Data,5,FALSE) -> 0.4220141332
A127: LV HH Metered | B127: =VLOOKUP(Vlookup!B127,Forcast_Data,5,FALSE) -> 0.7619514042 | C127: =VLOOKUP(Vlookup!C127,Forcast_Data,5,FALSE) -> 0.5192642925
A128: LV Sub HH Metered | B128: =VLOOKUP(Vlookup!B128,Forcast_Data,5,FALSE) -> 0.7619514042 | C128: =VLOOKUP(Vlookup!C128,Forcast_Data,5,FALSE) -> 0.5192642925
A129: HV HH Metered | B129: =VLOOKUP(Vlookup!B129,Forcast_Data,5,FALSE) -> 0.7725944525 | C129: =VLOOKUP(Vlookup!C129,Forcast_Data,5,FALSE) -> 0.6437861665
A130: HV Sub HH Metered | B130: =VLOOKUP(Vlookup!B130,Forcast_Data,5,FALSE) -> 0.7725944525 | C130: =VLOOKUP(Vlookup!C130,Forcast_Data,5,FALSE) -> 0.6437861665
A131: NHH UMS category A | B131: =VLOOKUP(Vlookup!B131,Forcast_Data,5,FALSE) -> 1 | C131: =VLOOKUP(Vlookup!C131,Forcast_Data,5,FALSE) -> 1
A132: NHH UMS category B | B132: =VLOOKUP(Vlookup!B132,Forcast_Data,5,FALSE) -> 1 | C132: =VLOOKUP(Vlookup!C132,Forcast_Data,5,FALSE) -> 0.4736829452
A133: NHH UMS category C | B133: =VLOOKUP(Vlookup!B133,Forcast_Data,5,FALSE) -> 1 | C133: =VLOOKUP(Vlookup!C133,Forcast_Data,5,FALSE) -> 0.258
A134: NHH UMS category D | B134: =VLOOKUP(Vlookup!B134,Forcast_Data,5,FALSE) -> 0.06413333333 | C134: =VLOOKUP(Vlookup!C134,Forcast_Data,5,FALSE) -> 0.553
A135: LV UMS (Pseudo HH Metered) | B135: =VLOOKUP(Vlookup!B135,Forcast_Data,5,FALSE) -> 0.9938755871 | C135: =VLOOKUP(Vlookup!C135,Forcast_Data,5,FALSE) -> 0.4877395704
A137: 1053. Volume forecasts for the charging year
B138: 4 | C138: 5 | D138: 6 | E138: 7 | F138: 8 | G138: 9
A139: Source: forecast.
A140: Please include MPAN counts for tariffs with no fixed charge (e.g. off-peak tariffs),
A141: but exclude MPANs on tariffs with a fixed charge that are not subject to a fixed charge due to a site grouping arrangement.
B142: Rate 1 units (MWh) | C142: Rate 2 units (MWh) | D142: Rate 3 units (MWh) | E142: MPANs | F142: Import capacity (kVA) | G142: Reactive power units (MVArh)
A143: > Domestic Unrestricted
A144: Domestic Unrestricted | B144: =VLOOKUP(Vlookup!B144,Volume_Forecast_Data,B$138,FALSE) -> 7188253.084 | E144: =VLOOKUP(Vlookup!E144,Volume_Forecast_Data,E$138,FALSE) -> 1922702
A145: LDNO LV: Domestic Unrestricted | B145: =VLOOKUP(Vlookup!B145,Volume_Forecast_Data,B$138,FALSE) -> 6885.108 | E145: =VLOOKUP(Vlookup!E145,Volume_Forecast_Data,E$138,FALSE) -> 4255
A146: LDNO HV: Domestic Unrestricted | B146: =VLOOKUP(Vlookup!B146,Volume_Forecast_Data,B$138,FALSE) -> 21472.725 | E146: =VLOOKUP(Vlookup!E146,Volume_Forecast_Data,E$138,FALSE) -> 9925
A147: > Domestic Two Rate
A148: Domestic Two Rate | B148: =VLOOKUP(Vlookup!B148,Volume_Forecast_Data,B$138,FALSE) -> 1030801.34 | C148: =VLOOKUP(Vlookup!C148,Volume_Forecast_Data,C$138,FALSE) -> 770885.2424 | E148: =VLOOKUP(Vlookup!E148,Volume_Forecast_Data,E$138,FALSE) -> 314618
A149: LDNO LV: Domestic Two Rate | B149: =VLOOKUP(Vlookup!B149,Volume_Forecast_Data,B$138,FALSE) -> 268.075 | C149: =VLOOKUP(Vlookup!C149,Volume_Forecast_Data,C$138,FALSE) -> 156.922 | E149: =VLOOKUP(Vlookup!E149,Volume_Forecast_Data,E$138,FALSE) -> 167
A150: LDNO HV: Domestic Two Rate | B150: =VLOOKUP(Vlookup!B150,Volume_Forecast_Data,B$138,FALSE) -> 386.871 | C150: =VLOOKUP(Vlookup!C150,Volume_Forecast_Data,C$138,FALSE) -> 358.447 | E150: =VLOOKUP(Vlookup!E150,Volume_Forecast_Data,E$138,FALSE) -> 265
A151: > Domestic Off Peak (related MPAN)
A152: Domestic Off Peak (related MPAN) | B152: =VLOOKUP(Vlookup!B152,Volume_Forecast_Data,B$138,FALSE) -> 37781.02603 | E152: =VLOOKUP(Vlookup!E152,Volume_Forecast_Data,E$138,FALSE) -> 0
A153: LDNO LV: Domestic Off Peak (related MPAN) | B153: =VLOOKUP(Vlookup!B153,Volume_Forecast_Data,B$138,FALSE) -> 0 | E153: =VLOOKUP(Vlookup!E153,Volume_Forecast_Data,E$138,FALSE) -> 0
A154: LDNO HV: Domestic Off Peak (related MPAN) | B154: =VLOOKUP(Vlookup!B154,Volume_Forecast_Data,B$138,FALSE) -> 0 | E154: =VLOOKUP(Vlookup!E154,Volume_Forecast_Data,E$138,FALSE) -> 0
A155: > Small Non Domestic Unrestricted
A156: Small Non Domestic Unrestricted | B156: =VLOOKUP(Vlookup!B156,Volume_Forecast_Data,B$138,FALSE) -> 1667665.764 | E156: =VLOOKUP(Vlookup!E156,Volume_Forecast_Data,E$138,FALSE) -> 132921
A157: LDNO LV: Small Non Domestic Unrestricted | B157: =VLOOKUP(Vlookup!B157,Volume_Forecast_Data,B$138,FALSE) -> 657.041 | E157: =VLOOKUP(Vlookup!E157,Volume_Forecast_Data,E$138,FALSE) -> 104
A158: LDNO HV: Small Non Domestic Unrestricted | B158: =VLOOKUP(Vlookup!B158,Volume_Forecast_Data,B$138,FALSE) -> 6413.625 | E158: =VLOOKUP(Vlookup!E158,Volume_Forecast_Data,E$138,FALSE) -> 385
A159: > Small Non Domestic Two Rate
A160: Small Non Domestic Two Rate | B160: =VLOOKUP(Vlookup!B160,Volume_Forecast_Data,B$138,FALSE) -> 472549.4891 | C160: =VLOOKUP(Vlookup!C160,Volume_Forecast_Data,C$138,FALSE) -> 214687.7201 | E160: =VLOOKUP(Vlookup!E160,Volume_Forecast_Data,E$138,FALSE) -> 32175
A161: LDNO LV: Small Non Domestic Two Rate | B161: =VLOOKUP(Vlookup!B161,Volume_Forecast_Data,B$138,FALSE) -> 321.815 | C161: =VLOOKUP(Vlookup!C161,Volume_Forecast_Data,C$138,FALSE) -> 94.725 | E161: =VLOOKUP(Vlookup!E161,Volume_Forecast_Data,E$138,FALSE) -> 9
A162: LDNO HV: Small Non Domestic Two Rate | B162: =VLOOKUP(Vlookup!B162,Volume_Forecast_Data,B$138,FALSE) -> 1411.414 | C162: =VLOOKUP(Vlookup!C162,Volume_Forecast_Data,C$138,FALSE) -> 363.781 | E162: =VLOOKUP(Vlookup!E162,Volume_Forecast_Data,E$138,FALSE) -> 39
A163: > Small Non Domestic Off Peak (related MPAN)
A164: Small Non Domestic Off Peak (related MPAN) | B164: =VLOOKUP(Vlookup!B164,Volume_Forecast_Data,B$138,FALSE) -> 6401.664819 | E164: =VLOOKUP(Vlookup!E164,Volume_Forecast_Data,E$138,FALSE) -> 0
A165: LDNO LV: Small Non Domestic Off Peak (related MPAN) | B165: =VLOOKUP(Vlookup!B165,Volume_Forecast_Data,B$138,FALSE) -> 0 | E165: =VLOOKUP(Vlookup!E165,Volume_Forecast_Data,E$138,FALSE) -> 0
A166: LDNO HV: Small Non Domestic Off Peak (related MPAN) | B166: =VLOOKUP(Vlookup!B166,Volume_Forecast_Data,B$138,FALSE) -> 0 | E166: =VLOOKUP(Vlookup!E166,Volume_Forecast_Data,E$138,FALSE) -> 0
A167: > LV Medium Non-Domestic
A168: LV Medium Non-Domestic | B168: =VLOOKUP(Vlookup!B168,Volume_Forecast_Data,B$138,FALSE) -> 1307127.232 | C168: =VLOOKUP(Vlookup!C168,Volume_Forecast_Data,C$138,FALSE) -> 315613.5147 | E168: =VLOOKUP(Vlookup!E168,Volume_Forecast_Data,E$138,FALSE) -> 17765
A169: LDNO LV: LV Medium Non-Domestic | B169: =VLOOKUP(Vlookup!B169,Volume_Forecast_Data,B$138,FALSE) -> 305.523 | C169: =VLOOKUP(Vlookup!C169,Volume_Forecast_Data,C$138,FALSE) -> 103.388 | E169: =VLOOKUP(Vlookup!E169,Volume_Forecast_Data,E$138,FALSE) -> 7
A170: LDNO HV: LV Medium Non-Domestic | B170: =VLOOKUP(Vlookup!B170,Volume_Forecast_Data,B$138,FALSE) -> 6556.33 | C170: =VLOOKUP(Vlookup!C170,Volume_Forecast_Data,C$138,FALSE) -> 1534.562 | E170: =VLOOKUP(Vlookup!E170,Volume_Forecast_Data,E$138,FALSE) -> 62
A171: > LV Sub Medium Non-Domestic
A172: LV Sub Medium Non-Domestic | B172: =VLOOKUP(Vlookup!B172,Volume_Forecast_Data,B$138,FALSE) -> 93.64055976 | C172: =VLOOKUP(Vlookup!C172,Volume_Forecast_Data,C$138,FALSE) -> 24.59237418 | E172: =VLOOKUP(Vlookup!E172,Volume_Forecast_Data,E$138,FALSE) -> 3
A173: > HV Medium Non-Domestic
A174: HV Medium Non-Domestic | B174: =VLOOKUP(Vlookup!B174,Volume_Forecast_Data,B$138,FALSE) -> 37255.55376 | C174: =VLOOKUP(Vlookup!C174,Volume_Forecast_Data,C$138,FALSE) -> 10222.21943 | E174: =VLOOKUP(Vlookup!E174,Volume_Forecast_Data,E$138,FALSE) -> 273
A175: > LV HH Metered
A176: LV HH Metered | B176: =VLOOKUP(Vlookup!B176,Volume_Forecast_Data,B$138,FALSE) -> 209180.978 | C176: =VLOOKUP(Vlookup!C176,Volume_Forecast_Data,C$138,FALSE) -> 833098.6941 | D176: =VLOOKUP(Vlookup!D176,Volume_Forecast_Data,D$138,FALSE) -> 858293.1853 | E176: =VLOOKUP(Vlookup!E176,Volume_Forecast_Data,E$138,FALSE) -> 6018 | F176: =VLOOKUP(Vlookup!F176,Volume_Forecast_Data,F$138,FALSE) -> 983000 | G176: =VLOOKUP(Vlookup!G176,Volume_Forecast_Data,G$138,FALSE) -> 164557.5686
A177: LDNO LV: LV HH Metered | B177: =VLOOKUP(Vlookup!B177,Volume_Forecast_Data,B$138,FALSE) -> 7.5132 | C177: =VLOOKUP(Vlookup!C177,Volume_Forecast_Data,C$138,FALSE) -> 54.5484 | D177: =VLOOKUP(Vlookup!D177,Volume_Forecast_Data,D$138,FALSE) -> 1.4076 | E177: =VLOOKUP(Vlookup!E177,Volume_Forecast_Data,E$138,FALSE) -> 1 | F177: =VLOOKUP(Vlookup!F177,Volume_Forecast_Data,F$138,FALSE) -> 0 | G177: =VLOOKUP(Vlookup!G177,Volume_Forecast_Data,G$138,FALSE) -> 0.81
A178: LDNO HV: LV HH Metered | B178: =VLOOKUP(Vlookup!B178,Volume_Forecast_Data,B$138,FALSE) -> 4294.6881 | C178: =VLOOKUP(Vlookup!C178,Volume_Forecast_Data,C$138,FALSE) -> 14589.2458 | D178: =VLOOKUP(Vlookup!D178,Volume_Forecast_Data,D$138,FALSE) -> 15977.0549 | E178: =VLOOKUP(Vlookup!E178,Volume_Forecast_Data,E$138,FALSE) -> 79 | F178: =VLOOKUP(Vlookup!F178,Volume_Forecast_Data,F$138,FALSE) -> 19000 | G178: =VLOOKUP(Vlookup!G178,Volume_Forecast_Data,G$138,FALSE) -> 1075.1704
A179: > LV Sub HH Metered
A180: LV Sub HH Metered | B180: =VLOOKUP(Vlookup!B180,Volume_Forecast_Data,B$138,FALSE) -> 2299.10967 | C180: =VLOOKUP(Vlookup!C180,Volume_Forecast_Data,C$138,FALSE) -> 8498.84904 | D180: =VLOOKUP(Vlookup!D180,Volume_Forecast_Data,D$138,FALSE) -> 10550.76462 | E180: =VLOOKUP(Vlookup!E180,Volume_Forecast_Data,E$138,FALSE) -> 32 | F180: =VLOOKUP(Vlookup!F180,Volume_Forecast_Data,F$138,FALSE) -> 17000 | G180: =VLOOKUP(Vlookup!G180,Volume_Forecast_Data,G$138,FALSE) -> 603.104
A181: LDNO HV: LV Sub HH Metered | B181: =VLOOKUP(Vlookup!B181,Volume_Forecast_Data,B$138,FALSE) -> 187.0491 | C181: =VLOOKUP(Vlookup!C181,Volume_Forecast_Data,C$138,FALSE) -> 641.9997 | D181: =VLOOKUP(Vlookup!D181,Volume_Forecast_Data,D$138,FALSE) -> 1199.4126 | E181: =VLOOKUP(Vlookup!E181,Volume_Forecast_Data,E$138,FALSE) -> 1 | F181: =VLOOKUP(Vlookup!F181,Volume_Forecast_Data,F$138,FALSE) -> 0 | G181: =VLOOKUP(Vlookup!G181,Volume_Forecast_Data,G$138,FALSE) -> 675.1852
A182: > HV HH Metered
A183: HV HH Metered | B183: =VLOOKUP(Vlookup!B183,Volume_Forecast_Data,B$138,FALSE) -> 792514.2414 | C183: =VLOOKUP(Vlookup!C183,Volume_Forecast_Data,C$138,FALSE) -> 3163549.918 | D183: =VLOOKUP(Vlookup!D183,Volume_Forecast_Data,D$138,FALSE) -> 4024837.01 | E183: =VLOOKUP(Vlookup!E183,Volume_Forecast_Data,E$138,FALSE) -> 3709 | F183: =VLOOKUP(Vlookup!F183,Volume_Forecast_Data,F$138,FALSE) -> 2873000 | G183: =VLOOKUP(Vlookup!G183,Volume_Forecast_Data,G$138,FALSE) -> 1033930.859
A184: LDNO HV: HV HH Metered | B184: =VLOOKUP(Vlookup!B184,Volume_Forecast_Data,B$138,FALSE) -> 1655.0762 | C184: =VLOOKUP(Vlookup!C184,Volume_Forecast_Data,C$138,FALSE) -> 5248.0467 | D184: =VLOOKUP(Vlookup!D184,Volume_Forecast_Data,D$138,FALSE) -> 5557.199 | E184: =VLOOKUP(Vlookup!E184,Volume_Forecast_Data,E$138,FALSE) -> 9 | F184: =VLOOKUP(Vlookup!F184,Volume_Forecast_Data,F$138,FALSE) -> 6000 | G184: =VLOOKUP(Vlookup!G184,Volume_Forecast_Data,G$138,FALSE) -> 832.2484
A185: > HV Sub HH Metered
A186: HV Sub HH Metered | B186: =VLOOKUP(Vlookup!B186,Volume_Forecast_Data,B$138,FALSE) -> 0 | C186: =VLOOKUP(Vlookup!C186,Volume_Forecast_Data,C$138,FALSE) -> 0 | D186: =VLOOKUP(Vlookup!D186,Volume_Forecast_Data,D$138,FALSE) -> 0 | E186: =VLOOKUP(Vlookup!E186,Volume_Forecast_Data,E$138,FALSE) -> 0 | F186: =VLOOKUP(Vlookup!F186,Volume_Forecast_Data,F$138,FALSE) -> 0 | G186: =VLOOKUP(Vlookup!G186,Volume_Forecast_Data,G$138,FALSE) -> 0
A187: > NHH UMS category A
A188: NHH UMS category A | B188: =VLOOKUP(Vlookup!B188,Volume_Forecast_Data,B$138,FALSE) -> 64233.15315 | E188: =VLOOKUP(Vlookup!E188,Volume_Forecast_Data,E$138,FALSE) -> 0
A189: LDNO LV: NHH UMS category A | B189: =VLOOKUP(Vlookup!B189,Volume_Forecast_Data,B$138,FALSE) -> 40.82483737 | E189: =VLOOKUP(Vlookup!E189,Volume_Forecast_Data,E$138,FALSE) -> 0
A190: LDNO HV: NHH UMS category A | B190: =VLOOKUP(Vlookup!B190,Volume_Forecast_Data,B$138,FALSE) -> 186.6573172 | E190: =VLOOKUP(Vlookup!E190,Volume_Forecast_Data,E$138,FALSE) -> 0
A191: > NHH UMS category B
A192: NHH UMS category B | B192: =VLOOKUP(Vlookup!B192,Volume_Forecast_Data,B$138,FALSE) -> 34027.26636 | E192: =VLOOKUP(Vlookup!E192,Volume_Forecast_Data,E$138,FALSE) -> 0
A193: LDNO LV: NHH UMS category B | B193: =VLOOKUP(Vlookup!B193,Volume_Forecast_Data,B$138,FALSE) -> 21.62680091 | E193: =VLOOKUP(Vlookup!E193,Volume_Forecast_Data,E$138,FALSE) -> 0
A194: LDNO HV: NHH UMS category B | B194: =VLOOKUP(Vlookup!B194,Volume_Forecast_Data,B$138,FALSE) -> 98.88099743 | E194: =VLOOKUP(Vlookup!E194,Volume_Forecast_Data,E$138,FALSE) -> 0
A195: > NHH UMS category C
A196: NHH UMS category C | B196: =VLOOKUP(Vlookup!B196,Volume_Forecast_Data,B$138,FALSE) -> 775.9048227 | E196: =VLOOKUP(Vlookup!E196,Volume_Forecast_Data,E$138,FALSE) -> 0
A197: LDNO LV: NHH UMS category C | B197: =VLOOKUP(Vlookup!B197,Volume_Forecast_Data,B$138,FALSE) -> 0.4931439085 | E197: =VLOOKUP(Vlookup!E197,Volume_Forecast_Data,E$138,FALSE) -> 0
A198: LDNO HV: NHH UMS category C | B198: =VLOOKUP(Vlookup!B198,Volume_Forecast_Data,B$138,FALSE) -> 2.254728369 | E198: =VLOOKUP(Vlookup!E198,Volume_Forecast_Data,E$138,FALSE) -> 0
A199: > NHH UMS category D
A200: NHH UMS category D | B200: =VLOOKUP(Vlookup!B200,Volume_Forecast_Data,B$138,FALSE) -> 5516.627628 | E200: =VLOOKUP(Vlookup!E200,Volume_Forecast_Data,E$138,FALSE) -> 0
A201: LDNO LV: NHH UMS category D | B201: =VLOOKUP(Vlookup!B201,Volume_Forecast_Data,B$138,FALSE) -> 3.506217813 | E201: =VLOOKUP(Vlookup!E201,Volume_Forecast_Data,E$138,FALSE) -> 0
A202: LDNO HV: NHH UMS category D | B202: =VLOOKUP(Vlookup!B202,Volume_Forecast_Data,B$138,FALSE) -> 16.03095696 | E202: =VLOOKUP(Vlookup!E202,Volume_Forecast_Data,E$138,FALSE) -> 0
A203: > LV UMS (Pseudo HH Metered)
A204: LV UMS (Pseudo HH Metered) | B204: =VLOOKUP(Vlookup!B204,Volume_Forecast_Data,B$138,FALSE) -> 11973.63216 | C204: =VLOOKUP(Vlookup!C204,Volume_Forecast_Data,C$138,FALSE) -> 27603.89906 | D204: =VLOOKUP(Vlookup!D204,Volume_Forecast_Data,D$138,FALSE) -> 208157.8331 | E204: =VLOOKUP(Vlookup!E204,Volume_Forecast_Data,E$138,FALSE) -> 0
A205: LDNO LV: LV UMS (Pseudo HH Metered) | B205: =VLOOKUP(Vlookup!B205,Volume_Forecast_Data,B$138,FALSE) -> 0 | C205: =VLOOKUP(Vlookup!C205,Volume_Forecast_Data,C$138,FALSE) -> 0 | D205: =VLOOKUP(Vlookup!D205,Volume_Forecast_Data,D$138,FALSE) -> 0 | E205: =VLOOKUP(Vlookup!E205,Volume_Forecast_Data,E$138,FALSE) -> 0
A206: LDNO HV: LV UMS (Pseudo HH Metered) | B206: =VLOOKUP(Vlookup!B206,Volume_Forecast_Data,B$138,FALSE) -> 0 | C206: =VLOOKUP(Vlookup!C206,Volume_Forecast_Data,C$138,FALSE) -> 0 | D206: =VLOOKUP(Vlookup!D206,Volume_Forecast_Data,D$138,FALSE) -> 0 | E206: =VLOOKUP(Vlookup!E206,Volume_Forecast_Data,E$138,FALSE) -> 0
A207: > LV Generation NHH
A208: LV Generation NHH | B208: =VLOOKUP(Vlookup!B208,Volume_Forecast_Data,B$138,FALSE) -> 444.639 | E208: =VLOOKUP(Vlookup!E208,Volume_Forecast_Data,E$138,FALSE) -> 96
A209: LDNO LV: LV Generation NHH | B209: =VLOOKUP(Vlookup!B209,Volume_Forecast_Data,B$138,FALSE) -> 0 | E209: =VLOOKUP(Vlookup!E209,Volume_Forecast_Data,E$138,FALSE) -> 0
A210: LDNO HV: LV Generation NHH | B210: =VLOOKUP(Vlookup!B210,Volume_Forecast_Data,B$138,FALSE) -> 0 | E210: =VLOOKUP(Vlookup!E210,Volume_Forecast_Data,E$138,FALSE) -> 0
A211: > LV Sub Generation NHH
A212: LV Sub Generation NHH | B212: =VLOOKUP(Vlookup!B212,Volume_Forecast_Data,B$138,FALSE) -> 0 | E212: =VLOOKUP(Vlookup!E212,Volume_Forecast_Data,E$138,FALSE) -> 0
A213: LDNO HV: LV Sub Generation NHH | B213: =VLOOKUP(Vlookup!B213,Volume_Forecast_Data,B$138,FALSE) -> 0 | E213: =VLOOKUP(Vlookup!E213,Volume_Forecast_Data,E$138,FALSE) -> 0
A214: > LV Generation Intermittent
A215: LV Generation Intermittent | B215: =VLOOKUP(Vlookup!B215,Volume_Forecast_Data,B$138,FALSE) -> 46.675 | E215: =VLOOKUP(Vlookup!E215,Volume_Forecast_Data,E$138,FALSE) -> 20 | G215: =VLOOKUP(Vlookup!G215,Volume_Forecast_Data,G$138,FALSE) -> 16.962
A216: LDNO LV: LV Generation Intermittent | B216: =VLOOKUP(Vlookup!B216,Volume_Forecast_Data,B$138,FALSE) -> 0 | E216: =VLOOKUP(Vlookup!E216,Volume_Forecast_Data,E$138,FALSE) -> 0 | G216: =VLOOKUP(Vlookup!G216,Volume_Forecast_Data,G$138,FALSE) -> 0
A217: LDNO HV: LV Generation Intermittent | B217: =VLOOKUP(Vlookup!B217,Volume_Forecast_Data,B$138,FALSE) -> 0 | E217: =VLOOKUP(Vlookup!E217,Volume_Forecast_Data,E$138,FALSE) -> 0 | G217: =VLOOKUP(Vlookup!G217,Volume_Forecast_Data,G$138,FALSE) -> 0
A218: > LV Generation Non-Intermittent
A219: LV Generation Non-Intermittent | B219: =VLOOKUP(Vlookup!B219,Volume_Forecast_Data,B$138,FALSE) -> 231.313 | C219: =VLOOKUP(Vlookup!C219,Volume_Forecast_Data,C$138,FALSE) -> 877.749 | D219: =VLOOKUP(Vlookup!D219,Volume_Forecast_Data,D$138,FALSE) -> 1443.464 | E219: =VLOOKUP(Vlookup!E219,Volume_Forecast_Data,E$138,FALSE) -> 57 | G219: =VLOOKUP(Vlookup!G219,Volume_Forecast_Data,G$138,FALSE) -> 85.2694
A220: LDNO LV: LV Generation Non-Intermittent | B220: =VLOOKUP(Vlookup!B220,Volume_Forecast_Data,B$138,FALSE) -> 0 | C220: =VLOOKUP(Vlookup!C220,Volume_Forecast_Data,C$138,FALSE) -> 0 | D220: =VLOOKUP(Vlookup!D220,Volume_Forecast_Data,D$138,FALSE) -> 0 | E220: =VLOOKUP(Vlookup!E220,Volume_Forecast_Data,E$138,FALSE) -> 0 | G220: =VLOOKUP(Vlookup!G220,Volume_Forecast_Data,G$138,FALSE) -> 0
A221: LDNO HV: LV Generation Non-Intermittent | B221: =VLOOKUP(Vlookup!B221,Volume_Forecast_Data,B$138,FALSE) -> 0 | C221: =VLOOKUP(Vlookup!C221,Volume_Forecast_Data,C$138,FALSE) -> 0 | D221: =VLOOKUP(Vlookup!D221,Volume_Forecast_Data,D$138,FALSE) -> 0 | E221: =VLOOKUP(Vlookup!E221,Volume_Forecast_Data,E$138,FALSE) -> 0 | G221: =VLOOKUP(Vlookup!G221,Volume_Forecast_Data,G$138,FALSE) -> 0
A222: > LV Sub Generation Intermittent
A223: LV Sub Generation Intermittent | B223: =VLOOKUP(Vlookup!B223,Volume_Forecast_Data,B$138,FALSE) -> 0 | E223: =VLOOKUP(Vlookup!E223,Volume_Forecast_Data,E$138,FALSE) -> 0 | G223: =VLOOKUP(Vlookup!G223,Volume_Forecast_Data,G$138,FALSE) -> 0
A224: LDNO HV: LV Sub Generation Intermittent | B224: =VLOOKUP(Vlookup!B224,Volume_Forecast_Data,B$138,FALSE) -> 0 | E224: =VLOOKUP(Vlookup!E224,Volume_Forecast_Data,E$138,FALSE) -> 0 | G224: =VLOOKUP(Vlookup!G224,Volume_Forecast_Data,G$138,FALSE) -> 0
A225: > LV Sub Generation Non-Intermittent
A226: LV Sub Generation Non-Intermittent | B226: =VLOOKUP(Vlookup!B226,Volume_Forecast_Data,B$138,FALSE) -> 0 | C226: =VLOOKUP(Vlookup!C226,Volume_Forecast_Data,C$138,FALSE) -> 0 | D226: =VLOOKUP(Vlookup!D226,Volume_Forecast_Data,D$138,FALSE) -> 0.312 | E226: =VLOOKUP(Vlookup!E226,Volume_Forecast_Data,E$138,FALSE) -> 0 | G226: =VLOOKUP(Vlookup!G226,Volume_Forecast_Data,G$138,FALSE) -> 3.4596
A227: LDNO HV: LV Sub Generation Non-Intermittent | B227: =VLOOKUP(Vlookup!B227,Volume_Forecast_Data,B$138,FALSE) -> 0 | C227: =VLOOKUP(Vlookup!C227,Volume_Forecast_Data,C$138,FALSE) -> 0 | D227: =VLOOKUP(Vlookup!D227,Volume_Forecast_Data,D$138,FALSE) -> 0 | E227: =VLOOKUP(Vlookup!E227,Volume_Forecast_Data,E$138,FALSE) -> 0 | G227: =VLOOKUP(Vlookup!G227,Volume_Forecast_Data,G$138,FALSE) -> 0
A228: > HV Generation Intermittent
A229: HV Generation Intermittent | B229: =VLOOKUP(Vlookup!B229,Volume_Forecast_Data,B$138,FALSE) -> 987.742 | E229: =VLOOKUP(Vlookup!E229,Volume_Forecast_Data,E$138,FALSE) -> 4 | G229: =VLOOKUP(Vlookup!G229,Volume_Forecast_Data,G$138,FALSE) -> 376.0514
A230: LDNO HV: HV Generation Intermittent | B230: =VLOOKUP(Vlookup!B230,Volume_Forecast_Data,B$138,FALSE) -> 0 | E230: =VLOOKUP(Vlookup!E230,Volume_Forecast_Data,E$138,FALSE) -> 0 | G230: =VLOOKUP(Vlookup!G230,Volume_Forecast_Data,G$138,FALSE) -> 0
A231: > HV Generation Non-Intermittent
A232: HV Generation Non-Intermittent | B232: =VLOOKUP(Vlookup!B232,Volume_Forecast_Data,B$138,FALSE) -> 39368.899 | C232: =VLOOKUP(Vlookup!C232,Volume_Forecast_Data,C$138,FALSE) -> 133192.957 | D232: =VLOOKUP(Vlookup!D232,Volume_Forecast_Data,D$138,FALSE) -> 261885.645 | E232: =VLOOKUP(Vlookup!E232,Volume_Forecast_Data,E$138,FALSE) -> 81 | G232: =VLOOKUP(Vlookup!G232,Volume_Forecast_Data,G$138,FALSE) -> 4526.9914
... 94 more rows

Sheet (Y+1)
A5: 1000. Company, charging year, data version
B7: Company | C7: Year | D7: Version
A8: Company, charging year, data version | B8: =VLOOKUP(Vlookup!B8,Forcast_Data,6,FALSE) -> WPD Mid West | C8: =VLOOKUP(Vlookup!C8,Forcast_Data,6,FALSE) -> April 2014 | D8: =VLOOKUP(Vlookup!D8,Forcast_Data,6,FALSE) -> 0
A10: 1010. Financial and general assumptions
A12: Sources: financial assumptions; calendar; network model.
A13: These financial assumptions determine the annuity rate applied to convert the asset values of the network model into an annual charge.
B14: Rate of return | C14: Annualisation period (years) | D14: Annuity proportion for customer-contributed assets | E14: Power factor | F14: Days in the charging period
A15: Financial and general assumptions | B15: =VLOOKUP(Vlookup!B15,Forcast_Data,6,FALSE) -> 0.056 | C15: =VLOOKUP(Vlookup!C15,Forcast_Data,6,FALSE) -> 40 | E15: =VLOOKUP(Vlookup!E15,Forcast_Data,6,FALSE) -> 0.95 | F15: =VLOOKUP(Vlookup!F15,Forcast_Data,6,FALSE) -> 365
A17: 1017. Diversity allowance between top and bottom of network level
A19: Source: operational data analysis and/or network model.
A20: The diversity figure against GSP is the diversity between GSP Group (the whole system) and individual GSPs.
A21: The diversity figure against 132kV is the diversity between GSPs (the top of the 132kV network) and 132kV/EHV bulk supply points (the bottom of the 132kV network).
A22: The diversity figure against EHV is the diversity between 132kV/EHV bulk supply points (the top of the EHV network) and EHV/HV primary substations (the bottom of the EHV network).
A23: The diversity figure against HV is the diversity between EHV/HV primary substations (the top of the HV network) and HV/LV substations (the bottom of the HV network).
B24: Diversity allowance between top and bottom of network level
A25: GSPs | B25: =VLOOKUP(Vlookup!B25,Forcast_Data,6,FALSE) -> 0.05649040832
A26: 132kV | B26: =VLOOKUP(Vlookup!B26,Forcast_Data,6,FALSE) -> 0.0255686825
A27: 132kV/EHV
A28: EHV | B28: =VLOOKUP(Vlookup!B28,Forcast_Data,6,FALSE) -> 0.02663159667
A29: EHV/HV
A30: HV | B30: =VLOOKUP(Vlookup!B30,Forcast_Data,6,FALSE) -> 0.34
A31: HV/LV
A32: LV circuits
A34: 1018. Proportion of relevant load going through 132kV/HV direct transformation
B36: 132kV/HV
A37: EHV/HV | B37: =VLOOKUP(Vlookup!B37,Forcast_Data,6,FALSE) -> 0.6925656292
A39: 1019. Network model GSP peak demand (MW)
B41: Network model GSP peak demand (MW)
A42: Network model GSP peak demand (MW) | B42: =VLOOKUP(Vlookup!B42,Forcast_Data,6,FALSE) -> 500
A44: 1020. Gross asset cost by network level (£)
B46: Gross assets £
A47: 132kV | B47: =VLOOKUP(Vlookup!B47,Forcast_Data,6,FALSE) -> 69289826
A48: 132kV/EHV | B48: =VLOOKUP(Vlookup!B48,Forcast_Data,6,FALSE) -> 10805721
A49: EHV | B49: =VLOOKUP(Vlookup!B49,Forcast_Data,6,FALSE) -> 12445869
A50: EHV/HV | B50: =VLOOKUP(Vlookup!B50,Forcast_Data,6,FALSE) -> 21265349
A51: 132kV/HV | B51: =VLOOKUP(Vlookup!B51,Forcast_Data,6,FALSE) -> 19659026
A52: HV | B52: =VLOOKUP(Vlookup!B52,Forcast_Data,6,FALSE) -> 108538973
A53: HV/LV | B53: =VLOOKUP(Vlookup!B53,Forcast_Data,6,FALSE) -> 68061984
A54: LV circuits | B54: =VLOOKUP(Vlookup!B54,Forcast_Data,6,FALSE) -> 94672478
A56: 1022. LV service model asset cost (£)
B58: LV service model 1 | C58: LV service model 2 | D58: LV service model 3 | E58: LV service model 4 | F58: LV service model 5 | G58: LV service model 6 | H58: LV service model 7 | I58: LV service model 8
A59: LV service model asset cost (£) | B59: =VLOOKUP(Vlookup!B59,Forcast_Data,6,FALSE) -> 4689.776689 | C59: =VLOOKUP(Vlookup!C59,Forcast_Data,6,FALSE) -> 578.9437507 | D59: =VLOOKUP(Vlookup!D59,Forcast_Data,6,FALSE) -> 683.874895 | E59: =VLOOKUP(Vlookup!E59,Forcast_Data,6,FALSE) -> 509.4741107 | F59: =VLOOKUP(Vlookup!F59,Forcast_Data,6,FALSE) -> 1169.036632 | G59: =VLOOKUP(Vlookup!G59,Forcast_Data,6,FALSE) -> 858.6034748 | H59: =VLOOKUP(Vlookup!H59,Forcast_Data,6,FALSE) -> 0 | I59: =VLOOKUP(Vlookup!I59,Forcast_Data,6,FALSE) -> 450.314275
A61: 1023. HV service model asset cost (£)
B63: HV service model 1 | C63: HV service model 2 | D63: HV service model 3 | E63: HV service model 4 | F63: HV service model 5
A64: HV service model asset cost (£) | B64: =VLOOKUP(Vlookup!B64,Forcast_Data,6,FALSE) -> 8748.377769 | C64: =VLOOKUP(Vlookup!C64,Forcast_Data,6,FALSE) -> 4299.3136 | D64: =VLOOKUP(Vlookup!D64,Forcast_Data,6,FALSE) -> 0 | E64: =VLOOKUP(Vlookup!E64,Forcast_Data,6,FALSE) -> - | F64: =VLOOKUP(Vlookup!F64,Forcast_Data,6,FALSE) -> -
A66: 1025. Matrix of applicability of LV service models to tariffs with fixed charges
B67: 10 | C67: =B67+1 -> 11 | D67: =C67+1 -> 12 | E67: 13 | F67: 14 | G67: 15 | H67: 16 | I67: 17
B68: LV service model 1 | C68: LV service model 2 | D68: LV service model 3 | E68: LV service model 4 | F68: LV service model 5 | G68: LV service model 6 | H68: LV service model 7 | I68: LV service model 8
A69: Domestic Unrestricted | B69: =VLOOKUP($A69,'Mat of App'!$B$7:$AP$38,B$67,FALSE) -> 0.05 | C69: =VLOOKUP($A69,'Mat of App'!$B$7:$AP$38,C$67,FALSE) -> 0 | D69: =VLOOKUP($A69,'Mat of App'!$B$7:$AP$38,D$67,FALSE) -> 0 | E69: =VLOOKUP($A69,'Mat of App'!$B$7:$AP$38,E$67,FALSE) -> 0 | F69: =VLOOKUP($A69,'Mat of App'!$B$7:$AP$38,F$67,FALSE) -> 0 | G69: =VLOOKUP($A69,'Mat of App'!$B$7:$AP$38,G$67,FALSE) -> 0 | H69: =VLOOKUP($A69,'Mat of App'!$B$7:$AP$38,H$67,FALSE) -> 0 | I69: =VLOOKUP($A69,'Mat of App'!$B$7:$AP$38,I$67,FALSE) -> 0
A70: Domestic Two Rate | B70: =VLOOKUP($A70,'Mat of App'!$B$7:$AP$38,B$67,FALSE) -> 0.05 | C70: =VLOOKUP($A70,'Mat of App'!$B$7:$AP$38,C$67,FALSE) -> 0 | D70: =VLOOKUP($A70,'Mat of App'!$B$7:$AP$38,D$67,FALSE) -> 0 | E70: =VLOOKUP($A70,'Mat of App'!$B$7:$AP$38,E$67,FALSE) -> 0 | F70: =VLOOKUP($A70,'Mat of App'!$B$7:$AP$38,F$67,FALSE) -> 0 | G70: =VLOOKUP($A70,'Mat of App'!$B$7:$AP$38,G$67,FALSE) -> 0 | H70: =VLOOKUP($A70,'Mat of App'!$B$7:$AP$38,H$67,FALSE) -> 0 | I70: =VLOOKUP($A70,'Mat of App'!$B$7:$AP$38,I$67,FALSE) -> 0
A71: Small Non Domestic Unrestricted | B71: =VLOOKUP($A71,'Mat of App'!$B$7:$AP$38,B$67,FALSE) -> 0 | C71: =VLOOKUP($A71,'Mat of App'!$B$7:$AP$38,C$67,FALSE) -> 1 | D71: =VLOOKUP($A71,'Mat of App'!$B$7:$AP$38,D$67,FALSE) -> 0 | E71: =VLOOKUP($A71,'Mat of App'!$B$7:$AP$38,E$67,FALSE) -> 0 | F71: =VLOOKUP($A71,'Mat of App'!$B$7:$AP$38,F$67,FALSE) -> 0 | G71: =VLOOKUP($A71,'Mat of App'!$B$7:$AP$38,G$67,FALSE) -> 0 | H71: =VLOOKUP($A71,'Mat of App'!$B$7:$AP$38,H$67,FALSE) -> 0 | I71: =VLOOKUP($A71,'Mat of App'!$B$7:$AP$38,I$67,FALSE) -> 0
A72: Small Non Domestic Two Rate | B72: =VLOOKUP($A72,'Mat of App'!$B$7:$AP$38,B$67,FALSE) -> 0 | C72: =VLOOKUP($A72,'Mat of App'!$B$7:$AP$38,C$67,FALSE) -> 1 | D72: =VLOOKUP($A72,'Mat of App'!$B$7:$AP$38,D$67,FALSE) -> 0 | E72: =VLOOKUP($A72,'Mat of App'!$B$7:$AP$38,E$67,FALSE) -> 0 | F72: =VLOOKUP($A72,'Mat of App'!$B$7:$AP$38,F$67,FALSE) -> 0 | G72: =VLOOKUP($A72,'Mat of App'!$B$7:$AP$38,G$67,FALSE) -> 0 | H72: =VLOOKUP($A72,'Mat of App'!$B$7:$AP$38,H$67,FALSE) -> 0 | I72: =VLOOKUP($A72,'Mat of App'!$B$7:$AP$38,I$67,FALSE) -> 0
A73: LV Medium Non-Domestic | B73: =VLOOKUP($A73,'Mat of App'!$B$7:$AP$38,B$67,FALSE) -> 0 | C73: =VLOOKUP($A73,'Mat of App'!$B$7:$AP$38,C$67,FALSE) -> 0 | D73: =VLOOKUP($A73,'Mat of App'!$B$7:$AP$38,D$67,FALSE) -> 1 | E73: =VLOOKUP($A73,'Mat of App'!$B$7:$AP$38,E$67,FALSE) -> 0 | F73: =VLOOKUP($A73,'Mat of App'!$B$7:$AP$38,F$67,FALSE) -> 0 | G73: =VLOOKUP($A73,'Mat of App'!$B$7:$AP$38,G$67,FALSE) -> 0 | H73: =VLOOKUP($A73,'Mat of App'!$B$7:$AP$38,H$67,FALSE) -> 0 | I73: =VLOOKUP($A73,'Mat of App'!$B$7:$AP$38,I$67,FALSE) -> 0
A74: LV Sub Medium Non-Domestic | B74: =VLOOKUP($A74,'Mat of App'!$B$7:$AP$38,B$67,FALSE) -> 0 | C74: =VLOOKUP($A74,'Mat of App'!$B$7:$AP$38,C$67,FALSE) -> 0 | D74: =VLOOKUP($A74,'Mat of App'!$B$7:$AP$38,D$67,FALSE) -> 0 | E74: =VLOOKUP($A74,'Mat of App'!$B$7:$AP$38,E$67,FALSE) -> 1 | F74: =VLOOKUP($A74,'Mat of App'!$B$7:$AP$38,F$67,FALSE) -> 0 | G74: =VLOOKUP($A74,'Mat of App'!$B$7:$AP$38,G$67,FALSE) -> 0 | H74: =VLOOKUP($A74,'Mat of App'!$B$7:$AP$38,H$67,FALSE) -> 0 | I74: =VLOOKUP($A74,'Mat of App'!$B$7:$AP$38,I$67,FALSE) -> 0
A75: LV HH Metered | B75: =VLOOKUP($A75,'Mat of App'!$B$7:$AP$38,B$67,FALSE) -> 0 | C75: =VLOOKUP($A75,'Mat of App'!$B$7:$AP$38,C$67,FALSE) -> 0 | D75: =VLOOKUP($A75,'Mat of App'!$B$7:$AP$38,D$67,FALSE) -> 0 | E75: =VLOOKUP($A75,'Mat of App'!$B$7:$AP$38,E$67,FALSE) -> 0 | F75: =VLOOKUP($A75,'Mat of App'!$B$7:$AP$38,F$67,FALSE) -> 1 | G75: =VLOOKUP($A75,'Mat of App'!$B$7:$AP$38,G$67,FALSE) -> 0 | H75: =VLOOKUP($A75,'Mat of App'!$B$7:$AP$38,H$67,FALSE) -> 0 | I75: =VLOOKUP($A75,'Mat of App'!$B$7:$AP$38,I$67,FALSE) -> 0
A76: LV Sub HH Metered | B76: =VLOOKUP($A76,'Mat of App'!$B$7:$AP$38,B$67,FALSE) -> 0 | C76: =VLOOKUP($A76,'Mat of App'!$B$7:$AP$38,C$67,FALSE) -> 0 | D76: =VLOOKUP($A76,'Mat of App'!$B$7:$AP$38,D$67,FALSE) -> 0 | E76: =VLOOKUP($A76,'Mat of App'!$B$7:$AP$38,E$67,FALSE) -> 0 | F76: =VLOOKUP($A76,'Mat of App'!$B$7:$AP$38,F$67,FALSE) -> 0 | G76: =VLOOKUP($A76,'Mat of App'!$B$7:$AP$38,G$67,FALSE) -> 1 | H76: =VLOOKUP($A76,'Mat of App'!$B$7:$AP$38,H$67,FALSE) -> 0 | I76: =VLOOKUP($A76,'Mat of App'!$B$7:$AP$38,I$67,FALSE) -> 0
A77: LV Generation NHH | B77: =VLOOKUP($A77,'Mat of App'!$B$7:$AP$38,B$67,FALSE) -> 0 | C77: =VLOOKUP($A77,'Mat of App'!$B$7:$AP$38,C$67,FALSE) -> 0 | D77: =VLOOKUP($A77,'Mat of App'!$B$7:$AP$38,D$67,FALSE) -> 0 | E77: =VLOOKUP($A77,'Mat of App'!$B$7:$AP$38,E$67,FALSE) -> 0 | F77: =VLOOKUP($A77,'Mat of App'!$B$7:$AP$38,F$67,FALSE) -> 0 | G77: =VLOOKUP($A77,'Mat of App'!$B$7:$AP$38,G$67,FALSE) -> 0 | H77: =VLOOKUP($A77,'Mat of App'!$B$7:$AP$38,H$67,FALSE) -> 1 | I77: =VLOOKUP($A77,'Mat of App'!$B$7:$AP$38,I$67,FALSE) -> 0
A78: LV Sub Generation NHH | B78: =VLOOKUP($A78,'Mat of App'!$B$7:$AP$38,B$67,FALSE) -> 0 | C78: =VLOOKUP($A78,'Mat of App'!$B$7:$AP$38,C$67,FALSE) -> 0 | D78: =VLOOKUP($A78,'Mat of App'!$B$7:$AP$38,D$67,FALSE) -> 0 | E78: =VLOOKUP($A78,'Mat of App'!$B$7:$AP$38,E$67,FALSE) -> 0 | F78: =VLOOKUP($A78,'Mat of App'!$B$7:$AP$38,F$67,FALSE) -> 0 | G78: =VLOOKUP($A78,'Mat of App'!$B$7:$AP$38,G$67,FALSE) -> 0 | H78: =VLOOKUP($A78,'Mat of App'!$B$7:$AP$38,H$67,FALSE) -> 1 | I78: =VLOOKUP($A78,'Mat of App'!$B$7:$AP$38,I$67,FALSE) -> 0
A79: LV Generation Intermittent | B79: =VLOOKUP($A79,'Mat of App'!$B$7:$AP$38,B$67,FALSE) -> 0 | C79: =VLOOKUP($A79,'Mat of App'!$B$7:$AP$38,C$67,FALSE) -> 0 | D79: =VLOOKUP($A79,'Mat of App'!$B$7:$AP$38,D$67,FALSE) -> 0 | E79: =VLOOKUP($A79,'Mat of App'!$B$7:$AP$38,E$67,FALSE) -> 0 | F79: =VLOOKUP($A79,'Mat of App'!$B$7:$AP$38,F$67,FALSE) -> 0 | G79: =VLOOKUP($A79,'Mat of App'!$B$7:$AP$38,G$67,FALSE) -> 0 | H79: =VLOOKUP($A79,'Mat of App'!$B$7:$AP$38,H$67,FALSE) -> 1 | I79: =VLOOKUP($A79,'Mat of App'!$B$7:$AP$38,I$67,FALSE) -> 0
A80: LV Generation Non-Intermittent | B80: =VLOOKUP($A80,'Mat of App'!$B$7:$AP$38,B$67,FALSE) -> 0 | C80: =VLOOKUP($A80,'Mat of App'!$B$7:$AP$38,C$67,FALSE) -> 0 | D80: =VLOOKUP($A80,'Mat of App'!$B$7:$AP$38,D$67,FALSE) -> 0 | E80: =VLOOKUP($A80,'Mat of App'!$B$7:$AP$38,E$67,FALSE) -> 0 | F80: =VLOOKUP($A80,'Mat of App'!$B$7:$AP$38,F$67,FALSE) -> 0 | G80: =VLOOKUP($A80,'Mat of App'!$B$7:$AP$38,G$67,FALSE) -> 0 | H80: =VLOOKUP($A80,'Mat of App'!$B$7:$AP$38,H$67,FALSE) -> 0 | I80: =VLOOKUP($A80,'Mat of App'!$B$7:$AP$38,I$67,FALSE) -> 0
A81: LV Sub Generation Intermittent | B81: =VLOOKUP($A81,'Mat of App'!$B$7:$AP$38,B$67,FALSE) -> 0 | C81: =VLOOKUP($A81,'Mat of App'!$B$7:$AP$38,C$67,FALSE) -> 0 | D81: =VLOOKUP($A81,'Mat of App'!$B$7:$AP$38,D$67,FALSE) -> 0 | E81: =VLOOKUP($A81,'Mat of App'!$B$7:$AP$38,E$67,FALSE) -> 0 | F81: =VLOOKUP($A81,'Mat of App'!$B$7:$AP$38,F$67,FALSE) -> 0 | G81: =VLOOKUP($A81,'Mat of App'!$B$7:$AP$38,G$67,FALSE) -> 0 | H81: =VLOOKUP($A81,'Mat of App'!$B$7:$AP$38,H$67,FALSE) -> 0 | I81: =VLOOKUP($A81,'Mat of App'!$B$7:$AP$38,I$67,FALSE) -> 0
A82: LV Sub Generation Non-Intermittent | B82: =VLOOKUP($A82,'Mat of App'!$B$7:$AP$38,B$67,FALSE) -> 0 | C82: =VLOOKUP($A82,'Mat of App'!$B$7:$AP$38,C$67,FALSE) -> 0 | D82: =VLOOKUP($A82,'Mat of App'!$B$7:$AP$38,D$67,FALSE) -> 0 | E82: =VLOOKUP($A82,'Mat of App'!$B$7:$AP$38,E$67,FALSE) -> 0 | F82: =VLOOKUP($A82,'Mat of App'!$B$7:$AP$38,F$67,FALSE) -> 0 | G82: =VLOOKUP($A82,'Mat of App'!$B$7:$AP$38,G$67,FALSE) -> 0 | H82: =VLOOKUP($A82,'Mat of App'!$B$7:$AP$38,H$67,FALSE) -> 0 | I82: =VLOOKUP($A82,'Mat of App'!$B$7:$AP$38,I$67,FALSE) -> 0
A84: 1026. Matrix of applicability of LV service models to unmetered tariffs
A86: Source: service models
A87: Proportion of service model involved in connecting load of 1 MWh/year
B88: LV service model 1 | C88: LV service model 2 | D88: LV service model 3 | E88: LV service model 4 | F88: LV service model 5 | G88: LV service model 6 | H88: LV service model 7 | I88: LV service model 8
A89: All LV unmetered tariffs | B89: =VLOOKUP($A89,'Mat of App'!$B$7:$AP$38,B$67,FALSE) -> 0 | C89: =VLOOKUP($A89,'Mat of App'!$B$7:$AP$38,C$67,FALSE) -> 0 | D89: =VLOOKUP($A89,'Mat of App'!$B$7:$AP$38,D$67,FALSE) -> 0 | E89: =VLOOKUP($A89,'Mat of App'!$B$7:$AP$38,E$67,FALSE) -> 0 | F89: =VLOOKUP($A89,'Mat of App'!$B$7:$AP$38,F$67,FALSE) -> 0 | G89: =VLOOKUP($A89,'Mat of App'!$B$7:$AP$38,G$67,FALSE) -> 0 | H89: =VLOOKUP($A89,'Mat of App'!$B$7:$AP$38,H$67,FALSE) -> 0 | I89: =VLOOKUP($A89,'Mat of App'!$B$7:$AP$38,I$67,FALSE) -> 0.488
A91: 1028. Matrix of applicability of HV service models to tariffs with fixed charges
B92: 7 | C92: =B92+1 -> 8 | D92: =C92+1 -> 9 | E92: 10 | F92: 11
B93: HV service model 1 | C93: HV service model 2 | D93: HV service model 3 | E93: HV service model 4 | F93: HV service model 5
A94: HV Medium Non-Domestic | B94: =VLOOKUP($A94,'Mat of App'!$B$7:$AP$38,B$92,FALSE) -> 1 | C94: =VLOOKUP($A94,'Mat of App'!$B$7:$AP$38,C$92,FALSE) -> 0 | D94: =VLOOKUP($A94,'Mat of App'!$B$7:$AP$38,D$92,FALSE) -> 0 | E94: =VLOOKUP($A94,'Mat of App'!$B$7:$AP$38,E$92,FALSE) -> 0 | F94: =VLOOKUP($A94,'Mat of App'!$B$7:$AP$38,F$92,FALSE) -> 0
A95: HV HH Metered | B95: =VLOOKUP($A95,'Mat of App'!$B$7:$AP$38,B$92,FALSE) -> 1 | C95: =VLOOKUP($A95,'Mat of App'!$B$7:$AP$38,C$92,FALSE) -> 0 | D95: =VLOOKUP($A95,'Mat of App'!$B$7:$AP$38,D$92,FALSE) -> 0 | E95: =VLOOKUP($A95,'Mat of App'!$B$7:$AP$38,E$92,FALSE) -> 0 | F95: =VLOOKUP($A95,'Mat of App'!$B$7:$AP$38,F$92,FALSE) -> 0
A96: HV Sub HH Metered | B96: =VLOOKUP($A96,'Mat of App'!$B$7:$AP$38,B$92,FALSE) -> 1 | C96: =VLOOKUP($A96,'Mat of App'!$B$7:$AP$38,C$92,FALSE) -> 0 | D96: =VLOOKUP($A96,'Mat of App'!$B$7:$AP$38,D$92,FALSE) -> 0 | E96: =VLOOKUP($A96,'Mat of App'!$B$7:$AP$38,E$92,FALSE) -> 0 | F96: =VLOOKUP($A96,'Mat of App'!$B$7:$AP$38,F$92,FALSE) -> 0
A97: HV Generation Intermittent | B97: =VLOOKUP($A97,'Mat of App'!$B$7:$AP$38,B$92,FALSE) -> 0 | C97: =VLOOKUP($A97,'Mat of App'!$B$7:$AP$38,C$92,FALSE) -> 1 | D97: =VLOOKUP($A97,'Mat of App'!$B$7:$AP$38,D$92,FALSE) -> 0 | E97: =VLOOKUP($A97,'Mat of App'!$B$7:$AP$38,E$92,FALSE) -> 0 | F97: =VLOOKUP($A97,'Mat of App'!$B$7:$AP$38,F$92,FALSE) -> 0
A98: HV Generation Non-Intermittent | B98: =VLOOKUP($A98,'Mat of App'!$B$7:$AP$38,B$92,FALSE) -> 0 | C98: =VLOOKUP($A98,'Mat of App'!$B$7:$AP$38,C$92,FALSE) -> 1 | D98: =VLOOKUP($A98,'Mat of App'!$B$7:$AP$38,D$92,FALSE) -> 0 | E98: =VLOOKUP($A98,'Mat of App'!$B$7:$AP$38,E$92,FALSE) -> 0 | F98: =VLOOKUP($A98,'Mat of App'!$B$7:$AP$38,F$92,FALSE) -> 0
A99: HV Sub Generation Non-Intermittent | B99: =VLOOKUP($A99,'Mat of App'!$B$7:$AP$38,B$92,FALSE) -> 0 | C99: =VLOOKUP($A99,'Mat of App'!$B$7:$AP$38,C$92,FALSE) -> 1 | D99: =VLOOKUP($A99,'Mat of App'!$B$7:$AP$38,D$92,FALSE) -> 0 | E99: =VLOOKUP($A99,'Mat of App'!$B$7:$AP$38,E$92,FALSE) -> 0 | F99: =VLOOKUP($A99,'Mat of App'!$B$7:$AP$38,F$92,FALSE) -> 0
A100: HV Sub Generation Intermittent | B100: =VLOOKUP($A100,'Mat of App'!$B$7:$AP$38,B$92,FALSE) -> 0 | C100: =VLOOKUP($A100,'Mat of App'!$B$7:$AP$38,C$92,FALSE) -> 1 | D100: =VLOOKUP($A100,'Mat of App'!$B$7:$AP$38,D$92,FALSE) -> 0 | E100: =VLOOKUP($A100,'Mat of App'!$B$7:$AP$38,E$92,FALSE) -> 0 | F100: =VLOOKUP($A100,'Mat of App'!$B$7:$AP$38,F$92,FALSE) -> 0
A102: 1032. Loss adjustment factors to transmission
A104: Source: losses model or loss adjustment factors at time of system peak.
B105: 132kV | C105: 132kV/EHV | D105: EHV | E105: EHV/HV | F105: HV | G105: HV/LV | H105: LV circuits
A106: Loss adjustment factor | B106: =VLOOKUP(Vlookup!B106,Forcast_Data,6,FALSE) -> 1.002 | C106: =VLOOKUP(Vlookup!C106,Forcast_Data,6,FALSE) -> 1.003 | D106: =VLOOKUP(Vlookup!D106,Forcast_Data,6,FALSE) -> 1.006 | E106: =VLOOKUP(Vlookup!E106,Forcast_Data,6,FALSE) -> 1.027 | F106: =VLOOKUP(Vlookup!F106,Forcast_Data,6,FALSE) -> 1.044 | G106: =VLOOKUP(Vlookup!G106,Forcast_Data,6,FALSE) -> 1.051 | H106: =VLOOKUP(Vlookup!H106,Forcast_Data,6,FALSE) -> 1.077
A108: 1037. Embedded network (LDNO) discounts
A110: Source: separate price control disaggregation model.
B111: No discount | C111: LDNO LV: LV user | D111: LDNO HV: LV user | E111: LDNO HV: LV sub user | F111: LDNO HV: HV user
A112: LDNO discount | C112: =VLOOKUP(Vlookup!C112,Forcast_Data,6,FALSE) -> 0.3088318356 | D112: =VLOOKUP(Vlookup!D112,Forcast_Data,6,FALSE) -> 0.500779158 | E112: =VLOOKUP(Vlookup!E112,Forcast_Data,6,FALSE) -> 0.2542804506 | F112: =VLOOKUP(Vlookup!F112,Forcast_Data,6,FALSE) -> 0.1522859741
A114: 1041. Load profile data for demand users
A116: Source: load data analysis.
B117: Coincidence factor | C117: Load factor
A118: Domestic Unrestricted | B118: =VLOOKUP(Vlookup!B118,Forcast_Data,6,FALSE) -> 0.9172510752 | C118: =VLOOKUP(Vlookup!C118,Forcast_Data,6,FALSE) -> 0.4114348134
A119: Domestic Two Rate | B119: =VLOOKUP(Vlookup!B119,Forcast_Data,6,FALSE) -> 0.4008018177 | C119: =VLOOKUP(Vlookup!C119,Forcast_Data,6,FALSE) -> 0.2556052059
A120: Domestic Off Peak (related MPAN) | C120: =VLOOKUP(Vlookup!C120,Forcast_Data,6,FALSE) -> 0.1559078077
A121: Small Non Domestic Unrestricted | B121: =VLOOKUP(Vlookup!B121,Forcast_Data,6,FALSE) -> 0.6200806889 | C121: =VLOOKUP(Vlookup!C121,Forcast_Data,6,FALSE) -> 0.3524542035
A122: Small Non Domestic Two Rate | B122: =VLOOKUP(Vlookup!B122,Forcast_Data,6,FALSE) -> 0.6187554381 | C122: =VLOOKUP(Vlookup!C122,Forcast_Data,6,FALSE) -> 0.4306838132
A123: Small Non Domestic Off Peak (related MPAN) | C123: =VLOOKUP(Vlookup!C123,Forcast_Data,6,FALSE) -> 0.1868684712
A124: LV Medium Non-Domestic | B124: =VLOOKUP(Vlookup!B124,Forcast_Data,6,FALSE) -> 0.8048027574 | C124: =VLOOKUP(Vlookup!C124,Forcast_Data,6,FALSE) -> 0.4920997994
A125: LV Sub Medium Non-Domestic | B125: =VLOOKUP(Vlookup!B125,Forcast_Data,6,FALSE) -> 0.8048027574 | C125: =VLOOKUP(Vlookup!C125,Forcast_Data,6,FALSE) -> 0.4920997994
A126: HV Medium Non-Domestic | B126: =VLOOKUP(Vlookup!B126,Forcast_Data,6,FALSE) -> 0.6108164218 | C126: =VLOOKUP(Vlookup!C126,Forcast_Data,6,FALSE) -> 0.4220141332
A127: LV HH Metered | B127: =VLOOKUP(Vlookup!B127,Forcast_Data,6,FALSE) -> 0.7619514042 | C127: =VLOOKUP(Vlookup!C127,Forcast_Data,6,FALSE) -> 0.5192642925
A128: LV Sub HH Metered | B128: =VLOOKUP(Vlookup!B128,Forcast_Data,6,FALSE) -> 0.7619514042 | C128: =VLOOKUP(Vlookup!C128,Forcast_Data,6,FALSE) -> 0.5192642925
A129: HV HH Metered | B129: =VLOOKUP(Vlookup!B129,Forcast_Data,6,FALSE) -> 0.7725944525 | C129: =VLOOKUP(Vlookup!C129,Forcast_Data,6,FALSE) -> 0.6437861665
A130: HV Sub HH Metered | B130: =VLOOKUP(Vlookup!B130,Forcast_Data,6,FALSE) -> 0.7725944525 | C130: =VLOOKUP(Vlookup!C130,Forcast_Data,6,FALSE) -> 0.6437861665
A131: NHH UMS category A | B131: =VLOOKUP(Vlookup!B131,Forcast_Data,6,FALSE) -> 1 | C131: =VLOOKUP(Vlookup!C131,Forcast_Data,6,FALSE) -> 1
A132: NHH UMS category B | B132: =VLOOKUP(Vlookup!B132,Forcast_Data,6,FALSE) -> 1 | C132: =VLOOKUP(Vlookup!C132,Forcast_Data,6,FALSE) -> 0.4736829452
A133: NHH UMS category C | B133: =VLOOKUP(Vlookup!B133,Forcast_Data,6,FALSE) -> 1 | C133: =VLOOKUP(Vlookup!C133,Forcast_Data,6,FALSE) -> 0.258
A134: NHH UMS category D | B134: =VLOOKUP(Vlookup!B134,Forcast_Data,6,FALSE) -> 0.06413333333 | C134: =VLOOKUP(Vlookup!C134,Forcast_Data,6,FALSE) -> 0.553
A135: LV UMS (Pseudo HH Metered) | B135: =VLOOKUP(Vlookup!B135,Forcast_Data,6,FALSE) -> 0.9938755871 | C135: =VLOOKUP(Vlookup!C135,Forcast_Data,6,FALSE) -> 0.4877395704
A137: 1053. Volume forecasts for the charging year
B138: 10 | C138: 11 | D138: 12 | E138: 13 | F138: 14 | G138: 15
A139: Source: forecast.
A140: Please include MPAN counts for tariffs with no fixed charge (e.g. off-peak tariffs),
A141: but exclude MPANs on tariffs with a fixed charge that are not subject to a fixed charge due to a site grouping arrangement.
B142: Rate 1 units (MWh) | C142: Rate 2 units (MWh) | D142: Rate 3 units (MWh) | E142: MPANs | F142: Import capacity (kVA) | G142: Reactive power units (MVArh)
A143: > Domestic Unrestricted
A144: Domestic Unrestricted | B144: =VLOOKUP(Vlookup!B144,Volume_Forecast_Data,B$138,FALSE) -> 7116370.553 | E144: =VLOOKUP(Vlookup!E144,Volume_Forecast_Data,E$138,FALSE) -> 1941929.02
A145: LDNO LV: Domestic Unrestricted | B145: =VLOOKUP(Vlookup!B145,Volume_Forecast_Data,B$138,FALSE) -> 6816.25692 | E145: =VLOOKUP(Vlookup!E145,Volume_Forecast_Data,E$138,FALSE) -> 4297.55
A146: LDNO HV: Domestic Unrestricted | B146: =VLOOKUP(Vlookup!B146,Volume_Forecast_Data,B$138,FALSE) -> 21257.99775 | E146: =VLOOKUP(Vlookup!E146,Volume_Forecast_Data,E$138,FALSE) -> 10024.25
A147: > Domestic Two Rate
A148: Domestic Two Rate | B148: =VLOOKUP(Vlookup!B148,Volume_Forecast_Data,B$138,FALSE) -> 1020493.327 | C148: =VLOOKUP(Vlookup!C148,Volume_Forecast_Data,C$138,FALSE) -> 763176.39 | E148: =VLOOKUP(Vlookup!E148,Volume_Forecast_Data,E$138,FALSE) -> 317764.18
A149: LDNO LV: Domestic Two Rate | B149: =VLOOKUP(Vlookup!B149,Volume_Forecast_Data,B$138,FALSE) -> 265.39425 | C149: =VLOOKUP(Vlookup!C149,Volume_Forecast_Data,C$138,FALSE) -> 155.35278 | E149: =VLOOKUP(Vlookup!E149,Volume_Forecast_Data,E$138,FALSE) -> 168.67
A150: LDNO HV: Domestic Two Rate | B150: =VLOOKUP(Vlookup!B150,Volume_Forecast_Data,B$138,FALSE) -> 383.00229 | C150: =VLOOKUP(Vlookup!C150,Volume_Forecast_Data,C$138,FALSE) -> 354.86253 | E150: =VLOOKUP(Vlookup!E150,Volume_Forecast_Data,E$138,FALSE) -> 267.65
A151: > Domestic Off Peak (related MPAN)
A152: Domestic Off Peak (related MPAN) | B152: =VLOOKUP(Vlookup!B152,Volume_Forecast_Data,B$138,FALSE) -> 37403.21577 | E152: =VLOOKUP(Vlookup!E152,Volume_Forecast_Data,E$138,FALSE) -> 0
A153: LDNO LV: Domestic Off Peak (related MPAN) | B153: =VLOOKUP(Vlookup!B153,Volume_Forecast_Data,B$138,FALSE) -> 0 | E153: =VLOOKUP(Vlookup!E153,Volume_Forecast_Data,E$138,FALSE) -> 0
A154: LDNO HV: Domestic Off Peak (related MPAN) | B154: =VLOOKUP(Vlookup!B154,Volume_Forecast_Data,B$138,FALSE) -> 0 | E154: =VLOOKUP(Vlookup!E154,Volume_Forecast_Data,E$138,FALSE) -> 0
A155: > Small Non Domestic Unrestricted
A156: Small Non Domestic Unrestricted | B156: =VLOOKUP(Vlookup!B156,Volume_Forecast_Data,B$138,FALSE) -> 1650989.107 | E156: =VLOOKUP(Vlookup!E156,Volume_Forecast_Data,E$138,FALSE) -> 134250.21
A157: LDNO LV: Small Non Domestic Unrestricted | B157: =VLOOKUP(Vlookup!B157,Volume_Forecast_Data,B$138,FALSE) -> 650.47059 | E157: =VLOOKUP(Vlookup!E157,Volume_Forecast_Data,E$138,FALSE) -> 105.04
A158: LDNO HV: Small Non Domestic Unrestricted | B158: =VLOOKUP(Vlookup!B158,Volume_Forecast_Data,B$138,FALSE) -> 6349.48875 | E158: =VLOOKUP(Vlookup!E158,Volume_Forecast_Data,E$138,FALSE) -> 388.85
A159: > Small Non Domestic Two Rate
A160: Small Non Domestic Two Rate | B160: =VLOOKUP(Vlookup!B160,Volume_Forecast_Data,B$138,FALSE) -> 467823.9942 | C160: =VLOOKUP(Vlookup!C160,Volume_Forecast_Data,C$138,FALSE) -> 212540.8429 | E160: =VLOOKUP(Vlookup!E160,Volume_Forecast_Data,E$138,FALSE) -> 32496.75
A161: LDNO LV: Small Non Domestic Two Rate | B161: =VLOOKUP(Vlookup!B161,Volume_Forecast_Data,B$138,FALSE) -> 318.59685 | C161: =VLOOKUP(Vlookup!C161,Volume_Forecast_Data,C$138,FALSE) -> 93.77775 | E161: =VLOOKUP(Vlookup!E161,Volume_Forecast_Data,E$138,FALSE) -> 9.09
A162: LDNO HV: Small Non Domestic Two Rate | B162: =VLOOKUP(Vlookup!B162,Volume_Forecast_Data,B$138,FALSE) -> 1397.29986 | C162: =VLOOKUP(Vlookup!C162,Volume_Forecast_Data,C$138,FALSE) -> 360.14319 | E162: =VLOOKUP(Vlookup!E162,Volume_Forecast_Data,E$138,FALSE) -> 39.39
A163: > Small Non Domestic Off Peak (related MPAN)
A164: Small Non Domestic Off Peak (related MPAN) | B164: =VLOOKUP(Vlookup!B164,Volume_Forecast_Data,B$138,FALSE) -> 6337.648171 | E164: =VLOOKUP(Vlookup!E164,Volume_Forecast_Data,E$138,FALSE) -> 0
A165: LDNO LV: Small Non Domestic Off Peak (related MPAN) | B165: =VLOOKUP(Vlookup!B165,Volume_Forecast_Data,B$138,FALSE) -> 0 | E165: =VLOOKUP(Vlookup!E165,Volume_Forecast_Data,E$138,FALSE) -> 0
A166: LDNO HV: Small Non Domestic Off Peak (related MPAN) | B166: =VLOOKUP(Vlookup!B166,Volume_Forecast_Data,B$138,FALSE) -> 0 | E166: =VLOOKUP(Vlookup!E166,Volume_Forecast_Data,E$138,FALSE) -> 0
A167: > LV Medium Non-Domestic
A168: LV Medium Non-Domestic | B168: =VLOOKUP(Vlookup!B168,Volume_Forecast_Data,B$138,FALSE) -> 1294055.96 | C168: =VLOOKUP(Vlookup!C168,Volume_Forecast_Data,C$138,FALSE) -> 312457.3795 | E168: =VLOOKUP(Vlookup!E168,Volume_Forecast_Data,E$138,FALSE) -> 17942.65
A169: LDNO LV: LV Medium Non-Domestic | B169: =VLOOKUP(Vlookup!B169,Volume_Forecast_Data,B$138,FALSE) -> 302.46777 | C169: =VLOOKUP(Vlookup!C169,Volume_Forecast_Data,C$138,FALSE) -> 102.35412 | E169: =VLOOKUP(Vlookup!E169,Volume_Forecast_Data,E$138,FALSE) -> 7.07
A170: LDNO HV: LV Medium Non-Domestic | B170: =VLOOKUP(Vlookup!B170,Volume_Forecast_Data,B$138,FALSE) -> 6490.7667 | C170: =VLOOKUP(Vlookup!C170,Volume_Forecast_Data,C$138,FALSE) -> 1519.21638 | E170: =VLOOKUP(Vlookup!E170,Volume_Forecast_Data,E$138,FALSE) -> 62.62
A171: > LV Sub Medium Non-Domestic
A172: LV Sub Medium Non-Domestic | B172: =VLOOKUP(Vlookup!B172,Volume_Forecast_Data,B$138,FALSE) -> 92.70415416 | C172: =VLOOKUP(Vlookup!C172,Volume_Forecast_Data,C$138,FALSE) -> 24.34645044 | E172: =VLOOKUP(Vlookup!E172,Volume_Forecast_Data,E$138,FALSE) -> 3.03
A173: > HV Medium Non-Domestic
A174: HV Medium Non-Domestic | B174: =VLOOKUP(Vlookup!B174,Volume_Forecast_Data,B$138,FALSE) -> 36882.99822 | C174: =VLOOKUP(Vlookup!C174,Volume_Forecast_Data,C$138,FALSE) -> 10119.99724 | E174: =VLOOKUP(Vlookup!E174,Volume_Forecast_Data,E$138,FALSE) -> 275.73
A175: > LV HH Metered
A176: LV HH Metered | B176: =VLOOKUP(Vlookup!B176,Volume_Forecast_Data,B$138,FALSE) -> 207089.1682 | C176: =VLOOKUP(Vlookup!C176,Volume_Forecast_Data,C$138,FALSE) -> 824767.7072 | D176: =VLOOKUP(Vlookup!D176,Volume_Forecast_Data,D$138,FALSE) -> 849710.2535 | E176: =VLOOKUP(Vlookup!E176,Volume_Forecast_Data,E$138,FALSE) -> 6078.18 | F176: =VLOOKUP(Vlookup!F176,Volume_Forecast_Data,F$138,FALSE) -> 983000 | G176: =VLOOKUP(Vlookup!G176,Volume_Forecast_Data,G$138,FALSE) -> 164557.5686
A177: LDNO LV: LV HH Metered | B177: =VLOOKUP(Vlookup!B177,Volume_Forecast_Data,B$138,FALSE) -> 7.438068 | C177: =VLOOKUP(Vlookup!C177,Volume_Forecast_Data,C$138,FALSE) -> 54.002916 | D177: =VLOOKUP(Vlookup!D177,Volume_Forecast_Data,D$138,FALSE) -> 1.393524 | E177: =VLOOKUP(Vlookup!E177,Volume_Forecast_Data,E$138,FALSE) -> 1.01 | F177: =VLOOKUP(Vlookup!F177,Volume_Forecast_Data,F$138,FALSE) -> 0 | G177: =VLOOKUP(Vlookup!G177,Volume_Forecast_Data,G$138,FALSE) -> 0.81
A178: LDNO HV: LV HH Metered | B178: =VLOOKUP(Vlookup!B178,Volume_Forecast_Data,B$138,FALSE) -> 4251.741219 | C178: =VLOOKUP(Vlookup!C178,Volume_Forecast_Data,C$138,FALSE) -> 14443.35334 | D178: =VLOOKUP(Vlookup!D178,Volume_Forecast_Data,D$138,FALSE) -> 15817.28435 | E178: =VLOOKUP(Vlookup!E178,Volume_Forecast_Data,E$138,FALSE) -> 79.79 | F178: =VLOOKUP(Vlookup!F178,Volume_Forecast_Data,F$138,FALSE) -> 19000 | G178: =VLOOKUP(Vlookup!G178,Volume_Forecast_Data,G$138,FALSE) -> 1075.1704
A179: > LV Sub HH Metered
A180: LV Sub HH Metered | B180: =VLOOKUP(Vlookup!B180,Volume_Forecast_Data,B$138,FALSE) -> 2276.118573 | C180: =VLOOKUP(Vlookup!C180,Volume_Forecast_Data,C$138,FALSE) -> 8413.86055 | D180: =VLOOKUP(Vlookup!D180,Volume_Forecast_Data,D$138,FALSE) -> 10445.25697 | E180: =VLOOKUP(Vlookup!E180,Volume_Forecast_Data,E$138,FALSE) -> 32.32 | F180: =VLOOKUP(Vlookup!F180,Volume_Forecast_Data,F$138,FALSE) -> 17000 | G180: =VLOOKUP(Vlookup!G180,Volume_Forecast_Data,G$138,FALSE) -> 603.104
A181: LDNO HV: LV Sub HH Metered | B181: =VLOOKUP(Vlookup!B181,Volume_Forecast_Data,B$138,FALSE) -> 185.178609 | C181: =VLOOKUP(Vlookup!C181,Volume_Forecast_Data,C$138,FALSE) -> 635.579703 | D181: =VLOOKUP(Vlookup!D181,Volume_Forecast_Data,D$138,FALSE) -> 1187.418474 | E181: =VLOOKUP(Vlookup!E181,Volume_Forecast_Data,E$138,FALSE) -> 1.01 | F181: =VLOOKUP(Vlookup!F181,Volume_Forecast_Data,F$138,FALSE) -> 0 | G181: =VLOOKUP(Vlookup!G181,Volume_Forecast_Data,G$138,FALSE) -> 675.1852
A182: > HV HH Metered
A183: HV HH Metered | B183: =VLOOKUP(Vlookup!B183,Volume_Forecast_Data,B$138,FALSE) -> 784589.099 | C183: =VLOOKUP(Vlookup!C183,Volume_Forecast_Data,C$138,FALSE) -> 3131914.418 | D183: =VLOOKUP(Vlookup!D183,Volume_Forecast_Data,D$138,FALSE) -> 3984588.64 | E183: =VLOOKUP(Vlookup!E183,Volume_Forecast_Data,E$138,FALSE) -> 3746.09 | F183: =VLOOKUP(Vlookup!F183,Volume_Forecast_Data,F$138,FALSE) -> 2873000 | G183: =VLOOKUP(Vlookup!G183,Volume_Forecast_Data,G$138,FALSE) -> 1033930.859
A184: LDNO HV: HV HH Metered | B184: =VLOOKUP(Vlookup!B184,Volume_Forecast_Data,B$138,FALSE) -> 1638.525438 | C184: =VLOOKUP(Vlookup!C184,Volume_Forecast_Data,C$138,FALSE) -> 5195.566233 | D184: =VLOOKUP(Vlookup!D184,Volume_Forecast_Data,D$138,FALSE) -> 5501.62701 | E184: =VLOOKUP(Vlookup!E184,Volume_Forecast_Data,E$138,FALSE) -> 9.09 | F184: =VLOOKUP(Vlookup!F184,Volume_Forecast_Data,F$138,FALSE) -> 6000 | G184: =VLOOKUP(Vlookup!G184,Volume_Forecast_Data,G$138,FALSE) -> 832.2484
A185: > HV Sub HH Metered
A186: HV Sub HH Metered | B186: =VLOOKUP(Vlookup!B186,Volume_Forecast_Data,B$138,FALSE) -> 0 | C186: =VLOOKUP(Vlookup!C186,Volume_Forecast_Data,C$138,FALSE) -> 0 | D186: =VLOOKUP(Vlookup!D186,Volume_Forecast_Data,D$138,FALSE) -> 0 | E186: =VLOOKUP(Vlookup!E186,Volume_Forecast_Data,E$138,FALSE) -> 0 | F186: =VLOOKUP(Vlookup!F186,Volume_Forecast_Data,F$138,FALSE) -> 0 | G186: =VLOOKUP(Vlookup!G186,Volume_Forecast_Data,G$138,FALSE) -> 0
A187: > NHH UMS category A
A188: NHH UMS category A | B188: =VLOOKUP(Vlookup!B188,Volume_Forecast_Data,B$138,FALSE) -> 63590.82162 | E188: =VLOOKUP(Vlookup!E188,Volume_Forecast_Data,E$138,FALSE) -> 0
A189: LDNO LV: NHH UMS category A | B189: =VLOOKUP(Vlookup!B189,Volume_Forecast_Data,B$138,FALSE) -> 40.41658899 | E189: =VLOOKUP(Vlookup!E189,Volume_Forecast_Data,E$138,FALSE) -> 0
A190: LDNO HV: NHH UMS category A | B190: =VLOOKUP(Vlookup!B190,Volume_Forecast_Data,B$138,FALSE) -> 184.7907441 | E190: =VLOOKUP(Vlookup!E190,Volume_Forecast_Data,E$138,FALSE) -> 0
A191: > NHH UMS category B
A192: NHH UMS category B | B192: =VLOOKUP(Vlookup!B192,Volume_Forecast_Data,B$138,FALSE) -> 33686.99369 | E192: =VLOOKUP(Vlookup!E192,Volume_Forecast_Data,E$138,FALSE) -> 0
A193: LDNO LV: NHH UMS category B | B193: =VLOOKUP(Vlookup!B193,Volume_Forecast_Data,B$138,FALSE) -> 21.4105329 | E193: =VLOOKUP(Vlookup!E193,Volume_Forecast_Data,E$138,FALSE) -> 0
A194: LDNO HV: NHH UMS category B | B194: =VLOOKUP(Vlookup!B194,Volume_Forecast_Data,B$138,FALSE) -> 97.89218745 | E194: =VLOOKUP(Vlookup!E194,Volume_Forecast_Data,E$138,FALSE) -> 0
A195: > NHH UMS category C
A196: NHH UMS category C | B196: =VLOOKUP(Vlookup!B196,Volume_Forecast_Data,B$138,FALSE) -> 768.1457745 | E196: =VLOOKUP(Vlookup!E196,Volume_Forecast_Data,E$138,FALSE) -> 0
A197: LDNO LV: NHH UMS category C | B197: =VLOOKUP(Vlookup!B197,Volume_Forecast_Data,B$138,FALSE) -> 0.4882124694 | E197: =VLOOKUP(Vlookup!E197,Volume_Forecast_Data,E$138,FALSE) -> 0
A198: LDNO HV: NHH UMS category C | B198: =VLOOKUP(Vlookup!B198,Volume_Forecast_Data,B$138,FALSE) -> 2.232181085 | E198: =VLOOKUP(Vlookup!E198,Volume_Forecast_Data,E$138,FALSE) -> 0
A199: > NHH UMS category D
A200: NHH UMS category D | B200: =VLOOKUP(Vlookup!B200,Volume_Forecast_Data,B$138,FALSE) -> 5461.461352 | E200: =VLOOKUP(Vlookup!E200,Volume_Forecast_Data,E$138,FALSE) -> 0
A201: LDNO LV: NHH UMS category D | B201: =VLOOKUP(Vlookup!B201,Volume_Forecast_Data,B$138,FALSE) -> 3.471155635 | E201: =VLOOKUP(Vlookup!E201,Volume_Forecast_Data,E$138,FALSE) -> 0
A202: LDNO HV: NHH UMS category D | B202: =VLOOKUP(Vlookup!B202,Volume_Forecast_Data,B$138,FALSE) -> 15.87064739 | E202: =VLOOKUP(Vlookup!E202,Volume_Forecast_Data,E$138,FALSE) -> 0
A203: > LV UMS (Pseudo HH Metered)
A204: LV UMS (Pseudo HH Metered) | B204: =VLOOKUP(Vlookup!B204,Volume_Forecast_Data,B$138,FALSE) -> 11853.89584 | C204: =VLOOKUP(Vlookup!C204,Volume_Forecast_Data,C$138,FALSE) -> 27327.86007 | D204: =VLOOKUP(Vlookup!D204,Volume_Forecast_Data,D$138,FALSE) -> 206076.2547 | E204: =VLOOKUP(Vlookup!E204,Volume_Forecast_Data,E$138,FALSE) -> 0
A205: LDNO LV: LV UMS (Pseudo HH Metered) | B205: =VLOOKUP(Vlookup!B205,Volume_Forecast_Data,B$138,FALSE) -> 0 | C205: =VLOOKUP(Vlookup!C205,Volume_Forecast_Data,C$138,FALSE) -> 0 | D205: =VLOOKUP(Vlookup!D205,Volume_Forecast_Data,D$138,FALSE) -> 0 | E205: =VLOOKUP(Vlookup!E205,Volume_Forecast_Data,E$138,FALSE) -> 0
A206: LDNO HV: LV UMS (Pseudo HH Metered) | B206: =VLOOKUP(Vlookup!B206,Volume_Forecast_Data,B$138,FALSE) -> 0 | C206: =VLOOKUP(Vlookup!C206,Volume_Forecast_Data,C$138,FALSE) -> 0 | D206: =VLOOKUP(Vlookup!D206,Volume_Forecast_Data,D$138,FALSE) -> 0 | E206: =VLOOKUP(Vlookup!E206,Volume_Forecast_Data,E$138,FALSE) -> 0
A207: > LV Generation NHH
A208: LV Generation NHH | B208: =VLOOKUP(Vlookup!B208,Volume_Forecast_Data,B$138,FALSE) -> 440.19261 | E208: =VLOOKUP(Vlookup!E208,Volume_Forecast_Data,E$138,FALSE) -> 96.96
A209: LDNO LV: LV Generation NHH | B209: =VLOOKUP(Vlookup!B209,Volume_Forecast_Data,B$138,FALSE) -> 0 | E209: =VLOOKUP(Vlookup!E209,Volume_Forecast_Data,E$138,FALSE) -> 0
A210: LDNO HV: LV Generation NHH | B210: =VLOOKUP(Vlookup!B210,Volume_Forecast_Data,B$138,FALSE) -> 0 | E210: =VLOOKUP(Vlookup!E210,Volume_Forecast_Data,E$138,FALSE) -> 0
A211: > LV Sub Generation NHH
A212: LV Sub Generation NHH | B212: =VLOOKUP(Vlookup!B212,Volume_Forecast_Data,B$138,FALSE) -> 0 | E212: =VLOOKUP(Vlookup!E212,Volume_Forecast_Data,E$138,FALSE) -> 0
A213: LDNO HV: LV Sub Generation NHH | B213: =VLOOKUP(Vlookup!B213,Volume_Forecast_Data,B$138,FALSE) -> 0 | E213: =VLOOKUP(Vlookup!E213,Volume_Forecast_Data,E$138,FALSE) -> 0
A214: > LV Generation Intermittent
A215: LV Generation Intermittent | B215: =VLOOKUP(Vlookup!B215,Volume_Forecast_Data,B$138,FALSE) -> 46.20825 | E215: =VLOOKUP(Vlookup!E215,Volume_Forecast_Data,E$138,FALSE) -> 20.2 | G215: =VLOOKUP(Vlookup!G215,Volume_Forecast_Data,G$138,FALSE) -> 16.962
A216: LDNO LV: LV Generation Intermittent | B216: =VLOOKUP(Vlookup!B216,Volume_Forecast_Data,B$138,FALSE) -> 0 | E216: =VLOOKUP(Vlookup!E216,Volume_Forecast_Data,E$138,FALSE) -> 0 | G216: =VLOOKUP(Vlookup!G216,Volume_Forecast_Data,G$138,FALSE) -> 0
A217: LDNO HV: LV Generation Intermittent | B217: =VLOOKUP(Vlookup!B217,Volume_Forecast_Data,B$138,FALSE) -> 0 | E217: =VLOOKUP(Vlookup!E217,Volume_Forecast_Data,E$138,FALSE) -> 0 | G217: =VLOOKUP(Vlookup!G217,Volume_Forecast_Data,G$138,FALSE) -> 0
A218: > LV Generation Non-Intermittent
A219: LV Generation Non-Intermittent | B219: =VLOOKUP(Vlookup!B219,Volume_Forecast_Data,B$138,FALSE) -> 228.99987 | C219: =VLOOKUP(Vlookup!C219,Volume_Forecast_Data,C$138,FALSE) -> 868.97151 | D219: =VLOOKUP(Vlookup!D219,Volume_Forecast_Data,D$138,FALSE) -> 1429.02936 | E219: =VLOOKUP(Vlookup!E219,Volume_Forecast_Data,E$138,FALSE) -> 57.57 | G219: =VLOOKUP(Vlookup!G219,Volume_Forecast_Data,G$138,FALSE) -> 85.2694
A220: LDNO LV: LV Generation Non-Intermittent | B220: =VLOOKUP(Vlookup!B220,Volume_Forecast_Data,B$138,FALSE) -> 0 | C220: =VLOOKUP(Vlookup!C220,Volume_Forecast_Data,C$138,FALSE) -> 0 | D220: =VLOOKUP(Vlookup!D220,Volume_Forecast_Data,D$138,FALSE) -> 0 | E220: =VLOOKUP(Vlookup!E220,Volume_Forecast_Data,E$138,FALSE) -> 0 | G220: =VLOOKUP(Vlookup!G220,Volume_Forecast_Data,G$138,FALSE) -> 0
A221: LDNO HV: LV Generation Non-Intermittent | B221: =VLOOKUP(Vlookup!B221,Volume_Forecast_Data,B$138,FALSE) -> 0 | C221: =VLOOKUP(Vlookup!C221,Volume_Forecast_Data,C$138,FALSE) -> 0 | D221: =VLOOKUP(Vlookup!D221,Volume_Forecast_Data,D$138,FALSE) -> 0 | E221: =VLOOKUP(Vlookup!E221,Volume_Forecast_Data,E$138,FALSE) -> 0 | G221: =VLOOKUP(Vlookup!G221,Volume_Forecast_Data,G$138,FALSE) -> 0
A222: > LV Sub Generation Intermittent
A223: LV Sub Generation Intermittent | B223: =VLOOKUP(Vlookup!B223,Volume_Forecast_Data,B$138,FALSE) -> 0 | E223: =VLOOKUP(Vlookup!E223,Volume_Forecast_Data,E$138,FALSE) -> 0 | G223: =VLOOKUP(Vlookup!G223,Volume_Forecast_Data,G$138,FALSE) -> 0
A224: LDNO HV: LV Sub Generation Intermittent | B224: =VLOOKUP(Vlookup!B224,Volume_Forecast_Data,B$138,FALSE) -> 0 | E224: =VLOOKUP(Vlookup!E224,Volume_Forecast_Data,E$138,FALSE) -> 0 | G224: =VLOOKUP(Vlookup!G224,Volume_Forecast_Data,G$138,FALSE) -> 0
A225: > LV Sub Generation Non-Intermittent
A226: LV Sub Generation Non-Intermittent | B226: =VLOOKUP(Vlookup!B226,Volume_Forecast_Data,B$138,FALSE) -> 0 | C226: =VLOOKUP(Vlookup!C226,Volume_Forecast_Data,C$138,FALSE) -> 0 | D226: =VLOOKUP(Vlookup!D226,Volume_Forecast_Data,D$138,FALSE) -> 0.30888 | E226: =VLOOKUP(Vlookup!E226,Volume_Forecast_Data,E$138,FALSE) -> 0 | G226: =VLOOKUP(Vlookup!G226,Volume_Forecast_Data,G$138,FALSE) -> 3.4596
A227: LDNO HV: LV Sub Generation Non-Intermittent | B227: =VLOOKUP(Vlookup!B227,Volume_Forecast_Data,B$138,FALSE) -> 0 | C227: =VLOOKUP(Vlookup!C227,Volume_Forecast_Data,C$138,FALSE) -> 0 | D227: =VLOOKUP(Vlookup!D227,Volume_Forecast_Data,D$138,FALSE) -> 0 | E227: =VLOOKUP(Vlookup!E227,Volume_Forecast_Data,E$138,FALSE) -> 0 | G227: =VLOOKUP(Vlookup!G227,Volume_Forecast_Data,G$138,FALSE) -> 0
A228: > HV Generation Intermittent
A229: HV Generation Intermittent | B229: =VLOOKUP(Vlookup!B229,Volume_Forecast_Data,B$138,FALSE) -> 977.86458 | E229: =VLOOKUP(Vlookup!E229,Volume_Forecast_Data,E$138,FALSE) -> 4.04 | G229: =VLOOKUP(Vlookup!G229,Volume_Forecast_Data,G$138,FALSE) -> 376.0514
A230: LDNO HV: HV Generation Intermittent | B230: =VLOOKUP(Vlookup!B230,Volume_Forecast_Data,B$138,FALSE) -> 0 | E230: =VLOOKUP(Vlookup!E230,Volume_Forecast_Data,E$138,FALSE) -> 0 | G230: =VLOOKUP(Vlookup!G230,Volume_Forecast_Data,G$138,FALSE) -> 0
... 96 more rows

Sheet (Y+2)
A5: 1000. Company, charging year, data version
B7: Company | C7: Year | D7: Version
A8: Company, charging year, data version | B8: =VLOOKUP(Vlookup!B8,Forcast_Data,7,FALSE) -> WPD Mid West | C8: =VLOOKUP(Vlookup!C8,Forcast_Data,7,FALSE) -> April 2015 | D8: =VLOOKUP(Vlookup!D8,Forcast_Data,7,FALSE) -> 0
A10: 1010. Financial and general assumptions
A12: Sources: financial assumptions; calendar; network model.
A13: These financial assumptions determine the annuity rate applied to convert the asset values of the network model into an annual charge.
B14: Rate of return | C14: Annualisation period (years) | D14: Annuity proportion for customer-contributed assets | E14: Power factor | F14: Days in the charging period
A15: Financial and general assumptions | B15: =VLOOKUP(Vlookup!B15,Forcast_Data,7,FALSE) -> 0.056 | C15: =VLOOKUP(Vlookup!C15,Forcast_Data,7,FALSE) -> 40 | E15: =VLOOKUP(Vlookup!E15,Forcast_Data,7,FALSE) -> 0.95 | F15: =VLOOKUP(Vlookup!F15,Forcast_Data,7,FALSE) -> 366
A17: 1017. Diversity allowance between top and bottom of network level
A19: Source: operational data analysis and/or network model.
A20: The diversity figure against GSP is the diversity between GSP Group (the whole system) and individual GSPs.
A21: The diversity figure against 132kV is the diversity between GSPs (the top of the 132kV network) and 132kV/EHV bulk supply points (the bottom of the 132kV network).
A22: The diversity figure against EHV is the diversity between 132kV/EHV bulk supply points (the top of the EHV network) and EHV/HV primary substations (the bottom of the EHV network).
A23: The diversity figure against HV is the diversity between EHV/HV primary substations (the top of the HV network) and HV/LV substations (the bottom of the HV network).
B24: Diversity allowance between top and bottom of network level
A25: GSPs | B25: =VLOOKUP(Vlookup!B25,Forcast_Data,7,FALSE) -> 0.05649040832
A26: 132kV | B26: =VLOOKUP(Vlookup!B26,Forcast_Data,7,FALSE) -> 0.0255686825
A27: 132kV/EHV
A28: EHV | B28: =VLOOKUP(Vlookup!B28,Forcast_Data,7,FALSE) -> 0.02663159667
A29: EHV/HV
A30: HV | B30: =VLOOKUP(Vlookup!B30,Forcast_Data,7,FALSE) -> 0.34
A31: HV/LV
A32: LV circuits
A34: 1018. Proportion of relevant load going through 132kV/HV direct transformation
B36: 132kV/HV
A37: EHV/HV | B37: =VLOOKUP(Vlookup!B37,Forcast_Data,7,FALSE) -> 0.6925656292
A39: 1019. Network model GSP peak demand (MW)
B41: Network model GSP peak demand (MW)
A42: Network model GSP peak demand (MW) | B42: =VLOOKUP(Vlookup!B42,Forcast_Data,7,FALSE) -> 500
A44: 1020. Gross asset cost by network level (£)
B46: Gross assets £
A47: 132kV | B47: =VLOOKUP(Vlookup!B47,Forcast_Data,7,FALSE) -> 70675622.52
A48: 132kV/EHV | B48: =VLOOKUP(Vlookup!B48,Forcast_Data,7,FALSE) -> 11021835.42
A49: EHV | B49: =VLOOKUP(Vlookup!B49,Forcast_Data,7,FALSE) -> 12694786.38
A50: EHV/HV | B50: =VLOOKUP(Vlookup!B50,Forcast_Data,7,FALSE) -> 21690655.98
A51: 132kV/HV | B51: =VLOOKUP(Vlookup!B51,Forcast_Data,7,FALSE) -> 20052206.52
A52: HV | B52: =VLOOKUP(Vlookup!B52,Forcast_Data,7,FALSE) -> 110709752.5
A53: HV/LV | B53: =VLOOKUP(Vlookup!B53,Forcast_Data,7,FALSE) -> 69423223.68
A54: LV circuits | B54: =VLOOKUP(Vlookup!B54,Forcast_Data,7,FALSE) -> 96565927.56
A56: 1022. LV service model asset cost (£)
B58: LV service model 1 | C58: LV service model 2 | D58: LV service model 3 | E58: LV service model 4 | F58: LV service model 5 | G58: LV service model 6 | H58: LV service model 7 | I58: LV service model 8
A59: LV service model asset cost (£) | B59: =VLOOKUP(Vlookup!B59,Forcast_Data,7,FALSE) -> 4783.572223 | C59: =VLOOKUP(Vlookup!C59,Forcast_Data,7,FALSE) -> 590.5226258 | D59: =VLOOKUP(Vlookup!D59,Forcast_Data,7,FALSE) -> 697.5523929 | E59: =VLOOKUP(Vlookup!E59,Forcast_Data,7,FALSE) -> 519.6635929 | F59: =VLOOKUP(Vlookup!F59,Forcast_Data,7,FALSE) -> 1192.417365 | G59: =VLOOKUP(Vlookup!G59,Forcast_Data,7,FALSE) -> 875.7755442 | H59: =VLOOKUP(Vlookup!H59,Forcast_Data,7,FALSE) -> - | I59: =VLOOKUP(Vlookup!I59,Forcast_Data,7,FALSE) -> 459.3205605
A61: 1023. HV service model asset cost (£)
B63: HV service model 1 | C63: HV service model 2 | D63: HV service model 3 | E63: HV service model 4 | F63: HV service model 5
A64: HV service model asset cost (£) | B64: =VLOOKUP(Vlookup!B64,Forcast_Data,7,FALSE) -> 8562.57 | C64: =VLOOKUP(Vlookup!C64,Forcast_Data,7,FALSE) -> 4208 | D64: =VLOOKUP(Vlookup!D64,Forcast_Data,7,FALSE) -> 0 | E64: =VLOOKUP(Vlookup!E64,Forcast_Data,7,FALSE) -> - | F64: =VLOOKUP(Vlookup!F64,Forcast_Data,7,FALSE) -> -
A66: 1025. Matrix of applicability of LV service models to tariffs with fixed charges
B67: 18 | C67: =B67+1 -> 19 | D67: =C67+1 -> 20 | E67: 21 | F67: 22 | G67: 23 | H67: 24 | I67: 25
B68: LV service model 1 | C68: LV service model 2 | D68: LV service model 3 | E68: LV service model 4 | F68: LV service model 5 | G68: LV service model 6 | H68: LV service model 7 | I68: LV service model 8
A69: Domestic Unrestricted | B69: =VLOOKUP($A69,'Mat of App'!$B$7:$AP$38,B$67,FALSE) -> 0.05 | C69: =VLOOKUP($A69,'Mat of App'!$B$7:$AP$38,C$67,FALSE) -> 0 | D69: =VLOOKUP($A69,'Mat of App'!$B$7:$AP$38,D$67,FALSE) -> 0 | E69: =VLOOKUP($A69,'Mat of App'!$B$7:$AP$38,E$67,FALSE) -> 0 | F69: =VLOOKUP($A69,'Mat of App'!$B$7:$AP$38,F$67,FALSE) -> 0 | G69: =VLOOKUP($A69,'Mat of App'!$B$7:$AP$38,G$67,FALSE) -> 0 | H69: =VLOOKUP($A69,'Mat of App'!$B$7:$AP$38,H$67,FALSE) -> 0 | I69: =VLOOKUP($A69,'Mat of App'!$B$7:$AP$38,I$67,FALSE) -> 0
A70: Domestic Two Rate | B70: =VLOOKUP($A70,'Mat of App'!$B$7:$AP$38,B$67,FALSE) -> 0.05 | C70: =VLOOKUP($A70,'Mat of App'!$B$7:$AP$38,C$67,FALSE) -> 0 | D70: =VLOOKUP($A70,'Mat of App'!$B$7:$AP$38,D$67,FALSE) -> 0 | E70: =VLOOKUP($A70,'Mat of App'!$B$7:$AP$38,E$67,FALSE) -> 0 | F70: =VLOOKUP($A70,'Mat of App'!$B$7:$AP$38,F$67,FALSE) -> 0 | G70: =VLOOKUP($A70,'Mat of App'!$B$7:$AP$38,G$67,FALSE) -> 0 | H70: =VLOOKUP($A70,'Mat of App'!$B$7:$AP$38,H$67,FALSE) -> 0 | I70: =VLOOKUP($A70,'Mat of App'!$B$7:$AP$38,I$67,FALSE) -> 0
A71: Small Non Domestic Unrestricted | B71: =VLOOKUP($A71,'Mat of App'!$B$7:$AP$38,B$67,FALSE) -> 0 | C71: =VLOOKUP($A71,'Mat of App'!$B$7:$AP$38,C$67,FALSE) -> 1 | D71: =VLOOKUP($A71,'Mat of App'!$B$7:$AP$38,D$67,FALSE) -> 0 | E71: =VLOOKUP($A71,'Mat of App'!$B$7:$AP$38,E$67,FALSE) -> 0 | F71: =VLOOKUP($A71,'Mat of App'!$B$7:$AP$38,F$67,FALSE) -> 0 | G71: =VLOOKUP($A71,'Mat of App'!$B$7:$AP$38,G$67,FALSE) -> 0 | H71: =VLOOKUP($A71,'Mat of App'!$B$7:$AP$38,H$67,FALSE) -> 0 | I71: =VLOOKUP($A71,'Mat of App'!$B$7:$AP$38,I$67,FALSE) -> 0
A72: Small Non Domestic Two Rate | B72: =VLOOKUP($A72,'Mat of App'!$B$7:$AP$38,B$67,FALSE) -> 0 | C72: =VLOOKUP($A72,'Mat of App'!$B$7:$AP$38,C$67,FALSE) -> 1 | D72: =VLOOKUP($A72,'Mat of App'!$B$7:$AP$38,D$67,FALSE) -> 0 | E72: =VLOOKUP($A72,'Mat of App'!$B$7:$AP$38,E$67,FALSE) -> 0 | F72: =VLOOKUP($A72,'Mat of App'!$B$7:$AP$38,F$67,FALSE) -> 0 | G72: =VLOOKUP($A72,'Mat of App'!$B$7:$AP$38,G$67,FALSE) -> 0 | H72: =VLOOKUP($A72,'Mat of App'!$B$7:$AP$38,H$67,FALSE) -> 0 | I72: =VLOOKUP($A72,'Mat of App'!$B$7:$AP$38,I$67,FALSE) -> 0
A73: LV Medium Non-Domestic | B73: =VLOOKUP($A73,'Mat of App'!$B$7:$AP$38,B$67,FALSE) -> 0 | C73: =VLOOKUP($A73,'Mat of App'!$B$7:$AP$38,C$67,FALSE) -> 0 | D73: =VLOOKUP($A73,'Mat of App'!$B$7:$AP$38,D$67,FALSE) -> 1 | E73: =VLOOKUP($A73,'Mat of App'!$B$7:$AP$38,E$67,FALSE) -> 0 | F73: =VLOOKUP($A73,'Mat of App'!$B$7:$AP$38,F$67,FALSE) -> 0 | G73: =VLOOKUP($A73,'Mat of App'!$B$7:$AP$38,G$67,FALSE) -> 0 | H73: =VLOOKUP($A73,'Mat of App'!$B$7:$AP$38,H$67,FALSE) -> 0 | I73: =VLOOKUP($A73,'Mat of App'!$B$7:$AP$38,I$67,FALSE) -> 0
A74: LV Sub Medium Non-Domestic | B74: =VLOOKUP($A74,'Mat of App'!$B$7:$AP$38,B$67,FALSE) -> 0 | C74: =VLOOKUP($A74,'Mat of App'!$B$7:$AP$38,C$67,FALSE) -> 0 | D74: =VLOOKUP($A74,'Mat of App'!$B$7:$AP$38,D$67,FALSE) -> 0 | E74: =VLOOKUP($A74,'Mat of App'!$B$7:$AP$38,E$67,FALSE) -> 1 | F74: =VLOOKUP($A74,'Mat of App'!$B$7:$AP$38,F$67,FALSE) -> 0 | G74: =VLOOKUP($A74,'Mat of App'!$B$7:$AP$38,G$67,FALSE) -> 0 | H74: =VLOOKUP($A74,'Mat of App'!$B$7:$AP$38,H$67,FALSE) -> 0 | I74: =VLOOKUP($A74,'Mat of App'!$B$7:$AP$38,I$67,FALSE) -> 0
A75: LV HH Metered | B75: =VLOOKUP($A75,'Mat of App'!$B$7:$AP$38,B$67,FALSE) -> 0 | C75: =VLOOKUP($A75,'Mat of App'!$B$7:$AP$38,C$67,FALSE) -> 0 | D75: =VLOOKUP($A75,'Mat of App'!$B$7:$AP$38,D$67,FALSE) -> 0 | E75: =VLOOKUP($A75,'Mat of App'!$B$7:$AP$38,E$67,FALSE) -> 0 | F75: =VLOOKUP($A75,'Mat of App'!$B$7:$AP$38,F$67,FALSE) -> 1 | G75: =VLOOKUP($A75,'Mat of App'!$B$7:$AP$38,G$67,FALSE) -> 0 | H75: =VLOOKUP($A75,'Mat of App'!$B$7:$AP$38,H$67,FALSE) -> 0 | I75: =VLOOKUP($A75,'Mat of App'!$B$7:$AP$38,I$67,FALSE) -> 0
A76: LV Sub HH Metered | B76: =VLOOKUP($A76,'Mat of App'!$B$7:$AP$38,B$67,FALSE) -> 0 | C76: =VLOOKUP($A76,'Mat of App'!$B$7:$AP$38,C$67,FALSE) -> 0 | D76: =VLOOKUP($A76,'Mat of App'!$B$7:$AP$38,D$67,FALSE) -> 0 | E76: =VLOOKUP($A76,'Mat of App'!$B$7:$AP$38,E$67,FALSE) -> 0 | F76: =VLOOKUP($A76,'Mat of App'!$B$7:$AP$38,F$67,FALSE) -> 0 | G76: =VLOOKUP($A76,'Mat of App'!$B$7:$AP$38,G$67,FALSE) -> 1 | H76: =VLOOKUP($A76,'Mat of App'!$B$7:$AP$38,H$67,FALSE) -> 0 | I76: =VLOOKUP($A76,'Mat of App'!$B$7:$AP$38,I$67,FALSE) -> 0
A77: LV Generation NHH | B77: =VLOOKUP($A77,'Mat of App'!$B$7:$AP$38,B$67,FALSE) -> 0 | C77: =VLOOKUP($A77,'Mat of App'!$B$7:$AP$38,C$67,FALSE) -> 0 | D77: =VLOOKUP($A77,'Mat of App'!$B$7:$AP$38,D$67,FALSE) -> 0 | E77: =VLOOKUP($A77,'Mat of App'!$B$7:$AP$38,E$67,FALSE) -> 0 | F77: =VLOOKUP($A77,'Mat of App'!$B$7:$AP$38,F$67,FALSE) -> 0 | G77: =VLOOKUP($A77,'Mat of App'!$B$7:$AP$38,G$67,FALSE) -> 0 | H77: =VLOOKUP($A77,'Mat of App'!$B$7:$AP$38,H$67,FALSE) -> 1 | I77: =VLOOKUP($A77,'Mat of App'!$B$7:$AP$38,I$67,FALSE) -> 0
A78: LV Sub Generation NHH | B78: =VLOOKUP($A78,'Mat of App'!$B$7:$AP$38,B$67,FALSE) -> 0 | C78: =VLOOKUP($A78,'Mat of App'!$B$7:$AP$38,C$67,FALSE) -> 0 | D78: =VLOOKUP($A78,'Mat of App'!$B$7:$AP$38,D$67,FALSE) -> 0 | E78: =VLOOKUP($A78,'Mat of App'!$B$7:$AP$38,E$67,FALSE) -> 0 | F78: =VLOOKUP($A78,'Mat of App'!$B$7:$AP$38,F$67,FALSE) -> 0 | G78: =VLOOKUP($A78,'Mat of App'!$B$7:$AP$38,G$67,FALSE) -> 0 | H78: =VLOOKUP($A78,'Mat of App'!$B$7:$AP$38,H$67,FALSE) -> 1 | I78: =VLOOKUP($A78,'Mat of App'!$B$7:$AP$38,I$67,FALSE) -> 0
A79: LV Generation Intermittent | B79: =VLOOKUP($A79,'Mat of App'!$B$7:$AP$38,B$67,FALSE) -> 0 | C79: =VLOOKUP($A79,'Mat of App'!$B$7:$AP$38,C$67,FALSE) -> 0 | D79: =VLOOKUP($A79,'Mat of App'!$B$7:$AP$38,D$67,FALSE) -> 0 | E79: =VLOOKUP($A79,'Mat of App'!$B$7:$AP$38,E$67,FALSE) -> 0 | F79: =VLOOKUP($A79,'Mat of App'!$B$7:$AP$38,F$67,FALSE) -> 0 | G79: =VLOOKUP($A79,'Mat of App'!$B$7:$AP$38,G$67,FALSE) -> 0 | H79: =VLOOKUP($A79,'Mat of App'!$B$7:$AP$38,H$67,FALSE) -> 1 | I79: =VLOOKUP($A79,'Mat of App'!$B$7:$AP$38,I$67,FALSE) -> 0
A80: LV Generation Non-Intermittent | B80: =VLOOKUP($A80,'Mat of App'!$B$7:$AP$38,B$67,FALSE) -> 0 | C80: =VLOOKUP($A80,'Mat of App'!$B$7:$AP$38,C$67,FALSE) -> 0 | D80: =VLOOKUP($A80,'Mat of App'!$B$7:$AP$38,D$67,FALSE) -> 0 | E80: =VLOOKUP($A80,'Mat of App'!$B$7:$AP$38,E$67,FALSE) -> 0 | F80: =VLOOKUP($A80,'Mat of App'!$B$7:$AP$38,F$67,FALSE) -> 0 | G80: =VLOOKUP($A80,'Mat of App'!$B$7:$AP$38,G$67,FALSE) -> 0 | H80: =VLOOKUP($A80,'Mat of App'!$B$7:$AP$38,H$67,FALSE) -> 0 | I80: =VLOOKUP($A80,'Mat of App'!$B$7:$AP$38,I$67,FALSE) -> 0
A81: LV Sub Generation Intermittent | B81: =VLOOKUP($A81,'Mat of App'!$B$7:$AP$38,B$67,FALSE) -> 0 | C81: =VLOOKUP($A81,'Mat of App'!$B$7:$AP$38,C$67,FALSE) -> 0 | D81: =VLOOKUP($A81,'Mat of App'!$B$7:$AP$38,D$67,FALSE) -> 0 | E81: =VLOOKUP($A81,'Mat of App'!$B$7:$AP$38,E$67,FALSE) -> 0 | F81: =VLOOKUP($A81,'Mat of App'!$B$7:$AP$38,F$67,FALSE) -> 0 | G81: =VLOOKUP($A81,'Mat of App'!$B$7:$AP$38,G$67,FALSE) -> 0 | H81: =VLOOKUP($A81,'Mat of App'!$B$7:$AP$38,H$67,FALSE) -> 0 | I81: =VLOOKUP($A81,'Mat of App'!$B$7:$AP$38,I$67,FALSE) -> 0
A82: LV Sub Generation Non-Intermittent | B82: =VLOOKUP($A82,'Mat of App'!$B$7:$AP$38,B$67,FALSE) -> 0 | C82: =VLOOKUP($A82,'Mat of App'!$B$7:$AP$38,C$67,FALSE) -> 0 | D82: =VLOOKUP($A82,'Mat of App'!$B$7:$AP$38,D$67,FALSE) -> 0 | E82: =VLOOKUP($A82,'Mat of App'!$B$7:$AP$38,E$67,FALSE) -> 0 | F82: =VLOOKUP($A82,'Mat of App'!$B$7:$AP$38,F$67,FALSE) -> 0 | G82: =VLOOKUP($A82,'Mat of App'!$B$7:$AP$38,G$67,FALSE) -> 0 | H82: =VLOOKUP($A82,'Mat of App'!$B$7:$AP$38,H$67,FALSE) -> 0 | I82: =VLOOKUP($A82,'Mat of App'!$B$7:$AP$38,I$67,FALSE) -> 0
A84: 1026. Matrix of applicability of LV service models to unmetered tariffs
A86: Source: service models
A87: Proportion of service model involved in connecting load of 1 MWh/year
B88: LV service model 1 | C88: LV service model 2 | D88: LV service model 3 | E88: LV service model 4 | F88: LV service model 5 | G88: LV service model 6 | H88: LV service model 7 | I88: LV service model 8
A89: All LV unmetered tariffs | B89: =VLOOKUP($A89,'Mat of App'!$B$7:$AP$38,B$67,FALSE) -> 0 | C89: =VLOOKUP($A89,'Mat of App'!$B$7:$AP$38,C$67,FALSE) -> 0 | D89: =VLOOKUP($A89,'Mat of App'!$B$7:$AP$38,D$67,FALSE) -> 0 | E89: =VLOOKUP($A89,'Mat of App'!$B$7:$AP$38,E$67,FALSE) -> 0 | F89: =VLOOKUP($A89,'Mat of App'!$B$7:$AP$38,F$67,FALSE) -> 0 | G89: =VLOOKUP($A89,'Mat of App'!$B$7:$AP$38,G$67,FALSE) -> 0 | H89: =VLOOKUP($A89,'Mat of App'!$B$7:$AP$38,H$67,FALSE) -> 0 | I89: =VLOOKUP($A89,'Mat of App'!$B$7:$AP$38,I$67,FALSE) -> 0.488
A91: 1028. Matrix of applicability of HV service models to tariffs with fixed charges
B92: 12 | C92: =B92+1 -> 13 | D92: =C92+1 -> 14 | E92: 15 | F92: 16
B93: HV service model 1 | C93: HV service model 2 | D93: HV service model 3 | E93: HV service model 4 | F93: HV service model 5
A94: HV Medium Non-Domestic | B94: =VLOOKUP($A94,'Mat of App'!$B$7:$AP$38,B$92,FALSE) -> 1 | C94: =VLOOKUP($A94,'Mat of App'!$B$7:$AP$38,C$92,FALSE) -> 0 | D94: =VLOOKUP($A94,'Mat of App'!$B$7:$AP$38,D$92,FALSE) -> 0 | E94: =VLOOKUP($A94,'Mat of App'!$B$7:$AP$38,E$92,FALSE) -> 0 | F94: =VLOOKUP($A94,'Mat of App'!$B$7:$AP$38,F$92,FALSE) -> 0
A95: HV HH Metered | B95: =VLOOKUP($A95,'Mat of App'!$B$7:$AP$38,B$92,FALSE) -> 1 | C95: =VLOOKUP($A95,'Mat of App'!$B$7:$AP$38,C$92,FALSE) -> 0 | D95: =VLOOKUP($A95,'Mat of App'!$B$7:$AP$38,D$92,FALSE) -> 0 | E95: =VLOOKUP($A95,'Mat of App'!$B$7:$AP$38,E$92,FALSE) -> 0 | F95: =VLOOKUP($A95,'Mat of App'!$B$7:$AP$38,F$92,FALSE) -> 0
A96: HV Sub HH Metered | B96: =VLOOKUP($A96,'Mat of App'!$B$7:$AP$38,B$92,FALSE) -> 1 | C96: =VLOOKUP($A96,'Mat of App'!$B$7:$AP$38,C$92,FALSE) -> 0 | D96: =VLOOKUP($A96,'Mat of App'!$B$7:$AP$38,D$92,FALSE) -> 0 | E96: =VLOOKUP($A96,'Mat of App'!$B$7:$AP$38,E$92,FALSE) -> 0 | F96: =VLOOKUP($A96,'Mat of App'!$B$7:$AP$38,F$92,FALSE) -> 0
A97: HV Generation Intermittent | B97: =VLOOKUP($A97,'Mat of App'!$B$7:$AP$38,B$92,FALSE) -> 0 | C97: =VLOOKUP($A97,'Mat of App'!$B$7:$AP$38,C$92,FALSE) -> 1 | D97: =VLOOKUP($A97,'Mat of App'!$B$7:$AP$38,D$92,FALSE) -> 0 | E97: =VLOOKUP($A97,'Mat of App'!$B$7:$AP$38,E$92,FALSE) -> 0 | F97: =VLOOKUP($A97,'Mat of App'!$B$7:$AP$38,F$92,FALSE) -> 0
A98: HV Generation Non-Intermittent | B98: =VLOOKUP($A98,'Mat of App'!$B$7:$AP$38,B$92,FALSE) -> 0 | C98: =VLOOKUP($A98,'Mat of App'!$B$7:$AP$38,C$92,FALSE) -> 1 | D98: =VLOOKUP($A98,'Mat of App'!$B$7:$AP$38,D$92,FALSE) -> 0 | E98: =VLOOKUP($A98,'Mat of App'!$B$7:$AP$38,E$92,FALSE) -> 0 | F98: =VLOOKUP($A98,'Mat of App'!$B$7:$AP$38,F$92,FALSE) -> 0
A99: HV Sub Generation Non-Intermittent | B99: =VLOOKUP($A99,'Mat of App'!$B$7:$AP$38,B$92,FALSE) -> 0 | C99: =VLOOKUP($A99,'Mat of App'!$B$7:$AP$38,C$92,FALSE) -> 1 | D99: =VLOOKUP($A99,'Mat of App'!$B$7:$AP$38,D$92,FALSE) -> 0 | E99: =VLOOKUP($A99,'Mat of App'!$B$7:$AP$38,E$92,FALSE) -> 0 | F99: =VLOOKUP($A99,'Mat of App'!$B$7:$AP$38,F$92,FALSE) -> 0
A100: HV Sub Generation Intermittent | B100: =VLOOKUP($A100,'Mat of App'!$B$7:$AP$38,B$92,FALSE) -> 0 | C100: =VLOOKUP($A100,'Mat of App'!$B$7:$AP$38,C$92,FALSE) -> 1 | D100: =VLOOKUP($A100,'Mat of App'!$B$7:$AP$38,D$92,FALSE) -> 0 | E100: =VLOOKUP($A100,'Mat of App'!$B$7:$AP$38,E$92,FALSE) -> 0 | F100: =VLOOKUP($A100,'Mat of App'!$B$7:$AP$38,F$92,FALSE) -> 0
A102: 1032. Loss adjustment factors to transmission
A104: Source: losses model or loss adjustment factors at time of system peak.
B105: 132kV | C105: 132kV/EHV | D105: EHV | E105: EHV/HV | F105: HV | G105: HV/LV | H105: LV circuits
A106: Loss adjustment factor | B106: =VLOOKUP(Vlookup!B106,Forcast_Data,7,FALSE) -> 1.002 | C106: =VLOOKUP(Vlookup!C106,Forcast_Data,7,FALSE) -> 1.003 | D106: =VLOOKUP(Vlookup!D106,Forcast_Data,7,FALSE) -> 1.006 | E106: =VLOOKUP(Vlookup!E106,Forcast_Data,7,FALSE) -> 1.027 | F106: =VLOOKUP(Vlookup!F106,Forcast_Data,7,FALSE) -> 1.044 | G106: =VLOOKUP(Vlookup!G106,Forcast_Data,7,FALSE) -> 1.051 | H106: =VLOOKUP(Vlookup!H106,Forcast_Data,7,FALSE) -> 1.077
A108: 1037. Embedded network (LDNO) discounts
A110: Source: separate price control disaggregation model.
B111: No discount | C111: LDNO LV: LV user | D111: LDNO HV: LV user | E111: LDNO HV: LV sub user | F111: LDNO HV: HV user
A112: LDNO discount | C112: =VLOOKUP(Vlookup!C112,Forcast_Data,7,FALSE) -> 0.3088318356 | D112: =VLOOKUP(Vlookup!D112,Forcast_Data,7,FALSE) -> 0.500779158 | E112: =VLOOKUP(Vlookup!E112,Forcast_Data,7,FALSE) -> 0.2542804506 | F112: =VLOOKUP(Vlookup!F112,Forcast_Data,7,FALSE) -> 0.1522859741
A114: 1041. Load profile data for demand users
A116: Source: load data analysis.
B117: Coincidence factor | C117: Load factor
A118: Domestic Unrestricted | B118: =VLOOKUP(Vlookup!B118,Forcast_Data,7,FALSE) -> 0.9172510752 | C118: =VLOOKUP(Vlookup!C118,Forcast_Data,7,FALSE) -> 0.4114348134
A119: Domestic Two Rate | B119: =VLOOKUP(Vlookup!B119,Forcast_Data,7,FALSE) -> 0.4008018177 | C119: =VLOOKUP(Vlookup!C119,Forcast_Data,7,FALSE) -> 0.2556052059
A120: Domestic Off Peak (related MPAN) | C120: =VLOOKUP(Vlookup!C120,Forcast_Data,7,FALSE) -> 0.1559078077
A121: Small Non Domestic Unrestricted | B121: =VLOOKUP(Vlookup!B121,Forcast_Data,7,FALSE) -> 0.6200806889 | C121: =VLOOKUP(Vlookup!C121,Forcast_Data,7,FALSE) -> 0.3524542035
A122: Small Non Domestic Two Rate | B122: =VLOOKUP(Vlookup!B122,Forcast_Data,7,FALSE) -> 0.6187554381 | C122: =VLOOKUP(Vlookup!C122,Forcast_Data,7,FALSE) -> 0.4306838132
A123: Small Non Domestic Off Peak (related MPAN) | C123: =VLOOKUP(Vlookup!C123,Forcast_Data,7,FALSE) -> 0.1868684712
A124: LV Medium Non-Domestic | B124: =VLOOKUP(Vlookup!B124,Forcast_Data,7,FALSE) -> 0.8048027574 | C124: =VLOOKUP(Vlookup!C124,Forcast_Data,7,FALSE) -> 0.4920997994
A125: LV Sub Medium Non-Domestic | B125: =VLOOKUP(Vlookup!B125,Forcast_Data,7,FALSE) -> 0.8048027574 | C125: =VLOOKUP(Vlookup!C125,Forcast_Data,7,FALSE) -> 0.4920997994
A126: HV Medium Non-Domestic | B126: =VLOOKUP(Vlookup!B126,Forcast_Data,7,FALSE) -> 0.6108164218 | C126: =VLOOKUP(Vlookup!C126,Forcast_Data,7,FALSE) -> 0.4220141332
A127: LV HH Metered | B127: =VLOOKUP(Vlookup!B127,Forcast_Data,7,FALSE) -> 0.7619514042 | C127: =VLOOKUP(Vlookup!C127,Forcast_Data,7,FALSE) -> 0.5192642925
A128: LV Sub HH Metered | B128: =VLOOKUP(Vlookup!B128,Forcast_Data,7,FALSE) -> 0.7619514042 | C128: =VLOOKUP(Vlookup!C128,Forcast_Data,7,FALSE) -> 0.5192642925
A129: HV HH Metered | B129: =VLOOKUP(Vlookup!B129,Forcast_Data,7,FALSE) -> 0.7725944525 | C129: =VLOOKUP(Vlookup!C129,Forcast_Data,7,FALSE) -> 0.6437861665
A130: HV Sub HH Metered | B130: =VLOOKUP(Vlookup!B130,Forcast_Data,7,FALSE) -> 0.7725944525 | C130: =VLOOKUP(Vlookup!C130,Forcast_Data,7,FALSE) -> 0.6437861665
A131: NHH UMS category A | B131: =VLOOKUP(Vlookup!B131,Forcast_Data,7,FALSE) -> 1 | C131: =VLOOKUP(Vlookup!C131,Forcast_Data,7,FALSE) -> 1
A132: NHH UMS category B | B132: =VLOOKUP(Vlookup!B132,Forcast_Data,7,FALSE) -> 1 | C132: =VLOOKUP(Vlookup!C132,Forcast_Data,7,FALSE) -> 0.4736829452
A133: NHH UMS category C | B133: =VLOOKUP(Vlookup!B133,Forcast_Data,7,FALSE) -> 1 | C133: =VLOOKUP(Vlookup!C133,Forcast_Data,7,FALSE) -> 0.258
A134: NHH UMS category D | B134: =VLOOKUP(Vlookup!B134,Forcast_Data,7,FALSE) -> 0.06413333333 | C134: =VLOOKUP(Vlookup!C134,Forcast_Data,7,FALSE) -> 0.553
A135: LV UMS (Pseudo HH Metered) | B135: =VLOOKUP(Vlookup!B135,Forcast_Data,7,FALSE) -> 0.9938755871 | C135: =VLOOKUP(Vlookup!C135,Forcast_Data,7,FALSE) -> 0.4877395704
A137: 1053. Volume forecasts for the charging year
B138: 16 | C138: 17 | D138: 18 | E138: 19 | F138: 20 | G138: 21
A139: Source: forecast.
A140: Please include MPAN counts for tariffs with no fixed charge (e.g. off-peak tariffs),
A141: but exclude MPANs on tariffs with a fixed charge that are not subject to a fixed charge due to a site grouping arrangement.
B142: Rate 1 units (MWh) | C142: Rate 2 units (MWh) | D142: Rate 3 units (MWh) | E142: MPANs | F142: Import capacity (kVA) | G142: Reactive power units (MVArh)
A143: > Domestic Unrestricted
A144: Domestic Unrestricted | B144: =VLOOKUP(Vlookup!B144,Volume_Forecast_Data,B$138,FALSE) -> 7045206.847 | E144: =VLOOKUP(Vlookup!E144,Volume_Forecast_Data,E$138,FALSE) -> 1961348.31
A145: LDNO LV: Domestic Unrestricted | B145: =VLOOKUP(Vlookup!B145,Volume_Forecast_Data,B$138,FALSE) -> 6748.094351 | E145: =VLOOKUP(Vlookup!E145,Volume_Forecast_Data,E$138,FALSE) -> 4340.5255
A146: LDNO HV: Domestic Unrestricted | B146: =VLOOKUP(Vlookup!B146,Volume_Forecast_Data,B$138,FALSE) -> 21045.41777 | E146: =VLOOKUP(Vlookup!E146,Volume_Forecast_Data,E$138,FALSE) -> 10124.4925
A147: > Domestic Two Rate
A148: Domestic Two Rate | B148: =VLOOKUP(Vlookup!B148,Volume_Forecast_Data,B$138,FALSE) -> 1010288.393 | C148: =VLOOKUP(Vlookup!C148,Volume_Forecast_Data,C$138,FALSE) -> 755544.6261 | E148: =VLOOKUP(Vlookup!E148,Volume_Forecast_Data,E$138,FALSE) -> 320941.8218
A149: LDNO LV: Domestic Two Rate | B149: =VLOOKUP(Vlookup!B149,Volume_Forecast_Data,B$138,FALSE) -> 262.7403075 | C149: =VLOOKUP(Vlookup!C149,Volume_Forecast_Data,C$138,FALSE) -> 153.7992522 | E149: =VLOOKUP(Vlookup!E149,Volume_Forecast_Data,E$138,FALSE) -> 170.3567
A150: LDNO HV: Domestic Two Rate | B150: =VLOOKUP(Vlookup!B150,Volume_Forecast_Data,B$138,FALSE) -> 379.1722671 | C150: =VLOOKUP(Vlookup!C150,Volume_Forecast_Data,C$138,FALSE) -> 351.3139047 | E150: =VLOOKUP(Vlookup!E150,Volume_Forecast_Data,E$138,FALSE) -> 270.3265
A151: > Domestic Off Peak (related MPAN)
A152: Domestic Off Peak (related MPAN) | B152: =VLOOKUP(Vlookup!B152,Volume_Forecast_Data,B$138,FALSE) -> 37029.18362 | E152: =VLOOKUP(Vlookup!E152,Volume_Forecast_Data,E$138,FALSE) -> 0
A153: LDNO LV: Domestic Off Peak (related MPAN) | B153: =VLOOKUP(Vlookup!B153,Volume_Forecast_Data,B$138,FALSE) -> 0 | E153: =VLOOKUP(Vlookup!E153,Volume_Forecast_Data,E$138,FALSE) -> 0
A154: LDNO HV: Domestic Off Peak (related MPAN) | B154: =VLOOKUP(Vlookup!B154,Volume_Forecast_Data,B$138,FALSE) -> 0 | E154: =VLOOKUP(Vlookup!E154,Volume_Forecast_Data,E$138,FALSE) -> 0
A155: > Small Non Domestic Unrestricted
A156: Small Non Domestic Unrestricted | B156: =VLOOKUP(Vlookup!B156,Volume_Forecast_Data,B$138,FALSE) -> 1634479.216 | E156: =VLOOKUP(Vlookup!E156,Volume_Forecast_Data,E$138,FALSE) -> 135592.7121
A157: LDNO LV: Small Non Domestic Unrestricted | B157: =VLOOKUP(Vlookup!B157,Volume_Forecast_Data,B$138,FALSE) -> 643.9658841 | E157: =VLOOKUP(Vlookup!E157,Volume_Forecast_Data,E$138,FALSE) -> 106.0904
A158: LDNO HV: Small Non Domestic Unrestricted | B158: =VLOOKUP(Vlookup!B158,Volume_Forecast_Data,B$138,FALSE) -> 6285.993862 | E158: =VLOOKUP(Vlookup!E158,Volume_Forecast_Data,E$138,FALSE) -> 392.7385
A159: > Small Non Domestic Two Rate
A160: Small Non Domestic Two Rate | B160: =VLOOKUP(Vlookup!B160,Volume_Forecast_Data,B$138,FALSE) -> 463145.7543 | C160: =VLOOKUP(Vlookup!C160,Volume_Forecast_Data,C$138,FALSE) -> 210415.4345 | E160: =VLOOKUP(Vlookup!E160,Volume_Forecast_Data,E$138,FALSE) -> 32821.7175
A161: LDNO LV: Small Non Domestic Two Rate | B161: =VLOOKUP(Vlookup!B161,Volume_Forecast_Data,B$138,FALSE) -> 315.4108815 | C161: =VLOOKUP(Vlookup!C161,Volume_Forecast_Data,C$138,FALSE) -> 92.8399725 | E161: =VLOOKUP(Vlookup!E161,Volume_Forecast_Data,E$138,FALSE) -> 9.1809
A162: LDNO HV: Small Non Domestic Two Rate | B162: =VLOOKUP(Vlookup!B162,Volume_Forecast_Data,B$138,FALSE) -> 1383.326861 | C162: =VLOOKUP(Vlookup!C162,Volume_Forecast_Data,C$138,FALSE) -> 356.5417581 | E162: =VLOOKUP(Vlookup!E162,Volume_Forecast_Data,E$138,FALSE) -> 39.7839
A163: > Small Non Domestic Off Peak (related MPAN)
A164: Small Non Domestic Off Peak (related MPAN) | B164: =VLOOKUP(Vlookup!B164,Volume_Forecast_Data,B$138,FALSE) -> 6274.271689 | E164: =VLOOKUP(Vlookup!E164,Volume_Forecast_Data,E$138,FALSE) -> 0
A165: LDNO LV: Small Non Domestic Off Peak (related MPAN) | B165: =VLOOKUP(Vlookup!B165,Volume_Forecast_Data,B$138,FALSE) -> 0 | E165: =VLOOKUP(Vlookup!E165,Volume_Forecast_Data,E$138,FALSE) -> 0
A166: LDNO HV: Small Non Domestic Off Peak (related MPAN) | B166: =VLOOKUP(Vlookup!B166,Volume_Forecast_Data,B$138,FALSE) -> 0 | E166: =VLOOKUP(Vlookup!E166,Volume_Forecast_Data,E$138,FALSE) -> 0
A167: > LV Medium Non-Domestic
A168: LV Medium Non-Domestic | B168: =VLOOKUP(Vlookup!B168,Volume_Forecast_Data,B$138,FALSE) -> 1281115.4 | C168: =VLOOKUP(Vlookup!C168,Volume_Forecast_Data,C$138,FALSE) -> 309332.8057 | E168: =VLOOKUP(Vlookup!E168,Volume_Forecast_Data,E$138,FALSE) -> 18122.0765
A169: LDNO LV: LV Medium Non-Domestic | B169: =VLOOKUP(Vlookup!B169,Volume_Forecast_Data,B$138,FALSE) -> 299.4430923 | C169: =VLOOKUP(Vlookup!C169,Volume_Forecast_Data,C$138,FALSE) -> 101.3305788 | E169: =VLOOKUP(Vlookup!E169,Volume_Forecast_Data,E$138,FALSE) -> 7.1407
A170: LDNO HV: LV Medium Non-Domestic | B170: =VLOOKUP(Vlookup!B170,Volume_Forecast_Data,B$138,FALSE) -> 6425.859033 | C170: =VLOOKUP(Vlookup!C170,Volume_Forecast_Data,C$138,FALSE) -> 1504.024216 | E170: =VLOOKUP(Vlookup!E170,Volume_Forecast_Data,E$138,FALSE) -> 63.2462
A171: > LV Sub Medium Non-Domestic
A172: LV Sub Medium Non-Domestic | B172: =VLOOKUP(Vlookup!B172,Volume_Forecast_Data,B$138,FALSE) -> 91.77711262 | C172: =VLOOKUP(Vlookup!C172,Volume_Forecast_Data,C$138,FALSE) -> 24.10298593 | E172: =VLOOKUP(Vlookup!E172,Volume_Forecast_Data,E$138,FALSE) -> 3.0603
A173: > HV Medium Non-Domestic
A174: HV Medium Non-Domestic | B174: =VLOOKUP(Vlookup!B174,Volume_Forecast_Data,B$138,FALSE) -> 36514.16824 | C174: =VLOOKUP(Vlookup!C174,Volume_Forecast_Data,C$138,FALSE) -> 10018.79727 | E174: =VLOOKUP(Vlookup!E174,Volume_Forecast_Data,E$138,FALSE) -> 278.4873
A175: > LV HH Metered
A176: LV HH Metered | B176: =VLOOKUP(Vlookup!B176,Volume_Forecast_Data,B$138,FALSE) -> 205018.2765 | C176: =VLOOKUP(Vlookup!C176,Volume_Forecast_Data,C$138,FALSE) -> 816520.0301 | D176: =VLOOKUP(Vlookup!D176,Volume_Forecast_Data,D$138,FALSE) -> 841213.1509 | E176: =VLOOKUP(Vlookup!E176,Volume_Forecast_Data,E$138,FALSE) -> 6138.9618 | F176: =VLOOKUP(Vlookup!F176,Volume_Forecast_Data,F$138,FALSE) -> 983000 | G176: =VLOOKUP(Vlookup!G176,Volume_Forecast_Data,G$138,FALSE) -> 164557.5686
A177: LDNO LV: LV HH Metered | B177: =VLOOKUP(Vlookup!B177,Volume_Forecast_Data,B$138,FALSE) -> 7.36368732 | C177: =VLOOKUP(Vlookup!C177,Volume_Forecast_Data,C$138,FALSE) -> 53.46288684 | D177: =VLOOKUP(Vlookup!D177,Volume_Forecast_Data,D$138,FALSE) -> 1.37958876 | E177: =VLOOKUP(Vlookup!E177,Volume_Forecast_Data,E$138,FALSE) -> 1.0201 | F177: =VLOOKUP(Vlookup!F177,Volume_Forecast_Data,F$138,FALSE) -> 0 | G177: =VLOOKUP(Vlookup!G177,Volume_Forecast_Data,G$138,FALSE) -> 0.81
A178: LDNO HV: LV HH Metered | B178: =VLOOKUP(Vlookup!B178,Volume_Forecast_Data,B$138,FALSE) -> 4209.223807 | C178: =VLOOKUP(Vlookup!C178,Volume_Forecast_Data,C$138,FALSE) -> 14298.91981 | D178: =VLOOKUP(Vlookup!D178,Volume_Forecast_Data,D$138,FALSE) -> 15659.11151 | E178: =VLOOKUP(Vlookup!E178,Volume_Forecast_Data,E$138,FALSE) -> 80.5879 | F178: =VLOOKUP(Vlookup!F178,Volume_Forecast_Data,F$138,FALSE) -> 19000 | G178: =VLOOKUP(Vlookup!G178,Volume_Forecast_Data,G$138,FALSE) -> 1075.1704
A179: > LV Sub HH Metered
A180: LV Sub HH Metered | B180: =VLOOKUP(Vlookup!B180,Volume_Forecast_Data,B$138,FALSE) -> 2253.357388 | C180: =VLOOKUP(Vlookup!C180,Volume_Forecast_Data,C$138,FALSE) -> 8329.721944 | D180: =VLOOKUP(Vlookup!D180,Volume_Forecast_Data,D$138,FALSE) -> 10340.8044 | E180: =VLOOKUP(Vlookup!E180,Volume_Forecast_Data,E$138,FALSE) -> 32.6432 | F180: =VLOOKUP(Vlookup!F180,Volume_Forecast_Data,F$138,FALSE) -> 17000 | G180: =VLOOKUP(Vlookup!G180,Volume_Forecast_Data,G$138,FALSE) -> 603.104
A181: LDNO HV: LV Sub HH Metered | B181: =VLOOKUP(Vlookup!B181,Volume_Forecast_Data,B$138,FALSE) -> 183.3268229 | C181: =VLOOKUP(Vlookup!C181,Volume_Forecast_Data,C$138,FALSE) -> 629.223906 | D181: =VLOOKUP(Vlookup!D181,Volume_Forecast_Data,D$138,FALSE) -> 1175.544289 | E181: =VLOOKUP(Vlookup!E181,Volume_Forecast_Data,E$138,FALSE) -> 1.0201 | F181: =VLOOKUP(Vlookup!F181,Volume_Forecast_Data,F$138,FALSE) -> 0 | G181: =VLOOKUP(Vlookup!G181,Volume_Forecast_Data,G$138,FALSE) -> 675.1852
A182: > HV HH Metered
A183: HV HH Metered | B183: =VLOOKUP(Vlookup!B183,Volume_Forecast_Data,B$138,FALSE) -> 776743.208 | C183: =VLOOKUP(Vlookup!C183,Volume_Forecast_Data,C$138,FALSE) -> 3100595.274 | D183: =VLOOKUP(Vlookup!D183,Volume_Forecast_Data,D$138,FALSE) -> 3944742.754 | E183: =VLOOKUP(Vlookup!E183,Volume_Forecast_Data,E$138,FALSE) -> 3783.5509 | F183: =VLOOKUP(Vlookup!F183,Volume_Forecast_Data,F$138,FALSE) -> 2873000 | G183: =VLOOKUP(Vlookup!G183,Volume_Forecast_Data,G$138,FALSE) -> 1033930.859
A184: LDNO HV: HV HH Metered | B184: =VLOOKUP(Vlookup!B184,Volume_Forecast_Data,B$138,FALSE) -> 1622.140184 | C184: =VLOOKUP(Vlookup!C184,Volume_Forecast_Data,C$138,FALSE) -> 5143.610571 | D184: =VLOOKUP(Vlookup!D184,Volume_Forecast_Data,D$138,FALSE) -> 5446.61074 | E184: =VLOOKUP(Vlookup!E184,Volume_Forecast_Data,E$138,FALSE) -> 9.1809 | F184: =VLOOKUP(Vlookup!F184,Volume_Forecast_Data,F$138,FALSE) -> 6000 | G184: =VLOOKUP(Vlookup!G184,Volume_Forecast_Data,G$138,FALSE) -> 832.2484
A185: > HV Sub HH Metered
A186: HV Sub HH Metered | B186: =VLOOKUP(Vlookup!B186,Volume_Forecast_Data,B$138,FALSE) -> 0 | C186: =VLOOKUP(Vlookup!C186,Volume_Forecast_Data,C$138,FALSE) -> 0 | D186: =VLOOKUP(Vlookup!D186,Volume_Forecast_Data,D$138,FALSE) -> 0 | E186: =VLOOKUP(Vlookup!E186,Volume_Forecast_Data,E$138,FALSE) -> 0 | F186: =VLOOKUP(Vlookup!F186,Volume_Forecast_Data,F$138,FALSE) -> 0 | G186: =VLOOKUP(Vlookup!G186,Volume_Forecast_Data,G$138,FALSE) -> 0
A187: > NHH UMS category A
A188: NHH UMS category A | B188: =VLOOKUP(Vlookup!B188,Volume_Forecast_Data,B$138,FALSE) -> 62954.9134 | E188: =VLOOKUP(Vlookup!E188,Volume_Forecast_Data,E$138,FALSE) -> 0
A189: LDNO LV: NHH UMS category A | B189: =VLOOKUP(Vlookup!B189,Volume_Forecast_Data,B$138,FALSE) -> 40.0124231 | E189: =VLOOKUP(Vlookup!E189,Volume_Forecast_Data,E$138,FALSE) -> 0
A190: LDNO HV: NHH UMS category A | B190: =VLOOKUP(Vlookup!B190,Volume_Forecast_Data,B$138,FALSE) -> 182.9428366 | E190: =VLOOKUP(Vlookup!E190,Volume_Forecast_Data,E$138,FALSE) -> 0
A191: > NHH UMS category B
A192: NHH UMS category B | B192: =VLOOKUP(Vlookup!B192,Volume_Forecast_Data,B$138,FALSE) -> 33350.12376 | E192: =VLOOKUP(Vlookup!E192,Volume_Forecast_Data,E$138,FALSE) -> 0
A193: LDNO LV: NHH UMS category B | B193: =VLOOKUP(Vlookup!B193,Volume_Forecast_Data,B$138,FALSE) -> 21.19642757 | E193: =VLOOKUP(Vlookup!E193,Volume_Forecast_Data,E$138,FALSE) -> 0
A194: LDNO HV: NHH UMS category B | B194: =VLOOKUP(Vlookup!B194,Volume_Forecast_Data,B$138,FALSE) -> 96.91326558 | E194: =VLOOKUP(Vlookup!E194,Volume_Forecast_Data,E$138,FALSE) -> 0
A195: > NHH UMS category C
A196: NHH UMS category C | B196: =VLOOKUP(Vlookup!B196,Volume_Forecast_Data,B$138,FALSE) -> 760.4643167 | E196: =VLOOKUP(Vlookup!E196,Volume_Forecast_Data,E$138,FALSE) -> 0
A197: LDNO LV: NHH UMS category C | B197: =VLOOKUP(Vlookup!B197,Volume_Forecast_Data,B$138,FALSE) -> 0.4833303447 | E197: =VLOOKUP(Vlookup!E197,Volume_Forecast_Data,E$138,FALSE) -> 0
A198: LDNO HV: NHH UMS category C | B198: =VLOOKUP(Vlookup!B198,Volume_Forecast_Data,B$138,FALSE) -> 2.209859275 | E198: =VLOOKUP(Vlookup!E198,Volume_Forecast_Data,E$138,FALSE) -> 0
A199: > NHH UMS category D
A200: NHH UMS category D | B200: =VLOOKUP(Vlookup!B200,Volume_Forecast_Data,B$138,FALSE) -> 5406.846739 | E200: =VLOOKUP(Vlookup!E200,Volume_Forecast_Data,E$138,FALSE) -> 0
A201: LDNO LV: NHH UMS category D | B201: =VLOOKUP(Vlookup!B201,Volume_Forecast_Data,B$138,FALSE) -> 3.436444078 | E201: =VLOOKUP(Vlookup!E201,Volume_Forecast_Data,E$138,FALSE) -> 0
A202: LDNO HV: NHH UMS category D | B202: =VLOOKUP(Vlookup!B202,Volume_Forecast_Data,B$138,FALSE) -> 15.71194091 | E202: =VLOOKUP(Vlookup!E202,Volume_Forecast_Data,E$138,FALSE) -> 0
A203: > LV UMS (Pseudo HH Metered)
A204: LV UMS (Pseudo HH Metered) | B204: =VLOOKUP(Vlookup!B204,Volume_Forecast_Data,B$138,FALSE) -> 11735.35688 | C204: =VLOOKUP(Vlookup!C204,Volume_Forecast_Data,C$138,FALSE) -> 27054.58147 | D204: =VLOOKUP(Vlookup!D204,Volume_Forecast_Data,D$138,FALSE) -> 204015.4922 | E204: =VLOOKUP(Vlookup!E204,Volume_Forecast_Data,E$138,FALSE) -> 0
A205: LDNO LV: LV UMS (Pseudo HH Metered) | B205: =VLOOKUP(Vlookup!B205,Volume_Forecast_Data,B$138,FALSE) -> 0 | C205: =VLOOKUP(Vlookup!C205,Volume_Forecast_Data,C$138,FALSE) -> 0 | D205: =VLOOKUP(Vlookup!D205,Volume_Forecast_Data,D$138,FALSE) -> 0 | E205: =VLOOKUP(Vlookup!E205,Volume_Forecast_Data,E$138,FALSE) -> 0
A206: LDNO HV: LV UMS (Pseudo HH Metered) | B206: =VLOOKUP(Vlookup!B206,Volume_Forecast_Data,B$138,FALSE) -> 0 | C206: =VLOOKUP(Vlookup!C206,Volume_Forecast_Data,C$138,FALSE) -> 0 | D206: =VLOOKUP(Vlookup!D206,Volume_Forecast_Data,D$138,FALSE) -> 0 | E206: =VLOOKUP(Vlookup!E206,Volume_Forecast_Data,E$138,FALSE) -> 0
A207: > LV Generation NHH
A208: LV Generation NHH | B208: =VLOOKUP(Vlookup!B208,Volume_Forecast_Data,B$138,FALSE) -> 435.7906839 | E208: =VLOOKUP(Vlookup!E208,Volume_Forecast_Data,E$138,FALSE) -> 97.9296
A209: LDNO LV: LV Generation NHH | B209: =VLOOKUP(Vlookup!B209,Volume_Forecast_Data,B$138,FALSE) -> 0 | E209: =VLOOKUP(Vlookup!E209,Volume_Forecast_Data,E$138,FALSE) -> 0
A210: LDNO HV: LV Generation NHH | B210: =VLOOKUP(Vlookup!B210,Volume_Forecast_Data,B$138,FALSE) -> 0 | E210: =VLOOKUP(Vlookup!E210,Volume_Forecast_Data,E$138,FALSE) -> 0
A211: > LV Sub Generation NHH
A212: LV Sub Generation NHH | B212: =VLOOKUP(Vlookup!B212,Volume_Forecast_Data,B$138,FALSE) -> 0 | E212: =VLOOKUP(Vlookup!E212,Volume_Forecast_Data,E$138,FALSE) -> 0
A213: LDNO HV: LV Sub Generation NHH | B213: =VLOOKUP(Vlookup!B213,Volume_Forecast_Data,B$138,FALSE) -> 0 | E213: =VLOOKUP(Vlookup!E213,Volume_Forecast_Data,E$138,FALSE) -> 0
A214: > LV Generation Intermittent
A215: LV Generation Intermittent | B215: =VLOOKUP(Vlookup!B215,Volume_Forecast_Data,B$138,FALSE) -> 45.7461675 | E215: =VLOOKUP(Vlookup!E215,Volume_Forecast_Data,E$138,FALSE) -> 20.402 | G215: =VLOOKUP(Vlookup!G215,Volume_Forecast_Data,G$138,FALSE) -> 16.962
A216: LDNO LV: LV Generation Intermittent | B216: =VLOOKUP(Vlookup!B216,Volume_Forecast_Data,B$138,FALSE) -> 0 | E216: =VLOOKUP(Vlookup!E216,Volume_Forecast_Data,E$138,FALSE) -> 0 | G216: =VLOOKUP(Vlookup!G216,Volume_Forecast_Data,G$138,FALSE) -> 0
A217: LDNO HV: LV Generation Intermittent | B217: =VLOOKUP(Vlookup!B217,Volume_Forecast_Data,B$138,FALSE) -> 0 | E217: =VLOOKUP(Vlookup!E217,Volume_Forecast_Data,E$138,FALSE) -> 0 | G217: =VLOOKUP(Vlookup!G217,Volume_Forecast_Data,G$138,FALSE) -> 0
A218: > LV Generation Non-Intermittent
A219: LV Generation Non-Intermittent | B219: =VLOOKUP(Vlookup!B219,Volume_Forecast_Data,B$138,FALSE) -> 226.7098713 | C219: =VLOOKUP(Vlookup!C219,Volume_Forecast_Data,C$138,FALSE) -> 860.2817949 | D219: =VLOOKUP(Vlookup!D219,Volume_Forecast_Data,D$138,FALSE) -> 1414.739066 | E219: =VLOOKUP(Vlookup!E219,Volume_Forecast_Data,E$138,FALSE) -> 58.1457 | G219: =VLOOKUP(Vlookup!G219,Volume_Forecast_Data,G$138,FALSE) -> 85.2694
A220: LDNO LV: LV Generation Non-Intermittent | B220: =VLOOKUP(Vlookup!B220,Volume_Forecast_Data,B$138,FALSE) -> 0 | C220: =VLOOKUP(Vlookup!C220,Volume_Forecast_Data,C$138,FALSE) -> 0 | D220: =VLOOKUP(Vlookup!D220,Volume_Forecast_Data,D$138,FALSE) -> 0 | E220: =VLOOKUP(Vlookup!E220,Volume_Forecast_Data,E$138,FALSE) -> 0 | G220: =VLOOKUP(Vlookup!G220,Volume_Forecast_Data,G$138,FALSE) -> 0
A221: LDNO HV: LV Generation Non-Intermittent | B221: =VLOOKUP(Vlookup!B221,Volume_Forecast_Data,B$138,FALSE) -> 0 | C221: =VLOOKUP(Vlookup!C221,Volume_Forecast_Data,C$138,FALSE) -> 0 | D221: =VLOOKUP(Vlookup!D221,Volume_Forecast_Data,D$138,FALSE) -> 0 | E221: =VLOOKUP(Vlookup!E221,Volume_Forecast_Data,E$138,FALSE) -> 0 | G221: =VLOOKUP(Vlookup!G221,Volume_Forecast_Data,G$138,FALSE) -> 0
A222: > LV Sub Generation Intermittent
A223: LV Sub Generation Intermittent | B223: =VLOOKUP(Vlookup!B223,Volume_Forecast_Data,B$138,FALSE) -> 0 | E223: =VLOOKUP(Vlookup!E223,Volume_Forecast_Data,E$138,FALSE) -> 0 | G223: =VLOOKUP(Vlookup!G223,Volume_Forecast_Data,G$138,FALSE) -> 0
A224: LDNO HV: LV Sub Generation Intermittent | B224: =VLOOKUP(Vlookup!B224,Volume_Forecast_Data,B$138,FALSE) -> 0 | E224: =VLOOKUP(Vlookup!E224,Volume_Forecast_Data,E$138,FALSE) -> 0 | G224: =VLOOKUP(Vlookup!G224,Volume_Forecast_Data,G$138,FALSE) -> 0
A225: > LV Sub Generation Non-Intermittent
A226: LV Sub Generation Non-Intermittent | B226: =VLOOKUP(Vlookup!B226,Volume_Forecast_Data,B$138,FALSE) -> 0 | C226: =VLOOKUP(Vlookup!C226,Volume_Forecast_Data,C$138,FALSE) -> 0 | D226: =VLOOKUP(Vlookup!D226,Volume_Forecast_Data,D$138,FALSE) -> 0.3057912 | E226: =VLOOKUP(Vlookup!E226,Volume_Forecast_Data,E$138,FALSE) -> 0 | G226: =VLOOKUP(Vlookup!G226,Volume_Forecast_Data,G$138,FALSE) -> 3.4596
A227: LDNO HV: LV Sub Generation Non-Intermittent | B227: =VLOOKUP(Vlookup!B227,Volume_Forecast_Data,B$138,FALSE) -> 0 | C227: =VLOOKUP(Vlookup!C227,Volume_Forecast_Data,C$138,FALSE) -> 0 | D227: =VLOOKUP(Vlookup!D227,Volume_Forecast_Data,D$138,FALSE) -> 0 | E227: =VLOOKUP(Vlookup!E227,Volume_Forecast_Data,E$138,FALSE) -> 0 | G227: =VLOOKUP(Vlookup!G227,Volume_Forecast_Data,G$138,FALSE) -> 0
A228: > HV Generation Intermittent
A229: HV Generation Intermittent | B229: =VLOOKUP(Vlookup!B229,Volume_Forecast_Data,B$138,FALSE) -> 968.0859342 | E229: =VLOOKUP(Vlookup!E229,Volume_Forecast_Data,E$138,FALSE) -> 4.0804 | G229: =VLOOKUP(Vlookup!G229,Volume_Forecast_Data,G$138,FALSE) -> 376.0514
A230: LDNO HV: HV Generation Intermittent | B230: =VLOOKUP(Vlookup!B230,Volume_Forecast_Data,B$138,FALSE) -> 0 | E230: =VLOOKUP(Vlookup!E230,Volume_Forecast_Data,E$138,FALSE) -> 0 | G230: =VLOOKUP(Vlookup!G230,Volume_Forecast_Data,G$138,FALSE) -> 0
... 96 more rows

Sheet (Y+3)
A5: 1000. Company, charging year, data version
B7: Company | C7: Year | D7: Version
A8: Company, charging year, data version | B8: =VLOOKUP(Vlookup!B8,Forcast_Data,8,FALSE) -> WPD Mid West | C8: =VLOOKUP(Vlookup!C8,Forcast_Data,8,FALSE) -> April 2016 | D8: =VLOOKUP(Vlookup!D8,Forcast_Data,8,FALSE) -> 0
A10: 1010. Financial and general assumptions
A12: Sources: financial assumptions; calendar; network model.
A13: These financial assumptions determine the annuity rate applied to convert the asset values of the network model into an annual charge.
B14: Rate of return | C14: Annualisation period (years) | D14: Annuity proportion for customer-contributed assets | E14: Power factor | F14: Days in the charging period
A15: Financial and general assumptions | B15: =VLOOKUP(Vlookup!B15,Forcast_Data,8,FALSE) -> 0.056 | C15: =VLOOKUP(Vlookup!C15,Forcast_Data,8,FALSE) -> 40 | E15: =VLOOKUP(Vlookup!E15,Forcast_Data,8,FALSE) -> 0.95 | F15: =VLOOKUP(Vlookup!F15,Forcast_Data,8,FALSE) -> 365
A17: 1017. Diversity allowance between top and bottom of network level
A19: Source: operational data analysis and/or network model.
A20: The diversity figure against GSP is the diversity between GSP Group (the whole system) and individual GSPs.
A21: The diversity figure against 132kV is the diversity between GSPs (the top of the 132kV network) and 132kV/EHV bulk supply points (the bottom of the 132kV network).
A22: The diversity figure against EHV is the diversity between 132kV/EHV bulk supply points (the top of the EHV network) and EHV/HV primary substations (the bottom of the EHV network).
A23: The diversity figure against HV is the diversity between EHV/HV primary substations (the top of the HV network) and HV/LV substations (the bottom of the HV network).
B24: Diversity allowance between top and bottom of network level
A25: GSPs | B25: =VLOOKUP(Vlookup!B25,Forcast_Data,8,FALSE) -> 0.05649040832
A26: 132kV | B26: =VLOOKUP(Vlookup!B26,Forcast_Data,8,FALSE) -> 0.0255686825
A27: 132kV/EHV
A28: EHV | B28: =VLOOKUP(Vlookup!B28,Forcast_Data,8,FALSE) -> 0.02663159667
A29: EHV/HV
A30: HV | B30: =VLOOKUP(Vlookup!B30,Forcast_Data,8,FALSE) -> 0.34
A31: HV/LV
A32: LV circuits
A34: 1018. Proportion of relevant load going through 132kV/HV direct transformation
B36: 132kV/HV
A37: EHV/HV | B37: =VLOOKUP(Vlookup!B37,Forcast_Data,8,FALSE) -> 0.6925656292
A39: 1019. Network model GSP peak demand (MW)
B41: Network model GSP peak demand (MW)
A42: Network model GSP peak demand (MW) | B42: =VLOOKUP(Vlookup!B42,Forcast_Data,8,FALSE) -> 500
A44: 1020. Gross asset cost by network level (£)
B46: Gross assets £
A47: 132kV | B47: =VLOOKUP(Vlookup!B47,Forcast_Data,8,FALSE) -> 72089134.97
A48: 132kV/EHV | B48: =VLOOKUP(Vlookup!B48,Forcast_Data,8,FALSE) -> 11242272.13
A49: EHV | B49: =VLOOKUP(Vlookup!B49,Forcast_Data,8,FALSE) -> 12948682.11
A50: EHV/HV | B50: =VLOOKUP(Vlookup!B50,Forcast_Data,8,FALSE) -> 22124469.1
A51: 132kV/HV | B51: =VLOOKUP(Vlookup!B51,Forcast_Data,8,FALSE) -> 20453250.65
A52: HV | B52: =VLOOKUP(Vlookup!B52,Forcast_Data,8,FALSE) -> 112923947.5
A53: HV/LV | B53: =VLOOKUP(Vlookup!B53,Forcast_Data,8,FALSE) -> 70811688.15
A54: LV circuits | B54: =VLOOKUP(Vlookup!B54,Forcast_Data,8,FALSE) -> 98497246.11
A56: 1022. LV service model asset cost (£)
B58: LV service model 1 | C58: LV service model 2 | D58: LV service model 3 | E58: LV service model 4 | F58: LV service model 5 | G58: LV service model 6 | H58: LV service model 7 | I58: LV service model 8
A59: LV service model asset cost (£) | B59: =VLOOKUP(Vlookup!B59,Forcast_Data,8,FALSE) -> 4879.243667 | C59: =VLOOKUP(Vlookup!C59,Forcast_Data,8,FALSE) -> 602.3330783 | D59: =VLOOKUP(Vlookup!D59,Forcast_Data,8,FALSE) -> 711.5034408 | E59: =VLOOKUP(Vlookup!E59,Forcast_Data,8,FALSE) -> 530.0568647 | F59: =VLOOKUP(Vlookup!F59,Forcast_Data,8,FALSE) -> 1216.265712 | G59: =VLOOKUP(Vlookup!G59,Forcast_Data,8,FALSE) -> 893.2910551 | H59: =VLOOKUP(Vlookup!H59,Forcast_Data,8,FALSE) -> - | I59: =VLOOKUP(Vlookup!I59,Forcast_Data,8,FALSE) -> 468.5069717
A61: 1023. HV service model asset cost (£)
B63: HV service model 1 | C63: HV service model 2 | D63: HV service model 3 | E63: HV service model 4 | F63: HV service model 5
A64: HV service model asset cost (£) | B64: =VLOOKUP(Vlookup!B64,Forcast_Data,8,FALSE) -> 8733.8214 | C64: =VLOOKUP(Vlookup!C64,Forcast_Data,8,FALSE) -> 4292.16 | D64: =VLOOKUP(Vlookup!D64,Forcast_Data,8,FALSE) -> 0 | E64: =VLOOKUP(Vlookup!E64,Forcast_Data,8,FALSE) -> - | F64: =VLOOKUP(Vlookup!F64,Forcast_Data,8,FALSE) -> -
A66: 1025. Matrix of applicability of LV service models to tariffs with fixed charges
B67: 26 | C67: =B67+1 -> 27 | D67: =C67+1 -> 28 | E67: 29 | F67: 30 | G67: 31 | H67: 32 | I67: 33
B68: LV service model 1 | C68: LV service model 2 | D68: LV service model 3 | E68: LV service model 4 | F68: LV service model 5 | G68: LV service model 6 | H68: LV service model 7 | I68: LV service model 8
A69: Domestic Unrestricted | B69: =VLOOKUP($A69,'Mat of App'!$B$7:$AP$38,B$67,FALSE) -> 0.05 | C69: =VLOOKUP($A69,'Mat of App'!$B$7:$AP$38,C$67,FALSE) -> 0 | D69: =VLOOKUP($A69,'Mat of App'!$B$7:$AP$38,D$67,FALSE) -> 0 | E69: =VLOOKUP($A69,'Mat of App'!$B$7:$AP$38,E$67,FALSE) -> 0 | F69: =VLOOKUP($A69,'Mat of App'!$B$7:$AP$38,F$67,FALSE) -> 0 | G69: =VLOOKUP($A69,'Mat of App'!$B$7:$AP$38,G$67,FALSE) -> 0 | H69: =VLOOKUP($A69,'Mat of App'!$B$7:$AP$38,H$67,FALSE) -> 0 | I69: =VLOOKUP($A69,'Mat of App'!$B$7:$AP$38,I$67,FALSE) -> 0
A70: Domestic Two Rate | B70: =VLOOKUP($A70,'Mat of App'!$B$7:$AP$38,B$67,FALSE) -> 0.05 | C70: =VLOOKUP($A70,'Mat of App'!$B$7:$AP$38,C$67,FALSE) -> 0 | D70: =VLOOKUP($A70,'Mat of App'!$B$7:$AP$38,D$67,FALSE) -> 0 | E70: =VLOOKUP($A70,'Mat of App'!$B$7:$AP$38,E$67,FALSE) -> 0 | F70: =VLOOKUP($A70,'Mat of App'!$B$7:$AP$38,F$67,FALSE) -> 0 | G70: =VLOOKUP($A70,'Mat of App'!$B$7:$AP$38,G$67,FALSE) -> 0 | H70: =VLOOKUP($A70,'Mat of App'!$B$7:$AP$38,H$67,FALSE) -> 0 | I70: =VLOOKUP($A70,'Mat of App'!$B$7:$AP$38,I$67,FALSE) -> 0
A71: Small Non Domestic Unrestricted | B71: =VLOOKUP($A71,'Mat of App'!$B$7:$AP$38,B$67,FALSE) -> 0 | C71: =VLOOKUP($A71,'Mat of App'!$B$7:$AP$38,C$67,FALSE) -> 1 | D71: =VLOOKUP($A71,'Mat of App'!$B$7:$AP$38,D$67,FALSE) -> 0 | E71: =VLOOKUP($A71,'Mat of App'!$B$7:$AP$38,E$67,FALSE) -> 0 | F71: =VLOOKUP($A71,'Mat of App'!$B$7:$AP$38,F$67,FALSE) -> 0 | G71: =VLOOKUP($A71,'Mat of App'!$B$7:$AP$38,G$67,FALSE) -> 0 | H71: =VLOOKUP($A71,'Mat of App'!$B$7:$AP$38,H$67,FALSE) -> 0 | I71: =VLOOKUP($A71,'Mat of App'!$B$7:$AP$38,I$67,FALSE) -> 0
A72: Small Non Domestic Two Rate | B72: =VLOOKUP($A72,'Mat of App'!$B$7:$AP$38,B$67,FALSE) -> 0 | C72: =VLOOKUP($A72,'Mat of App'!$B$7:$AP$38,C$67,FALSE) -> 1 | D72: =VLOOKUP($A72,'Mat of App'!$B$7:$AP$38,D$67,FALSE) -> 0 | E72: =VLOOKUP($A72,'Mat of App'!$B$7:$AP$38,E$67,FALSE) -> 0 | F72: =VLOOKUP($A72,'Mat of App'!$B$7:$AP$38,F$67,FALSE) -> 0 | G72: =VLOOKUP($A72,'Mat of App'!$B$7:$AP$38,G$67,FALSE) -> 0 | H72: =VLOOKUP($A72,'Mat of App'!$B$7:$AP$38,H$67,FALSE) -> 0 | I72: =VLOOKUP($A72,'Mat of App'!$B$7:$AP$38,I$67,FALSE) -> 0
A73: LV Medium Non-Domestic | B73: =VLOOKUP($A73,'Mat of App'!$B$7:$AP$38,B$67,FALSE) -> 0 | C73: =VLOOKUP($A73,'Mat of App'!$B$7:$AP$38,C$67,FALSE) -> 0 | D73: =VLOOKUP($A73,'Mat of App'!$B$7:$AP$38,D$67,FALSE) -> 1 | E73: =VLOOKUP($A73,'Mat of App'!$B$7:$AP$38,E$67,FALSE) -> 0 | F73: =VLOOKUP($A73,'Mat of App'!$B$7:$AP$38,F$67,FALSE) -> 0 | G73: =VLOOKUP($A73,'Mat of App'!$B$7:$AP$38,G$67,FALSE) -> 0 | H73: =VLOOKUP($A73,'Mat of App'!$B$7:$AP$38,H$67,FALSE) -> 0 | I73: =VLOOKUP($A73,'Mat of App'!$B$7:$AP$38,I$67,FALSE) -> 0
A74: LV Sub Medium Non-Domestic | B74: =VLOOKUP($A74,'Mat of App'!$B$7:$AP$38,B$67,FALSE) -> 0 | C74: =VLOOKUP($A74,'Mat of App'!$B$7:$AP$38,C$67,FALSE) -> 0 | D74: =VLOOKUP($A74,'Mat of App'!$B$7:$AP$38,D$67,FALSE) -> 0 | E74: =VLOOKUP($A74,'Mat of App'!$B$7:$AP$38,E$67,FALSE) -> 1 | F74: =VLOOKUP($A74,'Mat of App'!$B$7:$AP$38,F$67,FALSE) -> 0 | G74: =VLOOKUP($A74,'Mat of App'!$B$7:$AP$38,G$67,FALSE) -> 0 | H74: =VLOOKUP($A74,'Mat of App'!$B$7:$AP$38,H$67,FALSE) -> 0 | I74: =VLOOKUP($A74,'Mat of App'!$B$7:$AP$38,I$67,FALSE) -> 0
A75: LV HH Metered | B75: =VLOOKUP($A75,'Mat of App'!$B$7:$AP$38,B$67,FALSE) -> 0 | C75: =VLOOKUP($A75,'Mat of App'!$B$7:$AP$38,C$67,FALSE) -> 0 | D75: =VLOOKUP($A75,'Mat of App'!$B$7:$AP$38,D$67,FALSE) -> 0 | E75: =VLOOKUP($A75,'Mat of App'!$B$7:$AP$38,E$67,FALSE) -> 0 | F75: =VLOOKUP($A75,'Mat of App'!$B$7:$AP$38,F$67,FALSE) -> 1 | G75: =VLOOKUP($A75,'Mat of App'!$B$7:$AP$38,G$67,FALSE) -> 0 | H75: =VLOOKUP($A75,'Mat of App'!$B$7:$AP$38,H$67,FALSE) -> 0 | I75: =VLOOKUP($A75,'Mat of App'!$B$7:$AP$38,I$67,FALSE) -> 0
A76: LV Sub HH Metered | B76: =VLOOKUP($A76,'Mat of App'!$B$7:$AP$38,B$67,FALSE) -> 0 | C76: =VLOOKUP($A76,'Mat of App'!$B$7:$AP$38,C$67,FALSE) -> 0 | D76: =VLOOKUP($A76,'Mat of App'!$B$7:$AP$38,D$67,FALSE) -> 0 | E76: =VLOOKUP($A76,'Mat of App'!$B$7:$AP$38,E$67,FALSE) -> 0 | F76: =VLOOKUP($A76,'Mat of App'!$B$7:$AP$38,F$67,FALSE) -> 0 | G76: =VLOOKUP($A76,'Mat of App'!$B$7:$AP$38,G$67,FALSE) -> 1 | H76: =VLOOKUP($A76,'Mat of App'!$B$7:$AP$38,H$67,FALSE) -> 0 | I76: =VLOOKUP($A76,'Mat of App'!$B$7:$AP$38,I$67,FALSE) -> 0
A77: LV Generation NHH | B77: =VLOOKUP($A77,'Mat of App'!$B$7:$AP$38,B$67,FALSE) -> 0 | C77: =VLOOKUP($A77,'Mat of App'!$B$7:$AP$38,C$67,FALSE) -> 0 | D77: =VLOOKUP($A77,'Mat of App'!$B$7:$AP$38,D$67,FALSE) -> 0 | E77: =VLOOKUP($A77,'Mat of App'!$B$7:$AP$38,E$67,FALSE) -> 0 | F77: =VLOOKUP($A77,'Mat of App'!$B$7:$AP$38,F$67,FALSE) -> 0 | G77: =VLOOKUP($A77,'Mat of App'!$B$7:$AP$38,G$67,FALSE) -> 0 | H77: =VLOOKUP($A77,'Mat of App'!$B$7:$AP$38,H$67,FALSE) -> 1 | I77: =VLOOKUP($A77,'Mat of App'!$B$7:$AP$38,I$67,FALSE) -> 0
A78: LV Sub Generation NHH | B78: =VLOOKUP($A78,'Mat of App'!$B$7:$AP$38,B$67,FALSE) -> 0 | C78: =VLOOKUP($A78,'Mat of App'!$B$7:$AP$38,C$67,FALSE) -> 0 | D78: =VLOOKUP($A78,'Mat of App'!$B$7:$AP$38,D$67,FALSE) -> 0 | E78: =VLOOKUP($A78,'Mat of App'!$B$7:$AP$38,E$67,FALSE) -> 0 | F78: =VLOOKUP($A78,'Mat of App'!$B$7:$AP$38,F$67,FALSE) -> 0 | G78: =VLOOKUP($A78,'Mat of App'!$B$7:$AP$38,G$67,FALSE) -> 0 | H78: =VLOOKUP($A78,'Mat of App'!$B$7:$AP$38,H$67,FALSE) -> 1 | I78: =VLOOKUP($A78,'Mat of App'!$B$7:$AP$38,I$67,FALSE) -> 0
A79: LV Generation Intermittent | B79: =VLOOKUP($A79,'Mat of App'!$B$7:$AP$38,B$67,FALSE) -> 0 | C79: =VLOOKUP($A79,'Mat of App'!$B$7:$AP$38,C$67,FALSE) -> 0 | D79: =VLOOKUP($A79,'Mat of App'!$B$7:$AP$38,D$67,FALSE) -> 0 | E79: =VLOOKUP($A79,'Mat of App'!$B$7:$AP$38,E$67,FALSE) -> 0 | F79: =VLOOKUP($A79,'Mat of App'!$B$7:$AP$38,F$67,FALSE) -> 0 | G79: =VLOOKUP($A79,'Mat of App'!$B$7:$AP$38,G$67,FALSE) -> 0 | H79: =VLOOKUP($A79,'Mat of App'!$B$7:$AP$38,H$67,FALSE) -> 1 | I79: =VLOOKUP($A79,'Mat of App'!$B$7:$AP$38,I$67,FALSE) -> 0
A80: LV Generation Non-Intermittent | B80: =VLOOKUP($A80,'Mat of App'!$B$7:$AP$38,B$67,FALSE) -> 0 | C80: =VLOOKUP($A80,'Mat of App'!$B$7:$AP$38,C$67,FALSE) -> 0 | D80: =VLOOKUP($A80,'Mat of App'!$B$7:$AP$38,D$67,FALSE) -> 0 | E80: =VLOOKUP($A80,'Mat of App'!$B$7:$AP$38,E$67,FALSE) -> 0 | F80: =VLOOKUP($A80,'Mat of App'!$B$7:$AP$38,F$67,FALSE) -> 0 | G80: =VLOOKUP($A80,'Mat of App'!$B$7:$AP$38,G$67,FALSE) -> 0 | H80: =VLOOKUP($A80,'Mat of App'!$B$7:$AP$38,H$67,FALSE) -> 0 | I80: =VLOOKUP($A80,'Mat of App'!$B$7:$AP$38,I$67,FALSE) -> 0
A81: LV Sub Generation Intermittent | B81: =VLOOKUP($A81,'Mat of App'!$B$7:$AP$38,B$67,FALSE) -> 0 | C81: =VLOOKUP($A81,'Mat of App'!$B$7:$AP$38,C$67,FALSE) -> 0 | D81: =VLOOKUP($A81,'Mat of App'!$B$7:$AP$38,D$67,FALSE) -> 0 | E81: =VLOOKUP($A81,'Mat of App'!$B$7:$AP$38,E$67,FALSE) -> 0 | F81: =VLOOKUP($A81,'Mat of App'!$B$7:$AP$38,F$67,FALSE) -> 0 | G81: =VLOOKUP($A81,'Mat of App'!$B$7:$AP$38,G$67,FALSE) -> 0 | H81: =VLOOKUP($A81,'Mat of App'!$B$7:$AP$38,H$67,FALSE) -> 0 | I81: =VLOOKUP($A81,'Mat of App'!$B$7:$AP$38,I$67,FALSE) -> 0
A82: LV Sub Generation Non-Intermittent | B82: =VLOOKUP($A82,'Mat of App'!$B$7:$AP$38,B$67,FALSE) -> 0 | C82: =VLOOKUP($A82,'Mat of App'!$B$7:$AP$38,C$67,FALSE) -> 0 | D82: =VLOOKUP($A82,'Mat of App'!$B$7:$AP$38,D$67,FALSE) -> 0 | E82: =VLOOKUP($A82,'Mat of App'!$B$7:$AP$38,E$67,FALSE) -> 0 | F82: =VLOOKUP($A82,'Mat of App'!$B$7:$AP$38,F$67,FALSE) -> 0 | G82: =VLOOKUP($A82,'Mat of App'!$B$7:$AP$38,G$67,FALSE) -> 0 | H82: =VLOOKUP($A82,'Mat of App'!$B$7:$AP$38,H$67,FALSE) -> 0 | I82: =VLOOKUP($A82,'Mat of App'!$B$7:$AP$38,I$67,FALSE) -> 0
A84: 1026. Matrix of applicability of LV service models to unmetered tariffs
A86: Source: service models
A87: Proportion of service model involved in connecting load of 1 MWh/year
B88: LV service model 1 | C88: LV service model 2 | D88: LV service model 3 | E88: LV service model 4 | F88: LV service model 5 | G88: LV service model 6 | H88: LV service model 7 | I88: LV service model 8
A89: All LV unmetered tariffs | B89: =VLOOKUP($A89,'Mat of App'!$B$7:$AP$38,B$67,FALSE) -> 0 | C89: =VLOOKUP($A89,'Mat of App'!$B$7:$AP$38,C$67,FALSE) -> 0 | D89: =VLOOKUP($A89,'Mat of App'!$B$7:$AP$38,D$67,FALSE) -> 0 | E89: =VLOOKUP($A89,'Mat of App'!$B$7:$AP$38,E$67,FALSE) -> 0 | F89: =VLOOKUP($A89,'Mat of App'!$B$7:$AP$38,F$67,FALSE) -> 0 | G89: =VLOOKUP($A89,'Mat of App'!$B$7:$AP$38,G$67,FALSE) -> 0 | H89: =VLOOKUP($A89,'Mat of App'!$B$7:$AP$38,H$67,FALSE) -> 0 | I89: =VLOOKUP($A89,'Mat of App'!$B$7:$AP$38,I$67,FALSE) -> 0.488
A91: 1028. Matrix of applicability of HV service models to tariffs with fixed charges
B92: 17 | C92: =B92+1 -> 18 | D92: =C92+1 -> 19 | E92: 20 | F92: 21
B93: HV service model 1 | C93: HV service model 2 | D93: HV service model 3 | E93: HV service model 4 | F93: HV service model 5
A94: HV Medium Non-Domestic | B94: =VLOOKUP($A94,'Mat of App'!$B$7:$AP$38,B$92,FALSE) -> 1 | C94: =VLOOKUP($A94,'Mat of App'!$B$7:$AP$38,C$92,FALSE) -> 0 | D94: =VLOOKUP($A94,'Mat of App'!$B$7:$AP$38,D$92,FALSE) -> 0 | E94: =VLOOKUP($A94,'Mat of App'!$B$7:$AP$38,E$92,FALSE) -> 0 | F94: =VLOOKUP($A94,'Mat of App'!$B$7:$AP$38,F$92,FALSE) -> 0
A95: HV HH Metered | B95: =VLOOKUP($A95,'Mat of App'!$B$7:$AP$38,B$92,FALSE) -> 1 | C95: =VLOOKUP($A95,'Mat of App'!$B$7:$AP$38,C$92,FALSE) -> 0 | D95: =VLOOKUP($A95,'Mat of App'!$B$7:$AP$38,D$92,FALSE) -> 0 | E95: =VLOOKUP($A95,'Mat of App'!$B$7:$AP$38,E$92,FALSE) -> 0 | F95: =VLOOKUP($A95,'Mat of App'!$B$7:$AP$38,F$92,FALSE) -> 0
A96: HV Sub HH Metered | B96: =VLOOKUP($A96,'Mat of App'!$B$7:$AP$38,B$92,FALSE) -> 1 | C96: =VLOOKUP($A96,'Mat of App'!$B$7:$AP$38,C$92,FALSE) -> 0 | D96: =VLOOKUP($A96,'Mat of App'!$B$7:$AP$38,D$92,FALSE) -> 0 | E96: =VLOOKUP($A96,'Mat of App'!$B$7:$AP$38,E$92,FALSE) -> 0 | F96: =VLOOKUP($A96,'Mat of App'!$B$7:$AP$38,F$92,FALSE) -> 0
A97: HV Generation Intermittent | B97: =VLOOKUP($A97,'Mat of App'!$B$7:$AP$38,B$92,FALSE) -> 0 | C97: =VLOOKUP($A97,'Mat of App'!$B$7:$AP$38,C$92,FALSE) -> 1 | D97: =VLOOKUP($A97,'Mat of App'!$B$7:$AP$38,D$92,FALSE) -> 0 | E97: =VLOOKUP($A97,'Mat of App'!$B$7:$AP$38,E$92,FALSE) -> 0 | F97: =VLOOKUP($A97,'Mat of App'!$B$7:$AP$38,F$92,FALSE) -> 0
A98: HV Generation Non-Intermittent | B98: =VLOOKUP($A98,'Mat of App'!$B$7:$AP$38,B$92,FALSE) -> 0 | C98: =VLOOKUP($A98,'Mat of App'!$B$7:$AP$38,C$92,FALSE) -> 1 | D98: =VLOOKUP($A98,'Mat of App'!$B$7:$AP$38,D$92,FALSE) -> 0 | E98: =VLOOKUP($A98,'Mat of App'!$B$7:$AP$38,E$92,FALSE) -> 0 | F98: =VLOOKUP($A98,'Mat of App'!$B$7:$AP$38,F$92,FALSE) -> 0
A99: HV Sub Generation Non-Intermittent | B99: =VLOOKUP($A99,'Mat of App'!$B$7:$AP$38,B$92,FALSE) -> 0 | C99: =VLOOKUP($A99,'Mat of App'!$B$7:$AP$38,C$92,FALSE) -> 1 | D99: =VLOOKUP($A99,'Mat of App'!$B$7:$AP$38,D$92,FALSE) -> 0 | E99: =VLOOKUP($A99,'Mat of App'!$B$7:$AP$38,E$92,FALSE) -> 0 | F99: =VLOOKUP($A99,'Mat of App'!$B$7:$AP$38,F$92,FALSE) -> 0
A100: HV Sub Generation Intermittent | B100: =VLOOKUP($A100,'Mat of App'!$B$7:$AP$38,B$92,FALSE) -> 0 | C100: =VLOOKUP($A100,'Mat of App'!$B$7:$AP$38,C$92,FALSE) -> 1 | D100: =VLOOKUP($A100,'Mat of App'!$B$7:$AP$38,D$92,FALSE) -> 0 | E100: =VLOOKUP($A100,'Mat of App'!$B$7:$AP$38,E$92,FALSE) -> 0 | F100: =VLOOKUP($A100,'Mat of App'!$B$7:$AP$38,F$92,FALSE) -> 0
A102: 1032. Loss adjustment factors to transmission
A104: Source: losses model or loss adjustment factors at time of system peak.
B105: 132kV | C105: 132kV/EHV | D105: EHV | E105: EHV/HV | F105: HV | G105: HV/LV | H105: LV circuits
A106: Loss adjustment factor | B106: =VLOOKUP(Vlookup!B106,Forcast_Data,8,FALSE) -> 1.002 | C106: =VLOOKUP(Vlookup!C106,Forcast_Data,8,FALSE) -> 1.003 | D106: =VLOOKUP(Vlookup!D106,Forcast_Data,8,FALSE) -> 1.006 | E106: =VLOOKUP(Vlookup!E106,Forcast_Data,8,FALSE) -> 1.027 | F106: =VLOOKUP(Vlookup!F106,Forcast_Data,8,FALSE) -> 1.044 | G106: =VLOOKUP(Vlookup!G106,Forcast_Data,8,FALSE) -> 1.051 | H106: =VLOOKUP(Vlookup!H106,Forcast_Data,8,FALSE) -> 1.077
A108: 1037. Embedded network (LDNO) discounts
A110: Source: separate price control disaggregation model.
B111: No discount | C111: LDNO LV: LV user | D111: LDNO HV: LV user | E111: LDNO HV: LV sub user | F111: LDNO HV: HV user
A112: LDNO discount | C112: =VLOOKUP(Vlookup!C112,Forcast_Data,8,FALSE) -> 0.3088318356 | D112: =VLOOKUP(Vlookup!D112,Forcast_Data,8,FALSE) -> 0.500779158 | E112: =VLOOKUP(Vlookup!E112,Forcast_Data,8,FALSE) -> 0.2542804506 | F112: =VLOOKUP(Vlookup!F112,Forcast_Data,8,FALSE) -> 0.1522859741
A114: 1041. Load profile data for demand users
A116: Source: load data analysis.
B117: Coincidence factor | C117: Load factor
A118: Domestic Unrestricted | B118: =VLOOKUP(Vlookup!B118,Forcast_Data,8,FALSE) -> 0.9172510752 | C118: =VLOOKUP(Vlookup!C118,Forcast_Data,8,FALSE) -> 0.4114348134
A119: Domestic Two Rate | B119: =VLOOKUP(Vlookup!B119,Forcast_Data,8,FALSE) -> 0.4008018177 | C119: =VLOOKUP(Vlookup!C119,Forcast_Data,8,FALSE) -> 0.2556052059
A120: Domestic Off Peak (related MPAN) | C120: =VLOOKUP(Vlookup!C120,Forcast_Data,8,FALSE) -> 0.1559078077
A121: Small Non Domestic Unrestricted | B121: =VLOOKUP(Vlookup!B121,Forcast_Data,8,FALSE) -> 0.6200806889 | C121: =VLOOKUP(Vlookup!C121,Forcast_Data,8,FALSE) -> 0.3524542035
A122: Small Non Domestic Two Rate | B122: =VLOOKUP(Vlookup!B122,Forcast_Data,8,FALSE) -> 0.6187554381 | C122: =VLOOKUP(Vlookup!C122,Forcast_Data,8,FALSE) -> 0.4306838132
A123: Small Non Domestic Off Peak (related MPAN) | C123: =VLOOKUP(Vlookup!C123,Forcast_Data,8,FALSE) -> 0.1868684712
A124: LV Medium Non-Domestic | B124: =VLOOKUP(Vlookup!B124,Forcast_Data,8,FALSE) -> 0.8048027574 | C124: =VLOOKUP(Vlookup!C124,Forcast_Data,8,FALSE) -> 0.4920997994
A125: LV Sub Medium Non-Domestic | B125: =VLOOKUP(Vlookup!B125,Forcast_Data,8,FALSE) -> 0.8048027574 | C125: =VLOOKUP(Vlookup!C125,Forcast_Data,8,FALSE) -> 0.4920997994
A126: HV Medium Non-Domestic | B126: =VLOOKUP(Vlookup!B126,Forcast_Data,8,FALSE) -> 0.6108164218 | C126: =VLOOKUP(Vlookup!C126,Forcast_Data,8,FALSE) -> 0.4220141332
A127: LV HH Metered | B127: =VLOOKUP(Vlookup!B127,Forcast_Data,8,FALSE) -> 0.7619514042 | C127: =VLOOKUP(Vlookup!C127,Forcast_Data,8,FALSE) -> 0.5192642925
A128: LV Sub HH Metered | B128: =VLOOKUP(Vlookup!B128,Forcast_Data,8,FALSE) -> 0.7619514042 | C128: =VLOOKUP(Vlookup!C128,Forcast_Data,8,FALSE) -> 0.5192642925
A129: HV HH Metered | B129: =VLOOKUP(Vlookup!B129,Forcast_Data,8,FALSE) -> 0.7725944525 | C129: =VLOOKUP(Vlookup!C129,Forcast_Data,8,FALSE) -> 0.6437861665
A130: HV Sub HH Metered | B130: =VLOOKUP(Vlookup!B130,Forcast_Data,8,FALSE) -> 0.7725944525 | C130: =VLOOKUP(Vlookup!C130,Forcast_Data,8,FALSE) -> 0.6437861665
A131: NHH UMS category A | B131: =VLOOKUP(Vlookup!B131,Forcast_Data,8,FALSE) -> 1 | C131: =VLOOKUP(Vlookup!C131,Forcast_Data,8,FALSE) -> 1
A132: NHH UMS category B | B132: =VLOOKUP(Vlookup!B132,Forcast_Data,8,FALSE) -> 1 | C132: =VLOOKUP(Vlookup!C132,Forcast_Data,8,FALSE) -> 0.4736829452
A133: NHH UMS category C | B133: =VLOOKUP(Vlookup!B133,Forcast_Data,8,FALSE) -> 1 | C133: =VLOOKUP(Vlookup!C133,Forcast_Data,8,FALSE) -> 0.258
A134: NHH UMS category D | B134: =VLOOKUP(Vlookup!B134,Forcast_Data,8,FALSE) -> 0.06413333333 | C134: =VLOOKUP(Vlookup!C134,Forcast_Data,8,FALSE) -> 0.553
A135: LV UMS (Pseudo HH Metered) | B135: =VLOOKUP(Vlookup!B135,Forcast_Data,8,FALSE) -> 0.9938755871 | C135: =VLOOKUP(Vlookup!C135,Forcast_Data,8,FALSE) -> 0.4877395704
A137: 1053. Volume forecasts for the charging year
B138: 22 | C138: 23 | D138: 24 | E138: 25 | F138: 26 | G138: 27
A139: Source: forecast.
A140: Please include MPAN counts for tariffs with no fixed charge (e.g. off-peak tariffs),
A141: but exclude MPANs on tariffs with a fixed charge that are not subject to a fixed charge due to a site grouping arrangement.
B142: Rate 1 units (MWh) | C142: Rate 2 units (MWh) | D142: Rate 3 units (MWh) | E142: MPANs | F142: Import capacity (kVA) | G142: Reactive power units (MVArh)
A143: > Domestic Unrestricted
A144: Domestic Unrestricted | B144: =VLOOKUP(Vlookup!B144,Volume_Forecast_Data,B$138,FALSE) -> 6974754.779 | E144: =VLOOKUP(Vlookup!E144,Volume_Forecast_Data,E$138,FALSE) -> 1980961.793
A145: LDNO LV: Domestic Unrestricted | B145: =VLOOKUP(Vlookup!B145,Volume_Forecast_Data,B$138,FALSE) -> 6680.613407 | E145: =VLOOKUP(Vlookup!E145,Volume_Forecast_Data,E$138,FALSE) -> 4383.930755
A146: LDNO HV: Domestic Unrestricted | B146: =VLOOKUP(Vlookup!B146,Volume_Forecast_Data,B$138,FALSE) -> 20834.96359 | E146: =VLOOKUP(Vlookup!E146,Volume_Forecast_Data,E$138,FALSE) -> 10225.73743
A147: > Domestic Two Rate
A148: Domestic Two Rate | B148: =VLOOKUP(Vlookup!B148,Volume_Forecast_Data,B$138,FALSE) -> 1000185.51 | C148: =VLOOKUP(Vlookup!C148,Volume_Forecast_Data,C$138,FALSE) -> 747989.1798 | E148: =VLOOKUP(Vlookup!E148,Volume_Forecast_Data,E$138,FALSE) -> 324151.24
A149: LDNO LV: Domestic Two Rate | B149: =VLOOKUP(Vlookup!B149,Volume_Forecast_Data,B$138,FALSE) -> 260.1129044 | C149: =VLOOKUP(Vlookup!C149,Volume_Forecast_Data,C$138,FALSE) -> 152.2612597 | E149: =VLOOKUP(Vlookup!E149,Volume_Forecast_Data,E$138,FALSE) -> 172.060267
A150: LDNO HV: Domestic Two Rate | B150: =VLOOKUP(Vlookup!B150,Volume_Forecast_Data,B$138,FALSE) -> 375.3805444 | C150: =VLOOKUP(Vlookup!C150,Volume_Forecast_Data,C$138,FALSE) -> 347.8007657 | E150: =VLOOKUP(Vlookup!E150,Volume_Forecast_Data,E$138,FALSE) -> 273.029765
A151: > Domestic Off Peak (related MPAN)
A152: Domestic Off Peak (related MPAN) | B152: =VLOOKUP(Vlookup!B152,Volume_Forecast_Data,B$138,FALSE) -> 36658.89178 | E152: =VLOOKUP(Vlookup!E152,Volume_Forecast_Data,E$138,FALSE) -> 0
A153: LDNO LV: Domestic Off Peak (related MPAN) | B153: =VLOOKUP(Vlookup!B153,Volume_Forecast_Data,B$138,FALSE) -> 0 | E153: =VLOOKUP(Vlookup!E153,Volume_Forecast_Data,E$138,FALSE) -> 0
A154: LDNO HV: Domestic Off Peak (related MPAN) | B154: =VLOOKUP(Vlookup!B154,Volume_Forecast_Data,B$138,FALSE) -> 0 | E154: =VLOOKUP(Vlookup!E154,Volume_Forecast_Data,E$138,FALSE) -> 0
A155: > Small Non Domestic Unrestricted
A156: Small Non Domestic Unrestricted | B156: =VLOOKUP(Vlookup!B156,Volume_Forecast_Data,B$138,FALSE) -> 1618134.423 | E156: =VLOOKUP(Vlookup!E156,Volume_Forecast_Data,E$138,FALSE) -> 136948.6392
A157: LDNO LV: Small Non Domestic Unrestricted | B157: =VLOOKUP(Vlookup!B157,Volume_Forecast_Data,B$138,FALSE) -> 637.5262253 | E157: =VLOOKUP(Vlookup!E157,Volume_Forecast_Data,E$138,FALSE) -> 107.151304
A158: LDNO HV: Small Non Domestic Unrestricted | B158: =VLOOKUP(Vlookup!B158,Volume_Forecast_Data,B$138,FALSE) -> 6223.133924 | E158: =VLOOKUP(Vlookup!E158,Volume_Forecast_Data,E$138,FALSE) -> 396.665885
A159: > Small Non Domestic Two Rate
A160: Small Non Domestic Two Rate | B160: =VLOOKUP(Vlookup!B160,Volume_Forecast_Data,B$138,FALSE) -> 458514.2967 | C160: =VLOOKUP(Vlookup!C160,Volume_Forecast_Data,C$138,FALSE) -> 208311.2801 | E160: =VLOOKUP(Vlookup!E160,Volume_Forecast_Data,E$138,FALSE) -> 33149.93467
A161: LDNO LV: Small Non Domestic Two Rate | B161: =VLOOKUP(Vlookup!B161,Volume_Forecast_Data,B$138,FALSE) -> 312.2567727 | C161: =VLOOKUP(Vlookup!C161,Volume_Forecast_Data,C$138,FALSE) -> 91.91157278 | E161: =VLOOKUP(Vlookup!E161,Volume_Forecast_Data,E$138,FALSE) -> 9.272709
A162: LDNO HV: Small Non Domestic Two Rate | B162: =VLOOKUP(Vlookup!B162,Volume_Forecast_Data,B$138,FALSE) -> 1369.493593 | C162: =VLOOKUP(Vlookup!C162,Volume_Forecast_Data,C$138,FALSE) -> 352.9763405 | E162: =VLOOKUP(Vlookup!E162,Volume_Forecast_Data,E$138,FALSE) -> 40.181739
A163: > Small Non Domestic Off Peak (related MPAN)
A164: Small Non Domestic Off Peak (related MPAN) | B164: =VLOOKUP(Vlookup!B164,Volume_Forecast_Data,B$138,FALSE) -> 6211.528972 | E164: =VLOOKUP(Vlookup!E164,Volume_Forecast_Data,E$138,FALSE) -> 0
A165: LDNO LV: Small Non Domestic Off Peak (related MPAN) | B165: =VLOOKUP(Vlookup!B165,Volume_Forecast_Data,B$138,FALSE) -> 0 | E165: =VLOOKUP(Vlookup!E165,Volume_Forecast_Data,E$138,FALSE) -> 0
A166: LDNO HV: Small Non Domestic Off Peak (related MPAN) | B166: =VLOOKUP(Vlookup!B166,Volume_Forecast_Data,B$138,FALSE) -> 0 | E166: =VLOOKUP(Vlookup!E166,Volume_Forecast_Data,E$138,FALSE) -> 0
A167: > LV Medium Non-Domestic
A168: LV Medium Non-Domestic | B168: =VLOOKUP(Vlookup!B168,Volume_Forecast_Data,B$138,FALSE) -> 1268304.246 | C168: =VLOOKUP(Vlookup!C168,Volume_Forecast_Data,C$138,FALSE) -> 306239.4777 | E168: =VLOOKUP(Vlookup!E168,Volume_Forecast_Data,E$138,FALSE) -> 18303.29727
A169: LDNO LV: LV Medium Non-Domestic | B169: =VLOOKUP(Vlookup!B169,Volume_Forecast_Data,B$138,FALSE) -> 296.4486614 | C169: =VLOOKUP(Vlookup!C169,Volume_Forecast_Data,C$138,FALSE) -> 100.317273 | E169: =VLOOKUP(Vlookup!E169,Volume_Forecast_Data,E$138,FALSE) -> 7.212107
A170: LDNO HV: LV Medium Non-Domestic | B170: =VLOOKUP(Vlookup!B170,Volume_Forecast_Data,B$138,FALSE) -> 6361.600443 | C170: =VLOOKUP(Vlookup!C170,Volume_Forecast_Data,C$138,FALSE) -> 1488.983974 | E170: =VLOOKUP(Vlookup!E170,Volume_Forecast_Data,E$138,FALSE) -> 63.878662
A171: > LV Sub Medium Non-Domestic
A172: LV Sub Medium Non-Domestic | B172: =VLOOKUP(Vlookup!B172,Volume_Forecast_Data,B$138,FALSE) -> 90.85934149 | C172: =VLOOKUP(Vlookup!C172,Volume_Forecast_Data,C$138,FALSE) -> 23.86195607 | E172: =VLOOKUP(Vlookup!E172,Volume_Forecast_Data,E$138,FALSE) -> 3.090903
A173: > HV Medium Non-Domestic
A174: HV Medium Non-Domestic | B174: =VLOOKUP(Vlookup!B174,Volume_Forecast_Data,B$138,FALSE) -> 36149.02656 | C174: =VLOOKUP(Vlookup!C174,Volume_Forecast_Data,C$138,FALSE) -> 9918.609293 | E174: =VLOOKUP(Vlookup!E174,Volume_Forecast_Data,E$138,FALSE) -> 281.272173
A175: > LV HH Metered
A176: LV HH Metered | B176: =VLOOKUP(Vlookup!B176,Volume_Forecast_Data,B$138,FALSE) -> 202968.0938 | C176: =VLOOKUP(Vlookup!C176,Volume_Forecast_Data,C$138,FALSE) -> 808354.8298 | D176: =VLOOKUP(Vlookup!D176,Volume_Forecast_Data,D$138,FALSE) -> 832801.0194 | E176: =VLOOKUP(Vlookup!E176,Volume_Forecast_Data,E$138,FALSE) -> 6200.351418 | F176: =VLOOKUP(Vlookup!F176,Volume_Forecast_Data,F$138,FALSE) -> 983000 | G176: =VLOOKUP(Vlookup!G176,Volume_Forecast_Data,G$138,FALSE) -> 164557.5686
A177: LDNO LV: LV HH Metered | B177: =VLOOKUP(Vlookup!B177,Volume_Forecast_Data,B$138,FALSE) -> 7.290050447 | C177: =VLOOKUP(Vlookup!C177,Volume_Forecast_Data,C$138,FALSE) -> 52.92825797 | D177: =VLOOKUP(Vlookup!D177,Volume_Forecast_Data,D$138,FALSE) -> 1.365792872 | E177: =VLOOKUP(Vlookup!E177,Volume_Forecast_Data,E$138,FALSE) -> 1.030301 | F177: =VLOOKUP(Vlookup!F177,Volume_Forecast_Data,F$138,FALSE) -> 0 | G177: =VLOOKUP(Vlookup!G177,Volume_Forecast_Data,G$138,FALSE) -> 0.81
A178: LDNO HV: LV HH Metered | B178: =VLOOKUP(Vlookup!B178,Volume_Forecast_Data,B$138,FALSE) -> 4167.131569 | C178: =VLOOKUP(Vlookup!C178,Volume_Forecast_Data,C$138,FALSE) -> 14155.93061 | D178: =VLOOKUP(Vlookup!D178,Volume_Forecast_Data,D$138,FALSE) -> 15502.52039 | E178: =VLOOKUP(Vlookup!E178,Volume_Forecast_Data,E$138,FALSE) -> 81.393779 | F178: =VLOOKUP(Vlookup!F178,Volume_Forecast_Data,F$138,FALSE) -> 19000 | G178: =VLOOKUP(Vlookup!G178,Volume_Forecast_Data,G$138,FALSE) -> 1075.1704
A179: > LV Sub HH Metered
A180: LV Sub HH Metered | B180: =VLOOKUP(Vlookup!B180,Volume_Forecast_Data,B$138,FALSE) -> 2230.823814 | C180: =VLOOKUP(Vlookup!C180,Volume_Forecast_Data,C$138,FALSE) -> 8246.424725 | D180: =VLOOKUP(Vlookup!D180,Volume_Forecast_Data,D$138,FALSE) -> 10237.39636 | E180: =VLOOKUP(Vlookup!E180,Volume_Forecast_Data,E$138,FALSE) -> 32.969632 | F180: =VLOOKUP(Vlookup!F180,Volume_Forecast_Data,F$138,FALSE) -> 17000 | G180: =VLOOKUP(Vlookup!G180,Volume_Forecast_Data,G$138,FALSE) -> 603.104
A181: LDNO HV: LV Sub HH Metered | B181: =VLOOKUP(Vlookup!B181,Volume_Forecast_Data,B$138,FALSE) -> 181.4935547 | C181: =VLOOKUP(Vlookup!C181,Volume_Forecast_Data,C$138,FALSE) -> 622.9316669 | D181: =VLOOKUP(Vlookup!D181,Volume_Forecast_Data,D$138,FALSE) -> 1163.788846 | E181: =VLOOKUP(Vlookup!E181,Volume_Forecast_Data,E$138,FALSE) -> 1.030301 | F181: =VLOOKUP(Vlookup!F181,Volume_Forecast_Data,F$138,FALSE) -> 0 | G181: =VLOOKUP(Vlookup!G181,Volume_Forecast_Data,G$138,FALSE) -> 675.1852
A182: > HV HH Metered
A183: HV HH Metered | B183: =VLOOKUP(Vlookup!B183,Volume_Forecast_Data,B$138,FALSE) -> 768975.7759 | C183: =VLOOKUP(Vlookup!C183,Volume_Forecast_Data,C$138,FALSE) -> 3069589.322 | D183: =VLOOKUP(Vlookup!D183,Volume_Forecast_Data,D$138,FALSE) -> 3905295.326 | E183: =VLOOKUP(Vlookup!E183,Volume_Forecast_Data,E$138,FALSE) -> 3821.386409 | F183: =VLOOKUP(Vlookup!F183,Volume_Forecast_Data,F$138,FALSE) -> 2873000 | G183: =VLOOKUP(Vlookup!G183,Volume_Forecast_Data,G$138,FALSE) -> 1033930.859
A184: LDNO HV: HV HH Metered | B184: =VLOOKUP(Vlookup!B184,Volume_Forecast_Data,B$138,FALSE) -> 1605.918782 | C184: =VLOOKUP(Vlookup!C184,Volume_Forecast_Data,C$138,FALSE) -> 5092.174465 | D184: =VLOOKUP(Vlookup!D184,Volume_Forecast_Data,D$138,FALSE) -> 5392.144633 | E184: =VLOOKUP(Vlookup!E184,Volume_Forecast_Data,E$138,FALSE) -> 9.272709 | F184: =VLOOKUP(Vlookup!F184,Volume_Forecast_Data,F$138,FALSE) -> 6000 | G184: =VLOOKUP(Vlookup!G184,Volume_Forecast_Data,G$138,FALSE) -> 832.2484
A185: > HV Sub HH Metered
A186: HV Sub HH Metered | B186: =VLOOKUP(Vlookup!B186,Volume_Forecast_Data,B$138,FALSE) -> 0 | C186: =VLOOKUP(Vlookup!C186,Volume_Forecast_Data,C$138,FALSE) -> 0 | D186: =VLOOKUP(Vlookup!D186,Volume_Forecast_Data,D$138,FALSE) -> 0 | E186: =VLOOKUP(Vlookup!E186,Volume_Forecast_Data,E$138,FALSE) -> 0 | F186: =VLOOKUP(Vlookup!F186,Volume_Forecast_Data,F$138,FALSE) -> 0 | G186: =VLOOKUP(Vlookup!G186,Volume_Forecast_Data,G$138,FALSE) -> 0
A187: > NHH UMS category A
A188: NHH UMS category A | B188: =VLOOKUP(Vlookup!B188,Volume_Forecast_Data,B$138,FALSE) -> 62325.36427 | E188: =VLOOKUP(Vlookup!E188,Volume_Forecast_Data,E$138,FALSE) -> 0
A189: LDNO LV: NHH UMS category A | B189: =VLOOKUP(Vlookup!B189,Volume_Forecast_Data,B$138,FALSE) -> 39.61229887 | E189: =VLOOKUP(Vlookup!E189,Volume_Forecast_Data,E$138,FALSE) -> 0
A190: LDNO HV: NHH UMS category A | B190: =VLOOKUP(Vlookup!B190,Volume_Forecast_Data,B$138,FALSE) -> 181.1134083 | E190: =VLOOKUP(Vlookup!E190,Volume_Forecast_Data,E$138,FALSE) -> 0
A191: > NHH UMS category B
A192: NHH UMS category B | B192: =VLOOKUP(Vlookup!B192,Volume_Forecast_Data,B$138,FALSE) -> 33016.62252 | E192: =VLOOKUP(Vlookup!E192,Volume_Forecast_Data,E$138,FALSE) -> 0
A193: LDNO LV: NHH UMS category B | B193: =VLOOKUP(Vlookup!B193,Volume_Forecast_Data,B$138,FALSE) -> 20.9844633 | E193: =VLOOKUP(Vlookup!E193,Volume_Forecast_Data,E$138,FALSE) -> 0
A194: LDNO HV: NHH UMS category B | B194: =VLOOKUP(Vlookup!B194,Volume_Forecast_Data,B$138,FALSE) -> 95.94413292 | E194: =VLOOKUP(Vlookup!E194,Volume_Forecast_Data,E$138,FALSE) -> 0
A195: > NHH UMS category C
A196: NHH UMS category C | B196: =VLOOKUP(Vlookup!B196,Volume_Forecast_Data,B$138,FALSE) -> 752.8596736 | E196: =VLOOKUP(Vlookup!E196,Volume_Forecast_Data,E$138,FALSE) -> 0
A197: LDNO LV: NHH UMS category C | B197: =VLOOKUP(Vlookup!B197,Volume_Forecast_Data,B$138,FALSE) -> 0.4784970413 | E197: =VLOOKUP(Vlookup!E197,Volume_Forecast_Data,E$138,FALSE) -> 0
A198: LDNO HV: NHH UMS category C | B198: =VLOOKUP(Vlookup!B198,Volume_Forecast_Data,B$138,FALSE) -> 2.187760682 | E198: =VLOOKUP(Vlookup!E198,Volume_Forecast_Data,E$138,FALSE) -> 0
A199: > NHH UMS category D
A200: NHH UMS category D | B200: =VLOOKUP(Vlookup!B200,Volume_Forecast_Data,B$138,FALSE) -> 5352.778271 | E200: =VLOOKUP(Vlookup!E200,Volume_Forecast_Data,E$138,FALSE) -> 0
A201: LDNO LV: NHH UMS category D | B201: =VLOOKUP(Vlookup!B201,Volume_Forecast_Data,B$138,FALSE) -> 3.402079637 | E201: =VLOOKUP(Vlookup!E201,Volume_Forecast_Data,E$138,FALSE) -> 0
A202: LDNO HV: NHH UMS category D | B202: =VLOOKUP(Vlookup!B202,Volume_Forecast_Data,B$138,FALSE) -> 15.5548215 | E202: =VLOOKUP(Vlookup!E202,Volume_Forecast_Data,E$138,FALSE) -> 0
A203: > LV UMS (Pseudo HH Metered)
A204: LV UMS (Pseudo HH Metered) | B204: =VLOOKUP(Vlookup!B204,Volume_Forecast_Data,B$138,FALSE) -> 11618.00331 | C204: =VLOOKUP(Vlookup!C204,Volume_Forecast_Data,C$138,FALSE) -> 26784.03566 | D204: =VLOOKUP(Vlookup!D204,Volume_Forecast_Data,D$138,FALSE) -> 201975.3373 | E204: =VLOOKUP(Vlookup!E204,Volume_Forecast_Data,E$138,FALSE) -> 0
A205: LDNO LV: LV UMS (Pseudo HH Metered) | B205: =VLOOKUP(Vlookup!B205,Volume_Forecast_Data,B$138,FALSE) -> 0 | C205: =VLOOKUP(Vlookup!C205,Volume_Forecast_Data,C$138,FALSE) -> 0 | D205: =VLOOKUP(Vlookup!D205,Volume_Forecast_Data,D$138,FALSE) -> 0 | E205: =VLOOKUP(Vlookup!E205,Volume_Forecast_Data,E$138,FALSE) -> 0
A206: LDNO HV: LV UMS (Pseudo HH Metered) | B206: =VLOOKUP(Vlookup!B206,Volume_Forecast_Data,B$138,FALSE) -> 0 | C206: =VLOOKUP(Vlookup!C206,Volume_Forecast_Data,C$138,FALSE) -> 0 | D206: =VLOOKUP(Vlookup!D206,Volume_Forecast_Data,D$138,FALSE) -> 0 | E206: =VLOOKUP(Vlookup!E206,Volume_Forecast_Data,E$138,FALSE) -> 0
A207: > LV Generation NHH
A208: LV Generation NHH | B208: =VLOOKUP(Vlookup!B208,Volume_Forecast_Data,B$138,FALSE) -> 431.4327771 | E208: =VLOOKUP(Vlookup!E208,Volume_Forecast_Data,E$138,FALSE) -> 98.908896
A209: LDNO LV: LV Generation NHH | B209: =VLOOKUP(Vlookup!B209,Volume_Forecast_Data,B$138,FALSE) -> 0 | E209: =VLOOKUP(Vlookup!E209,Volume_Forecast_Data,E$138,FALSE) -> 0
A210: LDNO HV: LV Generation NHH | B210: =VLOOKUP(Vlookup!B210,Volume_Forecast_Data,B$138,FALSE) -> 0 | E210: =VLOOKUP(Vlookup!E210,Volume_Forecast_Data,E$138,FALSE) -> 0
A211: > LV Sub Generation NHH
A212: LV Sub Generation NHH | B212: =VLOOKUP(Vlookup!B212,Volume_Forecast_Data,B$138,FALSE) -> 0 | E212: =VLOOKUP(Vlookup!E212,Volume_Forecast_Data,E$138,FALSE) -> 0
A213: LDNO HV: LV Sub Generation NHH | B213: =VLOOKUP(Vlookup!B213,Volume_Forecast_Data,B$138,FALSE) -> 0 | E213: =VLOOKUP(Vlookup!E213,Volume_Forecast_Data,E$138,FALSE) -> 0
A214: > LV Generation Intermittent
A215: LV Generation Intermittent | B215: =VLOOKUP(Vlookup!B215,Volume_Forecast_Data,B$138,FALSE) -> 45.28870583 | E215: =VLOOKUP(Vlookup!E215,Volume_Forecast_Data,E$138,FALSE) -> 20.60602 | G215: =VLOOKUP(Vlookup!G215,Volume_Forecast_Data,G$138,FALSE) -> 16.962
A216: LDNO LV: LV Generation Intermittent | B216: =VLOOKUP(Vlookup!B216,Volume_Forecast_Data,B$138,FALSE) -> 0 | E216: =VLOOKUP(Vlookup!E216,Volume_Forecast_Data,E$138,FALSE) -> 0 | G216: =VLOOKUP(Vlookup!G216,Volume_Forecast_Data,G$138,FALSE) -> 0
A217: LDNO HV: LV Generation Intermittent | B217: =VLOOKUP(Vlookup!B217,Volume_Forecast_Data,B$138,FALSE) -> 0 | E217: =VLOOKUP(Vlookup!E217,Volume_Forecast_Data,E$138,FALSE) -> 0 | G217: =VLOOKUP(Vlookup!G217,Volume_Forecast_Data,G$138,FALSE) -> 0
A218: > LV Generation Non-Intermittent
A219: LV Generation Non-Intermittent | B219: =VLOOKUP(Vlookup!B219,Volume_Forecast_Data,B$138,FALSE) -> 224.4427726 | C219: =VLOOKUP(Vlookup!C219,Volume_Forecast_Data,C$138,FALSE) -> 851.678977 | D219: =VLOOKUP(Vlookup!D219,Volume_Forecast_Data,D$138,FALSE) -> 1400.591676 | E219: =VLOOKUP(Vlookup!E219,Volume_Forecast_Data,E$138,FALSE) -> 58.727157 | G219: =VLOOKUP(Vlookup!G219,Volume_Forecast_Data,G$138,FALSE) -> 85.2694
A220: LDNO LV: LV Generation Non-Intermittent | B220: =VLOOKUP(Vlookup!B220,Volume_Forecast_Data,B$138,FALSE) -> 0 | C220: =VLOOKUP(Vlookup!C220,Volume_Forecast_Data,C$138,FALSE) -> 0 | D220: =VLOOKUP(Vlookup!D220,Volume_Forecast_Data,D$138,FALSE) -> 0 | E220: =VLOOKUP(Vlookup!E220,Volume_Forecast_Data,E$138,FALSE) -> 0 | G220: =VLOOKUP(Vlookup!G220,Volume_Forecast_Data,G$138,FALSE) -> 0
A221: LDNO HV: LV Generation Non-Intermittent | B221: =VLOOKUP(Vlookup!B221,Volume_Forecast_Data,B$138,FALSE) -> 0 | C221: =VLOOKUP(Vlookup!C221,Volume_Forecast_Data,C$138,FALSE) -> 0 | D221: =VLOOKUP(Vlookup!D221,Volume_Forecast_Data,D$138,FALSE) -> 0 | E221: =VLOOKUP(Vlookup!E221,Volume_Forecast_Data,E$138,FALSE) -> 0 | G221: =VLOOKUP(Vlookup!G221,Volume_Forecast_Data,G$138,FALSE) -> 0
A222: > LV Sub Generation Intermittent
A223: LV Sub Generation Intermittent | B223: =VLOOKUP(Vlookup!B223,Volume_Forecast_Data,B$138,FALSE) -> 0 | E223: =VLOOKUP(Vlookup!E223,Volume_Forecast_Data,E$138,FALSE) -> 0 | G223: =VLOOKUP(Vlookup!G223,Volume_Forecast_Data,G$138,FALSE) -> 0
A224: LDNO HV: LV Sub Generation Intermittent | B224: =VLOOKUP(Vlookup!B224,Volume_Forecast_Data,B$138,FALSE) -> 0 | E224: =VLOOKUP(Vlookup!E224,Volume_Forecast_Data,E$138,FALSE) -> 0 | G224: =VLOOKUP(Vlookup!G224,Volume_Forecast_Data,G$138,FALSE) -> 0
A225: > LV Sub Generation Non-Intermittent
A226: LV Sub Generation Non-Intermittent | B226: =VLOOKUP(Vlookup!B226,Volume_Forecast_Data,B$138,FALSE) -> 0 | C226: =VLOOKUP(Vlookup!C226,Volume_Forecast_Data,C$138,FALSE) -> 0 | D226: =VLOOKUP(Vlookup!D226,Volume_Forecast_Data,D$138,FALSE) -> 0.302733288 | E226: =VLOOKUP(Vlookup!E226,Volume_Forecast_Data,E$138,FALSE) -> 0 | G226: =VLOOKUP(Vlookup!G226,Volume_Forecast_Data,G$138,FALSE) -> 3.4596
A227: LDNO HV: LV Sub Generation Non-Intermittent | B227: =VLOOKUP(Vlookup!B227,Volume_Forecast_Data,B$138,FALSE) -> 0 | C227: =VLOOKUP(Vlookup!C227,Volume_Forecast_Data,C$138,FALSE) -> 0 | D227: =VLOOKUP(Vlookup!D227,Volume_Forecast_Data,D$138,FALSE) -> 0 | E227: =VLOOKUP(Vlookup!E227,Volume_Forecast_Data,E$138,FALSE) -> 0 | G227: =VLOOKUP(Vlookup!G227,Volume_Forecast_Data,G$138,FALSE) -> 0
A228: > HV Generation Intermittent
A229: HV Generation Intermittent | B229: =VLOOKUP(Vlookup!B229,Volume_Forecast_Data,B$138,FALSE) -> 958.4050749 | E229: =VLOOKUP(Vlookup!E229,Volume_Forecast_Data,E$138,FALSE) -> 4.121204 | G229: =VLOOKUP(Vlookup!G229,Volume_Forecast_Data,G$138,FALSE) -> 376.0514
A230: LDNO HV: HV Generation Intermittent | B230: =VLOOKUP(Vlookup!B230,Volume_Forecast_Data,B$138,FALSE) -> 0 | E230: =VLOOKUP(Vlookup!E230,Volume_Forecast_Data,E$138,FALSE) -> 0 | G230: =VLOOKUP(Vlookup!G230,Volume_Forecast_Data,G$138,FALSE) -> 0
... 96 more rows

Sheet (Y+4)
A5: 1000. Company, charging year, data version
B7: Company | C7: Year | D7: Version
A8: Company, charging year, data version | B8: =VLOOKUP(Vlookup!B8,Forcast_Data,9,FALSE) -> WPD Mid West | C8: =VLOOKUP(Vlookup!C8,Forcast_Data,9,FALSE) -> April 2017 | D8: =VLOOKUP(Vlookup!D8,Forcast_Data,9,FALSE) -> 0
A10: 1010. Financial and general assumptions
A12: Sources: financial assumptions; calendar; network model.
A13: These financial assumptions determine the annuity rate applied to convert the asset values of the network model into an annual charge.
B14: Rate of return | C14: Annualisation period (years) | D14: Annuity proportion for customer-contributed assets | E14: Power factor | F14: Days in the charging period
A15: Financial and general assumptions | B15: =VLOOKUP(Vlookup!B15,Forcast_Data,9,FALSE) -> 0.056 | C15: =VLOOKUP(Vlookup!C15,Forcast_Data,9,FALSE) -> 40 | E15: =VLOOKUP(Vlookup!E15,Forcast_Data,9,FALSE) -> 0.95 | F15: =VLOOKUP(Vlookup!F15,Forcast_Data,9,FALSE) -> 365
A17: 1017. Diversity allowance between top and bottom of network level
A19: Source: operational data analysis and/or network model.
A20: The diversity figure against GSP is the diversity between GSP Group (the whole system) and individual GSPs.
A21: The diversity figure against 132kV is the diversity between GSPs (the top of the 132kV network) and 132kV/EHV bulk supply points (the bottom of the 132kV network).
A22: The diversity figure against EHV is the diversity between 132kV/EHV bulk supply points (the top of the EHV network) and EHV/HV primary substations (the bottom of the EHV network).
A23: The diversity figure against HV is the diversity between EHV/HV primary substations (the top of the HV network) and HV/LV substations (the bottom of the HV network).
B24: Diversity allowance between top and bottom of network level
A25: GSPs | B25: =VLOOKUP(Vlookup!B25,Forcast_Data,9,FALSE) -> 0.05649040832
A26: 132kV | B26: =VLOOKUP(Vlookup!B26,Forcast_Data,9,FALSE) -> 0.0255686825
A27: 132kV/EHV
A28: EHV | B28: =VLOOKUP(Vlookup!B28,Forcast_Data,9,FALSE) -> 0.02663159667
A29: EHV/HV
A30: HV | B30: =VLOOKUP(Vlookup!B30,Forcast_Data,9,FALSE) -> 0.34
A31: HV/LV
A32: LV circuits
A34: 1018. Proportion of relevant load going through 132kV/HV direct transformation
B36: 132kV/HV
A37: EHV/HV | B37: =VLOOKUP(Vlookup!B37,Forcast_Data,9,FALSE) -> 0.6925656292
A39: 1019. Network model GSP peak demand (MW)
B41: Network model GSP peak demand (MW)
A42: Network model GSP peak demand (MW) | B42: =VLOOKUP(Vlookup!B42,Forcast_Data,9,FALSE) -> 500
A44: 1020. Gross asset cost by network level (£)
B46: Gross assets £
A47: 132kV | B47: =VLOOKUP(Vlookup!B47,Forcast_Data,9,FALSE) -> 73530917.67
A48: 132kV/EHV | B48: =VLOOKUP(Vlookup!B48,Forcast_Data,9,FALSE) -> 11467117.57
A49: EHV | B49: =VLOOKUP(Vlookup!B49,Forcast_Data,9,FALSE) -> 13207655.75
A50: EHV/HV | B50: =VLOOKUP(Vlookup!B50,Forcast_Data,9,FALSE) -> 22566958.48
A51: 132kV/HV | B51: =VLOOKUP(Vlookup!B51,Forcast_Data,9,FALSE) -> 20862315.66
A52: HV | B52: =VLOOKUP(Vlookup!B52,Forcast_Data,9,FALSE) -> 115182426.5
A53: HV/LV | B53: =VLOOKUP(Vlookup!B53,Forcast_Data,9,FALSE) -> 72227921.92
A54: LV circuits | B54: =VLOOKUP(Vlookup!B54,Forcast_Data,9,FALSE) -> 100467191
A56: 1022. LV service model asset cost (£)
B58: LV service model 1 | C58: LV service model 2 | D58: LV service model 3 | E58: LV service model 4 | F58: LV service model 5 | G58: LV service model 6 | H58: LV service model 7 | I58: LV service model 8
A59: LV service model asset cost (£) | B59: =VLOOKUP(Vlookup!B59,Forcast_Data,9,FALSE) -> 4976.828541 | C59: =VLOOKUP(Vlookup!C59,Forcast_Data,9,FALSE) -> 614.3797398 | D59: =VLOOKUP(Vlookup!D59,Forcast_Data,9,FALSE) -> 725.7335096 | E59: =VLOOKUP(Vlookup!E59,Forcast_Data,9,FALSE) -> 540.658002 | F59: =VLOOKUP(Vlookup!F59,Forcast_Data,9,FALSE) -> 1240.591027 | G59: =VLOOKUP(Vlookup!G59,Forcast_Data,9,FALSE) -> 911.1568762 | H59: =VLOOKUP(Vlookup!H59,Forcast_Data,9,FALSE) -> - | I59: =VLOOKUP(Vlookup!I59,Forcast_Data,9,FALSE) -> 477.8771111
A61: 1023. HV service model asset cost (£)
B63: HV service model 1 | C63: HV service model 2 | D63: HV service model 3 | E63: HV service model 4 | F63: HV service model 5
A64: HV service model asset cost (£) | B64: =VLOOKUP(Vlookup!B64,Forcast_Data,9,FALSE) -> 8908.497828 | C64: =VLOOKUP(Vlookup!C64,Forcast_Data,9,FALSE) -> 4378.0032 | D64: =VLOOKUP(Vlookup!D64,Forcast_Data,9,FALSE) -> 0 | E64: =VLOOKUP(Vlookup!E64,Forcast_Data,9,FALSE) -> - | F64: =VLOOKUP(Vlookup!F64,Forcast_Data,9,FALSE) -> -
A66: 1025. Matrix of applicability of LV service models to tariffs with fixed charges
B67: 34 | C67: =B67+1 -> 35 | D67: =C67+1 -> 36 | E67: 37 | F67: 38 | G67: 39 | H67: 40 | I67: 41
B68: LV service model 1 | C68: LV service model 2 | D68: LV service model 3 | E68: LV service model 4 | F68: LV service model 5 | G68: LV service model 6 | H68: LV service model 7 | I68: LV service model 8
A69: Domestic Unrestricted | B69: =VLOOKUP($A69,'Mat of App'!$B$7:$AP$38,B$67,FALSE) -> 0.05 | C69: =VLOOKUP($A69,'Mat of App'!$B$7:$AP$38,C$67,FALSE) -> 0 | D69: =VLOOKUP($A69,'Mat of App'!$B$7:$AP$38,D$67,FALSE) -> 0 | E69: =VLOOKUP($A69,'Mat of App'!$B$7:$AP$38,E$67,FALSE) -> 0 | F69: =VLOOKUP($A69,'Mat of App'!$B$7:$AP$38,F$67,FALSE) -> 0 | G69: =VLOOKUP($A69,'Mat of App'!$B$7:$AP$38,G$67,FALSE) -> 0 | H69: =VLOOKUP($A69,'Mat of App'!$B$7:$AP$38,H$67,FALSE) -> 0 | I69: =VLOOKUP($A69,'Mat of App'!$B$7:$AP$38,I$67,FALSE) -> 0
A70: Domestic Two Rate | B70: =VLOOKUP($A70,'Mat of App'!$B$7:$AP$38,B$67,FALSE) -> 0.05 | C70: =VLOOKUP($A70,'Mat of App'!$B$7:$AP$38,C$67,FALSE) -> 0 | D70: =VLOOKUP($A70,'Mat of App'!$B$7:$AP$38,D$67,FALSE) -> 0 | E70: =VLOOKUP($A70,'Mat of App'!$B$7:$AP$38,E$67,FALSE) -> 0 | F70: =VLOOKUP($A70,'Mat of App'!$B$7:$AP$38,F$67,FALSE) -> 0 | G70: =VLOOKUP($A70,'Mat of App'!$B$7:$AP$38,G$67,FALSE) -> 0 | H70: =VLOOKUP($A70,'Mat of App'!$B$7:$AP$38,H$67,FALSE) -> 0 | I70: =VLOOKUP($A70,'Mat of App'!$B$7:$AP$38,I$67,FALSE) -> 0
A71: Small Non Domestic Unrestricted | B71: =VLOOKUP($A71,'Mat of App'!$B$7:$AP$38,B$67,FALSE) -> 0 | C71: =VLOOKUP($A71,'Mat of App'!$B$7:$AP$38,C$67,FALSE) -> 1 | D71: =VLOOKUP($A71,'Mat of App'!$B$7:$AP$38,D$67,FALSE) -> 0 | E71: =VLOOKUP($A71,'Mat of App'!$B$7:$AP$38,E$67,FALSE) -> 0 | F71: =VLOOKUP($A71,'Mat of App'!$B$7:$AP$38,F$67,FALSE) -> 0 | G71: =VLOOKUP($A71,'Mat of App'!$B$7:$AP$38,G$67,FALSE) -> 0 | H71: =VLOOKUP($A71,'Mat of App'!$B$7:$AP$38,H$67,FALSE) -> 0 | I71: =VLOOKUP($A71,'Mat of App'!$B$7:$AP$38,I$67,FALSE) -> 0
A72: Small Non Domestic Two Rate | B72: =VLOOKUP($A72,'Mat of App'!$B$7:$AP$38,B$67,FALSE) -> 0 | C72: =VLOOKUP($A72,'Mat of App'!$B$7:$AP$38,C$67,FALSE) -> 1 | D72: =VLOOKUP($A72,'Mat of App'!$B$7:$AP$38,D$67,FALSE) -> 0 | E72: =VLOOKUP($A72,'Mat of App'!$B$7:$AP$38,E$67,FALSE) -> 0 | F72: =VLOOKUP($A72,'Mat of App'!$B$7:$AP$38,F$67,FALSE) -> 0 | G72: =VLOOKUP($A72,'Mat of App'!$B$7:$AP$38,G$67,FALSE) -> 0 | H72: =VLOOKUP($A72,'Mat of App'!$B$7:$AP$38,H$67,FALSE) -> 0 | I72: =VLOOKUP($A72,'Mat of App'!$B$7:$AP$38,I$67,FALSE) -> 0
A73: LV Medium Non-Domestic | B73: =VLOOKUP($A73,'Mat of App'!$B$7:$AP$38,B$67,FALSE) -> 0 | C73: =VLOOKUP($A73,'Mat of App'!$B$7:$AP$38,C$67,FALSE) -> 0 | D73: =VLOOKUP($A73,'Mat of App'!$B$7:$AP$38,D$67,FALSE) -> 1 | E73: =VLOOKUP($A73,'Mat of App'!$B$7:$AP$38,E$67,FALSE) -> 0 | F73: =VLOOKUP($A73,'Mat of App'!$B$7:$AP$38,F$67,FALSE) -> 0 | G73: =VLOOKUP($A73,'Mat of App'!$B$7:$AP$38,G$67,FALSE) -> 0 | H73: =VLOOKUP($A73,'Mat of App'!$B$7:$AP$38,H$67,FALSE) -> 0 | I73: =VLOOKUP($A73,'Mat of App'!$B$7:$AP$38,I$67,FALSE) -> 0
A74: LV Sub Medium Non-Domestic | B74: =VLOOKUP($A74,'Mat of App'!$B$7:$AP$38,B$67,FALSE) -> 0 | C74: =VLOOKUP($A74,'Mat of App'!$B$7:$AP$38,C$67,FALSE) -> 0 | D74: =VLOOKUP($A74,'Mat of App'!$B$7:$AP$38,D$67,FALSE) -> 0 | E74: =VLOOKUP($A74,'Mat of App'!$B$7:$AP$38,E$67,FALSE) -> 1 | F74: =VLOOKUP($A74,'Mat of App'!$B$7:$AP$38,F$67,FALSE) -> 0 | G74: =VLOOKUP($A74,'Mat of App'!$B$7:$AP$38,G$67,FALSE) -> 0 | H74: =VLOOKUP($A74,'Mat of App'!$B$7:$AP$38,H$67,FALSE) -> 0 | I74: =VLOOKUP($A74,'Mat of App'!$B$7:$AP$38,I$67,FALSE) -> 0
A75: LV HH Metered | B75: =VLOOKUP($A75,'Mat of App'!$B$7:$AP$38,B$67,FALSE) -> 0 | C75: =VLOOKUP($A75,'Mat of App'!$B$7:$AP$38,C$67,FALSE) -> 0 | D75: =VLOOKUP($A75,'Mat of App'!$B$7:$AP$38,D$67,FALSE) -> 0 | E75: =VLOOKUP($A75,'Mat of App'!$B$7:$AP$38,E$67,FALSE) -> 0 | F75: =VLOOKUP($A75,'Mat of App'!$B$7:$AP$38,F$67,FALSE) -> 1 | G75: =VLOOKUP($A75,'Mat of App'!$B$7:$AP$38,G$67,FALSE) -> 0 | H75: =VLOOKUP($A75,'Mat of App'!$B$7:$AP$38,H$67,FALSE) -> 0 | I75: =VLOOKUP($A75,'Mat of App'!$B$7:$AP$38,I$67,FALSE) -> 0
A76: LV Sub HH Metered | B76: =VLOOKUP($A76,'Mat of App'!$B$7:$AP$38,B$67,FALSE) -> 0 | C76: =VLOOKUP($A76,'Mat of App'!$B$7:$AP$38,C$67,FALSE) -> 0 | D76: =VLOOKUP($A76,'Mat of App'!$B$7:$AP$38,D$67,FALSE) -> 0 | E76: =VLOOKUP($A76,'Mat of App'!$B$7:$AP$38,E$67,FALSE) -> 0 | F76: =VLOOKUP($A76,'Mat of App'!$B$7:$AP$38,F$67,FALSE) -> 0 | G76: =VLOOKUP($A76,'Mat of App'!$B$7:$AP$38,G$67,FALSE) -> 1 | H76: =VLOOKUP($A76,'Mat of App'!$B$7:$AP$38,H$67,FALSE) -> 0 | I76: =VLOOKUP($A76,'Mat of App'!$B$7:$AP$38,I$67,FALSE) -> 0
A77: LV Generation NHH | B77: =VLOOKUP($A77,'Mat of App'!$B$7:$AP$38,B$67,FALSE) -> 0 | C77: =VLOOKUP($A77,'Mat of App'!$B$7:$AP$38,C$67,FALSE) -> 0 | D77: =VLOOKUP($A77,'Mat of App'!$B$7:$AP$38,D$67,FALSE) -> 0 | E77: =VLOOKUP($A77,'Mat of App'!$B$7:$AP$38,E$67,FALSE) -> 0 | F77: =VLOOKUP($A77,'Mat of App'!$B$7:$AP$38,F$67,FALSE) -> 0 | G77: =VLOOKUP($A77,'Mat of App'!$B$7:$AP$38,G$67,FALSE) -> 0 | H77: =VLOOKUP($A77,'Mat of App'!$B$7:$AP$38,H$67,FALSE) -> 1 | I77: =VLOOKUP($A77,'Mat of App'!$B$7:$AP$38,I$67,FALSE) -> 0
A78: LV Sub Generation NHH | B78: =VLOOKUP($A78,'Mat of App'!$B$7:$AP$38,B$67,FALSE) -> 0 | C78: =VLOOKUP($A78,'Mat of App'!$B$7:$AP$38,C$67,FALSE) -> 0 | D78: =VLOOKUP($A78,'Mat of App'!$B$7:$AP$38,D$67,FALSE) -> 0 | E78: =VLOOKUP($A78,'Mat of App'!$B$7:$AP$38,E$67,FALSE) -> 0 | F78: =VLOOKUP($A78,'Mat of App'!$B$7:$AP$38,F$67,FALSE) -> 0 | G78: =VLOOKUP($A78,'Mat of App'!$B$7:$AP$38,G$67,FALSE) -> 0 | H78: =VLOOKUP($A78,'Mat of App'!$B$7:$AP$38,H$67,FALSE) -> 1 | I78: =VLOOKUP($A78,'Mat of App'!$B$7:$AP$38,I$67,FALSE) -> 0
A79: LV Generation Intermittent | B79: =VLOOKUP($A79,'Mat of App'!$B$7:$AP$38,B$67,FALSE) -> 0 | C79: =VLOOKUP($A79,'Mat of App'!$B$7:$AP$38,C$67,FALSE) -> 0 | D79: =VLOOKUP($A79,'Mat of App'!$B$7:$AP$38,D$67,FALSE) -> 0 | E79: =VLOOKUP($A79,'Mat of App'!$B$7:$AP$38,E$67,FALSE) -> 0 | F79: =VLOOKUP($A79,'Mat of App'!$B$7:$AP$38,F$67,FALSE) -> 0 | G79: =VLOOKUP($A79,'Mat of App'!$B$7:$AP$38,G$67,FALSE) -> 0 | H79: =VLOOKUP($A79,'Mat of App'!$B$7:$AP$38,H$67,FALSE) -> 1 | I79: =VLOOKUP($A79,'Mat of App'!$B$7:$AP$38,I$67,FALSE) -> 0
A80: LV Generation Non-Intermittent | B80: =VLOOKUP($A80,'Mat of App'!$B$7:$AP$38,B$67,FALSE) -> 0 | C80: =VLOOKUP($A80,'Mat of App'!$B$7:$AP$38,C$67,FALSE) -> 0 | D80: =VLOOKUP($A80,'Mat of App'!$B$7:$AP$38,D$67,FALSE) -> 0 | E80: =VLOOKUP($A80,'Mat of App'!$B$7:$AP$38,E$67,FALSE) -> 0 | F80: =VLOOKUP($A80,'Mat of App'!$B$7:$AP$38,F$67,FALSE) -> 0 | G80: =VLOOKUP($A80,'Mat of App'!$B$7:$AP$38,G$67,FALSE) -> 0 | H80: =VLOOKUP($A80,'Mat of App'!$B$7:$AP$38,H$67,FALSE) -> 0 | I80: =VLOOKUP($A80,'Mat of App'!$B$7:$AP$38,I$67,FALSE) -> 0
A81: LV Sub Generation Intermittent | B81: =VLOOKUP($A81,'Mat of App'!$B$7:$AP$38,B$67,FALSE) -> 0 | C81: =VLOOKUP($A81,'Mat of App'!$B$7:$AP$38,C$67,FALSE) -> 0 | D81: =VLOOKUP($A81,'Mat of App'!$B$7:$AP$38,D$67,FALSE) -> 0 | E81: =VLOOKUP($A81,'Mat of App'!$B$7:$AP$38,E$67,FALSE) -> 0 | F81: =VLOOKUP($A81,'Mat of App'!$B$7:$AP$38,F$67,FALSE) -> 0 | G81: =VLOOKUP($A81,'Mat of App'!$B$7:$AP$38,G$67,FALSE) -> 0 | H81: =VLOOKUP($A81,'Mat of App'!$B$7:$AP$38,H$67,FALSE) -> 0 | I81: =VLOOKUP($A81,'Mat of App'!$B$7:$AP$38,I$67,FALSE) -> 0
A82: LV Sub Generation Non-Intermittent | B82: =VLOOKUP($A82,'Mat of App'!$B$7:$AP$38,B$67,FALSE) -> 0 | C82: =VLOOKUP($A82,'Mat of App'!$B$7:$AP$38,C$67,FALSE) -> 0 | D82: =VLOOKUP($A82,'Mat of App'!$B$7:$AP$38,D$67,FALSE) -> 0 | E82: =VLOOKUP($A82,'Mat of App'!$B$7:$AP$38,E$67,FALSE) -> 0 | F82: =VLOOKUP($A82,'Mat of App'!$B$7:$AP$38,F$67,FALSE) -> 0 | G82: =VLOOKUP($A82,'Mat of App'!$B$7:$AP$38,G$67,FALSE) -> 0 | H82: =VLOOKUP($A82,'Mat of App'!$B$7:$AP$38,H$67,FALSE) -> 0 | I82: =VLOOKUP($A82,'Mat of App'!$B$7:$AP$38,I$67,FALSE) -> 0
A84: 1026. Matrix of applicability of LV service models to unmetered tariffs
A86: Source: service models
A87: Proportion of service model involved in connecting load of 1 MWh/year
B88: LV service model 1 | C88: LV service model 2 | D88: LV service model 3 | E88: LV service model 4 | F88: LV service model 5 | G88: LV service model 6 | H88: LV service model 7 | I88: LV service model 8
A89: All LV unmetered tariffs | B89: =VLOOKUP($A89,'Mat of App'!$B$7:$AP$38,B$67,FALSE) -> 0 | C89: =VLOOKUP($A89,'Mat of App'!$B$7:$AP$38,C$67,FALSE) -> 0 | D89: =VLOOKUP($A89,'Mat of App'!$B$7:$AP$38,D$67,FALSE) -> 0 | E89: =VLOOKUP($A89,'Mat of App'!$B$7:$AP$38,E$67,FALSE) -> 0 | F89: =VLOOKUP($A89,'Mat of App'!$B$7:$AP$38,F$67,FALSE) -> 0 | G89: =VLOOKUP($A89,'Mat of App'!$B$7:$AP$38,G$67,FALSE) -> 0 | H89: =VLOOKUP($A89,'Mat of App'!$B$7:$AP$38,H$67,FALSE) -> 0 | I89: =VLOOKUP($A89,'Mat of App'!$B$7:$AP$38,I$67,FALSE) -> 0.488
A91: 1028. Matrix of applicability of HV service models to tariffs with fixed charges
B92: 22 | C92: =B92+1 -> 23 | D92: =C92+1 -> 24 | E92: 25 | F92: 26
B93: HV service model 1 | C93: HV service model 2 | D93: HV service model 3 | E93: HV service model 4 | F93: HV service model 5
A94: HV Medium Non-Domestic | B94: =VLOOKUP($A94,'Mat of App'!$B$7:$AP$38,B$92,FALSE) -> 1 | C94: =VLOOKUP($A94,'Mat of App'!$B$7:$AP$38,C$92,FALSE) -> 0 | D94: =VLOOKUP($A94,'Mat of App'!$B$7:$AP$38,D$92,FALSE) -> 0 | E94: =VLOOKUP($A94,'Mat of App'!$B$7:$AP$38,E$92,FALSE) -> 0 | F94: =VLOOKUP($A94,'Mat of App'!$B$7:$AP$38,F$92,FALSE) -> 0
A95: HV HH Metered | B95: =VLOOKUP($A95,'Mat of App'!$B$7:$AP$38,B$92,FALSE) -> 1 | C95: =VLOOKUP($A95,'Mat of App'!$B$7:$AP$38,C$92,FALSE) -> 0 | D95: =VLOOKUP($A95,'Mat of App'!$B$7:$AP$38,D$92,FALSE) -> 0 | E95: =VLOOKUP($A95,'Mat of App'!$B$7:$AP$38,E$92,FALSE) -> 0 | F95: =VLOOKUP($A95,'Mat of App'!$B$7:$AP$38,F$92,FALSE) -> 0
A96: HV Sub HH Metered | B96: =VLOOKUP($A96,'Mat of App'!$B$7:$AP$38,B$92,FALSE) -> 1 | C96: =VLOOKUP($A96,'Mat of App'!$B$7:$AP$38,C$92,FALSE) -> 0 | D96: =VLOOKUP($A96,'Mat of App'!$B$7:$AP$38,D$92,FALSE) -> 0 | E96: =VLOOKUP($A96,'Mat of App'!$B$7:$AP$38,E$92,FALSE) -> 0 | F96: =VLOOKUP($A96,'Mat of App'!$B$7:$AP$38,F$92,FALSE) -> 0
A97: HV Generation Intermittent | B97: =VLOOKUP($A97,'Mat of App'!$B$7:$AP$38,B$92,FALSE) -> 0 | C97: =VLOOKUP($A97,'Mat of App'!$B$7:$AP$38,C$92,FALSE) -> 1 | D97: =VLOOKUP($A97,'Mat of App'!$B$7:$AP$38,D$92,FALSE) -> 0 | E97: =VLOOKUP($A97,'Mat of App'!$B$7:$AP$38,E$92,FALSE) -> 0 | F97: =VLOOKUP($A97,'Mat of App'!$B$7:$AP$38,F$92,FALSE) -> 0
A98: HV Generation Non-Intermittent | B98: =VLOOKUP($A98,'Mat of App'!$B$7:$AP$38,B$92,FALSE) -> 0 | C98: =VLOOKUP($A98,'Mat of App'!$B$7:$AP$38,C$92,FALSE) -> 1 | D98: =VLOOKUP($A98,'Mat of App'!$B$7:$AP$38,D$92,FALSE) -> 0 | E98: =VLOOKUP($A98,'Mat of App'!$B$7:$AP$38,E$92,FALSE) -> 0 | F98: =VLOOKUP($A98,'Mat of App'!$B$7:$AP$38,F$92,FALSE) -> 0
A99: HV Sub Generation Non-Intermittent | B99: =VLOOKUP($A99,'Mat of App'!$B$7:$AP$38,B$92,FALSE) -> 0 | C99: =VLOOKUP($A99,'Mat of App'!$B$7:$AP$38,C$92,FALSE) -> 1 | D99: =VLOOKUP($A99,'Mat of App'!$B$7:$AP$38,D$92,FALSE) -> 0 | E99: =VLOOKUP($A99,'Mat of App'!$B$7:$AP$38,E$92,FALSE) -> 0 | F99: =VLOOKUP($A99,'Mat of App'!$B$7:$AP$38,F$92,FALSE) -> 0
A100: HV Sub Generation Intermittent | B100: =VLOOKUP($A100,'Mat of App'!$B$7:$AP$38,B$92,FALSE) -> 0 | C100: =VLOOKUP($A100,'Mat of App'!$B$7:$AP$38,C$92,FALSE) -> 1 | D100: =VLOOKUP($A100,'Mat of App'!$B$7:$AP$38,D$92,FALSE) -> 0 | E100: =VLOOKUP($A100,'Mat of App'!$B$7:$AP$38,E$92,FALSE) -> 0 | F100: =VLOOKUP($A100,'Mat of App'!$B$7:$AP$38,F$92,FALSE) -> 0
A102: 1032. Loss adjustment factors to transmission
A104: Source: losses model or loss adjustment factors at time of system peak.
B105: 132kV | C105: 132kV/EHV | D105: EHV | E105: EHV/HV | F105: HV | G105: HV/LV | H105: LV circuits
A106: Loss adjustment factor | B106: =VLOOKUP(Vlookup!B106,Forcast_Data,9,FALSE) -> 1.002 | C106: =VLOOKUP(Vlookup!C106,Forcast_Data,9,FALSE) -> 1.003 | D106: =VLOOKUP(Vlookup!D106,Forcast_Data,9,FALSE) -> 1.006 | E106: =VLOOKUP(Vlookup!E106,Forcast_Data,9,FALSE) -> 1.027 | F106: =VLOOKUP(Vlookup!F106,Forcast_Data,9,FALSE) -> 1.044 | G106: =VLOOKUP(Vlookup!G106,Forcast_Data,9,FALSE) -> 1.051 | H106: =VLOOKUP(Vlookup!H106,Forcast_Data,9,FALSE) -> 1.077
A108: 1037. Embedded network (LDNO) discounts
A110: Source: separate price control disaggregation model.
B111: No discount | C111: LDNO LV: LV user | D111: LDNO HV: LV user | E111: LDNO HV: LV sub user | F111: LDNO HV: HV user
A112: LDNO discount | C112: =VLOOKUP(Vlookup!C112,Forcast_Data,9,FALSE) -> 0.3088318356 | D112: =VLOOKUP(Vlookup!D112,Forcast_Data,9,FALSE) -> 0.500779158 | E112: =VLOOKUP(Vlookup!E112,Forcast_Data,9,FALSE) -> 0.2542804506 | F112: =VLOOKUP(Vlookup!F112,Forcast_Data,9,FALSE) -> 0.1522859741
A114: 1041. Load profile data for demand users
A116: Source: load data analysis.
B117: Coincidence factor | C117: Load factor
A118: Domestic Unrestricted | B118: =VLOOKUP(Vlookup!B118,Forcast_Data,9,FALSE) -> 0.9172510752 | C118: =VLOOKUP(Vlookup!C118,Forcast_Data,9,FALSE) -> 0.4114348134
A119: Domestic Two Rate | B119: =VLOOKUP(Vlookup!B119,Forcast_Data,9,FALSE) -> 0.4008018177 | C119: =VLOOKUP(Vlookup!C119,Forcast_Data,9,FALSE) -> 0.2556052059
A120: Domestic Off Peak (related MPAN) | C120: =VLOOKUP(Vlookup!C120,Forcast_Data,9,FALSE) -> 0.1559078077
A121: Small Non Domestic Unrestricted | B121: =VLOOKUP(Vlookup!B121,Forcast_Data,9,FALSE) -> 0.6200806889 | C121: =VLOOKUP(Vlookup!C121,Forcast_Data,9,FALSE) -> 0.3524542035
A122: Small Non Domestic Two Rate | B122: =VLOOKUP(Vlookup!B122,Forcast_Data,9,FALSE) -> 0.6187554381 | C122: =VLOOKUP(Vlookup!C122,Forcast_Data,9,FALSE) -> 0.4306838132
A123: Small Non Domestic Off Peak (related MPAN) | C123: =VLOOKUP(Vlookup!C123,Forcast_Data,9,FALSE) -> 0.1868684712
A124: LV Medium Non-Domestic | B124: =VLOOKUP(Vlookup!B124,Forcast_Data,9,FALSE) -> 0.8048027574 | C124: =VLOOKUP(Vlookup!C124,Forcast_Data,9,FALSE) -> 0.4920997994
A125: LV Sub Medium Non-Domestic | B125: =VLOOKUP(Vlookup!B125,Forcast_Data,9,FALSE) -> 0.8048027574 | C125: =VLOOKUP(Vlookup!C125,Forcast_Data,9,FALSE) -> 0.4920997994
A126: HV Medium Non-Domestic | B126: =VLOOKUP(Vlookup!B126,Forcast_Data,9,FALSE) -> 0.6108164218 | C126: =VLOOKUP(Vlookup!C126,Forcast_Data,9,FALSE) -> 0.4220141332
A127: LV HH Metered | B127: =VLOOKUP(Vlookup!B127,Forcast_Data,9,FALSE) -> 0.7619514042 | C127: =VLOOKUP(Vlookup!C127,Forcast_Data,9,FALSE) -> 0.5192642925
A128: LV Sub HH Metered | B128: =VLOOKUP(Vlookup!B128,Forcast_Data,9,FALSE) -> 0.7619514042 | C128: =VLOOKUP(Vlookup!C128,Forcast_Data,9,FALSE) -> 0.5192642925
A129: HV HH Metered | B129: =VLOOKUP(Vlookup!B129,Forcast_Data,9,FALSE) -> 0.7725944525 | C129: =VLOOKUP(Vlookup!C129,Forcast_Data,9,FALSE) -> 0.6437861665
A130: HV Sub HH Metered | B130: =VLOOKUP(Vlookup!B130,Forcast_Data,9,FALSE) -> 0.7725944525 | C130: =VLOOKUP(Vlookup!C130,Forcast_Data,9,FALSE) -> 0.6437861665
A131: NHH UMS category A | B131: =VLOOKUP(Vlookup!B131,Forcast_Data,9,FALSE) -> 1 | C131: =VLOOKUP(Vlookup!C131,Forcast_Data,9,FALSE) -> 1
A132: NHH UMS category B | B132: =VLOOKUP(Vlookup!B132,Forcast_Data,9,FALSE) -> 1 | C132: =VLOOKUP(Vlookup!C132,Forcast_Data,9,FALSE) -> 0.4736829452
A133: NHH UMS category C | B133: =VLOOKUP(Vlookup!B133,Forcast_Data,9,FALSE) -> 1 | C133: =VLOOKUP(Vlookup!C133,Forcast_Data,9,FALSE) -> 0.258
A134: NHH UMS category D | B134: =VLOOKUP(Vlookup!B134,Forcast_Data,9,FALSE) -> 0.06413333333 | C134: =VLOOKUP(Vlookup!C134,Forcast_Data,9,FALSE) -> 0.553
A135: LV UMS (Pseudo HH Metered) | B135: =VLOOKUP(Vlookup!B135,Forcast_Data,9,FALSE) -> 0.9938755871 | C135: =VLOOKUP(Vlookup!C135,Forcast_Data,9,FALSE) -> 0.4877395704
A137: 1053. Volume forecasts for the charging year
B138: 28 | C138: 29 | D138: 30 | E138: 31 | F138: 32 | G138: 33
A139: Source: forecast.
A140: Please include MPAN counts for tariffs with no fixed charge (e.g. off-peak tariffs),
A141: but exclude MPANs on tariffs with a fixed charge that are not subject to a fixed charge due to a site grouping arrangement.
B142: Rate 1 units (MWh) | C142: Rate 2 units (MWh) | D142: Rate 3 units (MWh) | E142: MPANs | F142: Import capacity (kVA) | G142: Reactive power units (MVArh)
A143: > Domestic Unrestricted
A144: Domestic Unrestricted | B144: =VLOOKUP(Vlookup!B144,Volume_Forecast_Data,B$138,FALSE) -> 6905007.231 | E144: =VLOOKUP(Vlookup!E144,Volume_Forecast_Data,E$138,FALSE) -> 2000771.411
A145: LDNO LV: Domestic Unrestricted | B145: =VLOOKUP(Vlookup!B145,Volume_Forecast_Data,B$138,FALSE) -> 6613.807273 | E145: =VLOOKUP(Vlookup!E145,Volume_Forecast_Data,E$138,FALSE) -> 4427.770063
A146: LDNO HV: Domestic Unrestricted | B146: =VLOOKUP(Vlookup!B146,Volume_Forecast_Data,B$138,FALSE) -> 20626.61396 | E146: =VLOOKUP(Vlookup!E146,Volume_Forecast_Data,E$138,FALSE) -> 10327.9948
A147: > Domestic Two Rate
A148: Domestic Two Rate | B148: =VLOOKUP(Vlookup!B148,Volume_Forecast_Data,B$138,FALSE) -> 990183.6544 | C148: =VLOOKUP(Vlookup!C148,Volume_Forecast_Data,C$138,FALSE) -> 740509.288 | E148: =VLOOKUP(Vlookup!E148,Volume_Forecast_Data,E$138,FALSE) -> 327392.7524
A149: LDNO LV: Domestic Two Rate | B149: =VLOOKUP(Vlookup!B149,Volume_Forecast_Data,B$138,FALSE) -> 257.5117754 | C149: =VLOOKUP(Vlookup!C149,Volume_Forecast_Data,C$138,FALSE) -> 150.7386471 | E149: =VLOOKUP(Vlookup!E149,Volume_Forecast_Data,E$138,FALSE) -> 173.7808697
A150: LDNO HV: Domestic Two Rate | B150: =VLOOKUP(Vlookup!B150,Volume_Forecast_Data,B$138,FALSE) -> 371.626739 | C150: =VLOOKUP(Vlookup!C150,Volume_Forecast_Data,C$138,FALSE) -> 344.322758 | E150: =VLOOKUP(Vlookup!E150,Volume_Forecast_Data,E$138,FALSE) -> 275.7600626
A151: > Domestic Off Peak (related MPAN)
A152: Domestic Off Peak (related MPAN) | B152: =VLOOKUP(Vlookup!B152,Volume_Forecast_Data,B$138,FALSE) -> 36292.30286 | E152: =VLOOKUP(Vlookup!E152,Volume_Forecast_Data,E$138,FALSE) -> 0
A153: LDNO LV: Domestic Off Peak (related MPAN) | B153: =VLOOKUP(Vlookup!B153,Volume_Forecast_Data,B$138,FALSE) -> 0 | E153: =VLOOKUP(Vlookup!E153,Volume_Forecast_Data,E$138,FALSE) -> 0
A154: LDNO HV: Domestic Off Peak (related MPAN) | B154: =VLOOKUP(Vlookup!B154,Volume_Forecast_Data,B$138,FALSE) -> 0 | E154: =VLOOKUP(Vlookup!E154,Volume_Forecast_Data,E$138,FALSE) -> 0
A155: > Small Non Domestic Unrestricted
A156: Small Non Domestic Unrestricted | B156: =VLOOKUP(Vlookup!B156,Volume_Forecast_Data,B$138,FALSE) -> 1601953.079 | E156: =VLOOKUP(Vlookup!E156,Volume_Forecast_Data,E$138,FALSE) -> 138318.1256
A157: LDNO LV: Small Non Domestic Unrestricted | B157: =VLOOKUP(Vlookup!B157,Volume_Forecast_Data,B$138,FALSE) -> 631.150963 | E157: =VLOOKUP(Vlookup!E157,Volume_Forecast_Data,E$138,FALSE) -> 108.222817
A158: LDNO HV: Small Non Domestic Unrestricted | B158: =VLOOKUP(Vlookup!B158,Volume_Forecast_Data,B$138,FALSE) -> 6160.902585 | E158: =VLOOKUP(Vlookup!E158,Volume_Forecast_Data,E$138,FALSE) -> 400.6325439
A159: > Small Non Domestic Two Rate
A160: Small Non Domestic Two Rate | B160: =VLOOKUP(Vlookup!B160,Volume_Forecast_Data,B$138,FALSE) -> 453929.1538 | C160: =VLOOKUP(Vlookup!C160,Volume_Forecast_Data,C$138,FALSE) -> 206228.1673 | E160: =VLOOKUP(Vlookup!E160,Volume_Forecast_Data,E$138,FALSE) -> 33481.43402
A161: LDNO LV: Small Non Domestic Two Rate | B161: =VLOOKUP(Vlookup!B161,Volume_Forecast_Data,B$138,FALSE) -> 309.134205 | C161: =VLOOKUP(Vlookup!C161,Volume_Forecast_Data,C$138,FALSE) -> 90.99245705 | E161: =VLOOKUP(Vlookup!E161,Volume_Forecast_Data,E$138,FALSE) -> 9.36543609
A162: LDNO HV: Small Non Domestic Two Rate | B162: =VLOOKUP(Vlookup!B162,Volume_Forecast_Data,B$138,FALSE) -> 1355.798657 | C162: =VLOOKUP(Vlookup!C162,Volume_Forecast_Data,C$138,FALSE) -> 349.4465771 | E162: =VLOOKUP(Vlookup!E162,Volume_Forecast_Data,E$138,FALSE) -> 40.58355639
A163: > Small Non Domestic Off Peak (related MPAN)
A164: Small Non Domestic Off Peak (related MPAN) | B164: =VLOOKUP(Vlookup!B164,Volume_Forecast_Data,B$138,FALSE) -> 6149.413683 | E164: =VLOOKUP(Vlookup!E164,Volume_Forecast_Data,E$138,FALSE) -> 0
A165: LDNO LV: Small Non Domestic Off Peak (related MPAN) | B165: =VLOOKUP(Vlookup!B165,Volume_Forecast_Data,B$138,FALSE) -> 0 | E165: =VLOOKUP(Vlookup!E165,Volume_Forecast_Data,E$138,FALSE) -> 0
A166: LDNO HV: Small Non Domestic Off Peak (related MPAN) | B166: =VLOOKUP(Vlookup!B166,Volume_Forecast_Data,B$138,FALSE) -> 0 | E166: =VLOOKUP(Vlookup!E166,Volume_Forecast_Data,E$138,FALSE) -> 0
A167: > LV Medium Non-Domestic
A168: LV Medium Non-Domestic | B168: =VLOOKUP(Vlookup!B168,Volume_Forecast_Data,B$138,FALSE) -> 1255621.204 | C168: =VLOOKUP(Vlookup!C168,Volume_Forecast_Data,C$138,FALSE) -> 303177.0829 | E168: =VLOOKUP(Vlookup!E168,Volume_Forecast_Data,E$138,FALSE) -> 18486.33024
A169: LDNO LV: LV Medium Non-Domestic | B169: =VLOOKUP(Vlookup!B169,Volume_Forecast_Data,B$138,FALSE) -> 293.4841748 | C169: =VLOOKUP(Vlookup!C169,Volume_Forecast_Data,C$138,FALSE) -> 99.31410028 | E169: =VLOOKUP(Vlookup!E169,Volume_Forecast_Data,E$138,FALSE) -> 7.28422807
A170: LDNO HV: LV Medium Non-Domestic | B170: =VLOOKUP(Vlookup!B170,Volume_Forecast_Data,B$138,FALSE) -> 6297.984438 | C170: =VLOOKUP(Vlookup!C170,Volume_Forecast_Data,C$138,FALSE) -> 1474.094134 | E170: =VLOOKUP(Vlookup!E170,Volume_Forecast_Data,E$138,FALSE) -> 64.51744862
A171: > LV Sub Medium Non-Domestic
A172: LV Sub Medium Non-Domestic | B172: =VLOOKUP(Vlookup!B172,Volume_Forecast_Data,B$138,FALSE) -> 89.95074808 | C172: =VLOOKUP(Vlookup!C172,Volume_Forecast_Data,C$138,FALSE) -> 23.62333651 | E172: =VLOOKUP(Vlookup!E172,Volume_Forecast_Data,E$138,FALSE) -> 3.12181203
A173: > HV Medium Non-Domestic
A174: HV Medium Non-Domestic | B174: =VLOOKUP(Vlookup!B174,Volume_Forecast_Data,B$138,FALSE) -> 35787.53629 | C174: =VLOOKUP(Vlookup!C174,Volume_Forecast_Data,C$138,FALSE) -> 9819.4232 | E174: =VLOOKUP(Vlookup!E174,Volume_Forecast_Data,E$138,FALSE) -> 284.0848947
A175: > LV HH Metered
A176: LV HH Metered | B176: =VLOOKUP(Vlookup!B176,Volume_Forecast_Data,B$138,FALSE) -> 200938.4128 | C176: =VLOOKUP(Vlookup!C176,Volume_Forecast_Data,C$138,FALSE) -> 800271.2815 | D176: =VLOOKUP(Vlookup!D176,Volume_Forecast_Data,D$138,FALSE) -> 824473.0092 | E176: =VLOOKUP(Vlookup!E176,Volume_Forecast_Data,E$138,FALSE) -> 6262.354932 | F176: =VLOOKUP(Vlookup!F176,Volume_Forecast_Data,F$138,FALSE) -> 983000 | G176: =VLOOKUP(Vlookup!G176,Volume_Forecast_Data,G$138,FALSE) -> 164557.5686
A177: LDNO LV: LV HH Metered | B177: =VLOOKUP(Vlookup!B177,Volume_Forecast_Data,B$138,FALSE) -> 7.217149942 | C177: =VLOOKUP(Vlookup!C177,Volume_Forecast_Data,C$138,FALSE) -> 52.39897539 | D177: =VLOOKUP(Vlookup!D177,Volume_Forecast_Data,D$138,FALSE) -> 1.352134944 | E177: =VLOOKUP(Vlookup!E177,Volume_Forecast_Data,E$138,FALSE) -> 1.04060401 | F177: =VLOOKUP(Vlookup!F177,Volume_Forecast_Data,F$138,FALSE) -> 0 | G177: =VLOOKUP(Vlookup!G177,Volume_Forecast_Data,G$138,FALSE) -> 0.81
A178: LDNO HV: LV HH Metered | B178: =VLOOKUP(Vlookup!B178,Volume_Forecast_Data,B$138,FALSE) -> 4125.460253 | C178: =VLOOKUP(Vlookup!C178,Volume_Forecast_Data,C$138,FALSE) -> 14014.3713 | D178: =VLOOKUP(Vlookup!D178,Volume_Forecast_Data,D$138,FALSE) -> 15347.49519 | E178: =VLOOKUP(Vlookup!E178,Volume_Forecast_Data,E$138,FALSE) -> 82.20771679 | F178: =VLOOKUP(Vlookup!F178,Volume_Forecast_Data,F$138,FALSE) -> 19000 | G178: =VLOOKUP(Vlookup!G178,Volume_Forecast_Data,G$138,FALSE) -> 1075.1704
A179: > LV Sub HH Metered
A180: LV Sub HH Metered | B180: =VLOOKUP(Vlookup!B180,Volume_Forecast_Data,B$138,FALSE) -> 2208.515576 | C180: =VLOOKUP(Vlookup!C180,Volume_Forecast_Data,C$138,FALSE) -> 8163.960477 | D180: =VLOOKUP(Vlookup!D180,Volume_Forecast_Data,D$138,FALSE) -> 10135.0224 | E180: =VLOOKUP(Vlookup!E180,Volume_Forecast_Data,E$138,FALSE) -> 33.29932832 | F180: =VLOOKUP(Vlookup!F180,Volume_Forecast_Data,F$138,FALSE) -> 17000 | G180: =VLOOKUP(Vlookup!G180,Volume_Forecast_Data,G$138,FALSE) -> 603.104
A181: LDNO HV: LV Sub HH Metered | B181: =VLOOKUP(Vlookup!B181,Volume_Forecast_Data,B$138,FALSE) -> 179.6786191 | C181: =VLOOKUP(Vlookup!C181,Volume_Forecast_Data,C$138,FALSE) -> 616.7023502 | D181: =VLOOKUP(Vlookup!D181,Volume_Forecast_Data,D$138,FALSE) -> 1152.150958 | E181: =VLOOKUP(Vlookup!E181,Volume_Forecast_Data,E$138,FALSE) -> 1.04060401 | F181: =VLOOKUP(Vlookup!F181,Volume_Forecast_Data,F$138,FALSE) -> 0 | G181: =VLOOKUP(Vlookup!G181,Volume_Forecast_Data,G$138,FALSE) -> 675.1852
A182: > HV HH Metered
A183: HV HH Metered | B183: =VLOOKUP(Vlookup!B183,Volume_Forecast_Data,B$138,FALSE) -> 761286.0181 | C183: =VLOOKUP(Vlookup!C183,Volume_Forecast_Data,C$138,FALSE) -> 3038893.428 | D183: =VLOOKUP(Vlookup!D183,Volume_Forecast_Data,D$138,FALSE) -> 3866242.373 | E183: =VLOOKUP(Vlookup!E183,Volume_Forecast_Data,E$138,FALSE) -> 3859.600273 | F183: =VLOOKUP(Vlookup!F183,Volume_Forecast_Data,F$138,FALSE) -> 2873000 | G183: =VLOOKUP(Vlookup!G183,Volume_Forecast_Data,G$138,FALSE) -> 1033930.859
A184: LDNO HV: HV HH Metered | B184: =VLOOKUP(Vlookup!B184,Volume_Forecast_Data,B$138,FALSE) -> 1589.859594 | C184: =VLOOKUP(Vlookup!C184,Volume_Forecast_Data,C$138,FALSE) -> 5041.25272 | D184: =VLOOKUP(Vlookup!D184,Volume_Forecast_Data,D$138,FALSE) -> 5338.223186 | E184: =VLOOKUP(Vlookup!E184,Volume_Forecast_Data,E$138,FALSE) -> 9.36543609 | F184: =VLOOKUP(Vlookup!F184,Volume_Forecast_Data,F$138,FALSE) -> 6000 | G184: =VLOOKUP(Vlookup!G184,Volume_Forecast_Data,G$138,FALSE) -> 832.2484
A185: > HV Sub HH Metered
A186: HV Sub HH Metered | B186: =VLOOKUP(Vlookup!B186,Volume_Forecast_Data,B$138,FALSE) -> 0 | C186: =VLOOKUP(Vlookup!C186,Volume_Forecast_Data,C$138,FALSE) -> 0 | D186: =VLOOKUP(Vlookup!D186,Volume_Forecast_Data,D$138,FALSE) -> 0 | E186: =VLOOKUP(Vlookup!E186,Volume_Forecast_Data,E$138,FALSE) -> 0 | F186: =VLOOKUP(Vlookup!F186,Volume_Forecast_Data,F$138,FALSE) -> 0 | G186: =VLOOKUP(Vlookup!G186,Volume_Forecast_Data,G$138,FALSE) -> 0
A187: > NHH UMS category A
A188: NHH UMS category A | B188: =VLOOKUP(Vlookup!B188,Volume_Forecast_Data,B$138,FALSE) -> 61702.11063 | E188: =VLOOKUP(Vlookup!E188,Volume_Forecast_Data,E$138,FALSE) -> 0
A189: LDNO LV: NHH UMS category A | B189: =VLOOKUP(Vlookup!B189,Volume_Forecast_Data,B$138,FALSE) -> 39.21617588 | E189: =VLOOKUP(Vlookup!E189,Volume_Forecast_Data,E$138,FALSE) -> 0
A190: LDNO HV: NHH UMS category A | B190: =VLOOKUP(Vlookup!B190,Volume_Forecast_Data,B$138,FALSE) -> 179.3022742 | E190: =VLOOKUP(Vlookup!E190,Volume_Forecast_Data,E$138,FALSE) -> 0
A191: > NHH UMS category B
A192: NHH UMS category B | B192: =VLOOKUP(Vlookup!B192,Volume_Forecast_Data,B$138,FALSE) -> 32686.4563 | E192: =VLOOKUP(Vlookup!E192,Volume_Forecast_Data,E$138,FALSE) -> 0
A193: LDNO LV: NHH UMS category B | B193: =VLOOKUP(Vlookup!B193,Volume_Forecast_Data,B$138,FALSE) -> 20.77461866 | E193: =VLOOKUP(Vlookup!E193,Volume_Forecast_Data,E$138,FALSE) -> 0
A194: LDNO HV: NHH UMS category B | B194: =VLOOKUP(Vlookup!B194,Volume_Forecast_Data,B$138,FALSE) -> 94.98469159 | E194: =VLOOKUP(Vlookup!E194,Volume_Forecast_Data,E$138,FALSE) -> 0
A195: > NHH UMS category C
A196: NHH UMS category C | B196: =VLOOKUP(Vlookup!B196,Volume_Forecast_Data,B$138,FALSE) -> 745.3310768 | E196: =VLOOKUP(Vlookup!E196,Volume_Forecast_Data,E$138,FALSE) -> 0
A197: LDNO LV: NHH UMS category C | B197: =VLOOKUP(Vlookup!B197,Volume_Forecast_Data,B$138,FALSE) -> 0.4737120708 | E197: =VLOOKUP(Vlookup!E197,Volume_Forecast_Data,E$138,FALSE) -> 0
A198: LDNO HV: NHH UMS category C | B198: =VLOOKUP(Vlookup!B198,Volume_Forecast_Data,B$138,FALSE) -> 2.165883075 | E198: =VLOOKUP(Vlookup!E198,Volume_Forecast_Data,E$138,FALSE) -> 0
A199: > NHH UMS category D
A200: NHH UMS category D | B200: =VLOOKUP(Vlookup!B200,Volume_Forecast_Data,B$138,FALSE) -> 5299.250489 | E200: =VLOOKUP(Vlookup!E200,Volume_Forecast_Data,E$138,FALSE) -> 0
A201: LDNO LV: NHH UMS category D | B201: =VLOOKUP(Vlookup!B201,Volume_Forecast_Data,B$138,FALSE) -> 3.368058841 | E201: =VLOOKUP(Vlookup!E201,Volume_Forecast_Data,E$138,FALSE) -> 0
A202: LDNO HV: NHH UMS category D | B202: =VLOOKUP(Vlookup!B202,Volume_Forecast_Data,B$138,FALSE) -> 15.39927329 | E202: =VLOOKUP(Vlookup!E202,Volume_Forecast_Data,E$138,FALSE) -> 0
A203: > LV UMS (Pseudo HH Metered)
A204: LV UMS (Pseudo HH Metered) | B204: =VLOOKUP(Vlookup!B204,Volume_Forecast_Data,B$138,FALSE) -> 11501.82327 | C204: =VLOOKUP(Vlookup!C204,Volume_Forecast_Data,C$138,FALSE) -> 26516.1953 | D204: =VLOOKUP(Vlookup!D204,Volume_Forecast_Data,D$138,FALSE) -> 199955.5839 | E204: =VLOOKUP(Vlookup!E204,Volume_Forecast_Data,E$138,FALSE) -> 0
A205: LDNO LV: LV UMS (Pseudo HH Metered) | B205: =VLOOKUP(Vlookup!B205,Volume_Forecast_Data,B$138,FALSE) -> 0 | C205: =VLOOKUP(Vlookup!C205,Volume_Forecast_Data,C$138,FALSE) -> 0 | D205: =VLOOKUP(Vlookup!D205,Volume_Forecast_Data,D$138,FALSE) -> 0 | E205: =VLOOKUP(Vlookup!E205,Volume_Forecast_Data,E$138,FALSE) -> 0
A206: LDNO HV: LV UMS (Pseudo HH Metered) | B206: =VLOOKUP(Vlookup!B206,Volume_Forecast_Data,B$138,FALSE) -> 0 | C206: =VLOOKUP(Vlookup!C206,Volume_Forecast_Data,C$138,FALSE) -> 0 | D206: =VLOOKUP(Vlookup!D206,Volume_Forecast_Data,D$138,FALSE) -> 0 | E206: =VLOOKUP(Vlookup!E206,Volume_Forecast_Data,E$138,FALSE) -> 0
A207: > LV Generation NHH
A208: LV Generation NHH | B208: =VLOOKUP(Vlookup!B208,Volume_Forecast_Data,B$138,FALSE) -> 427.1184493 | E208: =VLOOKUP(Vlookup!E208,Volume_Forecast_Data,E$138,FALSE) -> 99.89798496
A209: LDNO LV: LV Generation NHH | B209: =VLOOKUP(Vlookup!B209,Volume_Forecast_Data,B$138,FALSE) -> 0 | E209: =VLOOKUP(Vlookup!E209,Volume_Forecast_Data,E$138,FALSE) -> 0
A210: LDNO HV: LV Generation NHH | B210: =VLOOKUP(Vlookup!B210,Volume_Forecast_Data,B$138,FALSE) -> 0 | E210: =VLOOKUP(Vlookup!E210,Volume_Forecast_Data,E$138,FALSE) -> 0
A211: > LV Sub Generation NHH
A212: LV Sub Generation NHH | B212: =VLOOKUP(Vlookup!B212,Volume_Forecast_Data,B$138,FALSE) -> 0 | E212: =VLOOKUP(Vlookup!E212,Volume_Forecast_Data,E$138,FALSE) -> 0
A213: LDNO HV: LV Sub Generation NHH | B213: =VLOOKUP(Vlookup!B213,Volume_Forecast_Data,B$138,FALSE) -> 0 | E213: =VLOOKUP(Vlookup!E213,Volume_Forecast_Data,E$138,FALSE) -> 0
A214: > LV Generation Intermittent
A215: LV Generation Intermittent | B215: =VLOOKUP(Vlookup!B215,Volume_Forecast_Data,B$138,FALSE) -> 44.83581877 | E215: =VLOOKUP(Vlookup!E215,Volume_Forecast_Data,E$138,FALSE) -> 20.8120802 | G215: =VLOOKUP(Vlookup!G215,Volume_Forecast_Data,G$138,FALSE) -> 16.962
A216: LDNO LV: LV Generation Intermittent | B216: =VLOOKUP(Vlookup!B216,Volume_Forecast_Data,B$138,FALSE) -> 0 | E216: =VLOOKUP(Vlookup!E216,Volume_Forecast_Data,E$138,FALSE) -> 0 | G216: =VLOOKUP(Vlookup!G216,Volume_Forecast_Data,G$138,FALSE) -> 0
A217: LDNO HV: LV Generation Intermittent | B217: =VLOOKUP(Vlookup!B217,Volume_Forecast_Data,B$138,FALSE) -> 0 | E217: =VLOOKUP(Vlookup!E217,Volume_Forecast_Data,E$138,FALSE) -> 0 | G217: =VLOOKUP(Vlookup!G217,Volume_Forecast_Data,G$138,FALSE) -> 0
A218: > LV Generation Non-Intermittent
A219: LV Generation Non-Intermittent | B219: =VLOOKUP(Vlookup!B219,Volume_Forecast_Data,B$138,FALSE) -> 222.1983449 | C219: =VLOOKUP(Vlookup!C219,Volume_Forecast_Data,C$138,FALSE) -> 843.1621872 | D219: =VLOOKUP(Vlookup!D219,Volume_Forecast_Data,D$138,FALSE) -> 1386.585759 | E219: =VLOOKUP(Vlookup!E219,Volume_Forecast_Data,E$138,FALSE) -> 59.31442857 | G219: =VLOOKUP(Vlookup!G219,Volume_Forecast_Data,G$138,FALSE) -> 85.2694
A220: LDNO LV: LV Generation Non-Intermittent | B220: =VLOOKUP(Vlookup!B220,Volume_Forecast_Data,B$138,FALSE) -> 0 | C220: =VLOOKUP(Vlookup!C220,Volume_Forecast_Data,C$138,FALSE) -> 0 | D220: =VLOOKUP(Vlookup!D220,Volume_Forecast_Data,D$138,FALSE) -> 0 | E220: =VLOOKUP(Vlookup!E220,Volume_Forecast_Data,E$138,FALSE) -> 0 | G220: =VLOOKUP(Vlookup!G220,Volume_Forecast_Data,G$138,FALSE) -> 0
A221: LDNO HV: LV Generation Non-Intermittent | B221: =VLOOKUP(Vlookup!B221,Volume_Forecast_Data,B$138,FALSE) -> 0 | C221: =VLOOKUP(Vlookup!C221,Volume_Forecast_Data,C$138,FALSE) -> 0 | D221: =VLOOKUP(Vlookup!D221,Volume_Forecast_Data,D$138,FALSE) -> 0 | E221: =VLOOKUP(Vlookup!E221,Volume_Forecast_Data,E$138,FALSE) -> 0 | G221: =VLOOKUP(Vlookup!G221,Volume_Forecast_Data,G$138,FALSE) -> 0
A222: > LV Sub Generation Intermittent
A223: LV Sub Generation Intermittent | B223: =VLOOKUP(Vlookup!B223,Volume_Forecast_Data,B$138,FALSE) -> 0 | E223: =VLOOKUP(Vlookup!E223,Volume_Forecast_Data,E$138,FALSE) -> 0 | G223: =VLOOKUP(Vlookup!G223,Volume_Forecast_Data,G$138,FALSE) -> 0
A224: LDNO HV: LV Sub Generation Intermittent | B224: =VLOOKUP(Vlookup!B224,Volume_Forecast_Data,B$138,FALSE) -> 0 | E224: =VLOOKUP(Vlookup!E224,Volume_Forecast_Data,E$138,FALSE) -> 0 | G224: =VLOOKUP(Vlookup!G224,Volume_Forecast_Data,G$138,FALSE) -> 0
A225: > LV Sub Generation Non-Intermittent
A226: LV Sub Generation Non-Intermittent | B226: =VLOOKUP(Vlookup!B226,Volume_Forecast_Data,B$138,FALSE) -> 0 | C226: =VLOOKUP(Vlookup!C226,Volume_Forecast_Data,C$138,FALSE) -> 0 | D226: =VLOOKUP(Vlookup!D226,Volume_Forecast_Data,D$138,FALSE) -> 0.2997059551 | E226: =VLOOKUP(Vlookup!E226,Volume_Forecast_Data,E$138,FALSE) -> 0 | G226: =VLOOKUP(Vlookup!G226,Volume_Forecast_Data,G$138,FALSE) -> 3.4596
A227: LDNO HV: LV Sub Generation Non-Intermittent | B227: =VLOOKUP(Vlookup!B227,Volume_Forecast_Data,B$138,FALSE) -> 0 | C227: =VLOOKUP(Vlookup!C227,Volume_Forecast_Data,C$138,FALSE) -> 0 | D227: =VLOOKUP(Vlookup!D227,Volume_Forecast_Data,D$138,FALSE) -> 0 | E227: =VLOOKUP(Vlookup!E227,Volume_Forecast_Data,E$138,FALSE) -> 0 | G227: =VLOOKUP(Vlookup!G227,Volume_Forecast_Data,G$138,FALSE) -> 0
A228: > HV Generation Intermittent
A229: HV Generation Intermittent | B229: =VLOOKUP(Vlookup!B229,Volume_Forecast_Data,B$138,FALSE) -> 948.8210241 | E229: =VLOOKUP(Vlookup!E229,Volume_Forecast_Data,E$138,FALSE) -> 4.16241604 | G229: =VLOOKUP(Vlookup!G229,Volume_Forecast_Data,G$138,FALSE) -> 376.0514
A230: LDNO HV: HV Generation Intermittent | B230: =VLOOKUP(Vlookup!B230,Volume_Forecast_Data,B$138,FALSE) -> 0 | E230: =VLOOKUP(Vlookup!E230,Volume_Forecast_Data,E$138,FALSE) -> 0 | G230: =VLOOKUP(Vlookup!G230,Volume_Forecast_Data,G$138,FALSE) -> 0
... 96 more rows

Sheet Tariffs
B2: ='CDCM Forecast Data'!F3&" - 5 Year Tariff Summary" -> WPD Mid West - 5 Year Tariff Summary
D5: Shortcut | F5: Note: These tariffs are based on the assumptions set out in the CDCM forecast Data and CDCM Volume Forecast sheets. If the assumptions in these sheets have been changed, the tariffs can be updated by pressing the button below.
C6: Year 0: | D6: =+'CDCM Volume Forecasts'!G6 -> 2013/14
C7: Year 1: | D7: =+'CDCM Volume Forecasts'!H6 -> 2014/15
C8: Year 2: | D8: =+'CDCM Volume Forecasts'!I6 -> 2015/16
C9: Year 3: | D9: =+'CDCM Volume Forecasts'!J6 -> 2016/17
C10: Year 4: | D10: =+'CDCM Volume Forecasts'!K6 -> 2017/18
C17: ="Tariffs for Charging Year: "& " "&D6&"" -> Tariffs for Charging Year: 2013/14
D20: Open LLFCs | E20: PCs | F20: Unit rate 1 p/kWh | G20: Unit rate 2 p/kWh | H20: Unit rate 3 p/kWh | I20: Fixed charge p/MPAN/day | J20: Capacity charge p/kVA/day | K20: Reactive power charge p/kVArh | L20: Closed LLFCs
C21: Domestic Unrestricted | D21: ='Tariffs (2)'!B15 -> 1 | E21: ='Tariffs (2)'!C15 -> 1 | F21: 2.183 | G21: 0 | H21: 0 | I21: 4.82 | J21: 0 | K21: 0 | L21: ='Tariffs (2)'!J15 -> 2, 3
C22: Domestic Two Rate | D22: ='Tariffs (2)'!B16 -> 4 | E22: ='Tariffs (2)'!C16 -> 2 | F22: 2.51 | G22: 0.104 | H22: 0 | I22: 4.82 | J22: 0 | K22: 0 | L22: ='Tariffs (2)'!J16 -> 5, 6, 30
C23: Domestic Off Peak (related MPAN) | D23: ='Tariffs (2)'!B17 -> 34 | E23: ='Tariffs (2)'!C17 -> 2 | F23: 0.201 | G23: 0 | H23: 0 | I23: 0 | J23: 0 | K23: 0 | L23: ='Tariffs (2)'!J17 -> 35, 36
C24: Small Non Domestic Unrestricted | D24: ='Tariffs (2)'!B18 -> 7 | E24: ='Tariffs (2)'!C18 -> 3 | F24: 1.723 | G24: 0 | H24: 0 | I24: 6.25 | J24: 0 | K24: 0 | L24: ='Tariffs (2)'!J18 -> 8, 9, 13, 14, 15, 46, 47, 49, 107, 108, 109
C25: Small Non Domestic Two Rate | D25: ='Tariffs (2)'!B19 -> 10 | E25: ='Tariffs (2)'!C19 -> 4 | F25: 2.057 | G25: 0.089 | H25: 0 | I25: 6.25 | J25: 0 | K25: 0 | L25: ='Tariffs (2)'!J19 -> 11, 12, 110, 111, 112
C26: Small Non Domestic Off Peak (related MPAN) | D26: ='Tariffs (2)'!B20 -> 40 | E26: ='Tariffs (2)'!C20 -> 4 | F26: 0.313 | G26: 0 | H26: 0 | I26: 0 | J26: 0 | K26: 0 | L26: ='Tariffs (2)'!J20 -> 41, 42
C27: LV Medium Non-Domestic | D27: ='Tariffs (2)'!B21 -> 21 | E27: ='Tariffs (2)'!C21 -> 5-8 | F27: 1.976 | G27: 0.083 | H27: 0 | I27: 37.02 | J27: 0 | K27: 0 | L27: ='Tariffs (2)'!J21 -> 20, 22, 25, 26, 27
C28: LV Sub Medium Non-Domestic | D28: ='Tariffs (2)'!B22 -> 19 | E28: ='Tariffs (2)'!C22 -> 5-8 | F28: 1.774 | G28: 0.066 | H28: 0 | I28: 24.13 | J28: 0 | K28: 0 | L28: ='Tariffs (2)'!J22 -> 0
C29: HV Medium Non-Domestic | D29: ='Tariffs (2)'!B23 -> 322, 323 | E29: ='Tariffs (2)'!C23 -> 5-8 | F29: 1.005 | G29: 0.02 | H29: 0 | I29: 349.93 | J29: 0 | K29: 0 | L29: ='Tariffs (2)'!J23 -> 121, 124, 132
C30: LV HH Metered | D30: ='Tariffs (2)'!B24 -> 127, 129 | E30: ='Tariffs (2)'!C24 -> 0 | F30: 8.705 | G30: 0.627 | H30: 0.056 | I30: 10.42 | J30: 3.22 | K30: 0.332 | L30: ='Tariffs (2)'!J24 -> 0
C31: LV Sub HH Metered | D31: ='Tariffs (2)'!B25 -> 128 | E31: ='Tariffs (2)'!C25 -> 0 | F31: 7.452 | G31: 0.481 | H31: 0.034 | I31: 10.42 | J31: 4.21 | K31: 0.267 | L31: ='Tariffs (2)'!J25 -> 130
C32: HV HH Metered | D32: ='Tariffs (2)'!B26 -> 365, 367 | E32: ='Tariffs (2)'!C26 -> 0 | F32: 5.298 | G32: 0.292 | H32: 0.017 | I32: 104.75 | J32: 4.95 | K32: 0.171 | L32: ='Tariffs (2)'!J26 -> 0
C33: HV Sub HH Metered | D33: ='Tariffs (2)'!B27 -> N/A | E33: ='Tariffs (2)'!C27 -> 0 | F33: 5.424 | G33: 0.325 | H33: 0.018 | I33: 104.75 | J33: 4.2 | K33: 0.191 | L33: ='Tariffs (2)'!J27 -> 0
C34: NHH UMS category A | D34: ='Tariffs (2)'!B28 -> 95 | E34: ='Tariffs (2)'!C28 -> 8 | F34: 1.924 | G34: 0 | H34: 0 | I34: 0 | J34: 0 | K34: 0 | L34: ='Tariffs (2)'!J28 -> 0
C35: NHH UMS category B | D35: ='Tariffs (2)'!B29 -> 96 | E35: ='Tariffs (2)'!C29 -> 1 | F35: 2.369 | G35: 0 | H35: 0 | I35: 0 | J35: 0 | K35: 0 | L35: ='Tariffs (2)'!J29 -> 0
C36: NHH UMS category C | D36: ='Tariffs (2)'!B30 -> 97 | E36: ='Tariffs (2)'!C30 -> 1 | F36: 3.931 | G36: 0 | H36: 0 | I36: 0 | J36: 0 | K36: 0 | L36: ='Tariffs (2)'!J30 -> 0
C37: NHH UMS category D | D37: ='Tariffs (2)'!B31 -> 98 | E37: ='Tariffs (2)'!C31 -> 1 | F37: 1.669 | G37: 0 | H37: 0 | I37: 0 | J37: 0 | K37: 0 | L37: ='Tariffs (2)'!J31 -> 0
